Workbook

Sheet Control Panel
A1: 1 | B1: Dominion Energy | F1: DEFICIENCY
B2: =F11&" - "&F16 -> Utah - DEC 2020 Adjusted Avg Results CET | F2: =Report!K13 -> 19249739.63
B3: ="12 Months Ended"&" : "& TEXT(F12,"mmm-yyyy") -> 12 Months Ended : Dec-2020 | F3: ROE
B4: ="Capital Structure"&" : "&F72 -> Capital Structure : AVG CAP STR DEC 20 | F4: =+Report!J79 -> 0.09053340352
B9: REPORT CHECK: MUST BE (0) ======> | C9: =IF((SUM(Report!F13:H74)-SUM(Report!I13:I74))<1,"0","ERROR") -> 0 | H9: Dec 2018 Unadjusted Avg Results | J9: DEC 2018 Adjusted Avg Results | L9: DEC 2019 Adjusted Avg Results | N9: DEC 2020 Adjusted Avg Results | P9: DEC 2020 Adjusted Avg Results CET | S9: Line #
E10: =F10&" - "&"A" -> 8 - A | F10: 8 | H10: 4 | I10: =H10&" - "&"A" -> 4 - A | J10: 5 | K10: =J10&" - "&"A" -> 5 - A | L10: 6 | M10: =L10&" - "&"A" -> 6 - A | N10: 7 | O10: =N10&" - "&"A" -> 7 - A | P10: 8 | Q10: =P10&" - "&"A" -> 8 - A | S10: 1
B11: Jurisdiction | F11: =HLOOKUP($F$10,Scenarios,S11,FALSE) -> Utah | H11: Utah | J11: Utah | L11: Utah | N11: Utah | P11: Utah | S11: =S10+1 -> 2
B12: Scenario Title 1 | F12: =HLOOKUP($F$10,Scenarios,S12,FALSE) -> 2020-12-31 | H12: 2018-12-31 | J12: 2018-12-31 | L12: 2019-12-31 | N12: 2020-12-31 | P12: 2020-12-31 | S12: =S11+1 -> 3
S13: 4
S14: 5
S15: 6
B16: Scenario Title 2 | F16: =HLOOKUP($F$10,Scenarios,S16,FALSE) -> DEC 2020 Adjusted Avg Results CET | H16: =+H9 -> Dec 2018 Unadjusted Avg Results | J16: =+J9 -> DEC 2018 Adjusted Avg Results | L16: =+L9 -> DEC 2019 Adjusted Avg Results | N16: =+N9 -> DEC 2020 Adjusted Avg Results | P16: =+P9 -> DEC 2020 Adjusted Avg Results CET | S16: 7
B17: Required Inputs and Factors | S17: 8
S18: 9
B19: Return On Equity | F19: =HLOOKUP($F$10,Scenarios,S19,FALSE) -> 0.105 | H19: 0.0985 | J19: 0.0985 | L19: 0.105 | N19: 0.105 | P19: 0.105 | S19: 10
S20: 11
B21: Lead-Lag Factor | F21: =HLOOKUP($F$10,Scenarios,S21,FALSE) -> 7.358 | H21: 1.015 | J21: 1.015 | L21: 7.358 | N21: 7.358 | P21: 7.358 | S21: 12
B22: Bad Debt Ratio | F22: =HLOOKUP($F$10,Scenarios,S22,FALSE) -> 0.002380043571 | H22: 0.002380043571 | J22: =+'Utah Bad Debt'!$G$17 -> 0.002380043571 | L22: ='Utah Bad Debt'!$G$17 -> 0.002380043571 | N22: ='Utah Bad Debt'!$G$17 -> 0.002380043571 | P22: ='Utah Bad Debt'!$G$17 -> 0.002380043571 | S22: =S21+1 -> 13
S23: =S22+1 -> 14
S24: 15
B25: Adjustments | C25: Go To Adjustment | S25: 16
S26: 17
A27: 1 | B27: =+F27 -> AVG RB DEC 2020 | C27: RATE BASE | E27: =HLOOKUP($E$10,Scenarios,S27,FALSE) -> Y | F27: =HLOOKUP($F$10,Scenarios,S27,FALSE) -> AVG RB DEC 2020 | H27: AVG RB DEC 2018 | I27: Y | J27: AVG RB DEC 2018 | K27: Y | L27: AVG RB DEC 2019 | M27: Y | N27: AVG RB DEC 2020 | O27: Y | P27: AVG RB DEC 2020 | Q27: Y | S27: 18
A28: =+A27+1 -> 2 | B28: Expense Dec 2020 | C28: Expense Adjustment | E28: Y | F28: Expense Dec 2020 | H28: Expense Dec 2018 | I28: N | J28: Expense Dec 2018 | K28: N | L28: Expense Dec 2019 | M28: Y | N28: Expense Dec 2020 | O28: Y | P28: Expense Dec 2020 | Q28: Y | S28: 19
A29: =+A28+1 -> 3 | B29: =+F29 -> AVG Projected Rev 2020 with CET | C29: REVENUE ADJUSTMENT | E29: Y | F29: AVG Projected Rev 2020 with CET | H29: Booked Rev DEC 2018 | I29: Y | J29: Booked Rev DEC 2018 | K29: Y | L29: AVG Proj Rev 2019 | M29: Y | N29: AVG Projected Rev 2020 adj HDD | O29: Y | P29: AVG Projected Rev 2020 with CET | Q29: Y | S29: 20
A30: =+A29+1 -> 4 | B30: Underground Storage | C30: Underground Storage | E30: Y | F30: Underground Storage | H30: Underground Storage | I30: Y | J30: Underground Storage | K30: Y | L30: Underground Storage | M30: Y | N30: Underground Storage | O30: Y | P30: Underground Storage | Q30: Y | S30: 21
A31: 5 | B31: Wexpro | C31: Wexpro | E31: Y | F31: Wexpro | H31: Wexpro | I31: Y | J31: Wexpro | K31: Y | L31: Wexpro | M31: Y | N31: Wexpro | O31: Y | P31: Wexpro | Q31: Y | S31: 22
A32: 6 | B32: =+F32 -> Energy Efficiency 2020 | C32: Energy Efficiency | E32: =HLOOKUP($E$10,Scenarios,S32,FALSE) -> Y | F32: Energy Efficiency 2020 | H32: Energy Efficiency 2018 | I32: Y | J32: Energy Efficiency 2018 | K32: Y | L32: Energy Efficiency 2019 | M32: Y | N32: Energy Efficiency 2020 | O32: Y | P32: Energy Efficiency 2020 | Q32: Y | S32: 23
A33: 7 | B33: Utah Bad Debt 2020 | C33: Utah Bad Debt | E33: Y | F33: Utah Bad Debt 2020 | H33: Utah Bad Debt 2018 | I33: N | J33: Utah Bad Debt 2018 | K33: Y | L33: Utah Bad Debt 2019 | M33: Y | N33: Utah Bad Debt 2020 | O33: Y | P33: Utah Bad Debt 2020 | Q33: Y | S33: 24
A34: 8 | B34: Incentives 2020 | C34: Incentives | E34: Y | F34: Incentives 2020 | H34: ROO Incentives 2018 | I34: N | J34: ROO Incentives 2018 | K34: Y | L34: Incentives 2019 | M34: Y | N34: Incentives 2020 | O34: Y | P34: Incentives 2020 | Q34: Y | S34: 25
A35: 9 | B35: Sporting Events DEC 2020 | C35: Sporting Events | E35: Y | F35: Sporting Events DEC 2020 | H35: Sporting Events DEC 2018 | I35: N | J35: Sporting Events DEC 2018 | K35: Y | L35: Sporting Events DEC 2019 | M35: Y | N35: Sporting Events DEC 2020 | O35: Y | P35: Sporting Events DEC 2020 | Q35: Y | S35: 26
A36: 10 | B36: Advertising DEC 2020 | C36: Advertising | E36: Y | F36: Advertising DEC 2020 | H36: Advertising DEC 2018 | I36: N | J36: Advertising DEC 2018 | K36: Y | L36: Advertising DEC 2019 | M36: Y | N36: Advertising DEC 2020 | O36: Y | P36: Advertising DEC 2020 | Q36: Y | S36: 27
A37: 11 | B37: Don & Membership DEC 2020 | C37: Donations | E37: Y | F37: Don & Membership DEC 2020 | H37: Don & Membership DEC 2018 | I37: N | J37: Don & Membership DEC 2018 | K37: Y | L37: Don & Membership DEC 2019 | M37: Y | N37: Don & Membership DEC 2020 | O37: Y | P37: Don & Membership DEC 2020 | Q37: Y | S37: 28
A38: 12 | B38: Reserve Accrual Dec 2020 | C38: RESERVE ACCRUAL | E38: Y | F38: Reserve Accrual Dec 2020 | H38: Reserve Accrual Dec 2018 | I38: N | J38: Reserve Accrual Dec 2018 | K38: Y | L38: Reserve Accrual Dec 2019 | M38: Y | N38: Reserve Accrual Dec 2020 | O38: Y | P38: Reserve Accrual Dec 2020 | Q38: Y | S38: 29
A39: 13 | B39: Pipeline Integrity 2020 | C39: Pipeline Integrity | E39: Y | F39: Pipeline Integrity 2020 | H39: Pipeline Integrity 2020 | I39: N | J39: Pipeline Integrity 2020 | K39: N | L39: Pipeline Integrity 2019 | M39: Y | N39: Pipeline Integrity 2020 | O39: Y | P39: Pipeline Integrity 2020 | Q39: Y | S39: 30
A40: 14 | B40: Transition Costs | C40: Transition Costs | E40: N | F40: Transition Costs | H40: Transition Costs | I40: Y | J40: Transition Costs | K40: Y | L40: Transition Costs | M40: N | N40: Transition Costs | O40: N | P40: Transition Costs | Q40: N | S40: 31
A41: 15 | B41: Tax Surcredit 2 | C41: Tax Surcredit 2 | E41: N | F41: Tax Surcredit 2 | H41: Tax Surcredit 2 | I41: Y | J41: Tax Surcredit 2 | K41: Y | L41: Tax Surcredit 2 | M41: N | N41: Tax Surcredit 2 | O41: N | P41: Tax Surcredit 2 | Q41: N | S41: 32
A42: 16 | B42: =F42 -> 2020 EDIT Adjustment | C42: Edit Amort 2020 | E42: Y | F42: 2020 EDIT Adjustment | H42: 2018 EDIT Adjustment | I42: N | J42: 2018 EDIT Adjustment | K42: N | L42: 2019 EDIT Adjustment | M42: N | N42: 2020 EDIT Adjustment | O42: Y | P42: 2020 EDIT Adjustment | Q42: Y | S42: 33
A43: 17 | B43: =F43 -> Own Your Future - Savings | C43: OYF Savings | E43: Y | F43: Own Your Future - Savings | H43: Own Your Future - Savings | I43: N | J43: Own Your Future - Savings | K43: N | L43: Own Your Future - Savings | M43: N | N43: Own Your Future - Savings | O43: Y | P43: Own Your Future - Savings | Q43: Y | S43: 34
A44: =+A43+1 -> 18 | B44: RNGT - Incremental Volume | C44: RNGT - Incremental Volume | E44: Y | F44: RNGT - Incremental Volume | H44: RNGT - Incremental Volume | I44: N | J44: RNGT - Incremental Volume | K44: N | L44: RNGT - Incremental Volume | M44: N | N44: RNGT - Incremental Volume | O44: Y | P44: RNGT - Incremental Volume | Q44: Y | S44: =S43+1 -> 35
A45: 19 | B45: Pension 2020 | C45: Pension | E45: Y | F45: Pension 2020 | H45: Pension 2018 | I45: Y | J45: Pension 2018 | K45: Y | L45: Pension 2019 | M45: N | N45: Pension 2020 | O45: Y | P45: Pension 2020 | Q45: Y | S45: 36
A46: 20 | B46: Optional Adjustment 1 | C46: Optional Adjustment 1 | E46: Y | F46: Optional Adjustment 1 | H46: Optional Adjustment 1 | I46: N | J46: Optional Adjustment 1 | K46: N | L46: Optional Adjustment 1 | M46: N | N46: Optional Adjustment 1 | O46: Y | P46: Optional Adjustment 1 | Q46: Y | S46: 37
A47: 21 | B47: Optional Adjustment 2 | C47: Optional Adjustment 2 | E47: Y | F47: Optional Adjustment 2 | H47: Optional Adjustment 2 | I47: N | J47: Optional Adjustment 2 | K47: N | L47: Optional Adjustment 2 | M47: N | N47: Optional Adjustment 2 | O47: Y | P47: Optional Adjustment 2 | Q47: Y | S47: 38
A48: 22 | B48: Optional Adjustment 3 | C48: Optional Adjustment 3 | E48: Y | F48: Optional Adjustment 3 | H48: Optional Adjustment 3 | I48: N | J48: Optional Adjustment 3 | K48: N | L48: Optional Adjustment 3 | M48: N | N48: Optional Adjustment 3 | O48: Y | P48: Optional Adjustment 3 | Q48: Y | S48: 39
A49: 23 | B49: Optional Adjustment 4 | C49: Optional Adjustment 4 | E49: Y | F49: Optional Adjustment 4 | H49: Optional Adjustment 4 | I49: N | J49: Optional Adjustment 4 | K49: N | L49: Optional Adjustment 4 | M49: N | N49: Optional Adjustment 4 | O49: Y | P49: Optional Adjustment 4 | Q49: Y | S49: 40
A50: 24 | B50: Optional Adjustment 5 | C50: Optional Adjustment 5 | E50: Y | F50: Optional Adjustment 5 | H50: Optional Adjustment 5 | I50: N | J50: Optional Adjustment 5 | K50: N | L50: Optional Adjustment 5 | M50: N | N50: Optional Adjustment 5 | O50: Y | P50: Optional Adjustment 5 | Q50: Y | S50: 41
A51: 25 | B51: Optional Adjustment 6 | C51: Optional Adjustment 6 | E51: Y | F51: Optional Adjustment 6 | H51: Optional Adjustment 6 | I51: N | J51: Optional Adjustment 6 | K51: N | L51: Optional Adjustment 6 | M51: N | N51: Optional Adjustment 6 | O51: Y | P51: Optional Adjustment 6 | Q51: Y | S51: 42
A52: 26 | B52: Optional Adjustment 7 | C52: Optional Adjustment 7 | E52: Y | F52: Optional Adjustment 7 | H52: Optional Adjustment 7 | I52: N | J52: Optional Adjustment 7 | K52: N | L52: Optional Adjustment 7 | M52: N | N52: Optional Adjustment 7 | O52: Y | P52: Optional Adjustment 7 | Q52: Y | S52: 43
A53: 27 | B53: Optional Adjustment 8 | C53: Optional Adjustment 8 | E53: Y | F53: Optional Adjustment 8 | H53: Optional Adjustment 8 | I53: N | J53: Optional Adjustment 8 | K53: N | L53: Optional Adjustment 8 | M53: N | N53: Optional Adjustment 8 | O53: Y | P53: Optional Adjustment 8 | Q53: Y | S53: 44
A54: 28 | B54: Optional Adjustment 19 | C54: Optional Adjustment 9 | E54: Y | F54: Optional Adjustment 19 | H54: Optional Adjustment 19 | I54: N | J54: Optional Adjustment 19 | K54: N | L54: Optional Adjustment 19 | M54: N | N54: Optional Adjustment 19 | O54: Y | P54: Optional Adjustment 19 | Q54: Y | S54: 45
A55: 29 | B55: Optional Adjustment 10 | C55: Optional Adjustment 10 | E55: Y | F55: Optional Adjustment 10 | H55: Optional Adjustment 10 | I55: N | J55: Optional Adjustment 10 | K55: N | L55: Optional Adjustment 10 | M55: N | N55: Optional Adjustment 10 | O55: Y | P55: Optional Adjustment 10 | Q55: Y | S55: 46
A56: 30 | B56: Optional Adjustment 11 | C56: Optional Adjustment 11 | E56: Y | F56: Optional Adjustment 11 | H56: Optional Adjustment 11 | I56: N | J56: Optional Adjustment 11 | K56: N | L56: Optional Adjustment 11 | M56: N | N56: Optional Adjustment 11 | O56: Y | P56: Optional Adjustment 11 | Q56: Y | S56: 47
A57: 31 | B57: =F57 -> Optional Adjustment 12 | C57: Optional Adjustment 12 | E57: =HLOOKUP($E$10,Scenarios,S57,FALSE) -> Y | F57: =HLOOKUP($F$10,Scenarios,S57,FALSE) -> Optional Adjustment 12 | H57: Optional Adjustment 12 | I57: N | J57: Optional Adjustment 12 | K57: N | L57: Optional Adjustment 12 | M57: N | N57: Optional Adjustment 12 | O57: Y | P57: Optional Adjustment 12 | Q57: Y | S57: 48
A58: 32 | B58: Optional Adjustment 13 | C58: Optional Adjustment 13 | E58: Y | F58: Optional Adjustment 13 | H58: Optional Adjustment 13 | I58: N | J58: Optional Adjustment 13 | K58: N | L58: Optional Adjustment 13 | M58: N | N58: Optional Adjustment 13 | O58: Y | P58: Optional Adjustment 13 | Q58: Y | S58: 49
A59: 33 | B59: Optional Adjustment 14 | C59: Optional Adjustment 14 | E59: Y | F59: Optional Adjustment 14 | H59: Optional Adjustment 14 | I59: N | J59: Optional Adjustment 14 | K59: N | L59: Optional Adjustment 14 | M59: N | N59: Optional Adjustment 14 | O59: Y | P59: Optional Adjustment 14 | Q59: Y | S59: 50
A60: 34 | B60: Optional Adjustment 15 | C60: Optional Adjustment 15 | E60: Y | F60: Optional Adjustment 15 | H60: Optional Adjustment 15 | I60: N | J60: Optional Adjustment 15 | K60: N | L60: Optional Adjustment 15 | M60: N | N60: Optional Adjustment 15 | O60: Y | P60: Optional Adjustment 15 | Q60: Y | S60: 51
A61: 35 | B61: Optional Adjustment 16 | C61: Optional Adjustment 16 | E61: Y | F61: Optional Adjustment 16 | H61: Optional Adjustment 16 | I61: N | J61: Optional Adjustment 16 | K61: N | L61: Optional Adjustment 16 | M61: N | N61: Optional Adjustment 16 | O61: Y | P61: Optional Adjustment 16 | Q61: Y | S61: 52
A62: 36 | B62: Optional Adjustment 17 | C62: Optional Adjustment 17 | E62: Y | F62: Optional Adjustment 17 | H62: Optional Adjustment 17 | I62: N | J62: Optional Adjustment 17 | K62: N | L62: Optional Adjustment 17 | M62: N | N62: Optional Adjustment 17 | O62: Y | P62: Optional Adjustment 17 | Q62: Y | S62: 53
A63: 37 | B63: Optional Adjustment 18 | C63: Optional Adjustment 18 | E63: Y | F63: Optional Adjustment 18 | H63: Optional Adjustment 18 | I63: N | J63: Optional Adjustment 18 | K63: N | L63: Optional Adjustment 18 | M63: N | N63: Optional Adjustment 18 | O63: Y | P63: Optional Adjustment 18 | Q63: Y | S63: 54
A64: 38 | B64: Optional Adjustment 19 | C64: Optional Adjustment 19 | E64: Y | F64: Optional Adjustment 19 | H64: Optional Adjustment 19 | I64: N | J64: Optional Adjustment 19 | K64: N | L64: Optional Adjustment 19 | M64: N | N64: Optional Adjustment 19 | O64: Y | P64: Optional Adjustment 19 | Q64: Y | S64: 55
A65: 39 | B65: Optional Adjustment 20 | C65: Optional Adjustment 20 | E65: Y | F65: Optional Adjustment 20 | H65: Optional Adjustment 20 | I65: N | J65: Optional Adjustment 20 | K65: N | L65: Optional Adjustment 20 | M65: N | N65: Optional Adjustment 20 | O65: Y | P65: Optional Adjustment 20 | Q65: Y | S65: 56
A66: 40 | B66: Optional Adjustment 21 | C66: Optional Adjustment 21 | E66: Y | F66: Optional Adjustment 21 | H66: Optional Adjustment 21 | I66: N | J66: Optional Adjustment 21 | K66: N | L66: Optional Adjustment 21 | M66: N | N66: Optional Adjustment 21 | O66: Y | P66: Optional Adjustment 21 | Q66: Y | S66: 57
A67: 41 | B67: Optional Adjustment 22 | C67: Optional Adjustment 22 | E67: Y | F67: Optional Adjustment 22 | H67: Optional Adjustment 22 | I67: N | J67: Optional Adjustment 22 | K67: N | L67: Optional Adjustment 22 | M67: N | N67: Optional Adjustment 22 | O67: Y | P67: Optional Adjustment 22 | Q67: Y | S67: 58
A68: 42 | B68: Optional Adjustment 23 | C68: Optional Adjustment 23 | E68: Y | F68: Optional Adjustment 23 | H68: Optional Adjustment 23 | I68: N | J68: Optional Adjustment 23 | K68: N | L68: Optional Adjustment 23 | M68: N | N68: Optional Adjustment 23 | O68: Y | P68: Optional Adjustment 23 | Q68: Y | S68: 59
A69: 43 | B69: Labor Adjustment-ROO | E69: N | F69: Labor Adjustment-ROO | H69: Labor Adjustment-ROO | I69: N | J69: Labor Adjustment-ROO | K69: Y | L69: Labor Adjustment-ROO | M69: N | N69: Labor Adjustment-ROO | O69: N | P69: Labor Adjustment-ROO | Q69: N | S69: 60
A70: 44 | F70: 0 | S70: 61
A71: =+A70+1 -> 45 | S71: =S70+1 -> 62
A72: 46 | B72: =+F72 -> AVG CAP STR DEC 20 | C72: Capital Structure | F72: =HLOOKUP($F$10,Scenarios,S72,FALSE) -> AVG CAP STR DEC 20 | H72: ORDERED CAP STR 13-057-05 | J72: ORDERED CAP STR 13-057-05 | L72: AVG CAP STR DEC 20 | N72: AVG CAP STR DEC 20 | P72: AVG CAP STR DEC 20 | S72: 63
A73: 47

Sheet Report
A1: ='Control Panel'!$B$1 -> Dominion Energy
A2: ='Control Panel'!$B$2 -> Utah - DEC 2020 Adjusted Avg Results CET
A3: ='Control Panel'!$B$3 -> 12 Months Ended : Dec-2020 | F3: =+'Control Panel'!$B$3 -> 12 Months Ended : Dec-2020
A4: =+'Control Panel'!B19 -> Return On Equity | D4: =+'Control Panel'!F19 -> 0.105
B5: (A) | F5: (B) | G5: (C) | H5: (D) | I5: (E) | J5: (F) | K5: (G) | L5: (H)
F6: =+'ROR-Model'!F7 -> Historical | H6: =+'ROR-Model'!H7 -> Imputed | I6: =+'ROR-Model'!I7 -> Adjusted | J6: =+'ROR-Model'!W9 -> Utah | L6: =+J6 -> Utah
E7: CHECKS MUST BE (0) | F7: =+'ROR-Model'!F8 -> 12 Months | G7: Adjustments | H7: =+'ROR-Model'!H8 -> Tax | I7: =+'ROR-Model'!I8 -> System | J7: Jurisdiction | L7: Jurisdiction | M7: CHECKS MUST BE (0)
B8: Description | F8: 2018-12-31 | G8: Total | H8: =+'ROR-Model'!H9 -> Adjustment | I8: =+'ROR-Model'!I9 -> Total | J8: DNG Related | K8: Deficiency | L8: Total
A10: 1 | B10: NET INCOME SUMMARY
A12: =+A10+1 -> 2 | B12: Utility Operating Revenue
A13: =+A12+1 -> 3 | D13: System Distribution Non-Gas Revenue | E13: =+F13+G13+H13-I13 -> 0 | F13: =+'ROR-Model'!F363+'ROR-Model'!F365 -> 386205687.7 | G13: =+'ROR-Model'!G363+'ROR-Model'!G365 -> 5205730.257 | H13: =+'ROR-Model'!H363+'ROR-Model'!H365 -> 0 | I13: =+'ROR-Model'!I363+'ROR-Model'!I365 -> 391411418 | J13: ='ROR-Model'!W368 -> 378376157.4 | K13: =+K44*Taxes!L47 -> 19249739.63 | L13: =SUM(J13:K13) -> 397625897 | M13: =+N13-I13 -> 0 | N13: =SUM(F13:H13) -> 391411418
A14: 4 | D14: System Supplier Non-Gas Revenue | E14: 0 | F14: =+'ROR-Model'!F364 -> 109038701.6 | G14: =+'ROR-Model'!G364 -> -659276.92 | H14: =+'ROR-Model'!H364 -> 0 | I14: =+'ROR-Model'!I364 -> 108379424.7 | L14: =SUM(J14:K14) -> 0 | M14: =+N14-I14 -> 0 | N14: =SUM(F14:H14) -> 108379424.7
A15: 5 | D15: System Commodity Revenue | E15: 0 | F15: =+'ROR-Model'!F366 -> 401864779.1 | G15: =+'ROR-Model'!G366 -> -746392.4398 | H15: =+'ROR-Model'!H366 -> 0 | I15: =+'ROR-Model'!I366 -> 401118386.7 | L15: =SUM(J15:K15) -> 0 | M15: 0 | N15: 401118386.7
A16: 6 | D16: Pass-Through Related Other Revenue | E16: 0 | F16: ='ROR-Model'!F501+'ROR-Model'!F505 -> 22346647.34 | G16: ='ROR-Model'!G501+'ROR-Model'!G505 -> 0 | H16: ='ROR-Model'!H501+'ROR-Model'!H505 -> 0 | I16: ='ROR-Model'!I501+'ROR-Model'!I505 -> 22346647.34 | L16: =SUM(J16:K16) -> 0 | M16: 0 | N16: 22346647.34
A17: 7 | D17: General Related Other Revenue | E17: 0 | F17: ='ROR-Model'!F502+'ROR-Model'!F506 -> 5374907.149 | G17: ='ROR-Model'!G502+'ROR-Model'!G506 -> 5610271.916 | H17: ='ROR-Model'!H502+'ROR-Model'!H506 -> 0 | I17: ='ROR-Model'!I502+'ROR-Model'!I506 -> 10985179.07 | J17: ='ROR-Model'!W509 -> 10750615.11 | L17: =SUM(J17:K17) -> 10750615.11 | M17: 0 | N17: 10985179.07
A18: 8 | C18: Total Utility Operating Revenue | E18: 0 | F18: =SUM(F13:F17) -> 924830723 | G18: 9410332.814 | H18: 0 | I18: =SUM(I13:I17) -> 934241055.8 | J18: 389126772.5 | K18: 19249739.63 | L18: 408376512.1 | M18: 0 | N18: 934241055.8
M19: 0 | N19: 0
A20: =+A18+1 -> 9 | B20: Utility Operating Expenses | M20: 0 | N20: 0
A21: =+A20+1 -> 10 | C21: Gas Purchase Expenses | M21: 0 | N21: 0
A22: =+A21+1 -> 11 | D22: Utah | E22: =+F22+G22+H22-I22 -> 0 | F22: ='ROR-Model'!F633+'ROR-Model'!F636 -> 514800335.6 | G22: ='ROR-Model'!G633+'ROR-Model'!G636 -> -1164593.84 | H22: ='ROR-Model'!H633+'ROR-Model'!H636 -> 0 | I22: ='ROR-Model'!I633+'ROR-Model'!I636 -> 513635741.7 | L22: =SUM(J22:K22) -> 0 | M22: 0 | N22: 513635741.7
A23: =+A22+1 -> 12 | D23: Wyoming | E23: =+F23+G23+H23-I23 -> 0 | F23: ='ROR-Model'!F635+'ROR-Model'!F637 -> 18449792.51 | G23: ='ROR-Model'!G635+'ROR-Model'!G637 -> -241075.5198 | H23: ='ROR-Model'!H635+'ROR-Model'!H637 -> 0 | I23: ='ROR-Model'!I635+'ROR-Model'!I637 -> 18208716.99 | L23: =SUM(J23:K23) -> 0 | M23: 0 | N23: 18208716.99
A24: =+A23+1 -> 13 | D24: Total | E24: =+F24+G24+H24-I24 -> 0 | F24: =SUM(F22:F23) -> 533250128.1 | G24: -1405669.36 | H24: 0 | I24: 531844458.7 | J24: 0 | K24: 0 | L24: 0 | M24: 0 | N24: 531844458.7
E25: =+F25+G25+H25-I25 -> 0 | M25: 0 | N25: =SUM(F25:H25) -> 0
A26: =A24+1 -> 14 | C26: O&M Expenses | M26: 0 | N26: 0
A27: =+A26+1 -> 15 | D27: Production | E27: =+F27+G27+H27-I27 -> 0 | F27: ='ROR-Model'!F650 -> -886886.91 | G27: ='ROR-Model'!G650 -> 17649.04951 | H27: ='ROR-Model'!H650 -> 0 | I27: ='ROR-Model'!I650 -> -869237.8605 | J27: ='ROR-Model'!W650 -> -838700.7635 | L27: =SUM(J27:K27) -> -838700.7635 | M27: 0 | N27: -869237.8605
A28: 16 | D28: Distribution | E28: 0 | F28: ='ROR-Model'!F753 -> 57001305.79 | G28: ='ROR-Model'!G753 -> 1278314.8 | H28: ='ROR-Model'!H753 -> 0 | I28: ='ROR-Model'!I753 -> 58279620.59 | J28: ='ROR-Model'!W753 -> 55486322.67 | L28: =SUM(J28:K28) -> 55486322.67 | M28: 0 | N28: 58279620.59
A29: 17 | D29: Customer Accounts | E29: 0 | F29: ='ROR-Model'!F806 -> 13827936.54 | G29: ='ROR-Model'!G806 -> -881636.6675 | H29: ='ROR-Model'!H806 -> 0 | I29: ='ROR-Model'!I806 -> 12946299.87 | J29: ='ROR-Model'!W806 -> 12536205.58 | K29: =+K13*'Control Panel'!F22 -> 45815.21906 | L29: =SUM(J29:K29) -> 12582020.8 | M29: 0 | N29: 12946299.87
A30: 18 | D30: Customer Service & Information | E30: 0 | F30: ='ROR-Model'!F834 -> 27244073.19 | G30: ='ROR-Model'!G834 -> -24126547.31 | H30: ='ROR-Model'!H834 -> 0 | I30: ='ROR-Model'!I834 -> 3117525.875 | J30: ='ROR-Model'!W834 -> 3047465.01 | L30: =SUM(J30:K30) -> 3047465.01 | M30: 0 | N30: 3117525.875
A31: 19 | D31: Administrative & General | E31: 0 | F31: ='ROR-Model'!F902 -> 49494549.33 | G31: ='ROR-Model'!G902 -> 2252980.789 | H31: ='ROR-Model'!H902 -> 0 | I31: ='ROR-Model'!I902 -> 51747530.12 | J31: ='ROR-Model'!W902 -> 49477895.44 | L31: =SUM(J31:K31) -> 49477895.44 | M31: 0 | N31: 51747530.12
A32: 20 | D32: Total O&M Expense | E32: 0 | F32: =SUM(F27:F31) -> 146680977.9 | G32: -21459239.34 | H32: 0 | I32: 125221738.6 | J32: 119709187.9 | K32: 45815.21906 | L32: 119755003.2 | M32: 0 | N32: 125221738.6
M33: 0 | N33: 0
A34: =+A32+1 -> 21 | C34: Other Operating Expenses | M34: 0 | N34: 0
A35: =+A34+1 -> 22 | D35: Depreciation, Depletion, Amortization | E35: =+F35+G35+H35-I35 -> 0 | F35: ='ROR-Model'!F926 -> 73583714.73 | G35: ='ROR-Model'!G926 -> 14987965.4 | H35: ='ROR-Model'!H926 -> 0 | I35: ='ROR-Model'!I926 -> 88571680.13 | J35: ='ROR-Model'!W926 -> 85423489.74 | L35: =SUM(J35:K35) -> 85423489.74 | M35: 0 | N35: 88571680.13
A36: =+A35+1 -> 23 | D36: Taxes Other Than Income Taxes | E36: =+F36+G36+H36-I36 -> 0 | F36: ='ROR-Model'!F934 -> 24432266.68 | G36: ='ROR-Model'!G934 -> 5436865.356 | H36: ='ROR-Model'!H934 -> 0 | I36: ='ROR-Model'!I934 -> 29869132.04 | J36: ='ROR-Model'!W934 -> 28343362.16 | L36: =SUM(J36:K36) -> 28343362.16 | M36: 0 | N36: 29869132.04
A37: =+A36+1 -> 24 | D37: Income Taxes | E37: =+F37+G37+H37-I37 -> 0 | F37: ='ROR-Model'!F936+'ROR-Model'!F938+'ROR-Model'!F940+'ROR-Model'!F942 -> 20577922.44 | G37: ='ROR-Model'!G936+'ROR-Model'!G938+'ROR-Model'!G940+'ROR-Model'!G942 -> 2445184.094 | H37: ='ROR-Model'!H936+'ROR-Model'!H938+'ROR-Model'!H940+'ROR-Model'!H942 -> 7165705.089 | I37: ='ROR-Model'!I936+'ROR-Model'!I938+'ROR-Model'!I940+'ROR-Model'!I942 -> 30188811.62 | J37: ='ROR-Model'!W936 -> 29744657.44 | K37: =(K13-K29)*Taxes!L41 -> 4752985.523 | L37: =SUM(J37:K37) -> 34497642.97 | M37: 0 | N37: 30188811.62
A38: =+A37+1 -> 25 | D38: Total Other Operating Expenses | E38: =+F38+G38+H38-I38 -> 0 | F38: =SUM(F35:F37) -> 118593903.8 | G38: 22870014.85 | H38: 7165705.089 | I38: =SUM(I35:I37) -> 148629623.8 | J38: 143511509.3 | K38: 4752985.523 | L38: 148264494.9 | M38: 0 | N38: 148629623.8
M39: 0 | N39: 0
M40: 0 | N40: 0
A41: =+A38+1 -> 26 | C41: Total Utility Operating Expenses | E41: =+F41+G41+H41-I41 -> 0 | F41: =+F24+F32+F38 -> 798525009.9 | G41: =+G24+G32+G38 -> 5106.151537 | H41: 7165705.089 | I41: =+I24+I32+I38 -> 805695821.1 | J41: 263220697.3 | K41: 4798800.743 | L41: 268019498 | M41: 0 | N41: 805695821.1
M42: 0 | N42: 0
M43: 0 | N43: 0
A44: =+A41+1 -> 27 | B44: NET OPERATING INCOME | E44: =+F44+G44+H44-I44 -> 0 | F44: =+F18-F41 -> 126305713.1 | G44: =+G18-G41 -> 9405226.663 | H44: =+H18-H41 -> -7165705.089 | I44: =+I18-I41 -> 128545234.6 | J44: =+J18-J41 -> 125906075.2 | K44: =+L44-J44 -> 14450938.89 | L44: =L74*L77 -> 140357014.1 | M44: 0 | N44: 128545234.6
M45: 0
A47: =+A44+1 -> 28 | B47: RATE BASE SUMMARY
A49: =+A47+1 -> 29 | B49: Net Utility Plant
A50: =+A49+1 -> 30 | C50: 101 | D50: Gas Plant In Service | E50: =+F50+G50+H50-I50 -> 0 | F50: ='ROR-Model'!F1113 -> 3003176328 | G50: ='ROR-Model'!G1113 -> 365068488.7 | H50: ='ROR-Model'!H1113 -> 0 | I50: ='ROR-Model'!I1113 -> 3368244816 | J50: ='ROR-Model'!W1113 -> 3244815858 | L50: =SUM(J50:K50) -> 3244815858 | M50: =+N50-I50 -> 0 | N50: =SUM(F50:H50) -> 3368244816
A51: 31 | C51: 105 | D51: Gas Plant Held For Future Use | E51: 0 | F51: ='ROR-Model'!F1117 -> 0 | G51: ='ROR-Model'!G1117 -> 5036.83 | H51: ='ROR-Model'!H1117 -> 0 | I51: ='ROR-Model'!I1117 -> 5036.83 | J51: ='ROR-Model'!W1117 -> 5036.83 | L51: 5036.83 | M51: 0 | N51: 5036.83
A52: 32 | C52: 106 | D52: Completed Construction Not Classified | E52: 0 | F52: ='ROR-Model'!F1124 -> 90575015.07 | G52: ='ROR-Model'!G1124 -> -90575015.07 | H52: ='ROR-Model'!H1124 -> 0 | I52: ='ROR-Model'!I1124 -> 0 | J52: ='ROR-Model'!W1124 -> 0 | L52: 0 | M52: 0 | N52: 0
A53: 33 | C53: 108 | D53: Accumulated Depreciation | E53: 0 | F53: ='ROR-Model'!F1131 -> -793878411.8 | G53: ='ROR-Model'!G1131 -> -43760675.96 | H53: ='ROR-Model'!H1131 -> 0 | I53: ='ROR-Model'!I1131 -> -837639087.7 | J53: ='ROR-Model'!W1131 -> -799516884.4 | L53: -799516884.4 | M53: 0 | N53: -837639087.7
A54: 34 | C54: 111 | D54: Accumulated Amort & Depletion | E54: 0 | F54: ='ROR-Model'!F1138 -> -6225790.25 | G54: ='ROR-Model'!G1138 -> 387467.4296 | H54: ='ROR-Model'!H1138 -> 0 | I54: ='ROR-Model'!I1138 -> -5838322.82 | J54: ='ROR-Model'!W1138 -> -5624785.527 | L54: -5624785.527 | M54: 0 | N54: -5838322.82
A55: 35 | C55: 254 | D55: Other Regulatory Liabilities ARC | F55: ='ROR-Model'!F1145 -> -417851574.7 | G55: ='ROR-Model'!G1145 -> -468871.3035 | H55: ='ROR-Model'!H1145 -> 0 | I55: ='ROR-Model'!I1145 -> -418320446 | J55: ='ROR-Model'!W1145 -> -404258011.5 | L55: -404258011.5
A56: 36 | C56: Total Net Utility Plant | E56: 0 | F56: =SUM(F50:F55) -> 1875795566 | G56: =SUM(G50:G55) -> 230656430.6 | H56: =SUM(H50:H55) -> 0 | I56: =SUM(I50:I55) -> 2106451997 | J56: =SUM(J50:J55) -> 2035421214 | K56: =SUM(K50:K54) -> 0 | L56: =SUM(L50:L55) -> 2035421214 | M56: 0 | N56: 2106451997
M57: 0
A58: =+A56+1 -> 37 | B58: Other Rate Base Accounts | M58: 0
A59: =+A58+1 -> 38 | C59: 154 | D59: Materials & Supplies | E59: =+F59+G59+H59-I59 -> 0 | F59: ='ROR-Model'!F1163 -> 22771349.26 | G59: ='ROR-Model'!G1163 -> 2915282.742 | H59: ='ROR-Model'!H1163 -> 0 | I59: ='ROR-Model'!I1163 -> 25686632 | J59: ='ROR-Model'!W1163 -> 24807024.3 | L59: =SUM(J59:K59) -> 24807024.3 | M59: 0 | N59: =SUM(F59:H59) -> 25686632
A60: 39 | C60: 164-1 | D60: Gas Stored Underground | E60: 0 | F60: ='ROR-Model'!F1167 -> 44167774.48 | G60: ='ROR-Model'!G1167 -> -44167774.48 | H60: ='ROR-Model'!H1167 -> 0 | I60: ='ROR-Model'!I1167 -> 0 | J60: ='ROR-Model'!W1167 -> 0 | L60: 0 | M60: 0 | N60: 0
A61: 40 | C61: 165 | D61: Prepayments | E61: 0 | F61: ='ROR-Model'!F1171 -> 3093028.17 | G61: ='ROR-Model'!G1171 -> -219830.7108 | H61: ='ROR-Model'!H1171 -> 0 | I61: ='ROR-Model'!I1171 -> 2873197.459 | J61: ='ROR-Model'!W1171 -> 2774808.281 | L61: 2774808.281 | M61: 0 | N61: 2873197.459
A62: 41 | C62: 190008 | D62: Accum Deferred Income Tax Federal | E62: 0 | F62: =+'ROR-Model'!F1178 -> 32836371.15 | G62: =+'ROR-Model'!G1178 -> 0 | H62: ='ROR-Model'!H1178 -> 0 | I62: =+'ROR-Model'!I1178 -> 32836371.15 | J62: =+'ROR-Model'!W1178 -> 31711929.26 | L62: 31711929.26 | M62: 0 | N62: 32836371.15
A63: 42 | C63: 190009 | D63: Accum Deferred Income Tax State | E63: 0 | F63: =+'ROR-Model'!F1185 -> 7790660.48 | G63: =+'ROR-Model'!G1185 -> 0 | H63: ='ROR-Model'!H1185 -> 0 | I63: =+'ROR-Model'!I1185 -> 7790660.48 | J63: =+'ROR-Model'!W1185 -> 7523878.717 | L63: 7523878.717 | M63: 0 | N63: 7790660.48
A64: 43 | C64: 235-1 | D64: Customer Deposits | E64: 0 | F64: ='ROR-Model'!F1190 -> -5751820.32 | G64: ='ROR-Model'!G1190 -> 155355.9483 | H64: ='ROR-Model'!H1190 -> 0 | I64: ='ROR-Model'!I1190 -> -5596464.372 | J64: ='ROR-Model'!W1190 -> -5361638.903 | L64: -5361638.903 | M64: 0 | N64: -5596464.372
A65: 44 | C65: 252 | D65: Contributions in Aid of Construction | E65: -1.746229827e-10 | F65: =+'ROR-Model'!F1195 -> -2640375.72 | G65: ='ROR-Model'!G1195 -> 2640376.59 | H65: ='ROR-Model'!H1195 -> 0 | I65: ='ROR-Model'!I1195 -> 0.8699999942 | J65: ='ROR-Model'!W1195 -> 0.7368311682 | L65: 0.7368311682 | M65: -1.746229827e-10 | N65: 0.8699999941
A66: 45 | C66: 253-1 | D66: Unclaimed Customer Deposits | E66: 0 | F66: ='ROR-Model'!F1199 -> -43283.66 | G66: ='ROR-Model'!G1199 -> 5102.6325 | H66: ='ROR-Model'!H1199 -> 0 | I66: ='ROR-Model'!I1199 -> -38181.0275 | J66: ='ROR-Model'!W1199 -> -36873.5643 | L66: -36873.5643 | M66: 0 | N66: -38181.0275
A67: 46 | C67: 255 | D67: Deferred Investment Tax Credits | E67: 0 | F67: ='ROR-Model'!F1206 -> 0 | G67: ='ROR-Model'!G1206 -> 0 | H67: ='ROR-Model'!H1206 -> 0 | I67: ='ROR-Model'!I1206 -> 0 | J67: ='ROR-Model'!W1206 -> 0 | L67: 0 | M67: 0 | N67: 0
A68: 47 | C68: 282 | D68: Accum Deferred Income Taxes | E68: 0 | F68: ='ROR-Model'!F1213+'ROR-Model'!F1220 -> -320103057 | G68: ='ROR-Model'!G1213+'ROR-Model'!G1220 -> 17844916.7 | H68: ='ROR-Model'!H1213+'ROR-Model'!H1220 -> 0 | I68: ='ROR-Model'!I1213+'ROR-Model'!I1220 -> -302258140.3 | J68: ='ROR-Model'!W1213+'ROR-Model'!W1220 -> -294564926.8 | L68: -294564926.8 | M68: 0 | N68: -302258140.3
A69: 48 | C69: 186-7 | D69: Deferred Pension Asset | E69: =+F69+G69+H69-I69 -> -2.980232239e-08 | F69: ='ROR-Model'!F1224 -> 112498673.2 | G69: ='ROR-Model'!G1224 -> -112498673.2 | H69: ='ROR-Model'!H1224 -> 0 | I69: ='ROR-Model'!I1224 -> 0 | J69: ='ROR-Model'!W1224 -> 0 | L69: =SUM(J69:K69) -> 0
A70: 49 | D70: Working Capital - Cash | F70: ='ROR-Model'!F1264 -> 14604188.51 | G70: ='ROR-Model'!G1264 -> -292204.4823 | H70: ='ROR-Model'!H1264 -> 144452.7618 | I70: ='ROR-Model'!I1264 -> 14456436.79 | J70: ='ROR-Model'!W1264 -> 13938534.84 | L70: =SUM(J70:K70) -> 13938534.84 | M70: 0 | N70: 14456436.79
A71: 50 | C71: Total Other Rate Base Accounts | F71: =SUM(F59:F70) -> -90776491.41 | G71: =SUM(G59:G70) -> -133617448.3 | H71: 144452.7618 | I71: =SUM(I59:I70) -> -224249486.9 | J71: =SUM(J59:J70) -> -219207263.1 | K71: 0 | L71: -219207263.1 | M71: 0 | N71: -224249486.9
M72: 0 | N72: 0
M73: 0 | N73: 0
A74: =+A71+1 -> 51 | B74: TOTAL RATE BASE | F74: =+F56+F71 -> 1785019075 | G74: =+G56+G71 -> 97038982.31 | H74: =+H56+H71 -> 144452.7618 | I74: =+I56+I71 -> 1882202510 | J74: =+J56+J71 -> 1816213951 | L74: =+L56+L71 -> 1816213951 | M74: 0 | N74: 1882202510
M75: 0
E76: =SUM(E13:E74) -> -2.997694537e-08 | M76: 0 | N76: =SUM(F76:H76) -> 0
A77: =+A74+1 -> 52 | B77: RETURN ON RATE BASE | F77: =F44/F74 -> 0.07075874699 | I77: =I44/I74 -> 0.06829511383 | J77: =J44/J74 -> 0.06932337193 | L77: ='Capital Str'!F10 -> 0.07728 | M77: =+N77-I77 -> 0.002463633162 | N77: =SUM(F77:H77) -> 0.07075874699
N78: =SUM(F78:H78) -> 0
A79: =+A77+1 -> 53 | B79: RETURN ON EQUITY | F79: =(F77-'Capital Str'!$F$7)/'Capital Str'!$D$9 -> 0.09314317634 | I79: =(I77-'Capital Str'!$F$7)/'Capital Str'!$D$9 -> 0.08866384332 | J79: =(J77-'Capital Str'!$F$7)/'Capital Str'!$D$9 -> 0.09053340352 | L79: ='Capital Str'!E9 -> 0.105 | M79: =+N79-I79 -> 0.004479333021 | N79: =SUM(F79:H79) -> 0.09314317634

Sheet Adjustments
A1: ='Control Panel'!$B$1 -> Dominion Energy | F1: =IF(F8="Y",1,0) -> 1 | G1: =IF(G8="Y",1,0) -> 1 | H1: =IF(H8="Y",1,0) -> 1 | I1: 1 | J1: 1 | K1: 1 | L1: 1 | M1: 1 | N1: 1 | O1: 1 | P1: 1 | Q1: 1 | R1: =IF(R8="Y",1,0) -> 1 | S1: =IF(S8="Y",1,0) -> 0 | T1: 0 | U1: 1 | V1: 1 | W1: 1 | X1: 1 | Y1: 1 | Z1: 1 | AA1: 1 | AB1: 1 | AC1: 1 | AD1: 1 | AE1: 1 | AF1: 1 | AG1: 1 | AH1: 1 | AI1: 1 | AJ1: 1 | AK1: 1 | AL1: 1 | AM1: 1 | AN1: 1 | AO1: 1 | AP1: 1 | AQ1: 1 | AR1: 1 | AS1: 1 | AT1: 1 | AU1: 1 | AV1: 0
A2: ='Control Panel'!$B$2 -> Utah - DEC 2020 Adjusted Avg Results CET
A3: ='Control Panel'!$B$3 -> 12 Months Ended : Dec-2020
A4: FILLED AND EXTERNAL PARTY ADJUSTMENTS
F6: 1 | G6: =+F6+1 -> 2 | H6: =+G6+1 -> 3 | I6: =+H6+1 -> 4 | J6: =+I6+1 -> 5 | K6: =+J6+1 -> 6 | L6: 7 | M6: 8 | N6: 9 | O6: 10 | P6: 11 | Q6: 12 | R6: 13 | S6: =+R6+1 -> 14 | T6: =+S6+1 -> 15 | U6: =+T6+1 -> 16 | V6: =+U6+1 -> 17 | W6: =+V6+1 -> 18 | X6: =+W6+1 -> 19 | Y6: =+X6+1 -> 20 | Z6: =+Y6+1 -> 21 | AA6: =+Z6+1 -> 22 | AB6: =+AA6+1 -> 23 | AC6: =+AB6+1 -> 24 | AD6: =+AC6+1 -> 25 | AE6: =+AD6+1 -> 26 | AF6: =+AE6+1 -> 27 | AG6: =+AF6+1 -> 28 | AH6: =+AG6+1 -> 29 | AI6: =+AH6+1 -> 30 | AJ6: =+AI6+1 -> 31 | AK6: =+AJ6+1 -> 32 | AL6: =+AK6+1 -> 33 | AM6: =+AL6+1 -> 34 | AN6: =+AM6+1 -> 35 | AO6: =+AN6+1 -> 36 | AP6: =+AO6+1 -> 37 | AQ6: =+AP6+1 -> 38 | AR6: =+AQ6+1 -> 39 | AS6: =+AR6+1 -> 40 | AT6: =+AS6+1 -> 41 | AU6: =+AT6+1 -> 42 | AV6: =+AU6+1 -> 43
F8: =VLOOKUP(F$6,'Control Panel'!$A$8:$F$86,5) -> Y | G8: =VLOOKUP(G$6,'Control Panel'!$A$8:$F$86,5) -> Y | H8: =VLOOKUP(H$6,'Control Panel'!$A$8:$F$86,5) -> Y | I8: =VLOOKUP(I$6,'Control Panel'!$A$8:$F$86,5) -> Y | J8: =VLOOKUP(J$6,'Control Panel'!$A$8:$F$86,5) -> Y | K8: =VLOOKUP(K$6,'Control Panel'!$A$8:$F$86,5) -> Y | L8: =VLOOKUP(L$6,'Control Panel'!$A$8:$F$86,5) -> Y | M8: =VLOOKUP(M$6,'Control Panel'!$A$8:$F$86,5) -> Y | N8: =VLOOKUP(N$6,'Control Panel'!$A$8:$F$86,5) -> Y | O8: =VLOOKUP(O$6,'Control Panel'!$A$8:$F$86,5) -> Y | P8: =VLOOKUP(P$6,'Control Panel'!$A$8:$F$86,5) -> Y | Q8: =VLOOKUP(Q$6,'Control Panel'!$A$8:$F$86,5) -> Y | R8: =VLOOKUP(R$6,'Control Panel'!$A$8:$F$86,5) -> Y | S8: =VLOOKUP(S$6,'Control Panel'!$A$8:$F$86,5) -> N | T8: =VLOOKUP(T$6,'Control Panel'!$A$8:$F$86,5) -> N | U8: =VLOOKUP(U$6,'Control Panel'!$A$8:$F$86,5) -> Y | V8: =VLOOKUP(V$6,'Control Panel'!$A$8:$F$86,5) -> Y | W8: =VLOOKUP(W$6,'Control Panel'!$A$8:$F$86,5) -> Y | X8: =VLOOKUP(X$6,'Control Panel'!$A$8:$F$86,5) -> Y | Y8: =VLOOKUP(Y$6,'Control Panel'!$A$8:$F$86,5) -> Y | Z8: =VLOOKUP(Z$6,'Control Panel'!$A$8:$F$86,5) -> Y | AA8: =VLOOKUP(AA$6,'Control Panel'!$A$8:$F$86,5) -> Y | AB8: =VLOOKUP(AB$6,'Control Panel'!$A$8:$F$86,5) -> Y | AC8: =VLOOKUP(AC$6,'Control Panel'!$A$8:$F$86,5) -> Y | AD8: =VLOOKUP(AD$6,'Control Panel'!$A$8:$F$86,5) -> Y | AE8: =VLOOKUP(AE$6,'Control Panel'!$A$8:$F$86,5) -> Y | AF8: =VLOOKUP(AF$6,'Control Panel'!$A$8:$F$86,5) -> Y | AG8: =VLOOKUP(AG$6,'Control Panel'!$A$8:$F$86,5) -> Y | AH8: =VLOOKUP(AH$6,'Control Panel'!$A$8:$F$86,5) -> Y | AI8: =VLOOKUP(AI$6,'Control Panel'!$A$8:$F$86,5) -> Y | AJ8: =VLOOKUP(AJ$6,'Control Panel'!$A$8:$F$86,5) -> Y | AK8: =VLOOKUP(AK$6,'Control Panel'!$A$8:$F$86,5) -> Y | AL8: =VLOOKUP(AL$6,'Control Panel'!$A$8:$F$86,5) -> Y | AM8: =VLOOKUP(AM$6,'Control Panel'!$A$8:$F$86,5) -> Y | AN8: =VLOOKUP(AN$6,'Control Panel'!$A$8:$F$86,5) -> Y | AO8: =VLOOKUP(AO$6,'Control Panel'!$A$8:$F$86,5) -> Y | AP8: =VLOOKUP(AP$6,'Control Panel'!$A$8:$F$86,5) -> Y | AQ8: =VLOOKUP(AQ$6,'Control Panel'!$A$8:$F$86,5) -> Y | AR8: =VLOOKUP(AR$6,'Control Panel'!$A$8:$F$86,5) -> Y | AS8: =VLOOKUP(AS$6,'Control Panel'!$A$8:$F$86,5) -> Y | AT8: =VLOOKUP(AT$6,'Control Panel'!$A$8:$F$86,5) -> Y | AU8: =VLOOKUP(AU$6,'Control Panel'!$A$8:$F$86,5) -> Y | AV8: =VLOOKUP(AV$6,'Control Panel'!$A$8:$F$86,5) -> N
A9: FERC Acct | C9: Description | F9: =VLOOKUP(F$6,Adjustments,2) -> AVG RB DEC 2020 | G9: Expense Dec 2020 | H9: AVG Projected Rev 2020 with CET | I9: Underground Storage | J9: Wexpro | K9: Energy Efficiency 2020 | L9: Utah Bad Debt 2020 | M9: Incentives 2020 | N9: Sporting Events DEC 2020 | O9: Advertising DEC 2020 | P9: Don & Membership DEC 2020 | Q9: Reserve Accrual Dec 2020 | R9: Pipeline Integrity 2020 | S9: Transition Costs | T9: Tax Surcredit 2 | U9: 2020 EDIT Adjustment | V9: Own Your Future - Savings | W9: RNGT - Incremental Volume | X9: =VLOOKUP(X$6,Adjustments,2) -> Pension 2020 | Y9: Optional Adjustment 1 | Z9: Optional Adjustment 2 | AA9: Optional Adjustment 3 | AB9: Optional Adjustment 4 | AC9: Optional Adjustment 5 | AD9: Optional Adjustment 6 | AE9: Optional Adjustment 7 | AF9: Optional Adjustment 8 | AG9: Optional Adjustment 19 | AH9: Optional Adjustment 10 | AI9: Optional Adjustment 11 | AJ9: Optional Adjustment 12 | AK9: Optional Adjustment 13 | AL9: Optional Adjustment 14 | AM9: Optional Adjustment 15 | AN9: Optional Adjustment 16 | AO9: Optional Adjustment 17 | AP9: Optional Adjustment 18 | AQ9: Optional Adjustment 19 | AR9: Optional Adjustment 20 | AS9: Optional Adjustment 21 | AT9: Optional Adjustment 22 | AU9: Optional Adjustment 23 | AV9: Labor Adjustment-ROO | AW9: TOTAL QGC ADJUSTMENTS | AY9: RESULTING TOTAL | AZ9: CHECKS MUST BE (0)
A10: UTILITY OPERATING REVENUE
A11: TARIFF DTH SALES AND REVENUE
A15: Utah
B16: GS-R | C16: Distribution Non-Gas Rev | H16: =H1*Revenue!$S$15 -> 20452110.98 | K16: 0 | S16: =0*'Transition Costs'!E16*$U$1 -> 0 | T16: ='Tax Surcredit 2'!N14*T1 -> 0 | U16: ='EDIT Amort Adj'!G16*$U$1 -> 0 | V16: ='OYF Savings'!G16*$V$1 -> 0 | W16: ='RNGT -NGV Volume'!G24*$W$1 -> 0 | X16: =Pension!G16*$X$1 -> 0 | Y16: ='Optional Adjustment 23'!G16*$Y$1 -> 0 | Z16: ='Optional Adjustment 1'!G16*$Z$1 -> 0 | AA16: ='Optional Adjustment 2'!G16*$AA$1 -> 0 | AB16: ='Optional Adjustment 3'!G16*$AB$1 -> 0 | AC16: ='Optional Adjustment 4'!G16*$AC$1 -> 0 | AD16: ='Optional Adjustment 5'!G16*$AD$1 -> 0 | AE16: ='Optional Adjustment 6'!G16*$AE$1 -> 0 | AF16: ='Optional Adjustment 7'!G16*$AF$1 -> 0 | AG16: ='Optional Adjustment 8'!G16*$AG$1 -> 0 | AH16: ='Optional Adjustment 9'!G16*$AH$1 -> 0 | AI16: ='Optional Adjustment 10'!G16*$AI$1 -> 0 | AJ16: ='Optional Adjustment 11'!G16*$AJ$1 -> 0 | AK16: ='Optional Adjustment 12'!G16*$AK$1 -> 0 | AL16: ='Optional Adjustment 13'!G16*$AL$1 -> 0 | AM16: ='Optional Adjustment 14'!G16*$AM$1 -> 0 | AN16: ='Optional Adjustment 15'!G16*$AN$1 -> 0 | AO16: ='Optional Adjustment 16'!G16*$AO$1 -> 0 | AP16: ='Optional Adjustment 17'!G16*$AP$1 -> 0 | AQ16: ='Optional Adjustment 18'!G16*$AQ$1 -> 0 | AR16: ='Optional Adjustment 19'!G16*$AR$1 -> 0 | AS16: ='Optional Adjustment 20'!G16*$AS$1 -> 0 | AT16: ='Optional Adjustment 21'!G16*$AT$1 -> 0 | AU16: ='Optional Adjustment 22'!G16*$AU$1 -> 0 | AW16: =SUM(F16:AV16) -> 20452110.98 | AY16: =SUM(AW16:AW16) -> 20452110.98 | AZ16: =+AY16-'ROR-Model'!G16 -> 0
AZ17: =+AY17-'ROR-Model'!G17 -> 0
C18: Supplier Non-Gas Revenue | H18: =H1*Revenue!$S$17 -> 0 | S18: =0*'Transition Costs'!E18*$U$1 -> 0 | T18: ='EDIT Amort Adj'!F18*$U$1 -> 0 | U18: ='EDIT Amort Adj'!G18*$U$1 -> 0 | V18: ='OYF Savings'!G18*$V$1 -> 0 | W18: ='RNGT -NGV Volume'!G26*$W$1 -> 0 | X18: =Pension!G18*$X$1 -> 0 | Y18: ='Optional Adjustment 23'!G18*$Y$1 -> 0 | Z18: ='Optional Adjustment 1'!G18*$Z$1 -> 0 | AA18: ='Optional Adjustment 2'!G18*$AA$1 -> 0 | AB18: ='Optional Adjustment 3'!G18*$AB$1 -> 0 | AC18: ='Optional Adjustment 4'!G18*$AC$1 -> 0 | AD18: ='Optional Adjustment 5'!G18*$AD$1 -> 0 | AE18: ='Optional Adjustment 6'!G18*$AE$1 -> 0 | AF18: ='Optional Adjustment 7'!G18*$AF$1 -> 0 | AG18: ='Optional Adjustment 8'!G18*$AG$1 -> 0 | AH18: ='Optional Adjustment 9'!G18*$AH$1 -> 0 | AI18: ='Optional Adjustment 10'!G18*$AI$1 -> 0 | AJ18: ='Optional Adjustment 11'!G18*$AJ$1 -> 0 | AK18: ='Optional Adjustment 12'!G18*$AK$1 -> 0 | AL18: ='Optional Adjustment 13'!G18*$AL$1 -> 0 | AM18: ='Optional Adjustment 14'!G18*$AM$1 -> 0 | AN18: ='Optional Adjustment 15'!G18*$AN$1 -> 0 | AO18: ='Optional Adjustment 16'!G18*$AO$1 -> 0 | AP18: ='Optional Adjustment 17'!G18*$AP$1 -> 0 | AQ18: ='Optional Adjustment 18'!G18*$AQ$1 -> 0 | AR18: ='Optional Adjustment 19'!G18*$AR$1 -> 0 | AS18: ='Optional Adjustment 20'!G18*$AS$1 -> 0 | AT18: ='Optional Adjustment 21'!G18*$AT$1 -> 0 | AU18: ='Optional Adjustment 22'!G18*$AU$1 -> 0 | AW18: =SUM(F18:AV18) -> 0 | AY18: =SUM(AW18:AW18) -> 0 | AZ18: =+AY18-'ROR-Model'!G18 -> 0
AZ19: =+AY19-'ROR-Model'!G19 -> 0
C20: Commodity Revenue | H20: =H1*Revenue!$S$19 -> 0 | S20: =0*'Transition Costs'!E20*$U$1 -> 0 | T20: ='EDIT Amort Adj'!F20*$U$1 -> 0 | U20: ='EDIT Amort Adj'!G20*$U$1 -> 0 | V20: ='OYF Savings'!G20*$V$1 -> 0 | W20: ='RNGT -NGV Volume'!G28*$W$1 -> 0 | X20: =Pension!G20*$X$1 -> 0 | Y20: ='Optional Adjustment 23'!G20*$Y$1 -> 0 | Z20: ='Optional Adjustment 1'!G20*$Z$1 -> 0 | AA20: ='Optional Adjustment 2'!G20*$AA$1 -> 0 | AB20: ='Optional Adjustment 3'!G20*$AB$1 -> 0 | AC20: ='Optional Adjustment 4'!G20*$AC$1 -> 0 | AD20: ='Optional Adjustment 5'!G20*$AD$1 -> 0 | AE20: ='Optional Adjustment 6'!G20*$AE$1 -> 0 | AF20: ='Optional Adjustment 7'!G20*$AF$1 -> 0 | AG20: ='Optional Adjustment 8'!G20*$AG$1 -> 0 | AH20: ='Optional Adjustment 9'!G20*$AH$1 -> 0 | AI20: ='Optional Adjustment 10'!G20*$AI$1 -> 0 | AJ20: ='Optional Adjustment 11'!G20*$AJ$1 -> 0 | AK20: ='Optional Adjustment 12'!G20*$AK$1 -> 0 | AL20: ='Optional Adjustment 13'!G20*$AL$1 -> 0 | AM20: ='Optional Adjustment 14'!G20*$AM$1 -> 0 | AN20: ='Optional Adjustment 15'!G20*$AN$1 -> 0 | AO20: ='Optional Adjustment 16'!G20*$AO$1 -> 0 | AP20: ='Optional Adjustment 17'!G20*$AP$1 -> 0 | AQ20: ='Optional Adjustment 18'!G20*$AQ$1 -> 0 | AR20: ='Optional Adjustment 19'!G20*$AR$1 -> 0 | AS20: ='Optional Adjustment 20'!G20*$AS$1 -> 0 | AT20: ='Optional Adjustment 21'!G20*$AT$1 -> 0 | AU20: ='Optional Adjustment 22'!G20*$AU$1 -> 0 | AW20: =SUM(F20:AV20) -> 0 | AY20: =SUM(AW20:AW20) -> 0 | AZ20: =+AY20-'ROR-Model'!G20 -> 0
C21: Total Revenue | F21: =SUM(F16:F20) -> 0 | H21: =H1*SUM(H16:H20) -> 20452110.98 | I21: =SUM(I16:I20) -> 0 | J21: =SUM(J16:J20) -> 0 | K21: 0 | L21: 0 | M21: 0 | N21: 0 | O21: 0 | P21: 0 | Q21: =SUM(Q16:Q20) -> 0 | R21: 0 | S21: =SUM(S16:S20) -> 0 | T21: 0 | U21: 0 | V21: 0 | W21: 0 | X21: 0 | Y21: 0 | Z21: =SUM(Z16:Z20) -> 0 | AA21: 0 | AB21: 0 | AC21: 0 | AD21: 0 | AE21: 0 | AF21: 0 | AG21: 0 | AH21: 0 | AI21: 0 | AJ21: =SUM(AJ16:AJ20) -> 0 | AK21: 0 | AL21: 0 | AM21: 0 | AN21: =SUM(AN16:AN20) -> 0 | AO21: 0 | AP21: 0 | AQ21: 0 | AR21: 0 | AS21: =SUM(AS16:AS20) -> 0 | AT21: 0 | AU21: 0 | AW21: =SUM(F21:AV21) -> 20452110.98 | AY21: =SUM(AW21:AW21) -> 20452110.98 | AZ21: =+AY21-'ROR-Model'!G21 -> 0
AZ22: =+AY22-'ROR-Model'!G22 -> 0
C23: Total Dth | H23: =H1*Revenue!$S$22 -> 12668615.07 | AW23: =SUM(F23:AV23) -> 12668615.07 | AY23: =SUM(AW23:AW23) -> 12668615.07 | AZ23: =+AY23-'ROR-Model'!G23 -> 0
AZ24: =+AY24-'ROR-Model'!G24 -> 0
B25: GS-C | C25: Distribution Non-Gas Rev | H25: =H1*Revenue!$S$24 -> 0 | S25: =0*'Transition Costs'!E25*$U$1 -> 0 | T25: ='EDIT Amort Adj'!F25*$U$1 -> 0 | U25: ='EDIT Amort Adj'!G25*$U$1 -> 0 | V25: ='OYF Savings'!G25*$V$1 -> 0 | W25: ='RNGT -NGV Volume'!G33*$W$1 -> 0 | X25: =Pension!G25*$X$1 -> 0 | Y25: ='Optional Adjustment 23'!G25*$Y$1 -> 0 | Z25: ='Optional Adjustment 1'!G25*$Z$1 -> 0 | AA25: ='Optional Adjustment 2'!G25*$AA$1 -> 0 | AB25: ='Optional Adjustment 3'!G25*$AB$1 -> 0 | AC25: ='Optional Adjustment 4'!G25*$AC$1 -> 0 | AD25: ='Optional Adjustment 5'!G25*$AD$1 -> 0 | AE25: ='Optional Adjustment 6'!G25*$AE$1 -> 0 | AF25: ='Optional Adjustment 7'!G25*$AF$1 -> 0 | AG25: ='Optional Adjustment 8'!G25*$AG$1 -> 0 | AH25: ='Optional Adjustment 9'!G25*$AH$1 -> 0 | AI25: ='Optional Adjustment 10'!G25*$AI$1 -> 0 | AJ25: ='Optional Adjustment 11'!G25*$AJ$1 -> 0 | AK25: ='Optional Adjustment 12'!G25*$AK$1 -> 0 | AL25: ='Optional Adjustment 13'!G25*$AL$1 -> 0 | AM25: ='Optional Adjustment 14'!G25*$AM$1 -> 0 | AN25: ='Optional Adjustment 15'!G25*$AN$1 -> 0 | AO25: ='Optional Adjustment 16'!G25*$AO$1 -> 0 | AP25: ='Optional Adjustment 17'!G25*$AP$1 -> 0 | AQ25: ='Optional Adjustment 18'!G25*$AQ$1 -> 0 | AR25: ='Optional Adjustment 19'!G25*$AR$1 -> 0 | AS25: ='Optional Adjustment 20'!G25*$AS$1 -> 0 | AT25: ='Optional Adjustment 21'!G25*$AT$1 -> 0 | AU25: ='Optional Adjustment 22'!G25*$AU$1 -> 0 | AW25: =SUM(F25:AV25) -> 0 | AY25: =SUM(AW25:AW25) -> 0 | AZ25: =+AY25-'ROR-Model'!G25 -> 0
AZ26: =+AY26-'ROR-Model'!G26 -> 0
C27: Supplier Non-Gas Revenue | H27: =H1*Revenue!$S$26 -> 0 | S27: =0*'Transition Costs'!E27*$U$1 -> 0 | T27: ='EDIT Amort Adj'!F27*$U$1 -> 0 | U27: ='EDIT Amort Adj'!G27*$U$1 -> 0 | V27: ='OYF Savings'!G27*$V$1 -> 0 | W27: ='RNGT -NGV Volume'!G35*$W$1 -> 0 | X27: =Pension!G27*$X$1 -> 0 | Y27: ='Optional Adjustment 23'!G27*$Y$1 -> 0 | Z27: ='Optional Adjustment 1'!G27*$Z$1 -> 0 | AA27: ='Optional Adjustment 2'!G27*$AA$1 -> 0 | AB27: ='Optional Adjustment 3'!G27*$AB$1 -> 0 | AC27: ='Optional Adjustment 4'!G27*$AC$1 -> 0 | AD27: ='Optional Adjustment 5'!G27*$AD$1 -> 0 | AE27: ='Optional Adjustment 6'!G27*$AE$1 -> 0 | AF27: ='Optional Adjustment 7'!G27*$AF$1 -> 0 | AG27: ='Optional Adjustment 8'!G27*$AG$1 -> 0 | AH27: ='Optional Adjustment 9'!G27*$AH$1 -> 0 | AI27: ='Optional Adjustment 10'!G27*$AI$1 -> 0 | AJ27: ='Optional Adjustment 11'!G27*$AJ$1 -> 0 | AK27: ='Optional Adjustment 12'!G27*$AK$1 -> 0 | AL27: ='Optional Adjustment 13'!G27*$AL$1 -> 0 | AM27: ='Optional Adjustment 14'!G27*$AM$1 -> 0 | AN27: ='Optional Adjustment 15'!G27*$AN$1 -> 0 | AO27: ='Optional Adjustment 16'!G27*$AO$1 -> 0 | AP27: ='Optional Adjustment 17'!G27*$AP$1 -> 0 | AQ27: ='Optional Adjustment 18'!G27*$AQ$1 -> 0 | AR27: ='Optional Adjustment 19'!G27*$AR$1 -> 0 | AS27: ='Optional Adjustment 20'!G27*$AS$1 -> 0 | AT27: ='Optional Adjustment 21'!G27*$AT$1 -> 0 | AU27: ='Optional Adjustment 22'!G27*$AU$1 -> 0 | AW27: =SUM(F27:AV27) -> 0 | AY27: =SUM(AW27:AW27) -> 0 | AZ27: =+AY27-'ROR-Model'!G27 -> 0
AZ28: =+AY28-'ROR-Model'!G28 -> 0
C29: Commodity Revenue | H29: =H1*Revenue!$S$28 -> 0 | S29: =0*'Transition Costs'!E29*$U$1 -> 0 | T29: ='EDIT Amort Adj'!F29*$U$1 -> 0 | U29: ='EDIT Amort Adj'!G29*$U$1 -> 0 | V29: ='OYF Savings'!G29*$V$1 -> 0 | W29: ='RNGT -NGV Volume'!G37*$W$1 -> 0 | X29: =Pension!G29*$X$1 -> 0 | Y29: ='Optional Adjustment 23'!G29*$Y$1 -> 0 | Z29: ='Optional Adjustment 1'!G29*$Z$1 -> 0 | AA29: ='Optional Adjustment 2'!G29*$AA$1 -> 0 | AB29: ='Optional Adjustment 3'!G29*$AB$1 -> 0 | AC29: ='Optional Adjustment 4'!G29*$AC$1 -> 0 | AD29: ='Optional Adjustment 5'!G29*$AD$1 -> 0 | AE29: ='Optional Adjustment 6'!G29*$AE$1 -> 0 | AF29: ='Optional Adjustment 7'!G29*$AF$1 -> 0 | AG29: ='Optional Adjustment 8'!G29*$AG$1 -> 0 | AH29: ='Optional Adjustment 9'!G29*$AH$1 -> 0 | AI29: ='Optional Adjustment 10'!G29*$AI$1 -> 0 | AJ29: ='Optional Adjustment 11'!G29*$AJ$1 -> 0 | AK29: ='Optional Adjustment 12'!G29*$AK$1 -> 0 | AL29: ='Optional Adjustment 13'!G29*$AL$1 -> 0 | AM29: ='Optional Adjustment 14'!G29*$AM$1 -> 0 | AN29: ='Optional Adjustment 15'!G29*$AN$1 -> 0 | AO29: ='Optional Adjustment 16'!G29*$AO$1 -> 0 | AP29: ='Optional Adjustment 17'!G29*$AP$1 -> 0 | AQ29: ='Optional Adjustment 18'!G29*$AQ$1 -> 0 | AR29: ='Optional Adjustment 19'!G29*$AR$1 -> 0 | AS29: ='Optional Adjustment 20'!G29*$AS$1 -> 0 | AT29: ='Optional Adjustment 21'!G29*$AT$1 -> 0 | AU29: ='Optional Adjustment 22'!G29*$AU$1 -> 0 | AW29: =SUM(F29:AV29) -> 0 | AY29: =SUM(AW29:AW29) -> 0 | AZ29: =+AY29-'ROR-Model'!G29 -> 0
C30: Total Revenue | F30: =SUM(F25:F29) -> 0 | H30: =H1*SUM(H25:H29) -> 0 | I30: =SUM(I25:I29) -> 0 | J30: =SUM(J25:J29) -> 0 | K30: 0 | L30: 0 | M30: 0 | N30: 0 | O30: 0 | P30: 0 | Q30: =SUM(Q25:Q29) -> 0 | R30: 0 | S30: =SUM(S25:S29) -> 0 | T30: 0 | U30: 0 | V30: 0 | W30: 0 | X30: 0 | Y30: 0 | Z30: =SUM(Z25:Z29) -> 0 | AA30: 0 | AB30: 0 | AC30: 0 | AD30: 0 | AE30: 0 | AF30: 0 | AG30: 0 | AH30: 0 | AI30: 0 | AJ30: =SUM(AJ25:AJ29) -> 0 | AK30: 0 | AL30: 0 | AM30: 0 | AN30: =SUM(AN25:AN29) -> 0 | AO30: 0 | AP30: 0 | AQ30: 0 | AR30: 0 | AS30: =SUM(AS25:AS29) -> 0 | AT30: 0 | AU30: 0 | AW30: =SUM(F30:AV30) -> 0 | AY30: =SUM(AW30:AW30) -> 0 | AZ30: =+AY30-'ROR-Model'!G30 -> 0
AZ31: =+AY31-'ROR-Model'!G31 -> 0
C32: Total Dth | H32: =H1*Revenue!$S$31 -> 0 | AW32: =SUM(F32:AV32) -> 0 | AY32: =SUM(AW32:AW32) -> 0 | AZ32: =+AY32-'ROR-Model'!G32 -> 0
AZ33: =+AY33-'ROR-Model'!G33 -> 0
B34: GSS | C34: Distribution Non-Gas Rev | H34: =H1*Revenue!$S$33 -> 0 | S34: =0*'Transition Costs'!E34*$U$1 -> 0 | T34: ='EDIT Amort Adj'!F34*$U$1 -> 0 | U34: ='EDIT Amort Adj'!G34*$U$1 -> 0 | V34: ='OYF Savings'!G34*$V$1 -> 0 | W34: ='RNGT -NGV Volume'!G42*$W$1 -> 0 | X34: =Pension!G34*$X$1 -> 0 | Y34: ='Optional Adjustment 23'!G34*$Y$1 -> 0 | Z34: ='Optional Adjustment 1'!G34*$Z$1 -> 0 | AA34: ='Optional Adjustment 2'!G34*$AA$1 -> 0 | AB34: ='Optional Adjustment 3'!G34*$AB$1 -> 0 | AC34: ='Optional Adjustment 4'!G34*$AC$1 -> 0 | AD34: ='Optional Adjustment 5'!G34*$AD$1 -> 0 | AE34: ='Optional Adjustment 6'!G34*$AE$1 -> 0 | AF34: ='Optional Adjustment 7'!G34*$AF$1 -> 0 | AG34: ='Optional Adjustment 8'!G34*$AG$1 -> 0 | AH34: ='Optional Adjustment 9'!G34*$AH$1 -> 0 | AI34: ='Optional Adjustment 10'!G34*$AI$1 -> 0 | AJ34: ='Optional Adjustment 11'!G34*$AJ$1 -> 0 | AK34: ='Optional Adjustment 12'!G34*$AK$1 -> 0 | AL34: ='Optional Adjustment 13'!G34*$AL$1 -> 0 | AM34: ='Optional Adjustment 14'!G34*$AM$1 -> 0 | AN34: ='Optional Adjustment 15'!G34*$AN$1 -> 0 | AO34: ='Optional Adjustment 16'!G34*$AO$1 -> 0 | AP34: ='Optional Adjustment 17'!G34*$AP$1 -> 0 | AQ34: ='Optional Adjustment 18'!G34*$AQ$1 -> 0 | AR34: ='Optional Adjustment 19'!G34*$AR$1 -> 0 | AS34: ='Optional Adjustment 20'!G34*$AS$1 -> 0 | AT34: ='Optional Adjustment 21'!G34*$AT$1 -> 0 | AU34: ='Optional Adjustment 22'!G34*$AU$1 -> 0 | AW34: =SUM(F34:AV34) -> 0 | AY34: =SUM(AW34:AW34) -> 0 | AZ34: =+AY34-'ROR-Model'!G34 -> 0
AZ35: =+AY35-'ROR-Model'!G35 -> 0
C36: Supplier Non-Gas Revenue | H36: =H1*Revenue!$S$35 -> 0 | S36: =0*'Transition Costs'!E36*$U$1 -> 0 | T36: ='EDIT Amort Adj'!F36*$U$1 -> 0 | U36: ='EDIT Amort Adj'!G36*$U$1 -> 0 | V36: ='OYF Savings'!G36*$V$1 -> 0 | W36: ='RNGT -NGV Volume'!G44*$W$1 -> 0 | X36: =Pension!G36*$X$1 -> 0 | Y36: ='Optional Adjustment 23'!G36*$Y$1 -> 0 | Z36: ='Optional Adjustment 1'!G36*$Z$1 -> 0 | AA36: ='Optional Adjustment 2'!G36*$AA$1 -> 0 | AB36: ='Optional Adjustment 3'!G36*$AB$1 -> 0 | AC36: ='Optional Adjustment 4'!G36*$AC$1 -> 0 | AD36: ='Optional Adjustment 5'!G36*$AD$1 -> 0 | AE36: ='Optional Adjustment 6'!G36*$AE$1 -> 0 | AF36: ='Optional Adjustment 7'!G36*$AF$1 -> 0 | AG36: ='Optional Adjustment 8'!G36*$AG$1 -> 0 | AH36: ='Optional Adjustment 9'!G36*$AH$1 -> 0 | AI36: ='Optional Adjustment 10'!G36*$AI$1 -> 0 | AJ36: ='Optional Adjustment 11'!G36*$AJ$1 -> 0 | AK36: ='Optional Adjustment 12'!G36*$AK$1 -> 0 | AL36: ='Optional Adjustment 13'!G36*$AL$1 -> 0 | AM36: ='Optional Adjustment 14'!G36*$AM$1 -> 0 | AN36: ='Optional Adjustment 15'!G36*$AN$1 -> 0 | AO36: ='Optional Adjustment 16'!G36*$AO$1 -> 0 | AP36: ='Optional Adjustment 17'!G36*$AP$1 -> 0 | AQ36: ='Optional Adjustment 18'!G36*$AQ$1 -> 0 | AR36: ='Optional Adjustment 19'!G36*$AR$1 -> 0 | AS36: ='Optional Adjustment 20'!G36*$AS$1 -> 0 | AT36: ='Optional Adjustment 21'!G36*$AT$1 -> 0 | AU36: ='Optional Adjustment 22'!G36*$AU$1 -> 0 | AW36: =SUM(F36:AV36) -> 0 | AY36: =SUM(AW36:AW36) -> 0 | AZ36: =+AY36-'ROR-Model'!G36 -> 0
AZ37: =+AY37-'ROR-Model'!G37 -> 0
C38: Commodity Revenue | H38: =H1*Revenue!$S$37 -> 0 | S38: =0*'Transition Costs'!E38*$U$1 -> 0 | T38: ='EDIT Amort Adj'!F38*$U$1 -> 0 | U38: ='EDIT Amort Adj'!G38*$U$1 -> 0 | V38: ='OYF Savings'!G38*$V$1 -> 0 | W38: ='RNGT -NGV Volume'!G46*$W$1 -> 0 | X38: =Pension!G38*$X$1 -> 0 | Y38: ='Optional Adjustment 23'!G38*$Y$1 -> 0 | Z38: ='Optional Adjustment 1'!G38*$Z$1 -> 0 | AA38: ='Optional Adjustment 2'!G38*$AA$1 -> 0 | AB38: ='Optional Adjustment 3'!G38*$AB$1 -> 0 | AC38: ='Optional Adjustment 4'!G38*$AC$1 -> 0 | AD38: ='Optional Adjustment 5'!G38*$AD$1 -> 0 | AE38: ='Optional Adjustment 6'!G38*$AE$1 -> 0 | AF38: ='Optional Adjustment 7'!G38*$AF$1 -> 0 | AG38: ='Optional Adjustment 8'!G38*$AG$1 -> 0 | AH38: ='Optional Adjustment 9'!G38*$AH$1 -> 0 | AI38: ='Optional Adjustment 10'!G38*$AI$1 -> 0 | AJ38: ='Optional Adjustment 11'!G38*$AJ$1 -> 0 | AK38: ='Optional Adjustment 12'!G38*$AK$1 -> 0 | AL38: ='Optional Adjustment 13'!G38*$AL$1 -> 0 | AM38: ='Optional Adjustment 14'!G38*$AM$1 -> 0 | AN38: ='Optional Adjustment 15'!G38*$AN$1 -> 0 | AO38: ='Optional Adjustment 16'!G38*$AO$1 -> 0 | AP38: ='Optional Adjustment 17'!G38*$AP$1 -> 0 | AQ38: ='Optional Adjustment 18'!G38*$AQ$1 -> 0 | AR38: ='Optional Adjustment 19'!G38*$AR$1 -> 0 | AS38: ='Optional Adjustment 20'!G38*$AS$1 -> 0 | AT38: ='Optional Adjustment 21'!G38*$AT$1 -> 0 | AU38: ='Optional Adjustment 22'!G38*$AU$1 -> 0 | AW38: =SUM(F38:AV38) -> 0 | AY38: =SUM(AW38:AW38) -> 0 | AZ38: =+AY38-'ROR-Model'!G38 -> 0
C39: Total Revenue | F39: =SUM(F34:F38) -> 0 | H39: =H1*SUM(H34:H38) -> 0 | I39: =SUM(I34:I38) -> 0 | J39: =SUM(J34:J38) -> 0 | K39: 0 | L39: 0 | M39: 0 | N39: 0 | O39: 0 | P39: 0 | Q39: =SUM(Q34:Q38) -> 0 | R39: 0 | S39: =SUM(S34:S38) -> 0 | T39: 0 | U39: 0 | V39: 0 | W39: 0 | X39: 0 | Y39: 0 | Z39: =SUM(Z34:Z38) -> 0 | AA39: 0 | AB39: 0 | AC39: 0 | AD39: 0 | AE39: 0 | AF39: 0 | AG39: 0 | AH39: 0 | AI39: 0 | AJ39: =SUM(AJ34:AJ38) -> 0 | AK39: 0 | AL39: 0 | AM39: 0 | AN39: =SUM(AN34:AN38) -> 0 | AO39: 0 | AP39: 0 | AQ39: 0 | AR39: 0 | AS39: =SUM(AS34:AS38) -> 0 | AT39: 0 | AU39: 0 | AW39: =SUM(F39:AV39) -> 0 | AY39: =SUM(AW39:AW39) -> 0 | AZ39: =+AY39-'ROR-Model'!G39 -> 0
AZ40: =+AY40-'ROR-Model'!G40 -> 0
C41: Total Dth | H41: =H1*Revenue!$S$40 -> 0 | AW41: =SUM(F41:AV41) -> 0 | AY41: =SUM(AW41:AW41) -> 0 | AZ41: =+AY41-'ROR-Model'!G41 -> 0
AZ42: =+AY42-'ROR-Model'!G42 -> 0
B43: F1_FS_F1A_F1B | C43: Distribution Non-Gas Rev | H43: =H1*Revenue!$S$42 -> -315902.5798 | S43: =0*'Transition Costs'!E43*$U$1 -> 0 | T43: ='EDIT Amort Adj'!F43*$U$1 -> 0 | U43: ='EDIT Amort Adj'!G43*$U$1 -> 0 | V43: ='OYF Savings'!G43*$V$1 -> 0 | W43: ='RNGT -NGV Volume'!G51*$W$1 -> 0 | X43: =Pension!G43*$X$1 -> 0 | Y43: ='Optional Adjustment 23'!G43*$Y$1 -> 0 | Z43: ='Optional Adjustment 1'!G43*$Z$1 -> 0 | AA43: ='Optional Adjustment 2'!G43*$AA$1 -> 0 | AB43: ='Optional Adjustment 3'!G43*$AB$1 -> 0 | AC43: ='Optional Adjustment 4'!G43*$AC$1 -> 0 | AD43: ='Optional Adjustment 5'!G43*$AD$1 -> 0 | AE43: ='Optional Adjustment 6'!G43*$AE$1 -> 0 | AF43: ='Optional Adjustment 7'!G43*$AF$1 -> 0 | AG43: ='Optional Adjustment 8'!G43*$AG$1 -> 0 | AH43: ='Optional Adjustment 9'!G43*$AH$1 -> 0 | AI43: ='Optional Adjustment 10'!G43*$AI$1 -> 0 | AJ43: ='Optional Adjustment 11'!G43*$AJ$1 -> 0 | AK43: ='Optional Adjustment 12'!G43*$AK$1 -> 0 | AL43: ='Optional Adjustment 13'!G43*$AL$1 -> 0 | AM43: ='Optional Adjustment 14'!G43*$AM$1 -> 0 | AN43: ='Optional Adjustment 15'!G43*$AN$1 -> 0 | AO43: ='Optional Adjustment 16'!G43*$AO$1 -> 0 | AP43: ='Optional Adjustment 17'!G43*$AP$1 -> 0 | AQ43: ='Optional Adjustment 18'!G43*$AQ$1 -> 0 | AR43: ='Optional Adjustment 19'!G43*$AR$1 -> 0 | AS43: ='Optional Adjustment 20'!G43*$AS$1 -> 0 | AT43: ='Optional Adjustment 21'!G43*$AT$1 -> 0 | AU43: ='Optional Adjustment 22'!G43*$AU$1 -> 0 | AW43: =SUM(F43:AV43) -> -315902.5798 | AY43: =SUM(AW43:AW43) -> -315902.5798 | AZ43: =+AY43-'ROR-Model'!G43 -> 0
AZ44: =+AY44-'ROR-Model'!G44 -> 0
C45: Supplier Non-Gas Revenue | H45: =H1*Revenue!$S$44 -> 0 | S45: =0*'Transition Costs'!E45*$U$1 -> 0 | T45: ='EDIT Amort Adj'!F45*$U$1 -> 0 | U45: ='EDIT Amort Adj'!G45*$U$1 -> 0 | V45: ='OYF Savings'!G45*$V$1 -> 0 | W45: ='RNGT -NGV Volume'!G53*$W$1 -> 0 | X45: =Pension!G45*$X$1 -> 0 | Y45: ='Optional Adjustment 23'!G45*$Y$1 -> 0 | Z45: ='Optional Adjustment 1'!G45*$Z$1 -> 0 | AA45: ='Optional Adjustment 2'!G45*$AA$1 -> 0 | AB45: ='Optional Adjustment 3'!G45*$AB$1 -> 0 | AC45: ='Optional Adjustment 4'!G45*$AC$1 -> 0 | AD45: ='Optional Adjustment 5'!G45*$AD$1 -> 0 | AE45: ='Optional Adjustment 6'!G45*$AE$1 -> 0 | AF45: ='Optional Adjustment 7'!G45*$AF$1 -> 0 | AG45: ='Optional Adjustment 8'!G45*$AG$1 -> 0 | AH45: ='Optional Adjustment 9'!G45*$AH$1 -> 0 | AI45: ='Optional Adjustment 10'!G45*$AI$1 -> 0 | AJ45: ='Optional Adjustment 11'!G45*$AJ$1 -> 0 | AK45: ='Optional Adjustment 12'!G45*$AK$1 -> 0 | AL45: ='Optional Adjustment 13'!G45*$AL$1 -> 0 | AM45: ='Optional Adjustment 14'!G45*$AM$1 -> 0 | AN45: ='Optional Adjustment 15'!G45*$AN$1 -> 0 | AO45: ='Optional Adjustment 16'!G45*$AO$1 -> 0 | AP45: ='Optional Adjustment 17'!G45*$AP$1 -> 0 | AQ45: ='Optional Adjustment 18'!G45*$AQ$1 -> 0 | AR45: ='Optional Adjustment 19'!G45*$AR$1 -> 0 | AS45: ='Optional Adjustment 20'!G45*$AS$1 -> 0 | AT45: ='Optional Adjustment 21'!G45*$AT$1 -> 0 | AU45: ='Optional Adjustment 22'!G45*$AU$1 -> 0 | AW45: =SUM(F45:AV45) -> 0 | AY45: =SUM(AW45:AW45) -> 0 | AZ45: =+AY45-'ROR-Model'!G45 -> 0
AZ46: =+AY46-'ROR-Model'!G46 -> 0
C47: Commodity Revenue | H47: =H1*Revenue!$S$46 -> 0 | S47: =0*'Transition Costs'!E47*$U$1 -> 0 | T47: ='EDIT Amort Adj'!F47*$U$1 -> 0 | U47: ='EDIT Amort Adj'!G47*$U$1 -> 0 | V47: ='OYF Savings'!G47*$V$1 -> 0 | W47: ='RNGT -NGV Volume'!G55*$W$1 -> 0 | X47: =Pension!G47*$X$1 -> 0 | Y47: ='Optional Adjustment 23'!G47*$Y$1 -> 0 | Z47: ='Optional Adjustment 1'!G47*$Z$1 -> 0 | AA47: ='Optional Adjustment 2'!G47*$AA$1 -> 0 | AB47: ='Optional Adjustment 3'!G47*$AB$1 -> 0 | AC47: ='Optional Adjustment 4'!G47*$AC$1 -> 0 | AD47: ='Optional Adjustment 5'!G47*$AD$1 -> 0 | AE47: ='Optional Adjustment 6'!G47*$AE$1 -> 0 | AF47: ='Optional Adjustment 7'!G47*$AF$1 -> 0 | AG47: ='Optional Adjustment 8'!G47*$AG$1 -> 0 | AH47: ='Optional Adjustment 9'!G47*$AH$1 -> 0 | AI47: ='Optional Adjustment 10'!G47*$AI$1 -> 0 | AJ47: ='Optional Adjustment 11'!G47*$AJ$1 -> 0 | AK47: ='Optional Adjustment 12'!G47*$AK$1 -> 0 | AL47: ='Optional Adjustment 13'!G47*$AL$1 -> 0 | AM47: ='Optional Adjustment 14'!G47*$AM$1 -> 0 | AN47: ='Optional Adjustment 15'!G47*$AN$1 -> 0 | AO47: ='Optional Adjustment 16'!G47*$AO$1 -> 0 | AP47: ='Optional Adjustment 17'!G47*$AP$1 -> 0 | AQ47: ='Optional Adjustment 18'!G47*$AQ$1 -> 0 | AR47: ='Optional Adjustment 19'!G47*$AR$1 -> 0 | AS47: ='Optional Adjustment 20'!G47*$AS$1 -> 0 | AT47: ='Optional Adjustment 21'!G47*$AT$1 -> 0 | AU47: ='Optional Adjustment 22'!G47*$AU$1 -> 0 | AW47: =SUM(F47:AV47) -> 0 | AY47: =SUM(AW47:AW47) -> 0 | AZ47: =+AY47-'ROR-Model'!G47 -> 0
C48: Total Revenue | F48: =SUM(F43:F47) -> 0 | H48: =H1*SUM(H43:H47) -> -315902.5798 | I48: =SUM(I43:I47) -> 0 | J48: =SUM(J43:J47) -> 0 | K48: 0 | L48: 0 | M48: 0 | N48: 0 | O48: 0 | P48: 0 | Q48: =SUM(Q43:Q47) -> 0 | R48: 0 | S48: =SUM(S43:S47) -> 0 | T48: 0 | U48: 0 | V48: 0 | W48: 0 | X48: 0 | Y48: 0 | Z48: =SUM(Z43:Z47) -> 0 | AA48: 0 | AB48: 0 | AC48: 0 | AD48: 0 | AE48: 0 | AF48: 0 | AG48: 0 | AH48: 0 | AI48: 0 | AJ48: =SUM(AJ43:AJ47) -> 0 | AK48: 0 | AL48: 0 | AM48: 0 | AN48: =SUM(AN43:AN47) -> 0 | AO48: 0 | AP48: 0 | AQ48: 0 | AR48: 0 | AS48: =SUM(AS43:AS47) -> 0 | AT48: 0 | AU48: 0 | AW48: =SUM(AW43:AW47) -> -315902.5798 | AY48: =SUM(AY43:AY47) -> -315902.5798 | AZ48: =+AY48-'ROR-Model'!G48 -> 0
AZ49: =+AY49-'ROR-Model'!G49 -> 0
C50: Total Dth | H50: =H1*Revenue!$S$49 -> -662372.11 | AW50: =SUM(F50:AV50) -> -662372.11 | AY50: =SUM(AW50:AW50) -> -662372.11 | AZ50: =+AY50-'ROR-Model'!G50 -> 0
AZ51: =+AY51-'ROR-Model'!G51 -> 0
B52: F-3 | C52: Distribution Non-Gas Rev | H52: =H1*Revenue!$S$51 -> 0 | S52: =0*'Transition Costs'!E52*$U$1 -> 0 | T52: ='EDIT Amort Adj'!F52*$U$1 -> 0 | U52: ='EDIT Amort Adj'!G52*$U$1 -> 0 | V52: ='OYF Savings'!G52*$V$1 -> 0 | W52: ='RNGT -NGV Volume'!G60*$W$1 -> 0 | X52: =Pension!G52*$X$1 -> 0 | Y52: ='Optional Adjustment 23'!G52*$Y$1 -> 0 | Z52: ='Optional Adjustment 1'!G52*$Z$1 -> 0 | AA52: ='Optional Adjustment 2'!G52*$AA$1 -> 0 | AB52: ='Optional Adjustment 3'!G52*$AB$1 -> 0 | AC52: ='Optional Adjustment 4'!G52*$AC$1 -> 0 | AD52: ='Optional Adjustment 5'!G52*$AD$1 -> 0 | AE52: ='Optional Adjustment 6'!G52*$AE$1 -> 0 | AF52: ='Optional Adjustment 7'!G52*$AF$1 -> 0 | AG52: ='Optional Adjustment 8'!G52*$AG$1 -> 0 | AH52: ='Optional Adjustment 9'!G52*$AH$1 -> 0 | AI52: ='Optional Adjustment 10'!G52*$AI$1 -> 0 | AJ52: ='Optional Adjustment 11'!G52*$AJ$1 -> 0 | AK52: ='Optional Adjustment 12'!G52*$AK$1 -> 0 | AL52: ='Optional Adjustment 13'!G52*$AL$1 -> 0 | AM52: ='Optional Adjustment 14'!G52*$AM$1 -> 0 | AN52: ='Optional Adjustment 15'!G52*$AN$1 -> 0 | AO52: ='Optional Adjustment 16'!G52*$AO$1 -> 0 | AP52: ='Optional Adjustment 17'!G52*$AP$1 -> 0 | AQ52: ='Optional Adjustment 18'!G52*$AQ$1 -> 0 | AR52: ='Optional Adjustment 19'!G52*$AR$1 -> 0 | AS52: ='Optional Adjustment 20'!G52*$AS$1 -> 0 | AT52: ='Optional Adjustment 21'!G52*$AT$1 -> 0 | AU52: ='Optional Adjustment 22'!G52*$AU$1 -> 0 | AW52: =SUM(F52:AV52) -> 0 | AY52: =SUM(AW52:AW52) -> 0 | AZ52: =+AY52-'ROR-Model'!G52 -> 0
C53: Supplier Non-Gas Revenue | S53: =0*'Transition Costs'!E53*$U$1 -> 0 | T53: ='EDIT Amort Adj'!F53*$U$1 -> 0 | U53: ='EDIT Amort Adj'!G53*$U$1 -> 0 | V53: ='OYF Savings'!G53*$V$1 -> 0 | W53: ='RNGT -NGV Volume'!G61*$W$1 -> 0 | X53: =Pension!G53*$X$1 -> 0 | Y53: ='Optional Adjustment 23'!G53*$Y$1 -> 0 | Z53: ='Optional Adjustment 1'!G53*$Z$1 -> 0 | AA53: ='Optional Adjustment 2'!G53*$AA$1 -> 0 | AB53: ='Optional Adjustment 3'!G53*$AB$1 -> 0 | AC53: ='Optional Adjustment 4'!G53*$AC$1 -> 0 | AD53: ='Optional Adjustment 5'!G53*$AD$1 -> 0 | AE53: ='Optional Adjustment 6'!G53*$AE$1 -> 0 | AF53: ='Optional Adjustment 7'!G53*$AF$1 -> 0 | AG53: ='Optional Adjustment 8'!G53*$AG$1 -> 0 | AH53: ='Optional Adjustment 9'!G53*$AH$1 -> 0 | AI53: ='Optional Adjustment 10'!G53*$AI$1 -> 0 | AJ53: ='Optional Adjustment 11'!G53*$AJ$1 -> 0 | AK53: ='Optional Adjustment 12'!G53*$AK$1 -> 0 | AL53: ='Optional Adjustment 13'!G53*$AL$1 -> 0 | AM53: ='Optional Adjustment 14'!G53*$AM$1 -> 0 | AN53: ='Optional Adjustment 15'!G53*$AN$1 -> 0 | AO53: ='Optional Adjustment 16'!G53*$AO$1 -> 0 | AP53: ='Optional Adjustment 17'!G53*$AP$1 -> 0 | AQ53: ='Optional Adjustment 18'!G53*$AQ$1 -> 0 | AR53: ='Optional Adjustment 19'!G53*$AR$1 -> 0 | AS53: ='Optional Adjustment 20'!G53*$AS$1 -> 0 | AT53: ='Optional Adjustment 21'!G53*$AT$1 -> 0 | AU53: ='Optional Adjustment 22'!G53*$AU$1 -> 0 | AW53: =SUM(F53:AV53) -> 0 | AY53: =SUM(AW53:AW53) -> 0 | AZ53: =+AY53-'ROR-Model'!G53 -> 0
C54: Supplier Non-Gas Demand Revenue | H54: =H1*Revenue!$S$53 -> 0 | S54: =0*'Transition Costs'!E54*$U$1 -> 0 | T54: ='EDIT Amort Adj'!F54*$U$1 -> 0 | U54: ='EDIT Amort Adj'!G54*$U$1 -> 0 | V54: ='OYF Savings'!G54*$V$1 -> 0 | W54: ='RNGT -NGV Volume'!G62*$W$1 -> 0 | X54: =Pension!G54*$X$1 -> 0 | Y54: ='Optional Adjustment 23'!G54*$Y$1 -> 0 | Z54: ='Optional Adjustment 1'!G54*$Z$1 -> 0 | AA54: ='Optional Adjustment 2'!G54*$AA$1 -> 0 | AB54: ='Optional Adjustment 3'!G54*$AB$1 -> 0 | AC54: ='Optional Adjustment 4'!G54*$AC$1 -> 0 | AD54: ='Optional Adjustment 5'!G54*$AD$1 -> 0 | AE54: ='Optional Adjustment 6'!G54*$AE$1 -> 0 | AF54: ='Optional Adjustment 7'!G54*$AF$1 -> 0 | AG54: ='Optional Adjustment 8'!G54*$AG$1 -> 0 | AH54: ='Optional Adjustment 9'!G54*$AH$1 -> 0 | AI54: ='Optional Adjustment 10'!G54*$AI$1 -> 0 | AJ54: ='Optional Adjustment 11'!G54*$AJ$1 -> 0 | AK54: ='Optional Adjustment 12'!G54*$AK$1 -> 0 | AL54: ='Optional Adjustment 13'!G54*$AL$1 -> 0 | AM54: ='Optional Adjustment 14'!G54*$AM$1 -> 0 | AN54: ='Optional Adjustment 15'!G54*$AN$1 -> 0 | AO54: ='Optional Adjustment 16'!G54*$AO$1 -> 0 | AP54: ='Optional Adjustment 17'!G54*$AP$1 -> 0 | AQ54: ='Optional Adjustment 18'!G54*$AQ$1 -> 0 | AR54: ='Optional Adjustment 19'!G54*$AR$1 -> 0 | AS54: ='Optional Adjustment 20'!G54*$AS$1 -> 0 | AT54: ='Optional Adjustment 21'!G54*$AT$1 -> 0 | AU54: ='Optional Adjustment 22'!G54*$AU$1 -> 0 | AW54: =SUM(F54:AV54) -> 0 | AY54: =SUM(AW54:AW54) -> 0 | AZ54: =+AY54-'ROR-Model'!G54 -> 0
C55: Commodity Tariff Revenue | S55: =0*'Transition Costs'!E55*$U$1 -> 0 | T55: ='EDIT Amort Adj'!F55*$U$1 -> 0 | U55: ='EDIT Amort Adj'!G55*$U$1 -> 0 | V55: ='OYF Savings'!G55*$V$1 -> 0 | W55: ='RNGT -NGV Volume'!G63*$W$1 -> 0 | X55: =Pension!G55*$X$1 -> 0 | Y55: ='Optional Adjustment 23'!G55*$Y$1 -> 0 | Z55: ='Optional Adjustment 1'!G55*$Z$1 -> 0 | AA55: ='Optional Adjustment 2'!G55*$AA$1 -> 0 | AB55: ='Optional Adjustment 3'!G55*$AB$1 -> 0 | AC55: ='Optional Adjustment 4'!G55*$AC$1 -> 0 | AD55: ='Optional Adjustment 5'!G55*$AD$1 -> 0 | AE55: ='Optional Adjustment 6'!G55*$AE$1 -> 0 | AF55: ='Optional Adjustment 7'!G55*$AF$1 -> 0 | AG55: ='Optional Adjustment 8'!G55*$AG$1 -> 0 | AH55: ='Optional Adjustment 9'!G55*$AH$1 -> 0 | AI55: ='Optional Adjustment 10'!G55*$AI$1 -> 0 | AJ55: ='Optional Adjustment 11'!G55*$AJ$1 -> 0 | AK55: ='Optional Adjustment 12'!G55*$AK$1 -> 0 | AL55: ='Optional Adjustment 13'!G55*$AL$1 -> 0 | AM55: ='Optional Adjustment 14'!G55*$AM$1 -> 0 | AN55: ='Optional Adjustment 15'!G55*$AN$1 -> 0 | AO55: ='Optional Adjustment 16'!G55*$AO$1 -> 0 | AP55: ='Optional Adjustment 17'!G55*$AP$1 -> 0 | AQ55: ='Optional Adjustment 18'!G55*$AQ$1 -> 0 | AR55: ='Optional Adjustment 19'!G55*$AR$1 -> 0 | AS55: ='Optional Adjustment 20'!G55*$AS$1 -> 0 | AT55: ='Optional Adjustment 21'!G55*$AT$1 -> 0 | AU55: ='Optional Adjustment 22'!G55*$AU$1 -> 0 | AW55: =SUM(F55:AV55) -> 0 | AY55: =SUM(AW55:AW55) -> 0 | AZ55: =+AY55-'ROR-Model'!G55 -> 0
C56: Commodity Demand Revenue | H56: =H1*Revenue!$S$55 -> 0 | S56: =0*'Transition Costs'!E56*$U$1 -> 0 | T56: ='EDIT Amort Adj'!F56*$U$1 -> 0 | U56: ='EDIT Amort Adj'!G56*$U$1 -> 0 | V56: ='OYF Savings'!G56*$V$1 -> 0 | W56: ='RNGT -NGV Volume'!G64*$W$1 -> 0 | X56: =Pension!G56*$X$1 -> 0 | Y56: ='Optional Adjustment 23'!G56*$Y$1 -> 0 | Z56: ='Optional Adjustment 1'!G56*$Z$1 -> 0 | AA56: ='Optional Adjustment 2'!G56*$AA$1 -> 0 | AB56: ='Optional Adjustment 3'!G56*$AB$1 -> 0 | AC56: ='Optional Adjustment 4'!G56*$AC$1 -> 0 | AD56: ='Optional Adjustment 5'!G56*$AD$1 -> 0 | AE56: ='Optional Adjustment 6'!G56*$AE$1 -> 0 | AF56: ='Optional Adjustment 7'!G56*$AF$1 -> 0 | AG56: ='Optional Adjustment 8'!G56*$AG$1 -> 0 | AH56: ='Optional Adjustment 9'!G56*$AH$1 -> 0 | AI56: ='Optional Adjustment 10'!G56*$AI$1 -> 0 | AJ56: ='Optional Adjustment 11'!G56*$AJ$1 -> 0 | AK56: ='Optional Adjustment 12'!G56*$AK$1 -> 0 | AL56: ='Optional Adjustment 13'!G56*$AL$1 -> 0 | AM56: ='Optional Adjustment 14'!G56*$AM$1 -> 0 | AN56: ='Optional Adjustment 15'!G56*$AN$1 -> 0 | AO56: ='Optional Adjustment 16'!G56*$AO$1 -> 0 | AP56: ='Optional Adjustment 17'!G56*$AP$1 -> 0 | AQ56: ='Optional Adjustment 18'!G56*$AQ$1 -> 0 | AR56: ='Optional Adjustment 19'!G56*$AR$1 -> 0 | AS56: ='Optional Adjustment 20'!G56*$AS$1 -> 0 | AT56: ='Optional Adjustment 21'!G56*$AT$1 -> 0 | AU56: ='Optional Adjustment 22'!G56*$AU$1 -> 0 | AW56: =SUM(F56:AV56) -> 0 | AY56: =SUM(AW56:AW56) -> 0 | AZ56: =+AY56-'ROR-Model'!G56 -> 0
C57: Total Revenue | F57: =SUM(F52:F56) -> 0 | H57: =H1*SUM(H52:H56) -> 0 | I57: =SUM(I52:I56) -> 0 | J57: =SUM(J52:J56) -> 0 | K57: 0 | L57: 0 | M57: 0 | N57: 0 | O57: 0 | P57: 0 | Q57: =SUM(Q52:Q56) -> 0 | R57: 0 | S57: =SUM(S52:S56) -> 0 | T57: 0 | U57: 0 | V57: 0 | W57: 0 | X57: 0 | Y57: 0 | Z57: =SUM(Z52:Z56) -> 0 | AA57: 0 | AB57: 0 | AC57: 0 | AD57: 0 | AE57: 0 | AF57: 0 | AG57: 0 | AH57: 0 | AI57: 0 | AJ57: =SUM(AJ52:AJ56) -> 0 | AK57: 0 | AL57: 0 | AM57: 0 | AN57: =SUM(AN52:AN56) -> 0 | AO57: 0 | AP57: 0 | AQ57: 0 | AR57: 0 | AS57: =SUM(AS52:AS56) -> 0 | AT57: 0 | AU57: 0 | AW57: =SUM(AW52:AW56) -> 0 | AY57: =SUM(AY52:AY56) -> 0 | AZ57: =+AY57-'ROR-Model'!G57 -> 0
AZ58: =+AY58-'ROR-Model'!G58 -> 0
C59: Total Sales Dth | H59: =H1*Revenue!$S$58 -> 0 | AW59: =SUM(F59:AV59) -> 0 | AY59: =SUM(AW59:AW59) -> 0 | AZ59: =+AY59-'ROR-Model'!G59 -> 0
AZ60: =+AY60-'ROR-Model'!G60 -> 0
B61: NGV | C61: Distribution Non-Gas Rev | H61: =H1*Revenue!$S$60 -> 371531.9392 | S61: =0*'Transition Costs'!E61*$U$1 -> 0 | T61: ='EDIT Amort Adj'!F61*$U$1 -> 0 | U61: ='EDIT Amort Adj'!G61*$U$1 -> 0 | V61: ='OYF Savings'!G61*$V$1 -> 0 | W61: ='RNGT -NGV Volume'!G69*$W$1 -> 599041.8 | X61: =Pension!G61*$X$1 -> 0 | Y61: ='Optional Adjustment 23'!G61*$Y$1 -> 0 | Z61: ='Optional Adjustment 1'!G61*$Z$1 -> 0 | AA61: ='Optional Adjustment 2'!G61*$AA$1 -> 0 | AB61: ='Optional Adjustment 3'!G61*$AB$1 -> 0 | AC61: ='Optional Adjustment 4'!G61*$AC$1 -> 0 | AD61: ='Optional Adjustment 5'!G61*$AD$1 -> 0 | AE61: ='Optional Adjustment 6'!G61*$AE$1 -> 0 | AF61: ='Optional Adjustment 7'!G61*$AF$1 -> 0 | AG61: ='Optional Adjustment 8'!G61*$AG$1 -> 0 | AH61: ='Optional Adjustment 9'!G61*$AH$1 -> 0 | AI61: ='Optional Adjustment 10'!G61*$AI$1 -> 0 | AJ61: ='Optional Adjustment 11'!G61*$AJ$1 -> 0 | AK61: ='Optional Adjustment 12'!G61*$AK$1 -> 0 | AL61: ='Optional Adjustment 13'!G61*$AL$1 -> 0 | AM61: ='Optional Adjustment 14'!G61*$AM$1 -> 0 | AN61: ='Optional Adjustment 15'!G61*$AN$1 -> 0 | AO61: ='Optional Adjustment 16'!G61*$AO$1 -> 0 | AP61: ='Optional Adjustment 17'!G61*$AP$1 -> 0 | AQ61: ='Optional Adjustment 18'!G61*$AQ$1 -> 0 | AR61: ='Optional Adjustment 19'!G61*$AR$1 -> 0 | AS61: ='Optional Adjustment 20'!G61*$AS$1 -> 0 | AT61: ='Optional Adjustment 21'!G61*$AT$1 -> 0 | AU61: ='Optional Adjustment 22'!G61*$AU$1 -> 0 | AW61: =SUM(F61:AV61) -> 970573.7392 | AY61: =SUM(AW61:AW61) -> 970573.7392 | AZ61: =+AY61-'ROR-Model'!G61 -> 0
AZ62: =+AY62-'ROR-Model'!G62 -> 0
C63: Supplier Non-Gas Revenue | H63: =H1*Revenue!$S$62 -> 0 | S63: =0*'Transition Costs'!E63*$U$1 -> 0 | T63: ='EDIT Amort Adj'!F63*$U$1 -> 0 | U63: ='EDIT Amort Adj'!G63*$U$1 -> 0 | V63: ='OYF Savings'!G63*$V$1 -> 0 | W63: ='RNGT -NGV Volume'!G71*$W$1 -> 0 | X63: =Pension!G63*$X$1 -> 0 | Y63: ='Optional Adjustment 23'!G63*$Y$1 -> 0 | Z63: ='Optional Adjustment 1'!G63*$Z$1 -> 0 | AA63: ='Optional Adjustment 2'!G63*$AA$1 -> 0 | AB63: ='Optional Adjustment 3'!G63*$AB$1 -> 0 | AC63: ='Optional Adjustment 4'!G63*$AC$1 -> 0 | AD63: ='Optional Adjustment 5'!G63*$AD$1 -> 0 | AE63: ='Optional Adjustment 6'!G63*$AE$1 -> 0 | AF63: ='Optional Adjustment 7'!G63*$AF$1 -> 0 | AG63: ='Optional Adjustment 8'!G63*$AG$1 -> 0 | AH63: ='Optional Adjustment 9'!G63*$AH$1 -> 0 | AI63: ='Optional Adjustment 10'!G63*$AI$1 -> 0 | AJ63: ='Optional Adjustment 11'!G63*$AJ$1 -> 0 | AK63: ='Optional Adjustment 12'!G63*$AK$1 -> 0 | AL63: ='Optional Adjustment 13'!G63*$AL$1 -> 0 | AM63: ='Optional Adjustment 14'!G63*$AM$1 -> 0 | AN63: ='Optional Adjustment 15'!G63*$AN$1 -> 0 | AO63: ='Optional Adjustment 16'!G63*$AO$1 -> 0 | AP63: ='Optional Adjustment 17'!G63*$AP$1 -> 0 | AQ63: ='Optional Adjustment 18'!G63*$AQ$1 -> 0 | AR63: ='Optional Adjustment 19'!G63*$AR$1 -> 0 | AS63: ='Optional Adjustment 20'!G63*$AS$1 -> 0 | AT63: ='Optional Adjustment 21'!G63*$AT$1 -> 0 | AU63: ='Optional Adjustment 22'!G63*$AU$1 -> 0 | AW63: =SUM(F63:AV63) -> 0 | AY63: =SUM(AW63:AW63) -> 0 | AZ63: =+AY63-'ROR-Model'!G63 -> 0
AZ64: =+AY64-'ROR-Model'!G64 -> 0
C65: Commodity Revenue | H65: =H1*Revenue!$S$64 -> 0 | S65: =0*'Transition Costs'!E65*$U$1 -> 0 | T65: ='EDIT Amort Adj'!F65*$U$1 -> 0 | U65: ='EDIT Amort Adj'!G65*$U$1 -> 0 | V65: ='OYF Savings'!G65*$V$1 -> 0 | W65: ='RNGT -NGV Volume'!G73*$W$1 -> 0 | X65: =Pension!G65*$X$1 -> 0 | Y65: ='Optional Adjustment 23'!G65*$Y$1 -> 0 | Z65: ='Optional Adjustment 1'!G65*$Z$1 -> 0 | AA65: ='Optional Adjustment 2'!G65*$AA$1 -> 0 | AB65: ='Optional Adjustment 3'!G65*$AB$1 -> 0 | AC65: ='Optional Adjustment 4'!G65*$AC$1 -> 0 | AD65: ='Optional Adjustment 5'!G65*$AD$1 -> 0 | AE65: ='Optional Adjustment 6'!G65*$AE$1 -> 0 | AF65: ='Optional Adjustment 7'!G65*$AF$1 -> 0 | AG65: ='Optional Adjustment 8'!G65*$AG$1 -> 0 | AH65: ='Optional Adjustment 9'!G65*$AH$1 -> 0 | AI65: ='Optional Adjustment 10'!G65*$AI$1 -> 0 | AJ65: ='Optional Adjustment 11'!G65*$AJ$1 -> 0 | AK65: ='Optional Adjustment 12'!G65*$AK$1 -> 0 | AL65: ='Optional Adjustment 13'!G65*$AL$1 -> 0 | AM65: ='Optional Adjustment 14'!G65*$AM$1 -> 0 | AN65: ='Optional Adjustment 15'!G65*$AN$1 -> 0 | AO65: ='Optional Adjustment 16'!G65*$AO$1 -> 0 | AP65: ='Optional Adjustment 17'!G65*$AP$1 -> 0 | AQ65: ='Optional Adjustment 18'!G65*$AQ$1 -> 0 | AR65: ='Optional Adjustment 19'!G65*$AR$1 -> 0 | AS65: ='Optional Adjustment 20'!G65*$AS$1 -> 0 | AT65: ='Optional Adjustment 21'!G65*$AT$1 -> 0 | AU65: ='Optional Adjustment 22'!G65*$AU$1 -> 0 | AW65: =SUM(F65:AV65) -> 0 | AY65: =SUM(AW65:AW65) -> 0 | AZ65: =+AY65-'ROR-Model'!G65 -> 0
C66: Total Revenue | F66: =SUM(F61:F65) -> 0 | H66: =H1*SUM(H61:H65) -> 371531.9392 | I66: =SUM(I61:I65) -> 0 | J66: =SUM(J61:J65) -> 0 | K66: 0 | L66: 0 | M66: 0 | N66: 0 | O66: 0 | P66: 0 | Q66: =SUM(Q61:Q65) -> 0 | R66: 0 | S66: =SUM(S61:S65) -> 0 | T66: 0 | U66: 0 | V66: 0 | W66: 599041.8 | X66: 0 | Y66: 0 | Z66: =SUM(Z61:Z65) -> 0 | AA66: 0 | AB66: 0 | AC66: 0 | AD66: 0 | AE66: 0 | AF66: 0 | AG66: 0 | AH66: 0 | AI66: 0 | AJ66: =SUM(AJ61:AJ65) -> 0 | AK66: 0 | AL66: 0 | AM66: 0 | AN66: =SUM(AN61:AN65) -> 0 | AO66: 0 | AP66: 0 | AQ66: 0 | AR66: 0 | AS66: =SUM(AS61:AS65) -> 0 | AT66: 0 | AU66: 0 | AW66: =SUM(AW61:AW65) -> 970573.7392 | AY66: =SUM(AY61:AY65) -> 970573.7392 | AZ66: =+AY66-'ROR-Model'!G66 -> 0
AZ67: =+AY67-'ROR-Model'!G67 -> 0
C68: Total Dth | H68: =H1*Revenue!$S$67 -> -11160.59 | W68: ='RNGT -NGV Volume'!G76*$W$1 -> 90000 | AW68: =SUM(F68:AV68) -> 78839.41 | AY68: =SUM(AW68:AW68) -> 78839.41 | AZ68: =+AY68-'ROR-Model'!G68 -> 0
AZ69: =+AY69-'ROR-Model'!G69 -> 0
B70: F-4 | C70: Distribution Non-Gas Rev | S70: =0*'Transition Costs'!E70*$U$1 -> 0 | T70: ='EDIT Amort Adj'!F70*$U$1 -> 0 | U70: ='EDIT Amort Adj'!G70*$U$1 -> 0 | V70: ='OYF Savings'!G70*$V$1 -> 0 | W70: ='RNGT -NGV Volume'!G78*$W$1 -> 0 | X70: =Pension!G70*$X$1 -> 0 | Y70: ='Optional Adjustment 23'!G70*$Y$1 -> 0 | Z70: ='Optional Adjustment 1'!G70*$Z$1 -> 0 | AA70: ='Optional Adjustment 2'!G70*$AA$1 -> 0 | AB70: ='Optional Adjustment 3'!G70*$AB$1 -> 0 | AC70: ='Optional Adjustment 4'!G70*$AC$1 -> 0 | AD70: ='Optional Adjustment 5'!G70*$AD$1 -> 0 | AE70: ='Optional Adjustment 6'!G70*$AE$1 -> 0 | AF70: ='Optional Adjustment 7'!G70*$AF$1 -> 0 | AG70: ='Optional Adjustment 8'!G70*$AG$1 -> 0 | AH70: ='Optional Adjustment 9'!G70*$AH$1 -> 0 | AI70: ='Optional Adjustment 10'!G70*$AI$1 -> 0 | AJ70: ='Optional Adjustment 11'!G70*$AJ$1 -> 0 | AK70: ='Optional Adjustment 12'!G70*$AK$1 -> 0 | AL70: ='Optional Adjustment 13'!G70*$AL$1 -> 0 | AM70: ='Optional Adjustment 14'!G70*$AM$1 -> 0 | AN70: ='Optional Adjustment 15'!G70*$AN$1 -> 0 | AO70: ='Optional Adjustment 16'!G70*$AO$1 -> 0 | AP70: ='Optional Adjustment 17'!G70*$AP$1 -> 0 | AQ70: ='Optional Adjustment 18'!G70*$AQ$1 -> 0 | AR70: ='Optional Adjustment 19'!G70*$AR$1 -> 0 | AS70: ='Optional Adjustment 20'!G70*$AS$1 -> 0 | AT70: ='Optional Adjustment 21'!G70*$AT$1 -> 0 | AU70: ='Optional Adjustment 22'!G70*$AU$1 -> 0 | AW70: =SUM(F70:AV70) -> 0 | AY70: =SUM(AW70:AW70) -> 0 | AZ70: =+AY70-'ROR-Model'!G70 -> 0
AZ71: =+AY71-'ROR-Model'!G71 -> 0
C72: Supplier Non-Gas Revenue | S72: =0*'Transition Costs'!E72*$U$1 -> 0 | T72: ='EDIT Amort Adj'!F72*$U$1 -> 0 | U72: ='EDIT Amort Adj'!G72*$U$1 -> 0 | V72: ='OYF Savings'!G72*$V$1 -> 0 | W72: ='RNGT -NGV Volume'!G80*$W$1 -> 0 | X72: =Pension!G72*$X$1 -> 0 | Y72: ='Optional Adjustment 23'!G72*$Y$1 -> 0 | Z72: ='Optional Adjustment 1'!G72*$Z$1 -> 0 | AA72: ='Optional Adjustment 2'!G72*$AA$1 -> 0 | AB72: ='Optional Adjustment 3'!G72*$AB$1 -> 0 | AC72: ='Optional Adjustment 4'!G72*$AC$1 -> 0 | AD72: ='Optional Adjustment 5'!G72*$AD$1 -> 0 | AE72: ='Optional Adjustment 6'!G72*$AE$1 -> 0 | AF72: ='Optional Adjustment 7'!G72*$AF$1 -> 0 | AG72: ='Optional Adjustment 8'!G72*$AG$1 -> 0 | AH72: ='Optional Adjustment 9'!G72*$AH$1 -> 0 | AI72: ='Optional Adjustment 10'!G72*$AI$1 -> 0 | AJ72: ='Optional Adjustment 11'!G72*$AJ$1 -> 0 | AK72: ='Optional Adjustment 12'!G72*$AK$1 -> 0 | AL72: ='Optional Adjustment 13'!G72*$AL$1 -> 0 | AM72: ='Optional Adjustment 14'!G72*$AM$1 -> 0 | AN72: ='Optional Adjustment 15'!G72*$AN$1 -> 0 | AO72: ='Optional Adjustment 16'!G72*$AO$1 -> 0 | AP72: ='Optional Adjustment 17'!G72*$AP$1 -> 0 | AQ72: ='Optional Adjustment 18'!G72*$AQ$1 -> 0 | AR72: ='Optional Adjustment 19'!G72*$AR$1 -> 0 | AS72: ='Optional Adjustment 20'!G72*$AS$1 -> 0 | AT72: ='Optional Adjustment 21'!G72*$AT$1 -> 0 | AU72: ='Optional Adjustment 22'!G72*$AU$1 -> 0 | AW72: =SUM(F72:AV72) -> 0 | AY72: =SUM(AW72:AW72) -> 0 | AZ72: =+AY72-'ROR-Model'!G72 -> 0
AZ73: =+AY73-'ROR-Model'!G73 -> 0
C74: Commodity Revenue | S74: =0*'Transition Costs'!E74*$U$1 -> 0 | T74: ='EDIT Amort Adj'!F74*$U$1 -> 0 | U74: ='EDIT Amort Adj'!G74*$U$1 -> 0 | V74: ='OYF Savings'!G74*$V$1 -> 0 | W74: ='RNGT -NGV Volume'!G82*$W$1 -> 0 | X74: =Pension!G74*$X$1 -> 0 | Y74: ='Optional Adjustment 23'!G74*$Y$1 -> 0 | Z74: ='Optional Adjustment 1'!G74*$Z$1 -> 0 | AA74: ='Optional Adjustment 2'!G74*$AA$1 -> 0 | AB74: ='Optional Adjustment 3'!G74*$AB$1 -> 0 | AC74: ='Optional Adjustment 4'!G74*$AC$1 -> 0 | AD74: ='Optional Adjustment 5'!G74*$AD$1 -> 0 | AE74: ='Optional Adjustment 6'!G74*$AE$1 -> 0 | AF74: ='Optional Adjustment 7'!G74*$AF$1 -> 0 | AG74: ='Optional Adjustment 8'!G74*$AG$1 -> 0 | AH74: ='Optional Adjustment 9'!G74*$AH$1 -> 0 | AI74: ='Optional Adjustment 10'!G74*$AI$1 -> 0 | AJ74: ='Optional Adjustment 11'!G74*$AJ$1 -> 0 | AK74: ='Optional Adjustment 12'!G74*$AK$1 -> 0 | AL74: ='Optional Adjustment 13'!G74*$AL$1 -> 0 | AM74: ='Optional Adjustment 14'!G74*$AM$1 -> 0 | AN74: ='Optional Adjustment 15'!G74*$AN$1 -> 0 | AO74: ='Optional Adjustment 16'!G74*$AO$1 -> 0 | AP74: ='Optional Adjustment 17'!G74*$AP$1 -> 0 | AQ74: ='Optional Adjustment 18'!G74*$AQ$1 -> 0 | AR74: ='Optional Adjustment 19'!G74*$AR$1 -> 0 | AS74: ='Optional Adjustment 20'!G74*$AS$1 -> 0 | AT74: ='Optional Adjustment 21'!G74*$AT$1 -> 0 | AU74: ='Optional Adjustment 22'!G74*$AU$1 -> 0 | AW74: =SUM(F74:AV74) -> 0 | AY74: =SUM(AW74:AW74) -> 0 | AZ74: =+AY74-'ROR-Model'!G74 -> 0
C75: Total Revenue | F75: =SUM(F70:F74) -> 0 | H75: =H1*SUM(H70:H74) -> 0 | I75: =SUM(I70:I74) -> 0 | J75: =SUM(J70:J74) -> 0 | K75: 0 | L75: 0 | M75: 0 | N75: 0 | O75: 0 | P75: 0 | Q75: =SUM(Q70:Q74) -> 0 | R75: 0 | S75: =SUM(S70:S74) -> 0 | T75: 0 | U75: 0 | V75: 0 | W75: 0 | X75: 0 | Y75: 0 | Z75: =SUM(Z70:Z74) -> 0 | AA75: 0 | AB75: 0 | AC75: 0 | AD75: 0 | AE75: 0 | AF75: 0 | AG75: 0 | AH75: 0 | AI75: 0 | AJ75: =SUM(AJ70:AJ74) -> 0 | AK75: 0 | AL75: 0 | AM75: 0 | AN75: =SUM(AN70:AN74) -> 0 | AO75: 0 | AP75: 0 | AQ75: 0 | AR75: 0 | AS75: =SUM(AS70:AS74) -> 0 | AT75: 0 | AU75: 0 | AW75: =SUM(AW70:AW74) -> 0 | AY75: =SUM(AY70:AY74) -> 0 | AZ75: =+AY75-'ROR-Model'!G75 -> 0
AZ76: =+AY76-'ROR-Model'!G76 -> 0
C77: Total Dth | H77: =H1*Revenue!$S$76 -> 0 | AW77: =SUM(F77:AV77) -> 0 | AY77: =SUM(AW77:AW77) -> 0 | AZ77: =+AY77-'ROR-Model'!G77 -> 0
AZ78: =+AY78-'ROR-Model'!G78 -> 0
B79: I-2 | C79: Distribution Non-Gas Rev | H79: =H1*Revenue!$S$78 -> 0 | S79: =0*'Transition Costs'!E79*$U$1 -> 0 | T79: ='EDIT Amort Adj'!F79*$U$1 -> 0 | U79: ='EDIT Amort Adj'!G79*$U$1 -> 0 | V79: ='OYF Savings'!G79*$V$1 -> 0 | W79: ='RNGT -NGV Volume'!G87*$W$1 -> 0 | X79: =Pension!G79*$X$1 -> 0 | Y79: ='Optional Adjustment 23'!G79*$Y$1 -> 0 | Z79: ='Optional Adjustment 1'!G79*$Z$1 -> 0 | AA79: ='Optional Adjustment 2'!G79*$AA$1 -> 0 | AB79: ='Optional Adjustment 3'!G79*$AB$1 -> 0 | AC79: ='Optional Adjustment 4'!G79*$AC$1 -> 0 | AD79: ='Optional Adjustment 5'!G79*$AD$1 -> 0 | AE79: ='Optional Adjustment 6'!G79*$AE$1 -> 0 | AF79: ='Optional Adjustment 7'!G79*$AF$1 -> 0 | AG79: ='Optional Adjustment 8'!G79*$AG$1 -> 0 | AH79: ='Optional Adjustment 9'!G79*$AH$1 -> 0 | AI79: ='Optional Adjustment 10'!G79*$AI$1 -> 0 | AJ79: ='Optional Adjustment 11'!G79*$AJ$1 -> 0 | AK79: ='Optional Adjustment 12'!G79*$AK$1 -> 0 | AL79: ='Optional Adjustment 13'!G79*$AL$1 -> 0 | AM79: ='Optional Adjustment 14'!G79*$AM$1 -> 0 | AN79: ='Optional Adjustment 15'!G79*$AN$1 -> 0 | AO79: ='Optional Adjustment 16'!G79*$AO$1 -> 0 | AP79: ='Optional Adjustment 17'!G79*$AP$1 -> 0 | AQ79: ='Optional Adjustment 18'!G79*$AQ$1 -> 0 | AR79: ='Optional Adjustment 19'!G79*$AR$1 -> 0 | AS79: ='Optional Adjustment 20'!G79*$AS$1 -> 0 | AT79: ='Optional Adjustment 21'!G79*$AT$1 -> 0 | AU79: ='Optional Adjustment 22'!G79*$AU$1 -> 0 | AW79: =SUM(F79:AV79) -> 0 | AY79: =SUM(AW79:AW79) -> 0 | AZ79: =+AY79-'ROR-Model'!G79 -> 0
AZ80: =+AY80-'ROR-Model'!G80 -> 0
C81: Supplier Non-Gas Revenue | H81: =H1*Revenue!$S$80 -> 0 | S81: =0*'Transition Costs'!E81*$U$1 -> 0 | T81: ='EDIT Amort Adj'!F81*$U$1 -> 0 | U81: ='EDIT Amort Adj'!G81*$U$1 -> 0 | V81: ='OYF Savings'!G81*$V$1 -> 0 | W81: ='RNGT -NGV Volume'!G89*$W$1 -> 0 | X81: =Pension!G81*$X$1 -> 0 | Y81: ='Optional Adjustment 23'!G81*$Y$1 -> 0 | Z81: ='Optional Adjustment 1'!G81*$Z$1 -> 0 | AA81: ='Optional Adjustment 2'!G81*$AA$1 -> 0 | AB81: ='Optional Adjustment 3'!G81*$AB$1 -> 0 | AC81: ='Optional Adjustment 4'!G81*$AC$1 -> 0 | AD81: ='Optional Adjustment 5'!G81*$AD$1 -> 0 | AE81: ='Optional Adjustment 6'!G81*$AE$1 -> 0 | AF81: ='Optional Adjustment 7'!G81*$AF$1 -> 0 | AG81: ='Optional Adjustment 8'!G81*$AG$1 -> 0 | AH81: ='Optional Adjustment 9'!G81*$AH$1 -> 0 | AI81: ='Optional Adjustment 10'!G81*$AI$1 -> 0 | AJ81: ='Optional Adjustment 11'!G81*$AJ$1 -> 0 | AK81: ='Optional Adjustment 12'!G81*$AK$1 -> 0 | AL81: ='Optional Adjustment 13'!G81*$AL$1 -> 0 | AM81: ='Optional Adjustment 14'!G81*$AM$1 -> 0 | AN81: ='Optional Adjustment 15'!G81*$AN$1 -> 0 | AO81: ='Optional Adjustment 16'!G81*$AO$1 -> 0 | AP81: ='Optional Adjustment 17'!G81*$AP$1 -> 0 | AQ81: ='Optional Adjustment 18'!G81*$AQ$1 -> 0 | AR81: ='Optional Adjustment 19'!G81*$AR$1 -> 0 | AS81: ='Optional Adjustment 20'!G81*$AS$1 -> 0 | AT81: ='Optional Adjustment 21'!G81*$AT$1 -> 0 | AU81: ='Optional Adjustment 22'!G81*$AU$1 -> 0 | AW81: =SUM(F81:AV81) -> 0 | AY81: =SUM(AW81:AW81) -> 0 | AZ81: =+AY81-'ROR-Model'!G81 -> 0
AZ82: =+AY82-'ROR-Model'!G82 -> 0
C83: Commodity Revenue | H83: =H1*Revenue!$S$82 -> 0 | S83: =0*'Transition Costs'!E83*$U$1 -> 0 | T83: ='EDIT Amort Adj'!F83*$U$1 -> 0 | U83: ='EDIT Amort Adj'!G83*$U$1 -> 0 | V83: ='OYF Savings'!G83*$V$1 -> 0 | W83: ='RNGT -NGV Volume'!G91*$W$1 -> 0 | X83: =Pension!G83*$X$1 -> 0 | Y83: ='Optional Adjustment 23'!G83*$Y$1 -> 0 | Z83: ='Optional Adjustment 1'!G83*$Z$1 -> 0 | AA83: ='Optional Adjustment 2'!G83*$AA$1 -> 0 | AB83: ='Optional Adjustment 3'!G83*$AB$1 -> 0 | AC83: ='Optional Adjustment 4'!G83*$AC$1 -> 0 | AD83: ='Optional Adjustment 5'!G83*$AD$1 -> 0 | AE83: ='Optional Adjustment 6'!G83*$AE$1 -> 0 | AF83: ='Optional Adjustment 7'!G83*$AF$1 -> 0 | AG83: ='Optional Adjustment 8'!G83*$AG$1 -> 0 | AH83: ='Optional Adjustment 9'!G83*$AH$1 -> 0 | AI83: ='Optional Adjustment 10'!G83*$AI$1 -> 0 | AJ83: ='Optional Adjustment 11'!G83*$AJ$1 -> 0 | AK83: ='Optional Adjustment 12'!G83*$AK$1 -> 0 | AL83: ='Optional Adjustment 13'!G83*$AL$1 -> 0 | AM83: ='Optional Adjustment 14'!G83*$AM$1 -> 0 | AN83: ='Optional Adjustment 15'!G83*$AN$1 -> 0 | AO83: ='Optional Adjustment 16'!G83*$AO$1 -> 0 | AP83: ='Optional Adjustment 17'!G83*$AP$1 -> 0 | AQ83: ='Optional Adjustment 18'!G83*$AQ$1 -> 0 | AR83: ='Optional Adjustment 19'!G83*$AR$1 -> 0 | AS83: ='Optional Adjustment 20'!G83*$AS$1 -> 0 | AT83: ='Optional Adjustment 21'!G83*$AT$1 -> 0 | AU83: ='Optional Adjustment 22'!G83*$AU$1 -> 0 | AW83: =SUM(F83:AV83) -> 0 | AY83: =SUM(AW83:AW83) -> 0 | AZ83: =+AY83-'ROR-Model'!G83 -> 0
C84: Total Revenue | F84: =SUM(F79:F83) -> 0 | H84: =H1*SUM(H79:H83) -> 0 | I84: =SUM(I79:I83) -> 0 | J84: =SUM(J79:J83) -> 0 | K84: 0 | L84: 0 | M84: 0 | N84: 0 | O84: 0 | P84: 0 | Q84: =SUM(Q79:Q83) -> 0 | R84: 0 | S84: =SUM(S79:S83) -> 0 | T84: 0 | U84: 0 | V84: 0 | W84: 0 | X84: 0 | Y84: 0 | Z84: =SUM(Z79:Z83) -> 0 | AA84: 0 | AB84: 0 | AC84: 0 | AD84: 0 | AE84: 0 | AF84: 0 | AG84: 0 | AH84: 0 | AI84: 0 | AJ84: =SUM(AJ79:AJ83) -> 0 | AK84: 0 | AL84: 0 | AM84: 0 | AN84: =SUM(AN79:AN83) -> 0 | AO84: 0 | AP84: 0 | AQ84: 0 | AR84: 0 | AS84: =SUM(AS79:AS83) -> 0 | AT84: 0 | AU84: 0 | AW84: =SUM(AW79:AW83) -> 0 | AY84: =SUM(AY79:AY83) -> 0 | AZ84: =+AY84-'ROR-Model'!G84 -> 0
AZ85: =+AY85-'ROR-Model'!G85 -> 0
C86: Total Dth | H86: =H1*Revenue!$S$85 -> 0 | AW86: =SUM(F86:AV86) -> 0 | AY86: =SUM(AW86:AW86) -> 0 | AZ86: =+AY86-'ROR-Model'!G86 -> 0
AZ87: =+AY87-'ROR-Model'!G87 -> 0
B88: I-4 | C88: Distribution Non-Gas Rev | H88: =H1*Revenue!$S$87 -> 0 | S88: =0*'Transition Costs'!E88*$U$1 -> 0 | T88: ='EDIT Amort Adj'!F88*$U$1 -> 0 | U88: ='EDIT Amort Adj'!G88*$U$1 -> 0 | V88: ='OYF Savings'!G88*$V$1 -> 0 | W88: ='RNGT -NGV Volume'!G96*$W$1 -> 0 | X88: =Pension!G88*$X$1 -> 0 | Y88: ='Optional Adjustment 23'!G88*$Y$1 -> 0 | Z88: ='Optional Adjustment 1'!G88*$Z$1 -> 0 | AA88: ='Optional Adjustment 2'!G88*$AA$1 -> 0 | AB88: ='Optional Adjustment 3'!G88*$AB$1 -> 0 | AC88: ='Optional Adjustment 4'!G88*$AC$1 -> 0 | AD88: ='Optional Adjustment 5'!G88*$AD$1 -> 0 | AE88: ='Optional Adjustment 6'!G88*$AE$1 -> 0 | AF88: ='Optional Adjustment 7'!G88*$AF$1 -> 0 | AG88: ='Optional Adjustment 8'!G88*$AG$1 -> 0 | AH88: ='Optional Adjustment 9'!G88*$AH$1 -> 0 | AI88: ='Optional Adjustment 10'!G88*$AI$1 -> 0 | AJ88: ='Optional Adjustment 11'!G88*$AJ$1 -> 0 | AK88: ='Optional Adjustment 12'!G88*$AK$1 -> 0 | AL88: ='Optional Adjustment 13'!G88*$AL$1 -> 0 | AM88: ='Optional Adjustment 14'!G88*$AM$1 -> 0 | AN88: ='Optional Adjustment 15'!G88*$AN$1 -> 0 | AO88: ='Optional Adjustment 16'!G88*$AO$1 -> 0 | AP88: ='Optional Adjustment 17'!G88*$AP$1 -> 0 | AQ88: ='Optional Adjustment 18'!G88*$AQ$1 -> 0 | AR88: ='Optional Adjustment 19'!G88*$AR$1 -> 0 | AS88: ='Optional Adjustment 20'!G88*$AS$1 -> 0 | AT88: ='Optional Adjustment 21'!G88*$AT$1 -> 0 | AU88: ='Optional Adjustment 22'!G88*$AU$1 -> 0 | AW88: =SUM(F88:AV88) -> 0 | AY88: =SUM(AW88:AW88) -> 0 | AZ88: =+AY88-'ROR-Model'!G88 -> 0
AZ89: =+AY89-'ROR-Model'!G89 -> 0
C90: Supplier Non-Gas Revenue | H90: =H1*Revenue!$S$89 -> 0 | S90: =0*'Transition Costs'!E90*$U$1 -> 0 | T90: ='EDIT Amort Adj'!F90*$U$1 -> 0 | U90: ='EDIT Amort Adj'!G90*$U$1 -> 0 | V90: ='OYF Savings'!G90*$V$1 -> 0 | W90: ='RNGT -NGV Volume'!G98*$W$1 -> 0 | X90: =Pension!G90*$X$1 -> 0 | Y90: ='Optional Adjustment 23'!G90*$Y$1 -> 0 | Z90: ='Optional Adjustment 1'!G90*$Z$1 -> 0 | AA90: ='Optional Adjustment 2'!G90*$AA$1 -> 0 | AB90: ='Optional Adjustment 3'!G90*$AB$1 -> 0 | AC90: ='Optional Adjustment 4'!G90*$AC$1 -> 0 | AD90: ='Optional Adjustment 5'!G90*$AD$1 -> 0 | AE90: ='Optional Adjustment 6'!G90*$AE$1 -> 0 | AF90: ='Optional Adjustment 7'!G90*$AF$1 -> 0 | AG90: ='Optional Adjustment 8'!G90*$AG$1 -> 0 | AH90: ='Optional Adjustment 9'!G90*$AH$1 -> 0 | AI90: ='Optional Adjustment 10'!G90*$AI$1 -> 0 | AJ90: ='Optional Adjustment 11'!G90*$AJ$1 -> 0 | AK90: ='Optional Adjustment 12'!G90*$AK$1 -> 0 | AL90: ='Optional Adjustment 13'!G90*$AL$1 -> 0 | AM90: ='Optional Adjustment 14'!G90*$AM$1 -> 0 | AN90: ='Optional Adjustment 15'!G90*$AN$1 -> 0 | AO90: ='Optional Adjustment 16'!G90*$AO$1 -> 0 | AP90: ='Optional Adjustment 17'!G90*$AP$1 -> 0 | AQ90: ='Optional Adjustment 18'!G90*$AQ$1 -> 0 | AR90: ='Optional Adjustment 19'!G90*$AR$1 -> 0 | AS90: ='Optional Adjustment 20'!G90*$AS$1 -> 0 | AT90: ='Optional Adjustment 21'!G90*$AT$1 -> 0 | AU90: ='Optional Adjustment 22'!G90*$AU$1 -> 0 | AW90: =SUM(F90:AV90) -> 0 | AY90: =SUM(AW90:AW90) -> 0 | AZ90: =+AY90-'ROR-Model'!G90 -> 0
AZ91: =+AY91-'ROR-Model'!G91 -> 0
C92: Commodity Revenue | H92: =H1*Revenue!$S$91 -> 0 | S92: =0*'Transition Costs'!E92*$U$1 -> 0 | T92: ='EDIT Amort Adj'!F92*$U$1 -> 0 | U92: ='EDIT Amort Adj'!G92*$U$1 -> 0 | V92: ='OYF Savings'!G92*$V$1 -> 0 | W92: ='RNGT -NGV Volume'!G100*$W$1 -> 0 | X92: =Pension!G92*$X$1 -> 0 | Y92: ='Optional Adjustment 23'!G92*$Y$1 -> 0 | Z92: ='Optional Adjustment 1'!G92*$Z$1 -> 0 | AA92: ='Optional Adjustment 2'!G92*$AA$1 -> 0 | AB92: ='Optional Adjustment 3'!G92*$AB$1 -> 0 | AC92: ='Optional Adjustment 4'!G92*$AC$1 -> 0 | AD92: ='Optional Adjustment 5'!G92*$AD$1 -> 0 | AE92: ='Optional Adjustment 6'!G92*$AE$1 -> 0 | AF92: ='Optional Adjustment 7'!G92*$AF$1 -> 0 | AG92: ='Optional Adjustment 8'!G92*$AG$1 -> 0 | AH92: ='Optional Adjustment 9'!G92*$AH$1 -> 0 | AI92: ='Optional Adjustment 10'!G92*$AI$1 -> 0 | AJ92: ='Optional Adjustment 11'!G92*$AJ$1 -> 0 | AK92: ='Optional Adjustment 12'!G92*$AK$1 -> 0 | AL92: ='Optional Adjustment 13'!G92*$AL$1 -> 0 | AM92: ='Optional Adjustment 14'!G92*$AM$1 -> 0 | AN92: ='Optional Adjustment 15'!G92*$AN$1 -> 0 | AO92: ='Optional Adjustment 16'!G92*$AO$1 -> 0 | AP92: ='Optional Adjustment 17'!G92*$AP$1 -> 0 | AQ92: ='Optional Adjustment 18'!G92*$AQ$1 -> 0 | AR92: ='Optional Adjustment 19'!G92*$AR$1 -> 0 | AS92: ='Optional Adjustment 20'!G92*$AS$1 -> 0 | AT92: ='Optional Adjustment 21'!G92*$AT$1 -> 0 | AU92: ='Optional Adjustment 22'!G92*$AU$1 -> 0 | AW92: =SUM(F92:AV92) -> 0 | AY92: =SUM(AW92:AW92) -> 0 | AZ92: =+AY92-'ROR-Model'!G92 -> 0
C93: Total Revenue | F93: =SUM(F88:F92) -> 0 | H93: =H1*SUM(H88:H92) -> 0 | I93: =SUM(I88:I92) -> 0 | J93: =SUM(J88:J92) -> 0 | K93: 0 | L93: 0 | M93: 0 | N93: 0 | O93: 0 | P93: 0 | Q93: =SUM(Q88:Q92) -> 0 | R93: 0 | S93: =SUM(S88:S92) -> 0 | T93: 0 | U93: 0 | V93: 0 | W93: 0 | X93: 0 | Y93: 0 | Z93: =SUM(Z88:Z92) -> 0 | AA93: 0 | AB93: 0 | AC93: 0 | AD93: 0 | AE93: 0 | AF93: 0 | AG93: 0 | AH93: 0 | AI93: 0 | AJ93: =SUM(AJ88:AJ92) -> 0 | AK93: 0 | AL93: 0 | AM93: 0 | AN93: =SUM(AN88:AN92) -> 0 | AO93: 0 | AP93: 0 | AQ93: 0 | AR93: 0 | AS93: =SUM(AS88:AS92) -> 0 | AT93: 0 | AU93: 0 | AW93: =SUM(AW88:AW92) -> 0 | AY93: =SUM(AY88:AY92) -> 0 | AZ93: =+AY93-'ROR-Model'!G93 -> 0
AZ94: =+AY94-'ROR-Model'!G94 -> 0
C95: Total Dth | H95: =H1*Revenue!$S$94 -> 0 | AW95: =SUM(F95:AV95) -> 0 | AY95: =SUM(AW95:AW95) -> 0 | AZ95: =+AY95-'ROR-Model'!G95 -> 0
AZ96: =+AY96-'ROR-Model'!G96 -> 0
B97: IS_IS-2 | C97: Distribution Non-Gas Rev | H97: =H1*Revenue!$S$96 -> -17376.61238 | S97: =0*'Transition Costs'!E97*$U$1 -> 0 | T97: ='EDIT Amort Adj'!F97*$U$1 -> 0 | U97: ='EDIT Amort Adj'!G97*$U$1 -> 0 | V97: ='OYF Savings'!G97*$V$1 -> 0 | W97: ='RNGT -NGV Volume'!G105*$W$1 -> 0 | X97: =Pension!G97*$X$1 -> 0 | Y97: ='Optional Adjustment 23'!G97*$Y$1 -> 0 | Z97: ='Optional Adjustment 1'!G97*$Z$1 -> 0 | AA97: ='Optional Adjustment 2'!G97*$AA$1 -> 0 | AB97: ='Optional Adjustment 3'!G97*$AB$1 -> 0 | AC97: ='Optional Adjustment 4'!G97*$AC$1 -> 0 | AD97: ='Optional Adjustment 5'!G97*$AD$1 -> 0 | AE97: ='Optional Adjustment 6'!G97*$AE$1 -> 0 | AF97: ='Optional Adjustment 7'!G97*$AF$1 -> 0 | AG97: ='Optional Adjustment 8'!G97*$AG$1 -> 0 | AH97: ='Optional Adjustment 9'!G97*$AH$1 -> 0 | AI97: ='Optional Adjustment 10'!G97*$AI$1 -> 0 | AJ97: ='Optional Adjustment 11'!G97*$AJ$1 -> 0 | AK97: ='Optional Adjustment 12'!G97*$AK$1 -> 0 | AL97: ='Optional Adjustment 13'!G97*$AL$1 -> 0 | AM97: ='Optional Adjustment 14'!G97*$AM$1 -> 0 | AN97: ='Optional Adjustment 15'!G97*$AN$1 -> 0 | AO97: ='Optional Adjustment 16'!G97*$AO$1 -> 0 | AP97: ='Optional Adjustment 17'!G97*$AP$1 -> 0 | AQ97: ='Optional Adjustment 18'!G97*$AQ$1 -> 0 | AR97: ='Optional Adjustment 19'!G97*$AR$1 -> 0 | AS97: ='Optional Adjustment 20'!G97*$AS$1 -> 0 | AT97: ='Optional Adjustment 21'!G97*$AT$1 -> 0 | AU97: ='Optional Adjustment 22'!G97*$AU$1 -> 0 | AW97: =SUM(F97:AV97) -> -17376.61238 | AY97: =SUM(AW97:AW97) -> -17376.61238 | AZ97: =+AY97-'ROR-Model'!G97 -> 0
AZ98: =+AY98-'ROR-Model'!G98 -> 0
C99: Supplier Non-Gas Revenue | H99: =H1*Revenue!$S$98 -> -18461.56 | S99: =0*'Transition Costs'!E99*$U$1 -> 0 | T99: ='EDIT Amort Adj'!F99*$U$1 -> 0 | U99: ='EDIT Amort Adj'!G99*$U$1 -> 0 | V99: ='OYF Savings'!G99*$V$1 -> 0 | W99: ='RNGT -NGV Volume'!G107*$W$1 -> 0 | X99: =Pension!G99*$X$1 -> 0 | Y99: ='Optional Adjustment 23'!G99*$Y$1 -> 0 | Z99: ='Optional Adjustment 1'!G99*$Z$1 -> 0 | AA99: ='Optional Adjustment 2'!G99*$AA$1 -> 0 | AB99: ='Optional Adjustment 3'!G99*$AB$1 -> 0 | AC99: ='Optional Adjustment 4'!G99*$AC$1 -> 0 | AD99: ='Optional Adjustment 5'!G99*$AD$1 -> 0 | AE99: ='Optional Adjustment 6'!G99*$AE$1 -> 0 | AF99: ='Optional Adjustment 7'!G99*$AF$1 -> 0 | AG99: ='Optional Adjustment 8'!G99*$AG$1 -> 0 | AH99: ='Optional Adjustment 9'!G99*$AH$1 -> 0 | AI99: ='Optional Adjustment 10'!G99*$AI$1 -> 0 | AJ99: ='Optional Adjustment 11'!G99*$AJ$1 -> 0 | AK99: ='Optional Adjustment 12'!G99*$AK$1 -> 0 | AL99: ='Optional Adjustment 13'!G99*$AL$1 -> 0 | AM99: ='Optional Adjustment 14'!G99*$AM$1 -> 0 | AN99: ='Optional Adjustment 15'!G99*$AN$1 -> 0 | AO99: ='Optional Adjustment 16'!G99*$AO$1 -> 0 | AP99: ='Optional Adjustment 17'!G99*$AP$1 -> 0 | AQ99: ='Optional Adjustment 18'!G99*$AQ$1 -> 0 | AR99: ='Optional Adjustment 19'!G99*$AR$1 -> 0 | AS99: ='Optional Adjustment 20'!G99*$AS$1 -> 0 | AT99: ='Optional Adjustment 21'!G99*$AT$1 -> 0 | AU99: ='Optional Adjustment 22'!G99*$AU$1 -> 0 | AW99: =SUM(F99:AV99) -> -18461.56 | AY99: =SUM(AW99:AW99) -> -18461.56 | AZ99: =+AY99-'ROR-Model'!G99 -> 0
AZ100: =+AY100-'ROR-Model'!G100 -> 0
C101: Commodity Revenue | H101: =H1*Revenue!$S$100 -> -489340.07 | S101: =0*'Transition Costs'!E101*$U$1 -> 0 | T101: ='EDIT Amort Adj'!F101*$U$1 -> 0 | U101: ='EDIT Amort Adj'!G101*$U$1 -> 0 | V101: ='OYF Savings'!G101*$V$1 -> 0 | W101: ='RNGT -NGV Volume'!G109*$W$1 -> 0 | X101: =Pension!G101*$X$1 -> 0 | Y101: ='Optional Adjustment 23'!G101*$Y$1 -> 0 | Z101: ='Optional Adjustment 1'!G101*$Z$1 -> 0 | AA101: ='Optional Adjustment 2'!G101*$AA$1 -> 0 | AB101: ='Optional Adjustment 3'!G101*$AB$1 -> 0 | AC101: ='Optional Adjustment 4'!G101*$AC$1 -> 0 | AD101: ='Optional Adjustment 5'!G101*$AD$1 -> 0 | AE101: ='Optional Adjustment 6'!G101*$AE$1 -> 0 | AF101: ='Optional Adjustment 7'!G101*$AF$1 -> 0 | AG101: ='Optional Adjustment 8'!G101*$AG$1 -> 0 | AH101: ='Optional Adjustment 9'!G101*$AH$1 -> 0 | AI101: ='Optional Adjustment 10'!G101*$AI$1 -> 0 | AJ101: ='Optional Adjustment 11'!G101*$AJ$1 -> 0 | AK101: ='Optional Adjustment 12'!G101*$AK$1 -> 0 | AL101: ='Optional Adjustment 13'!G101*$AL$1 -> 0 | AM101: ='Optional Adjustment 14'!G101*$AM$1 -> 0 | AN101: ='Optional Adjustment 15'!G101*$AN$1 -> 0 | AO101: ='Optional Adjustment 16'!G101*$AO$1 -> 0 | AP101: ='Optional Adjustment 17'!G101*$AP$1 -> 0 | AQ101: ='Optional Adjustment 18'!G101*$AQ$1 -> 0 | AR101: ='Optional Adjustment 19'!G101*$AR$1 -> 0 | AS101: ='Optional Adjustment 20'!G101*$AS$1 -> 0 | AT101: ='Optional Adjustment 21'!G101*$AT$1 -> 0 | AU101: ='Optional Adjustment 22'!G101*$AU$1 -> 0 | AW101: =SUM(F101:AV101) -> -489340.07 | AY101: =SUM(AW101:AW101) -> -489340.07 | AZ101: =+AY101-'ROR-Model'!G101 -> 0
C102: Total Revenue | F102: =SUM(F97:F101) -> 0 | H102: =H1*SUM(H97:H101) -> -525178.2424 | I102: =SUM(I97:I101) -> 0 | J102: =SUM(J97:J101) -> 0 | K102: 0 | L102: 0 | M102: 0 | N102: 0 | O102: 0 | P102: 0 | Q102: =SUM(Q97:Q101) -> 0 | R102: 0 | S102: =SUM(S97:S101) -> 0 | T102: 0 | U102: 0 | V102: 0 | W102: 0 | X102: 0 | Y102: 0 | Z102: =SUM(Z97:Z101) -> 0 | AA102: 0 | AB102: 0 | AC102: 0 | AD102: 0 | AE102: 0 | AF102: 0 | AG102: 0 | AH102: 0 | AI102: 0 | AJ102: =SUM(AJ97:AJ101) -> 0 | AK102: 0 | AL102: 0 | AM102: 0 | AN102: =SUM(AN97:AN101) -> 0 | AO102: 0 | AP102: 0 | AQ102: 0 | AR102: 0 | AS102: =SUM(AS97:AS101) -> 0 | AT102: 0 | AU102: 0 | AW102: =SUM(AW97:AW101) -> -525178.2424 | AY102: =SUM(AY97:AY101) -> -525178.2424 | AZ102: =+AY102-'ROR-Model'!G102 -> 0
AZ103: =+AY103-'ROR-Model'!G103 -> 0
C104: Total Dth | H104: =H1*Revenue!$S$103 -> -104565.26 | AW104: =SUM(F104:AV104) -> -104565.26 | AY104: =SUM(AW104:AW104) -> -104565.26 | AZ104: =+AY104-'ROR-Model'!G104 -> 0
AZ105: =+AY105-'ROR-Model'!G105 -> 0
B106: IS-4 | C106: Distribution Non-Gas Rev | H106: =H1*Revenue!$S$105 -> 0 | S106: =0*'Transition Costs'!E106*$U$1 -> 0 | T106: ='EDIT Amort Adj'!F106*$U$1 -> 0 | U106: ='EDIT Amort Adj'!G106*$U$1 -> 0 | V106: ='OYF Savings'!G106*$V$1 -> 0 | W106: ='RNGT -NGV Volume'!G114*$W$1 -> 0 | X106: =Pension!G106*$X$1 -> 0 | Y106: ='Optional Adjustment 23'!G106*$Y$1 -> 0 | Z106: ='Optional Adjustment 1'!G106*$Z$1 -> 0 | AA106: ='Optional Adjustment 2'!G106*$AA$1 -> 0 | AB106: ='Optional Adjustment 3'!G106*$AB$1 -> 0 | AC106: ='Optional Adjustment 4'!G106*$AC$1 -> 0 | AD106: ='Optional Adjustment 5'!G106*$AD$1 -> 0 | AE106: ='Optional Adjustment 6'!G106*$AE$1 -> 0 | AF106: ='Optional Adjustment 7'!G106*$AF$1 -> 0 | AG106: ='Optional Adjustment 8'!G106*$AG$1 -> 0 | AH106: ='Optional Adjustment 9'!G106*$AH$1 -> 0 | AI106: ='Optional Adjustment 10'!G106*$AI$1 -> 0 | AJ106: ='Optional Adjustment 11'!G106*$AJ$1 -> 0 | AK106: ='Optional Adjustment 12'!G106*$AK$1 -> 0 | AL106: ='Optional Adjustment 13'!G106*$AL$1 -> 0 | AM106: ='Optional Adjustment 14'!G106*$AM$1 -> 0 | AN106: ='Optional Adjustment 15'!G106*$AN$1 -> 0 | AO106: ='Optional Adjustment 16'!G106*$AO$1 -> 0 | AP106: ='Optional Adjustment 17'!G106*$AP$1 -> 0 | AQ106: ='Optional Adjustment 18'!G106*$AQ$1 -> 0 | AR106: ='Optional Adjustment 19'!G106*$AR$1 -> 0 | AS106: ='Optional Adjustment 20'!G106*$AS$1 -> 0 | AT106: ='Optional Adjustment 21'!G106*$AT$1 -> 0 | AU106: ='Optional Adjustment 22'!G106*$AU$1 -> 0 | AW106: =SUM(F106:AV106) -> 0 | AY106: =SUM(AW106:AW106) -> 0 | AZ106: =+AY106-'ROR-Model'!G106 -> 0
AZ107: =+AY107-'ROR-Model'!G107 -> 0
C108: Supplier Non-Gas Revenue | H108: =H1*Revenue!$S$107 -> 0 | S108: =0*'Transition Costs'!E108*$U$1 -> 0 | T108: ='EDIT Amort Adj'!F108*$U$1 -> 0 | U108: ='EDIT Amort Adj'!G108*$U$1 -> 0 | V108: ='OYF Savings'!G108*$V$1 -> 0 | W108: ='RNGT -NGV Volume'!G116*$W$1 -> 0 | X108: =Pension!G108*$X$1 -> 0 | Y108: ='Optional Adjustment 23'!G108*$Y$1 -> 0 | Z108: ='Optional Adjustment 1'!G108*$Z$1 -> 0 | AA108: ='Optional Adjustment 2'!G108*$AA$1 -> 0 | AB108: ='Optional Adjustment 3'!G108*$AB$1 -> 0 | AC108: ='Optional Adjustment 4'!G108*$AC$1 -> 0 | AD108: ='Optional Adjustment 5'!G108*$AD$1 -> 0 | AE108: ='Optional Adjustment 6'!G108*$AE$1 -> 0 | AF108: ='Optional Adjustment 7'!G108*$AF$1 -> 0 | AG108: ='Optional Adjustment 8'!G108*$AG$1 -> 0 | AH108: ='Optional Adjustment 9'!G108*$AH$1 -> 0 | AI108: ='Optional Adjustment 10'!G108*$AI$1 -> 0 | AJ108: ='Optional Adjustment 11'!G108*$AJ$1 -> 0 | AK108: ='Optional Adjustment 12'!G108*$AK$1 -> 0 | AL108: ='Optional Adjustment 13'!G108*$AL$1 -> 0 | AM108: ='Optional Adjustment 14'!G108*$AM$1 -> 0 | AN108: ='Optional Adjustment 15'!G108*$AN$1 -> 0 | AO108: ='Optional Adjustment 16'!G108*$AO$1 -> 0 | AP108: ='Optional Adjustment 17'!G108*$AP$1 -> 0 | AQ108: ='Optional Adjustment 18'!G108*$AQ$1 -> 0 | AR108: ='Optional Adjustment 19'!G108*$AR$1 -> 0 | AS108: ='Optional Adjustment 20'!G108*$AS$1 -> 0 | AT108: ='Optional Adjustment 21'!G108*$AT$1 -> 0 | AU108: ='Optional Adjustment 22'!G108*$AU$1 -> 0 | AW108: =SUM(F108:AV108) -> 0 | AY108: =SUM(AW108:AW108) -> 0 | AZ108: =+AY108-'ROR-Model'!G108 -> 0
AZ109: =+AY109-'ROR-Model'!G109 -> 0
C110: Commodity Revenue | H110: =H1*Revenue!$S$109 -> 0 | S110: =0*'Transition Costs'!E110*$U$1 -> 0 | T110: ='EDIT Amort Adj'!F110*$U$1 -> 0 | U110: ='EDIT Amort Adj'!G110*$U$1 -> 0 | V110: ='OYF Savings'!G110*$V$1 -> 0 | W110: ='RNGT -NGV Volume'!G118*$W$1 -> 0 | X110: =Pension!G110*$X$1 -> 0 | Y110: ='Optional Adjustment 23'!G110*$Y$1 -> 0 | Z110: ='Optional Adjustment 1'!G110*$Z$1 -> 0 | AA110: ='Optional Adjustment 2'!G110*$AA$1 -> 0 | AB110: ='Optional Adjustment 3'!G110*$AB$1 -> 0 | AC110: ='Optional Adjustment 4'!G110*$AC$1 -> 0 | AD110: ='Optional Adjustment 5'!G110*$AD$1 -> 0 | AE110: ='Optional Adjustment 6'!G110*$AE$1 -> 0 | AF110: ='Optional Adjustment 7'!G110*$AF$1 -> 0 | AG110: ='Optional Adjustment 8'!G110*$AG$1 -> 0 | AH110: ='Optional Adjustment 9'!G110*$AH$1 -> 0 | AI110: ='Optional Adjustment 10'!G110*$AI$1 -> 0 | AJ110: ='Optional Adjustment 11'!G110*$AJ$1 -> 0 | AK110: ='Optional Adjustment 12'!G110*$AK$1 -> 0 | AL110: ='Optional Adjustment 13'!G110*$AL$1 -> 0 | AM110: ='Optional Adjustment 14'!G110*$AM$1 -> 0 | AN110: ='Optional Adjustment 15'!G110*$AN$1 -> 0 | AO110: ='Optional Adjustment 16'!G110*$AO$1 -> 0 | AP110: ='Optional Adjustment 17'!G110*$AP$1 -> 0 | AQ110: ='Optional Adjustment 18'!G110*$AQ$1 -> 0 | AR110: ='Optional Adjustment 19'!G110*$AR$1 -> 0 | AS110: ='Optional Adjustment 20'!G110*$AS$1 -> 0 | AT110: ='Optional Adjustment 21'!G110*$AT$1 -> 0 | AU110: ='Optional Adjustment 22'!G110*$AU$1 -> 0 | AW110: =SUM(F110:AV110) -> 0 | AY110: =SUM(AW110:AW110) -> 0 | AZ110: =+AY110-'ROR-Model'!G110 -> 0
C111: Total Revenue | F111: =SUM(F106:F110) -> 0 | H111: =H1*SUM(H106:H110) -> 0 | I111: =SUM(I106:I110) -> 0 | J111: =SUM(J106:J110) -> 0 | K111: 0 | L111: 0 | M111: 0 | N111: 0 | O111: 0 | P111: 0 | Q111: =SUM(Q106:Q110) -> 0 | R111: 0 | S111: =SUM(S106:S110) -> 0 | T111: 0 | U111: 0 | V111: 0 | W111: 0 | X111: 0 | Y111: 0 | Z111: =SUM(Z106:Z110) -> 0 | AA111: 0 | AB111: 0 | AC111: 0 | AD111: 0 | AE111: 0 | AF111: 0 | AG111: 0 | AH111: 0 | AI111: 0 | AJ111: =SUM(AJ106:AJ110) -> 0 | AK111: 0 | AL111: 0 | AM111: 0 | AN111: =SUM(AN106:AN110) -> 0 | AO111: 0 | AP111: 0 | AQ111: 0 | AR111: 0 | AS111: =SUM(AS106:AS110) -> 0 | AT111: 0 | AU111: 0 | AW111: =SUM(AW106:AW110) -> 0 | AY111: =SUM(AY106:AY110) -> 0 | AZ111: =+AY111-'ROR-Model'!G111 -> 0
AZ112: =+AY112-'ROR-Model'!G112 -> 0
C113: Total Dth | H113: =H1*Revenue!$S$112 -> 0 | AW113: =SUM(F113:AV113) -> 0 | AY113: =SUM(AW113:AW113) -> 0 | AZ113: =+AY113-'ROR-Model'!G113 -> 0
AZ114: =+AY114-'ROR-Model'!G114 -> 0
B115: FT1-L | C115: Distribution Non-Gas Rev | H115: =H1*Revenue!$S$114 -> 2624472 | S115: =0*'Transition Costs'!E115*$U$1 -> 0 | T115: ='EDIT Amort Adj'!F115*$U$1 -> 0 | U115: ='EDIT Amort Adj'!G115*$U$1 -> 0 | V115: ='OYF Savings'!G115*$V$1 -> 0 | W115: ='RNGT -NGV Volume'!G123*$W$1 -> 0 | X115: =Pension!G115*$X$1 -> 0 | Y115: ='Optional Adjustment 23'!G115*$Y$1 -> 0 | Z115: ='Optional Adjustment 1'!G115*$Z$1 -> 0 | AA115: ='Optional Adjustment 2'!G115*$AA$1 -> 0 | AB115: ='Optional Adjustment 3'!G115*$AB$1 -> 0 | AC115: ='Optional Adjustment 4'!G115*$AC$1 -> 0 | AD115: ='Optional Adjustment 5'!G115*$AD$1 -> 0 | AE115: ='Optional Adjustment 6'!G115*$AE$1 -> 0 | AF115: ='Optional Adjustment 7'!G115*$AF$1 -> 0 | AG115: ='Optional Adjustment 8'!G115*$AG$1 -> 0 | AH115: ='Optional Adjustment 9'!G115*$AH$1 -> 0 | AI115: ='Optional Adjustment 10'!G115*$AI$1 -> 0 | AJ115: ='Optional Adjustment 11'!G115*$AJ$1 -> 0 | AK115: ='Optional Adjustment 12'!G115*$AK$1 -> 0 | AL115: ='Optional Adjustment 13'!G115*$AL$1 -> 0 | AM115: ='Optional Adjustment 14'!G115*$AM$1 -> 0 | AN115: ='Optional Adjustment 15'!G115*$AN$1 -> 0 | AO115: ='Optional Adjustment 16'!G115*$AO$1 -> 0 | AP115: ='Optional Adjustment 17'!G115*$AP$1 -> 0 | AQ115: ='Optional Adjustment 18'!G115*$AQ$1 -> 0 | AR115: ='Optional Adjustment 19'!G115*$AR$1 -> 0 | AS115: ='Optional Adjustment 20'!G115*$AS$1 -> 0 | AT115: ='Optional Adjustment 21'!G115*$AT$1 -> 0 | AU115: ='Optional Adjustment 22'!G115*$AU$1 -> 0 | AW115: =SUM(F115:AV115) -> 2624472 | AY115: =SUM(AW115:AW115) -> 2624472 | AZ115: =+AY115-'ROR-Model'!G115 -> 0
AZ116: =+AY116-'ROR-Model'!G116 -> 0
C117: Supplier Non-Gas Revenue | H117: =H1*Revenue!$S$116 -> 0 | S117: =0*'Transition Costs'!E117*$U$1 -> 0 | T117: ='EDIT Amort Adj'!F117*$U$1 -> 0 | U117: ='EDIT Amort Adj'!G117*$U$1 -> 0 | V117: ='OYF Savings'!G117*$V$1 -> 0 | W117: ='RNGT -NGV Volume'!G125*$W$1 -> 0 | X117: =Pension!G117*$X$1 -> 0 | Y117: ='Optional Adjustment 23'!G117*$Y$1 -> 0 | Z117: ='Optional Adjustment 1'!G117*$Z$1 -> 0 | AA117: ='Optional Adjustment 2'!G117*$AA$1 -> 0 | AB117: ='Optional Adjustment 3'!G117*$AB$1 -> 0 | AC117: ='Optional Adjustment 4'!G117*$AC$1 -> 0 | AD117: ='Optional Adjustment 5'!G117*$AD$1 -> 0 | AE117: ='Optional Adjustment 6'!G117*$AE$1 -> 0 | AF117: ='Optional Adjustment 7'!G117*$AF$1 -> 0 | AG117: ='Optional Adjustment 8'!G117*$AG$1 -> 0 | AH117: ='Optional Adjustment 9'!G117*$AH$1 -> 0 | AI117: ='Optional Adjustment 10'!G117*$AI$1 -> 0 | AJ117: ='Optional Adjustment 11'!G117*$AJ$1 -> 0 | AK117: ='Optional Adjustment 12'!G117*$AK$1 -> 0 | AL117: ='Optional Adjustment 13'!G117*$AL$1 -> 0 | AM117: ='Optional Adjustment 14'!G117*$AM$1 -> 0 | AN117: ='Optional Adjustment 15'!G117*$AN$1 -> 0 | AO117: ='Optional Adjustment 16'!G117*$AO$1 -> 0 | AP117: ='Optional Adjustment 17'!G117*$AP$1 -> 0 | AQ117: ='Optional Adjustment 18'!G117*$AQ$1 -> 0 | AR117: ='Optional Adjustment 19'!G117*$AR$1 -> 0 | AS117: ='Optional Adjustment 20'!G117*$AS$1 -> 0 | AT117: ='Optional Adjustment 21'!G117*$AT$1 -> 0 | AU117: ='Optional Adjustment 22'!G117*$AU$1 -> 0 | AW117: =SUM(F117:AV117) -> 0 | AY117: =SUM(AW117:AW117) -> 0 | AZ117: =+AY117-'ROR-Model'!G117 -> 0
AZ118: =+AY118-'ROR-Model'!G118 -> 0
C119: Commodity Revenue | H119: =H1*Revenue!$S$118 -> 0 | S119: =0*'Transition Costs'!E119*$U$1 -> 0 | T119: ='EDIT Amort Adj'!F119*$U$1 -> 0 | U119: ='EDIT Amort Adj'!G119*$U$1 -> 0 | V119: ='OYF Savings'!G119*$V$1 -> 0 | W119: ='RNGT -NGV Volume'!G127*$W$1 -> 0 | X119: =Pension!G119*$X$1 -> 0 | Y119: ='Optional Adjustment 23'!G119*$Y$1 -> 0 | Z119: ='Optional Adjustment 1'!G119*$Z$1 -> 0 | AA119: ='Optional Adjustment 2'!G119*$AA$1 -> 0 | AB119: ='Optional Adjustment 3'!G119*$AB$1 -> 0 | AC119: ='Optional Adjustment 4'!G119*$AC$1 -> 0 | AD119: ='Optional Adjustment 5'!G119*$AD$1 -> 0 | AE119: ='Optional Adjustment 6'!G119*$AE$1 -> 0 | AF119: ='Optional Adjustment 7'!G119*$AF$1 -> 0 | AG119: ='Optional Adjustment 8'!G119*$AG$1 -> 0 | AH119: ='Optional Adjustment 9'!G119*$AH$1 -> 0 | AI119: ='Optional Adjustment 10'!G119*$AI$1 -> 0 | AJ119: ='Optional Adjustment 11'!G119*$AJ$1 -> 0 | AK119: ='Optional Adjustment 12'!G119*$AK$1 -> 0 | AL119: ='Optional Adjustment 13'!G119*$AL$1 -> 0 | AM119: ='Optional Adjustment 14'!G119*$AM$1 -> 0 | AN119: ='Optional Adjustment 15'!G119*$AN$1 -> 0 | AO119: ='Optional Adjustment 16'!G119*$AO$1 -> 0 | AP119: ='Optional Adjustment 17'!G119*$AP$1 -> 0 | AQ119: ='Optional Adjustment 18'!G119*$AQ$1 -> 0 | AR119: ='Optional Adjustment 19'!G119*$AR$1 -> 0 | AS119: ='Optional Adjustment 20'!G119*$AS$1 -> 0 | AT119: ='Optional Adjustment 21'!G119*$AT$1 -> 0 | AU119: ='Optional Adjustment 22'!G119*$AU$1 -> 0 | AW119: =SUM(F119:AV119) -> 0 | AY119: =SUM(AW119:AW119) -> 0 | AZ119: =+AY119-'ROR-Model'!G119 -> 0
C120: Total Revenue | F120: =SUM(F115:F119) -> 0 | H120: =H1*SUM(H115:H119) -> 2624472 | I120: =SUM(I115:I119) -> 0 | J120: =SUM(J115:J119) -> 0 | K120: 0 | L120: 0 | M120: 0 | N120: 0 | O120: 0 | P120: 0 | Q120: =SUM(Q115:Q119) -> 0 | R120: 0 | S120: =SUM(S115:S119) -> 0 | T120: 0 | U120: 0 | V120: 0 | W120: 0 | X120: 0 | Y120: 0 | Z120: =SUM(Z115:Z119) -> 0 | AA120: 0 | AB120: 0 | AC120: 0 | AD120: 0 | AE120: 0 | AF120: 0 | AG120: 0 | AH120: 0 | AI120: 0 | AJ120: =SUM(AJ115:AJ119) -> 0 | AK120: 0 | AL120: 0 | AM120: 0 | AN120: =SUM(AN115:AN119) -> 0 | AO120: 0 | AP120: 0 | AQ120: 0 | AR120: 0 | AS120: =SUM(AS115:AS119) -> 0 | AT120: 0 | AU120: 0 | AW120: =SUM(AW115:AW119) -> 2624472 | AY120: =SUM(AY115:AY119) -> 2624472 | AZ120: =+AY120-'ROR-Model'!G120 -> 0
AZ121: =+AY121-'ROR-Model'!G121 -> 0
C122: Total Dth | H122: =H1*Revenue!$S$121 -> 33999912 | AW122: =SUM(F122:AV122) -> 33999912 | AY122: =SUM(AW122:AW122) -> 33999912 | AZ122: =+AY122-'ROR-Model'!G122 -> 0
AZ123: =+AY123-'ROR-Model'!G123 -> 0
B124: FT_TBF | C124: Distribution Non-Gas Rev | H124: =H1*Revenue!$S$123 -> -3564671.05 | S124: =0*'Transition Costs'!E124*$U$1 -> 0 | T124: ='EDIT Amort Adj'!F124*$U$1 -> 0 | U124: ='EDIT Amort Adj'!G124*$U$1 -> 0 | V124: ='OYF Savings'!G124*$V$1 -> 0 | W124: ='RNGT -NGV Volume'!G132*$W$1 -> 0 | X124: =Pension!G124*$X$1 -> 0 | Y124: ='Optional Adjustment 23'!G124*$Y$1 -> 0 | Z124: ='Optional Adjustment 1'!G124*$Z$1 -> 0 | AA124: ='Optional Adjustment 2'!G124*$AA$1 -> 0 | AB124: ='Optional Adjustment 3'!G124*$AB$1 -> 0 | AC124: ='Optional Adjustment 4'!G124*$AC$1 -> 0 | AD124: ='Optional Adjustment 5'!G124*$AD$1 -> 0 | AE124: ='Optional Adjustment 6'!G124*$AE$1 -> 0 | AF124: ='Optional Adjustment 7'!G124*$AF$1 -> 0 | AG124: ='Optional Adjustment 8'!G124*$AG$1 -> 0 | AH124: ='Optional Adjustment 9'!G124*$AH$1 -> 0 | AI124: ='Optional Adjustment 10'!G124*$AI$1 -> 0 | AJ124: ='Optional Adjustment 11'!G124*$AJ$1 -> 0 | AK124: ='Optional Adjustment 12'!G124*$AK$1 -> 0 | AL124: ='Optional Adjustment 13'!G124*$AL$1 -> 0 | AM124: ='Optional Adjustment 14'!G124*$AM$1 -> 0 | AN124: ='Optional Adjustment 15'!G124*$AN$1 -> 0 | AO124: ='Optional Adjustment 16'!G124*$AO$1 -> 0 | AP124: ='Optional Adjustment 17'!G124*$AP$1 -> 0 | AQ124: ='Optional Adjustment 18'!G124*$AQ$1 -> 0 | AR124: ='Optional Adjustment 19'!G124*$AR$1 -> 0 | AS124: ='Optional Adjustment 20'!G124*$AS$1 -> 0 | AT124: ='Optional Adjustment 21'!G124*$AT$1 -> 0 | AU124: ='Optional Adjustment 22'!G124*$AU$1 -> 0 | AW124: =SUM(F124:AV124) -> -3564671.05 | AY124: =SUM(AW124:AW124) -> -3564671.05 | AZ124: =+AY124-'ROR-Model'!G124 -> 0
AZ125: =+AY125-'ROR-Model'!G125 -> 0
C126: Supplier Non-Gas Revenue | H126: =H1*Revenue!$S$125 -> -54948.98 | S126: =0*'Transition Costs'!E126*$U$1 -> 0 | T126: ='EDIT Amort Adj'!F126*$U$1 -> 0 | U126: ='EDIT Amort Adj'!G126*$U$1 -> 0 | V126: ='OYF Savings'!G126*$V$1 -> 0 | W126: ='RNGT -NGV Volume'!G134*$W$1 -> 0 | X126: =Pension!G126*$X$1 -> 0 | Y126: ='Optional Adjustment 23'!G126*$Y$1 -> 0 | Z126: ='Optional Adjustment 1'!G126*$Z$1 -> 0 | AA126: ='Optional Adjustment 2'!G126*$AA$1 -> 0 | AB126: ='Optional Adjustment 3'!G126*$AB$1 -> 0 | AC126: ='Optional Adjustment 4'!G126*$AC$1 -> 0 | AD126: ='Optional Adjustment 5'!G126*$AD$1 -> 0 | AE126: ='Optional Adjustment 6'!G126*$AE$1 -> 0 | AF126: ='Optional Adjustment 7'!G126*$AF$1 -> 0 | AG126: ='Optional Adjustment 8'!G126*$AG$1 -> 0 | AH126: ='Optional Adjustment 9'!G126*$AH$1 -> 0 | AI126: ='Optional Adjustment 10'!G126*$AI$1 -> 0 | AJ126: ='Optional Adjustment 11'!G126*$AJ$1 -> 0 | AK126: ='Optional Adjustment 12'!G126*$AK$1 -> 0 | AL126: ='Optional Adjustment 13'!G126*$AL$1 -> 0 | AM126: ='Optional Adjustment 14'!G126*$AM$1 -> 0 | AN126: ='Optional Adjustment 15'!G126*$AN$1 -> 0 | AO126: ='Optional Adjustment 16'!G126*$AO$1 -> 0 | AP126: ='Optional Adjustment 17'!G126*$AP$1 -> 0 | AQ126: ='Optional Adjustment 18'!G126*$AQ$1 -> 0 | AR126: ='Optional Adjustment 19'!G126*$AR$1 -> 0 | AS126: ='Optional Adjustment 20'!G126*$AS$1 -> 0 | AT126: ='Optional Adjustment 21'!G126*$AT$1 -> 0 | AU126: ='Optional Adjustment 22'!G126*$AU$1 -> 0 | AW126: =SUM(F126:AV126) -> -54948.98 | AY126: =SUM(AW126:AW126) -> -54948.98 | AZ126: =+AY126-'ROR-Model'!G126 -> 0
AZ127: =+AY127-'ROR-Model'!G127 -> 0
C128: Commodity Revenue | H128: =H1*Revenue!$S$127 -> 0 | S128: =0*'Transition Costs'!E128*$U$1 -> 0 | T128: ='EDIT Amort Adj'!F128*$U$1 -> 0 | U128: ='EDIT Amort Adj'!G128*$U$1 -> 0 | V128: ='OYF Savings'!G128*$V$1 -> 0 | W128: ='RNGT -NGV Volume'!G136*$W$1 -> 0 | X128: =Pension!G128*$X$1 -> 0 | Y128: ='Optional Adjustment 23'!G128*$Y$1 -> 0 | Z128: ='Optional Adjustment 1'!G128*$Z$1 -> 0 | AA128: ='Optional Adjustment 2'!G128*$AA$1 -> 0 | AB128: ='Optional Adjustment 3'!G128*$AB$1 -> 0 | AC128: ='Optional Adjustment 4'!G128*$AC$1 -> 0 | AD128: ='Optional Adjustment 5'!G128*$AD$1 -> 0 | AE128: ='Optional Adjustment 6'!G128*$AE$1 -> 0 | AF128: ='Optional Adjustment 7'!G128*$AF$1 -> 0 | AG128: ='Optional Adjustment 8'!G128*$AG$1 -> 0 | AH128: ='Optional Adjustment 9'!G128*$AH$1 -> 0 | AI128: ='Optional Adjustment 10'!G128*$AI$1 -> 0 | AJ128: ='Optional Adjustment 11'!G128*$AJ$1 -> 0 | AK128: ='Optional Adjustment 12'!G128*$AK$1 -> 0 | AL128: ='Optional Adjustment 13'!G128*$AL$1 -> 0 | AM128: ='Optional Adjustment 14'!G128*$AM$1 -> 0 | AN128: ='Optional Adjustment 15'!G128*$AN$1 -> 0 | AO128: ='Optional Adjustment 16'!G128*$AO$1 -> 0 | AP128: ='Optional Adjustment 17'!G128*$AP$1 -> 0 | AQ128: ='Optional Adjustment 18'!G128*$AQ$1 -> 0 | AR128: ='Optional Adjustment 19'!G128*$AR$1 -> 0 | AS128: ='Optional Adjustment 20'!G128*$AS$1 -> 0 | AT128: ='Optional Adjustment 21'!G128*$AT$1 -> 0 | AU128: ='Optional Adjustment 22'!G128*$AU$1 -> 0 | AW128: =SUM(F128:AV128) -> 0 | AY128: =SUM(AW128:AW128) -> 0 | AZ128: =+AY128-'ROR-Model'!G128 -> 0
C129: Total Revenue | F129: =SUM(F124:F128) -> 0 | H129: =H1*SUM(H124:H128) -> -3619620.03 | I129: =SUM(I124:I128) -> 0 | J129: =SUM(J124:J128) -> 0 | K129: 0 | L129: 0 | M129: 0 | N129: 0 | O129: 0 | P129: 0 | Q129: =SUM(Q124:Q128) -> 0 | R129: 0 | S129: =SUM(S124:S128) -> 0 | T129: 0 | U129: 0 | V129: 0 | W129: 0 | X129: 0 | Y129: 0 | Z129: =SUM(Z124:Z128) -> 0 | AA129: 0 | AB129: 0 | AC129: 0 | AD129: 0 | AE129: 0 | AF129: 0 | AG129: 0 | AH129: 0 | AI129: 0 | AJ129: =SUM(AJ124:AJ128) -> 0 | AK129: 0 | AL129: 0 | AM129: 0 | AN129: =SUM(AN124:AN128) -> 0 | AO129: 0 | AP129: 0 | AQ129: 0 | AR129: 0 | AS129: =SUM(AS124:AS128) -> 0 | AT129: 0 | AU129: 0 | AW129: =SUM(AW124:AW128) -> -3619620.03 | AY129: =SUM(AY124:AY128) -> -3619620.03 | AZ129: =+AY129-'ROR-Model'!G129 -> 0
AZ130: =+AY130-'ROR-Model'!G130 -> 0
C131: Total Dth | H131: =H1*Revenue!$S$130 -> -39342976 | AW131: =SUM(F131:AV131) -> -39342976 | AY131: =SUM(AW131:AW131) -> -39342976 | AZ131: =+AY131-'ROR-Model'!G131 -> 0
AZ132: =+AY132-'ROR-Model'!G132 -> 0
B133: FT-2 | C133: Distribution Non-Gas Rev | H133: =H1*Revenue!$S$132 -> 0 | S133: =0*'Transition Costs'!E133*$U$1 -> 0 | T133: ='EDIT Amort Adj'!F133*$U$1 -> 0 | U133: ='EDIT Amort Adj'!G133*$U$1 -> 0 | V133: ='OYF Savings'!G133*$V$1 -> 0 | W133: ='RNGT -NGV Volume'!G141*$W$1 -> 0 | X133: =Pension!G133*$X$1 -> 0 | Y133: ='Optional Adjustment 23'!G133*$Y$1 -> 0 | Z133: ='Optional Adjustment 1'!G133*$Z$1 -> 0 | AA133: ='Optional Adjustment 2'!G133*$AA$1 -> 0 | AB133: ='Optional Adjustment 3'!G133*$AB$1 -> 0 | AC133: ='Optional Adjustment 4'!G133*$AC$1 -> 0 | AD133: ='Optional Adjustment 5'!G133*$AD$1 -> 0 | AE133: ='Optional Adjustment 6'!G133*$AE$1 -> 0 | AF133: ='Optional Adjustment 7'!G133*$AF$1 -> 0 | AG133: ='Optional Adjustment 8'!G133*$AG$1 -> 0 | AH133: ='Optional Adjustment 9'!G133*$AH$1 -> 0 | AI133: ='Optional Adjustment 10'!G133*$AI$1 -> 0 | AJ133: ='Optional Adjustment 11'!G133*$AJ$1 -> 0 | AK133: ='Optional Adjustment 12'!G133*$AK$1 -> 0 | AL133: ='Optional Adjustment 13'!G133*$AL$1 -> 0 | AM133: ='Optional Adjustment 14'!G133*$AM$1 -> 0 | AN133: ='Optional Adjustment 15'!G133*$AN$1 -> 0 | AO133: ='Optional Adjustment 16'!G133*$AO$1 -> 0 | AP133: ='Optional Adjustment 17'!G133*$AP$1 -> 0 | AQ133: ='Optional Adjustment 18'!G133*$AQ$1 -> 0 | AR133: ='Optional Adjustment 19'!G133*$AR$1 -> 0 | AS133: ='Optional Adjustment 20'!G133*$AS$1 -> 0 | AT133: ='Optional Adjustment 21'!G133*$AT$1 -> 0 | AU133: ='Optional Adjustment 22'!G133*$AU$1 -> 0 | AW133: =SUM(F133:AV133) -> 0 | AY133: =SUM(AW133:AW133) -> 0 | AZ133: =+AY133-'ROR-Model'!G133 -> 0
AZ134: =+AY134-'ROR-Model'!G134 -> 0
C135: Supplier Non-Gas Revenue | H135: =H1*Revenue!$S$134 -> 0 | S135: =0*'Transition Costs'!E135*$U$1 -> 0 | T135: ='EDIT Amort Adj'!F135*$U$1 -> 0 | U135: ='EDIT Amort Adj'!G135*$U$1 -> 0 | V135: ='OYF Savings'!G135*$V$1 -> 0 | W135: ='RNGT -NGV Volume'!G143*$W$1 -> 0 | X135: =Pension!G135*$X$1 -> 0 | Y135: ='Optional Adjustment 23'!G135*$Y$1 -> 0 | Z135: ='Optional Adjustment 1'!G135*$Z$1 -> 0 | AA135: ='Optional Adjustment 2'!G135*$AA$1 -> 0 | AB135: ='Optional Adjustment 3'!G135*$AB$1 -> 0 | AC135: ='Optional Adjustment 4'!G135*$AC$1 -> 0 | AD135: ='Optional Adjustment 5'!G135*$AD$1 -> 0 | AE135: ='Optional Adjustment 6'!G135*$AE$1 -> 0 | AF135: ='Optional Adjustment 7'!G135*$AF$1 -> 0 | AG135: ='Optional Adjustment 8'!G135*$AG$1 -> 0 | AH135: ='Optional Adjustment 9'!G135*$AH$1 -> 0 | AI135: ='Optional Adjustment 10'!G135*$AI$1 -> 0 | AJ135: ='Optional Adjustment 11'!G135*$AJ$1 -> 0 | AK135: ='Optional Adjustment 12'!G135*$AK$1 -> 0 | AL135: ='Optional Adjustment 13'!G135*$AL$1 -> 0 | AM135: ='Optional Adjustment 14'!G135*$AM$1 -> 0 | AN135: ='Optional Adjustment 15'!G135*$AN$1 -> 0 | AO135: ='Optional Adjustment 16'!G135*$AO$1 -> 0 | AP135: ='Optional Adjustment 17'!G135*$AP$1 -> 0 | AQ135: ='Optional Adjustment 18'!G135*$AQ$1 -> 0 | AR135: ='Optional Adjustment 19'!G135*$AR$1 -> 0 | AS135: ='Optional Adjustment 20'!G135*$AS$1 -> 0 | AT135: ='Optional Adjustment 21'!G135*$AT$1 -> 0 | AU135: ='Optional Adjustment 22'!G135*$AU$1 -> 0 | AW135: =SUM(F135:AV135) -> 0 | AY135: =SUM(AW135:AW135) -> 0 | AZ135: =+AY135-'ROR-Model'!G135 -> 0
AZ136: =+AY136-'ROR-Model'!G136 -> 0
C137: Commodity Revenue | H137: =H1*Revenue!$S$136 -> 0 | S137: =0*'Transition Costs'!E137*$U$1 -> 0 | T137: ='EDIT Amort Adj'!F137*$U$1 -> 0 | U137: ='EDIT Amort Adj'!G137*$U$1 -> 0 | V137: ='OYF Savings'!G137*$V$1 -> 0 | W137: ='RNGT -NGV Volume'!G145*$W$1 -> 0 | X137: =Pension!G137*$X$1 -> 0 | Y137: ='Optional Adjustment 23'!G137*$Y$1 -> 0 | Z137: ='Optional Adjustment 1'!G137*$Z$1 -> 0 | AA137: ='Optional Adjustment 2'!G137*$AA$1 -> 0 | AB137: ='Optional Adjustment 3'!G137*$AB$1 -> 0 | AC137: ='Optional Adjustment 4'!G137*$AC$1 -> 0 | AD137: ='Optional Adjustment 5'!G137*$AD$1 -> 0 | AE137: ='Optional Adjustment 6'!G137*$AE$1 -> 0 | AF137: ='Optional Adjustment 7'!G137*$AF$1 -> 0 | AG137: ='Optional Adjustment 8'!G137*$AG$1 -> 0 | AH137: ='Optional Adjustment 9'!G137*$AH$1 -> 0 | AI137: ='Optional Adjustment 10'!G137*$AI$1 -> 0 | AJ137: ='Optional Adjustment 11'!G137*$AJ$1 -> 0 | AK137: ='Optional Adjustment 12'!G137*$AK$1 -> 0 | AL137: ='Optional Adjustment 13'!G137*$AL$1 -> 0 | AM137: ='Optional Adjustment 14'!G137*$AM$1 -> 0 | AN137: ='Optional Adjustment 15'!G137*$AN$1 -> 0 | AO137: ='Optional Adjustment 16'!G137*$AO$1 -> 0 | AP137: ='Optional Adjustment 17'!G137*$AP$1 -> 0 | AQ137: ='Optional Adjustment 18'!G137*$AQ$1 -> 0 | AR137: ='Optional Adjustment 19'!G137*$AR$1 -> 0 | AS137: ='Optional Adjustment 20'!G137*$AS$1 -> 0 | AT137: ='Optional Adjustment 21'!G137*$AT$1 -> 0 | AU137: ='Optional Adjustment 22'!G137*$AU$1 -> 0 | AW137: =SUM(F137:AV137) -> 0 | AY137: =SUM(AW137:AW137) -> 0 | AZ137: =+AY137-'ROR-Model'!G137 -> 0
C138: Total Revenue | F138: =SUM(F133:F137) -> 0 | H138: =H1*SUM(H133:H137) -> 0 | I138: =SUM(I133:I137) -> 0 | J138: =SUM(J133:J137) -> 0 | K138: 0 | L138: 0 | M138: 0 | N138: 0 | O138: 0 | P138: 0 | Q138: =SUM(Q133:Q137) -> 0 | R138: 0 | S138: =SUM(S133:S137) -> 0 | T138: 0 | U138: 0 | V138: 0 | W138: 0 | X138: 0 | Y138: 0 | Z138: =SUM(Z133:Z137) -> 0 | AA138: 0 | AB138: 0 | AC138: 0 | AD138: 0 | AE138: 0 | AF138: 0 | AG138: 0 | AH138: 0 | AI138: 0 | AJ138: =SUM(AJ133:AJ137) -> 0 | AK138: 0 | AL138: 0 | AM138: 0 | AN138: =SUM(AN133:AN137) -> 0 | AO138: 0 | AP138: 0 | AQ138: 0 | AR138: 0 | AS138: =SUM(AS133:AS137) -> 0 | AT138: 0 | AU138: 0 | AW138: =SUM(AW133:AW137) -> 0 | AY138: =SUM(AY133:AY137) -> 0 | AZ138: =+AY138-'ROR-Model'!G138 -> 0
AZ139: =+AY139-'ROR-Model'!G139 -> 0
C140: Total Dth | H140: =H1*Revenue!$S$139 -> 0 | AW140: =SUM(F140:AV140) -> 0 | AY140: =SUM(AW140:AW140) -> 0 | AZ140: =+AY140-'ROR-Model'!G140 -> 0
AZ141: =+AY141-'ROR-Model'!G141 -> 0
B142: MT | C142: Distribution Non-Gas Rev | H142: =H1*Revenue!$S$141 -> -52352.83966 | S142: =0*'Transition Costs'!E142*$U$1 -> 0 | T142: ='EDIT Amort Adj'!F142*$U$1 -> 0 | U142: ='EDIT Amort Adj'!G142*$U$1 -> 0 | V142: ='OYF Savings'!G142*$V$1 -> 0 | W142: ='RNGT -NGV Volume'!G150*$W$1 -> 0 | X142: =Pension!G142*$X$1 -> 0 | Y142: ='Optional Adjustment 23'!G142*$Y$1 -> 0 | Z142: ='Optional Adjustment 1'!G142*$Z$1 -> 0 | AA142: ='Optional Adjustment 2'!G142*$AA$1 -> 0 | AB142: ='Optional Adjustment 3'!G142*$AB$1 -> 0 | AC142: ='Optional Adjustment 4'!G142*$AC$1 -> 0 | AD142: ='Optional Adjustment 5'!G142*$AD$1 -> 0 | AE142: ='Optional Adjustment 6'!G142*$AE$1 -> 0 | AF142: ='Optional Adjustment 7'!G142*$AF$1 -> 0 | AG142: ='Optional Adjustment 8'!G142*$AG$1 -> 0 | AH142: ='Optional Adjustment 9'!G142*$AH$1 -> 0 | AI142: ='Optional Adjustment 10'!G142*$AI$1 -> 0 | AJ142: ='Optional Adjustment 11'!G142*$AJ$1 -> 0 | AK142: ='Optional Adjustment 12'!G142*$AK$1 -> 0 | AL142: ='Optional Adjustment 13'!G142*$AL$1 -> 0 | AM142: ='Optional Adjustment 14'!G142*$AM$1 -> 0 | AN142: ='Optional Adjustment 15'!G142*$AN$1 -> 0 | AO142: ='Optional Adjustment 16'!G142*$AO$1 -> 0 | AP142: ='Optional Adjustment 17'!G142*$AP$1 -> 0 | AQ142: ='Optional Adjustment 18'!G142*$AQ$1 -> 0 | AR142: ='Optional Adjustment 19'!G142*$AR$1 -> 0 | AS142: ='Optional Adjustment 20'!G142*$AS$1 -> 0 | AT142: ='Optional Adjustment 21'!G142*$AT$1 -> 0 | AU142: ='Optional Adjustment 22'!G142*$AU$1 -> 0 | AW142: =SUM(F142:AV142) -> -52352.83966 | AY142: =SUM(AW142:AW142) -> -52352.83966 | AZ142: =+AY142-'ROR-Model'!G142 -> 0
AZ143: =+AY143-'ROR-Model'!G143 -> 0
C144: Supplier Non-Gas Revenue | H144: =H1*Revenue!$S$143 -> -2294.25 | S144: =0*'Transition Costs'!E144*$U$1 -> 0 | T144: ='EDIT Amort Adj'!F144*$U$1 -> 0 | U144: ='EDIT Amort Adj'!G144*$U$1 -> 0 | V144: ='OYF Savings'!G144*$V$1 -> 0 | W144: ='RNGT -NGV Volume'!G152*$W$1 -> 0 | X144: =Pension!G144*$X$1 -> 0 | Y144: ='Optional Adjustment 23'!G144*$Y$1 -> 0 | Z144: ='Optional Adjustment 1'!G144*$Z$1 -> 0 | AA144: ='Optional Adjustment 2'!G144*$AA$1 -> 0 | AB144: ='Optional Adjustment 3'!G144*$AB$1 -> 0 | AC144: ='Optional Adjustment 4'!G144*$AC$1 -> 0 | AD144: ='Optional Adjustment 5'!G144*$AD$1 -> 0 | AE144: ='Optional Adjustment 6'!G144*$AE$1 -> 0 | AF144: ='Optional Adjustment 7'!G144*$AF$1 -> 0 | AG144: ='Optional Adjustment 8'!G144*$AG$1 -> 0 | AH144: ='Optional Adjustment 9'!G144*$AH$1 -> 0 | AI144: ='Optional Adjustment 10'!G144*$AI$1 -> 0 | AJ144: ='Optional Adjustment 11'!G144*$AJ$1 -> 0 | AK144: ='Optional Adjustment 12'!G144*$AK$1 -> 0 | AL144: ='Optional Adjustment 13'!G144*$AL$1 -> 0 | AM144: ='Optional Adjustment 14'!G144*$AM$1 -> 0 | AN144: ='Optional Adjustment 15'!G144*$AN$1 -> 0 | AO144: ='Optional Adjustment 16'!G144*$AO$1 -> 0 | AP144: ='Optional Adjustment 17'!G144*$AP$1 -> 0 | AQ144: ='Optional Adjustment 18'!G144*$AQ$1 -> 0 | AR144: ='Optional Adjustment 19'!G144*$AR$1 -> 0 | AS144: ='Optional Adjustment 20'!G144*$AS$1 -> 0 | AT144: ='Optional Adjustment 21'!G144*$AT$1 -> 0 | AU144: ='Optional Adjustment 22'!G144*$AU$1 -> 0 | AW144: =SUM(F144:AV144) -> -2294.25 | AY144: =SUM(AW144:AW144) -> -2294.25 | AZ144: =+AY144-'ROR-Model'!G144 -> 0
AZ145: =+AY145-'ROR-Model'!G145 -> 0
C146: Commodity Revenue | H146: =H1*Revenue!$S$145 -> 0 | S146: =0*'Transition Costs'!E146*$U$1 -> 0 | T146: ='EDIT Amort Adj'!F146*$U$1 -> 0 | U146: ='EDIT Amort Adj'!G146*$U$1 -> 0 | V146: ='OYF Savings'!G146*$V$1 -> 0 | W146: ='RNGT -NGV Volume'!G154*$W$1 -> 0 | X146: =Pension!G146*$X$1 -> 0 | Y146: ='Optional Adjustment 23'!G146*$Y$1 -> 0 | Z146: ='Optional Adjustment 1'!G146*$Z$1 -> 0 | AA146: ='Optional Adjustment 2'!G146*$AA$1 -> 0 | AB146: ='Optional Adjustment 3'!G146*$AB$1 -> 0 | AC146: ='Optional Adjustment 4'!G146*$AC$1 -> 0 | AD146: ='Optional Adjustment 5'!G146*$AD$1 -> 0 | AE146: ='Optional Adjustment 6'!G146*$AE$1 -> 0 | AF146: ='Optional Adjustment 7'!G146*$AF$1 -> 0 | AG146: ='Optional Adjustment 8'!G146*$AG$1 -> 0 | AH146: ='Optional Adjustment 9'!G146*$AH$1 -> 0 | AI146: ='Optional Adjustment 10'!G146*$AI$1 -> 0 | AJ146: ='Optional Adjustment 11'!G146*$AJ$1 -> 0 | AK146: ='Optional Adjustment 12'!G146*$AK$1 -> 0 | AL146: ='Optional Adjustment 13'!G146*$AL$1 -> 0 | AM146: ='Optional Adjustment 14'!G146*$AM$1 -> 0 | AN146: ='Optional Adjustment 15'!G146*$AN$1 -> 0 | AO146: ='Optional Adjustment 16'!G146*$AO$1 -> 0 | AP146: ='Optional Adjustment 17'!G146*$AP$1 -> 0 | AQ146: ='Optional Adjustment 18'!G146*$AQ$1 -> 0 | AR146: ='Optional Adjustment 19'!G146*$AR$1 -> 0 | AS146: ='Optional Adjustment 20'!G146*$AS$1 -> 0 | AT146: ='Optional Adjustment 21'!G146*$AT$1 -> 0 | AU146: ='Optional Adjustment 22'!G146*$AU$1 -> 0 | AW146: =SUM(F146:AV146) -> 0 | AY146: =SUM(AW146:AW146) -> 0 | AZ146: =+AY146-'ROR-Model'!G146 -> 0
C147: Total Revenue | F147: =SUM(F142:F146) -> 0 | H147: =H1*SUM(H142:H146) -> -54647.08966 | I147: =SUM(I142:I146) -> 0 | J147: =SUM(J142:J146) -> 0 | K147: 0 | L147: 0 | M147: 0 | N147: 0 | O147: 0 | P147: 0 | Q147: =SUM(Q142:Q146) -> 0 | R147: 0 | S147: =SUM(S142:S146) -> 0 | T147: 0 | U147: 0 | V147: 0 | W147: 0 | X147: 0 | Y147: 0 | Z147: =SUM(Z142:Z146) -> 0 | AA147: 0 | AB147: 0 | AC147: 0 | AD147: 0 | AE147: 0 | AF147: 0 | AG147: 0 | AH147: 0 | AI147: 0 | AJ147: =SUM(AJ142:AJ146) -> 0 | AK147: 0 | AL147: 0 | AM147: 0 | AN147: =SUM(AN142:AN146) -> 0 | AO147: 0 | AP147: 0 | AQ147: 0 | AR147: 0 | AS147: =SUM(AS142:AS146) -> 0 | AT147: 0 | AU147: 0 | AW147: =SUM(AW142:AW146) -> -54647.08966 | AY147: =SUM(AY142:AY146) -> -54647.08966 | AZ147: =+AY147-'ROR-Model'!G147 -> 0
AZ148: =+AY148-'ROR-Model'!G148 -> 0
C149: Total Dth | H149: =H1*Revenue!$S$148 -> 0 | AW149: =SUM(F149:AV149) -> 0 | AY149: =SUM(AW149:AW149) -> 0 | AZ149: =+AY149-'ROR-Model'!G149 -> 0
AZ150: =+AY150-'ROR-Model'!G150 -> 0
B151: FT-E | C151: Distribution Non-Gas Rev | H151: =H1*Revenue!$S$150 -> 0 | S151: =0*'Transition Costs'!E151*$U$1 -> 0 | T151: ='EDIT Amort Adj'!F151*$U$1 -> 0 | U151: ='EDIT Amort Adj'!G151*$U$1 -> 0 | V151: ='OYF Savings'!G151*$V$1 -> 0 | W151: ='RNGT -NGV Volume'!G159*$W$1 -> 0 | X151: =Pension!G151*$X$1 -> 0 | Y151: ='Optional Adjustment 23'!G151*$Y$1 -> 0 | Z151: ='Optional Adjustment 1'!G151*$Z$1 -> 0 | AA151: ='Optional Adjustment 2'!G151*$AA$1 -> 0 | AB151: ='Optional Adjustment 3'!G151*$AB$1 -> 0 | AC151: ='Optional Adjustment 4'!G151*$AC$1 -> 0 | AD151: ='Optional Adjustment 5'!G151*$AD$1 -> 0 | AE151: ='Optional Adjustment 6'!G151*$AE$1 -> 0 | AF151: ='Optional Adjustment 7'!G151*$AF$1 -> 0 | AG151: ='Optional Adjustment 8'!G151*$AG$1 -> 0 | AH151: ='Optional Adjustment 9'!G151*$AH$1 -> 0 | AI151: ='Optional Adjustment 10'!G151*$AI$1 -> 0 | AJ151: ='Optional Adjustment 11'!G151*$AJ$1 -> 0 | AK151: ='Optional Adjustment 12'!G151*$AK$1 -> 0 | AL151: ='Optional Adjustment 13'!G151*$AL$1 -> 0 | AM151: ='Optional Adjustment 14'!G151*$AM$1 -> 0 | AN151: ='Optional Adjustment 15'!G151*$AN$1 -> 0 | AO151: ='Optional Adjustment 16'!G151*$AO$1 -> 0 | AP151: ='Optional Adjustment 17'!G151*$AP$1 -> 0 | AQ151: ='Optional Adjustment 18'!G151*$AQ$1 -> 0 | AR151: ='Optional Adjustment 19'!G151*$AR$1 -> 0 | AS151: ='Optional Adjustment 20'!G151*$AS$1 -> 0 | AT151: ='Optional Adjustment 21'!G151*$AT$1 -> 0 | AU151: ='Optional Adjustment 22'!G151*$AU$1 -> 0 | AW151: =SUM(F151:AV151) -> 0 | AY151: =SUM(AW151:AW151) -> 0 | AZ151: =+AY151-'ROR-Model'!G151 -> 0
AZ152: =+AY152-'ROR-Model'!G152 -> 0
C153: Supplier Non-Gas Revenue | H153: =H1*Revenue!$S$152 -> 0 | S153: =0*'Transition Costs'!E153*$U$1 -> 0 | T153: ='EDIT Amort Adj'!F153*$U$1 -> 0 | U153: ='EDIT Amort Adj'!G153*$U$1 -> 0 | V153: ='OYF Savings'!G153*$V$1 -> 0 | W153: ='RNGT -NGV Volume'!G161*$W$1 -> 0 | X153: =Pension!G153*$X$1 -> 0 | Y153: ='Optional Adjustment 23'!G153*$Y$1 -> 0 | Z153: ='Optional Adjustment 1'!G153*$Z$1 -> 0 | AA153: ='Optional Adjustment 2'!G153*$AA$1 -> 0 | AB153: ='Optional Adjustment 3'!G153*$AB$1 -> 0 | AC153: ='Optional Adjustment 4'!G153*$AC$1 -> 0 | AD153: ='Optional Adjustment 5'!G153*$AD$1 -> 0 | AE153: ='Optional Adjustment 6'!G153*$AE$1 -> 0 | AF153: ='Optional Adjustment 7'!G153*$AF$1 -> 0 | AG153: ='Optional Adjustment 8'!G153*$AG$1 -> 0 | AH153: ='Optional Adjustment 9'!G153*$AH$1 -> 0 | AI153: ='Optional Adjustment 10'!G153*$AI$1 -> 0 | AJ153: ='Optional Adjustment 11'!G153*$AJ$1 -> 0 | AK153: ='Optional Adjustment 12'!G153*$AK$1 -> 0 | AL153: ='Optional Adjustment 13'!G153*$AL$1 -> 0 | AM153: ='Optional Adjustment 14'!G153*$AM$1 -> 0 | AN153: ='Optional Adjustment 15'!G153*$AN$1 -> 0 | AO153: ='Optional Adjustment 16'!G153*$AO$1 -> 0 | AP153: ='Optional Adjustment 17'!G153*$AP$1 -> 0 | AQ153: ='Optional Adjustment 18'!G153*$AQ$1 -> 0 | AR153: ='Optional Adjustment 19'!G153*$AR$1 -> 0 | AS153: ='Optional Adjustment 20'!G153*$AS$1 -> 0 | AT153: ='Optional Adjustment 21'!G153*$AT$1 -> 0 | AU153: ='Optional Adjustment 22'!G153*$AU$1 -> 0 | AW153: =SUM(F153:AV153) -> 0 | AY153: =SUM(AW153:AW153) -> 0 | AZ153: =+AY153-'ROR-Model'!G153 -> 0
AZ154: =+AY154-'ROR-Model'!G154 -> 0
C155: Commodity Revenue | H155: =H1*Revenue!$S$154 -> 0 | S155: =0*'Transition Costs'!E155*$U$1 -> 0 | T155: ='EDIT Amort Adj'!F155*$U$1 -> 0 | U155: ='EDIT Amort Adj'!G155*$U$1 -> 0 | V155: ='OYF Savings'!G155*$V$1 -> 0 | W155: ='RNGT -NGV Volume'!G163*$W$1 -> 0 | X155: =Pension!G155*$X$1 -> 0 | Y155: ='Optional Adjustment 23'!G155*$Y$1 -> 0 | Z155: ='Optional Adjustment 1'!G155*$Z$1 -> 0 | AA155: ='Optional Adjustment 2'!G155*$AA$1 -> 0 | AB155: ='Optional Adjustment 3'!G155*$AB$1 -> 0 | AC155: ='Optional Adjustment 4'!G155*$AC$1 -> 0 | AD155: ='Optional Adjustment 5'!G155*$AD$1 -> 0 | AE155: ='Optional Adjustment 6'!G155*$AE$1 -> 0 | AF155: ='Optional Adjustment 7'!G155*$AF$1 -> 0 | AG155: ='Optional Adjustment 8'!G155*$AG$1 -> 0 | AH155: ='Optional Adjustment 9'!G155*$AH$1 -> 0 | AI155: ='Optional Adjustment 10'!G155*$AI$1 -> 0 | AJ155: ='Optional Adjustment 11'!G155*$AJ$1 -> 0 | AK155: ='Optional Adjustment 12'!G155*$AK$1 -> 0 | AL155: ='Optional Adjustment 13'!G155*$AL$1 -> 0 | AM155: ='Optional Adjustment 14'!G155*$AM$1 -> 0 | AN155: ='Optional Adjustment 15'!G155*$AN$1 -> 0 | AO155: ='Optional Adjustment 16'!G155*$AO$1 -> 0 | AP155: ='Optional Adjustment 17'!G155*$AP$1 -> 0 | AQ155: ='Optional Adjustment 18'!G155*$AQ$1 -> 0 | AR155: ='Optional Adjustment 19'!G155*$AR$1 -> 0 | AS155: ='Optional Adjustment 20'!G155*$AS$1 -> 0 | AT155: ='Optional Adjustment 21'!G155*$AT$1 -> 0 | AU155: ='Optional Adjustment 22'!G155*$AU$1 -> 0 | AW155: =SUM(F155:AV155) -> 0 | AY155: =SUM(AW155:AW155) -> 0 | AZ155: =+AY155-'ROR-Model'!G155 -> 0
C156: Total Revenue | F156: =SUM(F151:F155) -> 0 | H156: =H1*SUM(H151:H155) -> 0 | I156: =SUM(I151:I155) -> 0 | J156: =SUM(J151:J155) -> 0 | K156: 0 | L156: 0 | M156: 0 | N156: 0 | O156: 0 | P156: 0 | Q156: =SUM(Q151:Q155) -> 0 | R156: 0 | S156: =SUM(S151:S155) -> 0 | T156: 0 | U156: 0 | V156: 0 | W156: 0 | X156: 0 | Y156: 0 | Z156: =SUM(Z151:Z155) -> 0 | AA156: 0 | AB156: 0 | AC156: 0 | AD156: 0 | AE156: 0 | AF156: 0 | AG156: 0 | AH156: 0 | AI156: 0 | AJ156: =SUM(AJ151:AJ155) -> 0 | AK156: 0 | AL156: 0 | AM156: 0 | AN156: =SUM(AN151:AN155) -> 0 | AO156: 0 | AP156: 0 | AQ156: 0 | AR156: 0 | AS156: =SUM(AS151:AS155) -> 0 | AT156: 0 | AU156: 0 | AW156: =SUM(AW151:AW155) -> 0 | AY156: =SUM(AY151:AY155) -> 0 | AZ156: =+AY156-'ROR-Model'!G156 -> 0
AZ157: =+AY157-'ROR-Model'!G157 -> 0
C158: Total Dth | H158: =H1*Revenue!$S$157 -> 0 | AW158: =SUM(F158:AV158) -> 0 | AY158: =SUM(AW158:AW158) -> 0 | AZ158: =+AY158-'ROR-Model'!G158 -> 0
AZ159: =+AY159-'ROR-Model'!G159 -> 0
B160: IT_TS_ITA_ITB | C160: Distribution Non-Gas Rev | H160: =H1*Revenue!$S$159 -> 5116616.278 | S160: =0*'Transition Costs'!E160*$U$1 -> 0 | T160: ='EDIT Amort Adj'!F160*$U$1 -> 0 | U160: ='EDIT Amort Adj'!G160*$U$1 -> 0 | V160: ='OYF Savings'!G160*$V$1 -> 0 | W160: ='RNGT -NGV Volume'!G168*$W$1 -> 0 | X160: =Pension!G160*$X$1 -> 0 | Y160: ='Optional Adjustment 23'!G160*$Y$1 -> 0 | Z160: ='Optional Adjustment 1'!G160*$Z$1 -> 0 | AA160: ='Optional Adjustment 2'!G160*$AA$1 -> 0 | AB160: ='Optional Adjustment 3'!G160*$AB$1 -> 0 | AC160: ='Optional Adjustment 4'!G160*$AC$1 -> 0 | AD160: ='Optional Adjustment 5'!G160*$AD$1 -> 0 | AE160: ='Optional Adjustment 6'!G160*$AE$1 -> 0 | AF160: ='Optional Adjustment 7'!G160*$AF$1 -> 0 | AG160: ='Optional Adjustment 8'!G160*$AG$1 -> 0 | AH160: ='Optional Adjustment 9'!G160*$AH$1 -> 0 | AI160: ='Optional Adjustment 10'!G160*$AI$1 -> 0 | AJ160: ='Optional Adjustment 11'!G160*$AJ$1 -> 0 | AK160: ='Optional Adjustment 12'!G160*$AK$1 -> 0 | AL160: ='Optional Adjustment 13'!G160*$AL$1 -> 0 | AM160: ='Optional Adjustment 14'!G160*$AM$1 -> 0 | AN160: ='Optional Adjustment 15'!G160*$AN$1 -> 0 | AO160: ='Optional Adjustment 16'!G160*$AO$1 -> 0 | AP160: ='Optional Adjustment 17'!G160*$AP$1 -> 0 | AQ160: ='Optional Adjustment 18'!G160*$AQ$1 -> 0 | AR160: ='Optional Adjustment 19'!G160*$AR$1 -> 0 | AS160: ='Optional Adjustment 20'!G160*$AS$1 -> 0 | AT160: ='Optional Adjustment 21'!G160*$AT$1 -> 0 | AU160: ='Optional Adjustment 22'!G160*$AU$1 -> 0 | AW160: =SUM(F160:AV160) -> 5116616.278 | AY160: =SUM(AW160:AW160) -> 5116616.278 | AZ160: =+AY160-'ROR-Model'!G160 -> 0
AZ161: =+AY161-'ROR-Model'!G161 -> 0
C162: Supplier Non-Gas Revenue | H162: =H1*Revenue!$S$161 -> -610731.39 | S162: =0*'Transition Costs'!E162*$U$1 -> 0 | T162: ='EDIT Amort Adj'!F162*$U$1 -> 0 | U162: ='EDIT Amort Adj'!G162*$U$1 -> 0 | V162: ='OYF Savings'!G162*$V$1 -> 0 | W162: ='RNGT -NGV Volume'!G170*$W$1 -> 0 | X162: =Pension!G162*$X$1 -> 0 | Y162: ='Optional Adjustment 23'!G162*$Y$1 -> 0 | Z162: ='Optional Adjustment 1'!G162*$Z$1 -> 0 | AA162: ='Optional Adjustment 2'!G162*$AA$1 -> 0 | AB162: ='Optional Adjustment 3'!G162*$AB$1 -> 0 | AC162: ='Optional Adjustment 4'!G162*$AC$1 -> 0 | AD162: ='Optional Adjustment 5'!G162*$AD$1 -> 0 | AE162: ='Optional Adjustment 6'!G162*$AE$1 -> 0 | AF162: ='Optional Adjustment 7'!G162*$AF$1 -> 0 | AG162: ='Optional Adjustment 8'!G162*$AG$1 -> 0 | AH162: ='Optional Adjustment 9'!G162*$AH$1 -> 0 | AI162: ='Optional Adjustment 10'!G162*$AI$1 -> 0 | AJ162: ='Optional Adjustment 11'!G162*$AJ$1 -> 0 | AK162: ='Optional Adjustment 12'!G162*$AK$1 -> 0 | AL162: ='Optional Adjustment 13'!G162*$AL$1 -> 0 | AM162: ='Optional Adjustment 14'!G162*$AM$1 -> 0 | AN162: ='Optional Adjustment 15'!G162*$AN$1 -> 0 | AO162: ='Optional Adjustment 16'!G162*$AO$1 -> 0 | AP162: ='Optional Adjustment 17'!G162*$AP$1 -> 0 | AQ162: ='Optional Adjustment 18'!G162*$AQ$1 -> 0 | AR162: ='Optional Adjustment 19'!G162*$AR$1 -> 0 | AS162: ='Optional Adjustment 20'!G162*$AS$1 -> 0 | AT162: ='Optional Adjustment 21'!G162*$AT$1 -> 0 | AU162: ='Optional Adjustment 22'!G162*$AU$1 -> 0 | AW162: =SUM(F162:AV162) -> -610731.39 | AY162: =SUM(AW162:AW162) -> -610731.39 | AZ162: =+AY162-'ROR-Model'!G162 -> 0
AZ163: =+AY163-'ROR-Model'!G163 -> 0
C164: Commodity Revenue | H164: =H1*Revenue!$S$163 -> 11182.41 | S164: =0*'Transition Costs'!E164*$U$1 -> 0 | T164: ='EDIT Amort Adj'!F164*$U$1 -> 0 | U164: ='EDIT Amort Adj'!G164*$U$1 -> 0 | V164: ='OYF Savings'!G164*$V$1 -> 0 | W164: ='RNGT -NGV Volume'!G172*$W$1 -> 0 | X164: =Pension!G164*$X$1 -> 0 | Y164: ='Optional Adjustment 23'!G164*$Y$1 -> 0 | Z164: ='Optional Adjustment 1'!G164*$Z$1 -> 0 | AA164: ='Optional Adjustment 2'!G164*$AA$1 -> 0 | AB164: ='Optional Adjustment 3'!G164*$AB$1 -> 0 | AC164: ='Optional Adjustment 4'!G164*$AC$1 -> 0 | AD164: ='Optional Adjustment 5'!G164*$AD$1 -> 0 | AE164: ='Optional Adjustment 6'!G164*$AE$1 -> 0 | AF164: ='Optional Adjustment 7'!G164*$AF$1 -> 0 | AG164: ='Optional Adjustment 8'!G164*$AG$1 -> 0 | AH164: ='Optional Adjustment 9'!G164*$AH$1 -> 0 | AI164: ='Optional Adjustment 10'!G164*$AI$1 -> 0 | AJ164: ='Optional Adjustment 11'!G164*$AJ$1 -> 0 | AK164: ='Optional Adjustment 12'!G164*$AK$1 -> 0 | AL164: ='Optional Adjustment 13'!G164*$AL$1 -> 0 | AM164: ='Optional Adjustment 14'!G164*$AM$1 -> 0 | AN164: ='Optional Adjustment 15'!G164*$AN$1 -> 0 | AO164: ='Optional Adjustment 16'!G164*$AO$1 -> 0 | AP164: ='Optional Adjustment 17'!G164*$AP$1 -> 0 | AQ164: ='Optional Adjustment 18'!G164*$AQ$1 -> 0 | AR164: ='Optional Adjustment 19'!G164*$AR$1 -> 0 | AS164: ='Optional Adjustment 20'!G164*$AS$1 -> 0 | AT164: ='Optional Adjustment 21'!G164*$AT$1 -> 0 | AU164: ='Optional Adjustment 22'!G164*$AU$1 -> 0 | AW164: =SUM(F164:AV164) -> 11182.41 | AY164: =SUM(AW164:AW164) -> 11182.41 | AZ164: =+AY164-'ROR-Model'!G164 -> 0
C165: Total Revenue | F165: =SUM(F160:F164) -> 0 | H165: =H1*SUM(H160:H164) -> 4517067.298 | I165: =SUM(I160:I164) -> 0 | J165: =SUM(J160:J164) -> 0 | K165: 0 | L165: 0 | M165: 0 | N165: 0 | O165: 0 | P165: 0 | Q165: =SUM(Q160:Q164) -> 0 | R165: 0 | S165: =SUM(S160:S164) -> 0 | T165: 0 | U165: 0 | V165: 0 | W165: 0 | X165: 0 | Y165: 0 | Z165: =SUM(Z160:Z164) -> 0 | AA165: 0 | AB165: 0 | AC165: 0 | AD165: 0 | AE165: 0 | AF165: 0 | AG165: 0 | AH165: 0 | AI165: 0 | AJ165: =SUM(AJ160:AJ164) -> 0 | AK165: 0 | AL165: 0 | AM165: 0 | AN165: =SUM(AN160:AN164) -> 0 | AO165: 0 | AP165: 0 | AQ165: 0 | AR165: 0 | AS165: =SUM(AS160:AS164) -> 0 | AT165: 0 | AU165: 0 | AW165: =SUM(AW160:AW164) -> 4517067.298 | AY165: =SUM(AY160:AY164) -> 4517067.298 | AZ165: =+AY165-'ROR-Model'!G165 -> 0
AZ166: =+AY166-'ROR-Model'!G166 -> 0
C167: Total Dth | H167: =H1*Revenue!$S$166 -> 8095006.09 | AW167: =SUM(F167:AV167) -> 8095006.09 | AY167: =SUM(AW167:AW167) -> 8095006.09 | AZ167: =+AY167-'ROR-Model'!G167 -> 0
AZ168: =+AY168-'ROR-Model'!G168 -> 0
B169: IT-S | C169: Distribution Non-Gas Rev | H169: =H1*Revenue!$S$168 -> 0 | S169: =0*'Transition Costs'!E169*$U$1 -> 0 | T169: ='EDIT Amort Adj'!F169*$U$1 -> 0 | U169: ='EDIT Amort Adj'!G169*$U$1 -> 0 | V169: ='OYF Savings'!G169*$V$1 -> 0 | W169: ='RNGT -NGV Volume'!G177*$W$1 -> 0 | X169: =Pension!G169*$X$1 -> 0 | Y169: ='Optional Adjustment 23'!G169*$Y$1 -> 0 | Z169: ='Optional Adjustment 1'!G169*$Z$1 -> 0 | AA169: ='Optional Adjustment 2'!G169*$AA$1 -> 0 | AB169: ='Optional Adjustment 3'!G169*$AB$1 -> 0 | AC169: ='Optional Adjustment 4'!G169*$AC$1 -> 0 | AD169: ='Optional Adjustment 5'!G169*$AD$1 -> 0 | AE169: ='Optional Adjustment 6'!G169*$AE$1 -> 0 | AF169: ='Optional Adjustment 7'!G169*$AF$1 -> 0 | AG169: ='Optional Adjustment 8'!G169*$AG$1 -> 0 | AH169: ='Optional Adjustment 9'!G169*$AH$1 -> 0 | AI169: ='Optional Adjustment 10'!G169*$AI$1 -> 0 | AJ169: ='Optional Adjustment 11'!G169*$AJ$1 -> 0 | AK169: ='Optional Adjustment 12'!G169*$AK$1 -> 0 | AL169: ='Optional Adjustment 13'!G169*$AL$1 -> 0 | AM169: ='Optional Adjustment 14'!G169*$AM$1 -> 0 | AN169: ='Optional Adjustment 15'!G169*$AN$1 -> 0 | AO169: ='Optional Adjustment 16'!G169*$AO$1 -> 0 | AP169: ='Optional Adjustment 17'!G169*$AP$1 -> 0 | AQ169: ='Optional Adjustment 18'!G169*$AQ$1 -> 0 | AR169: ='Optional Adjustment 19'!G169*$AR$1 -> 0 | AS169: ='Optional Adjustment 20'!G169*$AS$1 -> 0 | AT169: ='Optional Adjustment 21'!G169*$AT$1 -> 0 | AU169: ='Optional Adjustment 22'!G169*$AU$1 -> 0 | AW169: =SUM(F169:AV169) -> 0 | AY169: =SUM(AW169:AW169) -> 0 | AZ169: =+AY169-'ROR-Model'!G169 -> 0
AZ170: =+AY170-'ROR-Model'!G170 -> 0
C171: Supplier Non-Gas Revenue | H171: =H1*Revenue!$S$170 -> 0 | S171: =0*'Transition Costs'!E171*$U$1 -> 0 | T171: ='EDIT Amort Adj'!F171*$U$1 -> 0 | U171: ='EDIT Amort Adj'!G171*$U$1 -> 0 | V171: ='OYF Savings'!G171*$V$1 -> 0 | W171: ='RNGT -NGV Volume'!G179*$W$1 -> 0 | X171: =Pension!G171*$X$1 -> 0 | Y171: ='Optional Adjustment 23'!G171*$Y$1 -> 0 | Z171: ='Optional Adjustment 1'!G171*$Z$1 -> 0 | AA171: ='Optional Adjustment 2'!G171*$AA$1 -> 0 | AB171: ='Optional Adjustment 3'!G171*$AB$1 -> 0 | AC171: ='Optional Adjustment 4'!G171*$AC$1 -> 0 | AD171: ='Optional Adjustment 5'!G171*$AD$1 -> 0 | AE171: ='Optional Adjustment 6'!G171*$AE$1 -> 0 | AF171: ='Optional Adjustment 7'!G171*$AF$1 -> 0 | AG171: ='Optional Adjustment 8'!G171*$AG$1 -> 0 | AH171: ='Optional Adjustment 9'!G171*$AH$1 -> 0 | AI171: ='Optional Adjustment 10'!G171*$AI$1 -> 0 | AJ171: ='Optional Adjustment 11'!G171*$AJ$1 -> 0 | AK171: ='Optional Adjustment 12'!G171*$AK$1 -> 0 | AL171: ='Optional Adjustment 13'!G171*$AL$1 -> 0 | AM171: ='Optional Adjustment 14'!G171*$AM$1 -> 0 | AN171: ='Optional Adjustment 15'!G171*$AN$1 -> 0 | AO171: ='Optional Adjustment 16'!G171*$AO$1 -> 0 | AP171: ='Optional Adjustment 17'!G171*$AP$1 -> 0 | AQ171: ='Optional Adjustment 18'!G171*$AQ$1 -> 0 | AR171: ='Optional Adjustment 19'!G171*$AR$1 -> 0 | AS171: ='Optional Adjustment 20'!G171*$AS$1 -> 0 | AT171: ='Optional Adjustment 21'!G171*$AT$1 -> 0 | AU171: ='Optional Adjustment 22'!G171*$AU$1 -> 0 | AW171: =SUM(F171:AV171) -> 0 | AY171: =SUM(AW171:AW171) -> 0 | AZ171: =+AY171-'ROR-Model'!G171 -> 0
AZ172: =+AY172-'ROR-Model'!G172 -> 0
C173: Commodity Revenue | H173: =H1*Revenue!$S$172 -> 0 | S173: =0*'Transition Costs'!E173*$U$1 -> 0 | T173: ='EDIT Amort Adj'!F173*$U$1 -> 0 | U173: ='EDIT Amort Adj'!G173*$U$1 -> 0 | V173: ='OYF Savings'!G173*$V$1 -> 0 | W173: ='RNGT -NGV Volume'!G181*$W$1 -> 0 | X173: =Pension!G173*$X$1 -> 0 | Y173: ='Optional Adjustment 23'!G173*$Y$1 -> 0 | Z173: ='Optional Adjustment 1'!G173*$Z$1 -> 0 | AA173: ='Optional Adjustment 2'!G173*$AA$1 -> 0 | AB173: ='Optional Adjustment 3'!G173*$AB$1 -> 0 | AC173: ='Optional Adjustment 4'!G173*$AC$1 -> 0 | AD173: ='Optional Adjustment 5'!G173*$AD$1 -> 0 | AE173: ='Optional Adjustment 6'!G173*$AE$1 -> 0 | AF173: ='Optional Adjustment 7'!G173*$AF$1 -> 0 | AG173: ='Optional Adjustment 8'!G173*$AG$1 -> 0 | AH173: ='Optional Adjustment 9'!G173*$AH$1 -> 0 | AI173: ='Optional Adjustment 10'!G173*$AI$1 -> 0 | AJ173: ='Optional Adjustment 11'!G173*$AJ$1 -> 0 | AK173: ='Optional Adjustment 12'!G173*$AK$1 -> 0 | AL173: ='Optional Adjustment 13'!G173*$AL$1 -> 0 | AM173: ='Optional Adjustment 14'!G173*$AM$1 -> 0 | AN173: ='Optional Adjustment 15'!G173*$AN$1 -> 0 | AO173: ='Optional Adjustment 16'!G173*$AO$1 -> 0 | AP173: ='Optional Adjustment 17'!G173*$AP$1 -> 0 | AQ173: ='Optional Adjustment 18'!G173*$AQ$1 -> 0 | AR173: ='Optional Adjustment 19'!G173*$AR$1 -> 0 | AS173: ='Optional Adjustment 20'!G173*$AS$1 -> 0 | AT173: ='Optional Adjustment 21'!G173*$AT$1 -> 0 | AU173: ='Optional Adjustment 22'!G173*$AU$1 -> 0 | AW173: =SUM(F173:AV173) -> 0 | AY173: =SUM(AW173:AW173) -> 0 | AZ173: =+AY173-'ROR-Model'!G173 -> 0
C174: Total Revenue | F174: =SUM(F169:F173) -> 0 | H174: =H1*SUM(H169:H173) -> 0 | I174: =SUM(I169:I173) -> 0 | J174: =SUM(J169:J173) -> 0 | K174: 0 | L174: 0 | M174: 0 | N174: 0 | O174: 0 | P174: 0 | Q174: =SUM(Q169:Q173) -> 0 | R174: 0 | S174: =SUM(S169:S173) -> 0 | T174: 0 | U174: 0 | V174: 0 | W174: 0 | X174: 0 | Y174: 0 | Z174: =SUM(Z169:Z173) -> 0 | AA174: 0 | AB174: 0 | AC174: 0 | AD174: 0 | AE174: 0 | AF174: 0 | AG174: 0 | AH174: 0 | AI174: 0 | AJ174: =SUM(AJ169:AJ173) -> 0 | AK174: 0 | AL174: 0 | AM174: 0 | AN174: =SUM(AN169:AN173) -> 0 | AO174: 0 | AP174: 0 | AQ174: 0 | AR174: 0 | AS174: =SUM(AS169:AS173) -> 0 | AT174: 0 | AU174: 0 | AW174: =SUM(AW169:AW173) -> 0 | AY174: =SUM(AY169:AY173) -> 0 | AZ174: =+AY174-'ROR-Model'!G174 -> 0
AZ175: =+AY175-'ROR-Model'!G175 -> 0
C176: Total Dth | H176: =H1*Revenue!$S$175 -> 0 | AW176: =SUM(F176:AV176) -> 0 | AY176: =SUM(AW176:AW176) -> 0 | AZ176: =+AY176-'ROR-Model'!G176 -> 0
AZ177: =+AY177-'ROR-Model'!G177 -> 0
B178: FT-2C | C178: Distribution Non-Gas Rev | H178: =H1*Revenue!$S$177 -> 0 | S178: =0*'Transition Costs'!E178*$U$1 -> 0 | T178: ='EDIT Amort Adj'!F178*$U$1 -> 0 | U178: ='EDIT Amort Adj'!G178*$U$1 -> 0 | V178: ='OYF Savings'!G178*$V$1 -> 0 | W178: ='RNGT -NGV Volume'!G186*$W$1 -> 0 | X178: =Pension!G178*$X$1 -> 0 | Y178: ='Optional Adjustment 23'!G178*$Y$1 -> 0 | Z178: ='Optional Adjustment 1'!G178*$Z$1 -> 0 | AA178: ='Optional Adjustment 2'!G178*$AA$1 -> 0 | AB178: ='Optional Adjustment 3'!G178*$AB$1 -> 0 | AC178: ='Optional Adjustment 4'!G178*$AC$1 -> 0 | AD178: ='Optional Adjustment 5'!G178*$AD$1 -> 0 | AE178: ='Optional Adjustment 6'!G178*$AE$1 -> 0 | AF178: ='Optional Adjustment 7'!G178*$AF$1 -> 0 | AG178: ='Optional Adjustment 8'!G178*$AG$1 -> 0 | AH178: ='Optional Adjustment 9'!G178*$AH$1 -> 0 | AI178: ='Optional Adjustment 10'!G178*$AI$1 -> 0 | AJ178: ='Optional Adjustment 11'!G178*$AJ$1 -> 0 | AK178: ='Optional Adjustment 12'!G178*$AK$1 -> 0 | AL178: ='Optional Adjustment 13'!G178*$AL$1 -> 0 | AM178: ='Optional Adjustment 14'!G178*$AM$1 -> 0 | AN178: ='Optional Adjustment 15'!G178*$AN$1 -> 0 | AO178: ='Optional Adjustment 16'!G178*$AO$1 -> 0 | AP178: ='Optional Adjustment 17'!G178*$AP$1 -> 0 | AQ178: ='Optional Adjustment 18'!G178*$AQ$1 -> 0 | AR178: ='Optional Adjustment 19'!G178*$AR$1 -> 0 | AS178: ='Optional Adjustment 20'!G178*$AS$1 -> 0 | AT178: ='Optional Adjustment 21'!G178*$AT$1 -> 0 | AU178: ='Optional Adjustment 22'!G178*$AU$1 -> 0 | AW178: =SUM(F178:AV178) -> 0 | AY178: =SUM(AW178:AW178) -> 0 | AZ178: =+AY178-'ROR-Model'!G178 -> 0
AZ179: =+AY179-'ROR-Model'!G179 -> 0
C180: Supplier Non-Gas Revenue | H180: =H1*Revenue!$S$179 -> 0 | S180: =0*'Transition Costs'!E180*$U$1 -> 0 | T180: ='EDIT Amort Adj'!F180*$U$1 -> 0 | U180: ='EDIT Amort Adj'!G180*$U$1 -> 0 | V180: ='OYF Savings'!G180*$V$1 -> 0 | W180: ='RNGT -NGV Volume'!G188*$W$1 -> 0 | X180: =Pension!G180*$X$1 -> 0 | Y180: ='Optional Adjustment 23'!G180*$Y$1 -> 0 | Z180: ='Optional Adjustment 1'!G180*$Z$1 -> 0 | AA180: ='Optional Adjustment 2'!G180*$AA$1 -> 0 | AB180: ='Optional Adjustment 3'!G180*$AB$1 -> 0 | AC180: ='Optional Adjustment 4'!G180*$AC$1 -> 0 | AD180: ='Optional Adjustment 5'!G180*$AD$1 -> 0 | AE180: ='Optional Adjustment 6'!G180*$AE$1 -> 0 | AF180: ='Optional Adjustment 7'!G180*$AF$1 -> 0 | AG180: ='Optional Adjustment 8'!G180*$AG$1 -> 0 | AH180: ='Optional Adjustment 9'!G180*$AH$1 -> 0 | AI180: ='Optional Adjustment 10'!G180*$AI$1 -> 0 | AJ180: ='Optional Adjustment 11'!G180*$AJ$1 -> 0 | AK180: ='Optional Adjustment 12'!G180*$AK$1 -> 0 | AL180: ='Optional Adjustment 13'!G180*$AL$1 -> 0 | AM180: ='Optional Adjustment 14'!G180*$AM$1 -> 0 | AN180: ='Optional Adjustment 15'!G180*$AN$1 -> 0 | AO180: ='Optional Adjustment 16'!G180*$AO$1 -> 0 | AP180: ='Optional Adjustment 17'!G180*$AP$1 -> 0 | AQ180: ='Optional Adjustment 18'!G180*$AQ$1 -> 0 | AR180: ='Optional Adjustment 19'!G180*$AR$1 -> 0 | AS180: ='Optional Adjustment 20'!G180*$AS$1 -> 0 | AT180: ='Optional Adjustment 21'!G180*$AT$1 -> 0 | AU180: ='Optional Adjustment 22'!G180*$AU$1 -> 0 | AW180: =SUM(F180:AV180) -> 0 | AY180: =SUM(AW180:AW180) -> 0 | AZ180: =+AY180-'ROR-Model'!G180 -> 0
AZ181: =+AY181-'ROR-Model'!G181 -> 0
C182: Commodity Revenue | H182: =H1*Revenue!$S$181 -> 0 | S182: =0*'Transition Costs'!E182*$U$1 -> 0 | T182: ='EDIT Amort Adj'!F182*$U$1 -> 0 | U182: ='EDIT Amort Adj'!G182*$U$1 -> 0 | V182: ='OYF Savings'!G182*$V$1 -> 0 | W182: ='RNGT -NGV Volume'!G190*$W$1 -> 0 | X182: =Pension!G182*$X$1 -> 0 | Y182: ='Optional Adjustment 23'!G182*$Y$1 -> 0 | Z182: ='Optional Adjustment 1'!G182*$Z$1 -> 0 | AA182: ='Optional Adjustment 2'!G182*$AA$1 -> 0 | AB182: ='Optional Adjustment 3'!G182*$AB$1 -> 0 | AC182: ='Optional Adjustment 4'!G182*$AC$1 -> 0 | AD182: ='Optional Adjustment 5'!G182*$AD$1 -> 0 | AE182: ='Optional Adjustment 6'!G182*$AE$1 -> 0 | AF182: ='Optional Adjustment 7'!G182*$AF$1 -> 0 | AG182: ='Optional Adjustment 8'!G182*$AG$1 -> 0 | AH182: ='Optional Adjustment 9'!G182*$AH$1 -> 0 | AI182: ='Optional Adjustment 10'!G182*$AI$1 -> 0 | AJ182: ='Optional Adjustment 11'!G182*$AJ$1 -> 0 | AK182: ='Optional Adjustment 12'!G182*$AK$1 -> 0 | AL182: ='Optional Adjustment 13'!G182*$AL$1 -> 0 | AM182: ='Optional Adjustment 14'!G182*$AM$1 -> 0 | AN182: ='Optional Adjustment 15'!G182*$AN$1 -> 0 | AO182: ='Optional Adjustment 16'!G182*$AO$1 -> 0 | AP182: ='Optional Adjustment 17'!G182*$AP$1 -> 0 | AQ182: ='Optional Adjustment 18'!G182*$AQ$1 -> 0 | AR182: ='Optional Adjustment 19'!G182*$AR$1 -> 0 | AS182: ='Optional Adjustment 20'!G182*$AS$1 -> 0 | AT182: ='Optional Adjustment 21'!G182*$AT$1 -> 0 | AU182: ='Optional Adjustment 22'!G182*$AU$1 -> 0 | AW182: =SUM(F182:AV182) -> 0 | AY182: =SUM(AW182:AW182) -> 0 | AZ182: =+AY182-'ROR-Model'!G182 -> 0
C183: Total Revenue | F183: =SUM(F178:F182) -> 0 | H183: =H1*SUM(H178:H182) -> 0 | I183: =SUM(I178:I182) -> 0 | J183: =SUM(J178:J182) -> 0 | K183: 0 | L183: 0 | M183: 0 | N183: 0 | O183: 0 | P183: 0 | Q183: =SUM(Q178:Q182) -> 0 | R183: 0 | S183: =SUM(S178:S182) -> 0 | T183: 0 | U183: 0 | V183: 0 | W183: 0 | X183: 0 | Y183: 0 | Z183: =SUM(Z178:Z182) -> 0 | AA183: 0 | AB183: 0 | AC183: 0 | AD183: 0 | AE183: 0 | AF183: 0 | AG183: 0 | AH183: 0 | AI183: 0 | AJ183: =SUM(AJ178:AJ182) -> 0 | AK183: 0 | AL183: 0 | AM183: 0 | AN183: =SUM(AN178:AN182) -> 0 | AO183: 0 | AP183: 0 | AQ183: 0 | AR183: 0 | AS183: =SUM(AS178:AS182) -> 0 | AT183: 0 | AU183: 0 | AW183: =SUM(AW178:AW182) -> 0 | AY183: =SUM(AY178:AY182) -> 0 | AZ183: =+AY183-'ROR-Model'!G183 -> 0
AZ184: =+AY184-'ROR-Model'!G184 -> 0
C185: Total Dth | H185: =H1*Revenue!$S$184 -> 0 | AW185: =SUM(F185:AV185) -> 0 | AY185: =SUM(AW185:AW185) -> 0 | AZ185: =+AY185-'ROR-Model'!G185 -> 0
AZ186: =+AY186-'ROR-Model'!G186 -> 0
B187: E-1 | C187: Distribution Non-Gas Rev | H187: =H1*Revenue!$S$186 -> 0 | S187: =0*'Transition Costs'!E187*$U$1 -> 0 | T187: ='EDIT Amort Adj'!F187*$U$1 -> 0 | U187: ='EDIT Amort Adj'!G187*$U$1 -> 0 | V187: ='OYF Savings'!G187*$V$1 -> 0 | W187: ='RNGT -NGV Volume'!G195*$W$1 -> 0 | X187: =Pension!G187*$X$1 -> 0 | Y187: ='Optional Adjustment 23'!G187*$Y$1 -> 0 | Z187: ='Optional Adjustment 1'!G187*$Z$1 -> 0 | AA187: ='Optional Adjustment 2'!G187*$AA$1 -> 0 | AB187: ='Optional Adjustment 3'!G187*$AB$1 -> 0 | AC187: ='Optional Adjustment 4'!G187*$AC$1 -> 0 | AD187: ='Optional Adjustment 5'!G187*$AD$1 -> 0 | AE187: ='Optional Adjustment 6'!G187*$AE$1 -> 0 | AF187: ='Optional Adjustment 7'!G187*$AF$1 -> 0 | AG187: ='Optional Adjustment 8'!G187*$AG$1 -> 0 | AH187: ='Optional Adjustment 9'!G187*$AH$1 -> 0 | AI187: ='Optional Adjustment 10'!G187*$AI$1 -> 0 | AJ187: ='Optional Adjustment 11'!G187*$AJ$1 -> 0 | AK187: ='Optional Adjustment 12'!G187*$AK$1 -> 0 | AL187: ='Optional Adjustment 13'!G187*$AL$1 -> 0 | AM187: ='Optional Adjustment 14'!G187*$AM$1 -> 0 | AN187: ='Optional Adjustment 15'!G187*$AN$1 -> 0 | AO187: ='Optional Adjustment 16'!G187*$AO$1 -> 0 | AP187: ='Optional Adjustment 17'!G187*$AP$1 -> 0 | AQ187: ='Optional Adjustment 18'!G187*$AQ$1 -> 0 | AR187: ='Optional Adjustment 19'!G187*$AR$1 -> 0 | AS187: ='Optional Adjustment 20'!G187*$AS$1 -> 0 | AT187: ='Optional Adjustment 21'!G187*$AT$1 -> 0 | AU187: ='Optional Adjustment 22'!G187*$AU$1 -> 0 | AW187: =SUM(F187:AV187) -> 0 | AY187: =SUM(AW187:AW187) -> 0 | AZ187: =+AY187-'ROR-Model'!G187 -> 0
AZ188: =+AY188-'ROR-Model'!G188 -> 0
C189: Supplier Non-Gas Revenue | H189: =H1*Revenue!$S$188 -> 0 | S189: =0*'Transition Costs'!E189*$U$1 -> 0 | T189: ='EDIT Amort Adj'!F189*$U$1 -> 0 | U189: ='EDIT Amort Adj'!G189*$U$1 -> 0 | V189: ='OYF Savings'!G189*$V$1 -> 0 | W189: ='RNGT -NGV Volume'!G197*$W$1 -> 0 | X189: =Pension!G189*$X$1 -> 0 | Y189: ='Optional Adjustment 23'!G189*$Y$1 -> 0 | Z189: ='Optional Adjustment 1'!G189*$Z$1 -> 0 | AA189: ='Optional Adjustment 2'!G189*$AA$1 -> 0 | AB189: ='Optional Adjustment 3'!G189*$AB$1 -> 0 | AC189: ='Optional Adjustment 4'!G189*$AC$1 -> 0 | AD189: ='Optional Adjustment 5'!G189*$AD$1 -> 0 | AE189: ='Optional Adjustment 6'!G189*$AE$1 -> 0 | AF189: ='Optional Adjustment 7'!G189*$AF$1 -> 0 | AG189: ='Optional Adjustment 8'!G189*$AG$1 -> 0 | AH189: ='Optional Adjustment 9'!G189*$AH$1 -> 0 | AI189: ='Optional Adjustment 10'!G189*$AI$1 -> 0 | AJ189: ='Optional Adjustment 11'!G189*$AJ$1 -> 0 | AK189: ='Optional Adjustment 12'!G189*$AK$1 -> 0 | AL189: ='Optional Adjustment 13'!G189*$AL$1 -> 0 | AM189: ='Optional Adjustment 14'!G189*$AM$1 -> 0 | AN189: ='Optional Adjustment 15'!G189*$AN$1 -> 0 | AO189: ='Optional Adjustment 16'!G189*$AO$1 -> 0 | AP189: ='Optional Adjustment 17'!G189*$AP$1 -> 0 | AQ189: ='Optional Adjustment 18'!G189*$AQ$1 -> 0 | AR189: ='Optional Adjustment 19'!G189*$AR$1 -> 0 | AS189: ='Optional Adjustment 20'!G189*$AS$1 -> 0 | AT189: ='Optional Adjustment 21'!G189*$AT$1 -> 0 | AU189: ='Optional Adjustment 22'!G189*$AU$1 -> 0 | AW189: =SUM(F189:AV189) -> 0 | AY189: =SUM(AW189:AW189) -> 0 | AZ189: =+AY189-'ROR-Model'!G189 -> 0
AZ190: =+AY190-'ROR-Model'!G190 -> 0
C191: Commodity Revenue | H191: =H1*Revenue!$S$190 -> 0 | S191: =0*'Transition Costs'!E191*$U$1 -> 0 | T191: ='EDIT Amort Adj'!F191*$U$1 -> 0 | U191: ='EDIT Amort Adj'!G191*$U$1 -> 0 | V191: ='OYF Savings'!G191*$V$1 -> 0 | W191: ='RNGT -NGV Volume'!G199*$W$1 -> 0 | X191: =Pension!G191*$X$1 -> 0 | Y191: ='Optional Adjustment 23'!G191*$Y$1 -> 0 | Z191: ='Optional Adjustment 1'!G191*$Z$1 -> 0 | AA191: ='Optional Adjustment 2'!G191*$AA$1 -> 0 | AB191: ='Optional Adjustment 3'!G191*$AB$1 -> 0 | AC191: ='Optional Adjustment 4'!G191*$AC$1 -> 0 | AD191: ='Optional Adjustment 5'!G191*$AD$1 -> 0 | AE191: ='Optional Adjustment 6'!G191*$AE$1 -> 0 | AF191: ='Optional Adjustment 7'!G191*$AF$1 -> 0 | AG191: ='Optional Adjustment 8'!G191*$AG$1 -> 0 | AH191: ='Optional Adjustment 9'!G191*$AH$1 -> 0 | AI191: ='Optional Adjustment 10'!G191*$AI$1 -> 0 | AJ191: ='Optional Adjustment 11'!G191*$AJ$1 -> 0 | AK191: ='Optional Adjustment 12'!G191*$AK$1 -> 0 | AL191: ='Optional Adjustment 13'!G191*$AL$1 -> 0 | AM191: ='Optional Adjustment 14'!G191*$AM$1 -> 0 | AN191: ='Optional Adjustment 15'!G191*$AN$1 -> 0 | AO191: ='Optional Adjustment 16'!G191*$AO$1 -> 0 | AP191: ='Optional Adjustment 17'!G191*$AP$1 -> 0 | AQ191: ='Optional Adjustment 18'!G191*$AQ$1 -> 0 | AR191: ='Optional Adjustment 19'!G191*$AR$1 -> 0 | AS191: ='Optional Adjustment 20'!G191*$AS$1 -> 0 | AT191: ='Optional Adjustment 21'!G191*$AT$1 -> 0 | AU191: ='Optional Adjustment 22'!G191*$AU$1 -> 0 | AW191: =SUM(F191:AV191) -> 0 | AY191: =SUM(AW191:AW191) -> 0 | AZ191: =+AY191-'ROR-Model'!G191 -> 0
C192: Total Revenue | F192: =SUM(F187:F191) -> 0 | H192: =H1*SUM(H187:H191) -> 0 | I192: =SUM(I187:I191) -> 0 | J192: =SUM(J187:J191) -> 0 | K192: 0 | L192: 0 | M192: 0 | N192: 0 | O192: 0 | P192: 0 | Q192: =SUM(Q187:Q191) -> 0 | R192: 0 | S192: =SUM(S187:S191) -> 0 | T192: 0 | U192: 0 | V192: 0 | W192: 0 | X192: 0 | Y192: 0 | Z192: =SUM(Z187:Z191) -> 0 | AA192: 0 | AB192: 0 | AC192: 0 | AD192: 0 | AE192: 0 | AF192: 0 | AG192: 0 | AH192: 0 | AI192: 0 | AJ192: =SUM(AJ187:AJ191) -> 0 | AK192: 0 | AL192: 0 | AM192: 0 | AN192: =SUM(AN187:AN191) -> 0 | AO192: 0 | AP192: 0 | AQ192: 0 | AR192: 0 | AS192: =SUM(AS187:AS191) -> 0 | AT192: 0 | AU192: 0 | AW192: =SUM(AW187:AW191) -> 0 | AY192: =SUM(AY187:AY191) -> 0 | AZ192: =+AY192-'ROR-Model'!G192 -> 0
AZ193: =+AY193-'ROR-Model'!G193 -> 0
C194: Total Dth | H194: =H1*Revenue!$S$193 -> 0 | AW194: =SUM(F194:AV194) -> 0 | AY194: =SUM(AW194:AW194) -> 0 | AZ194: =+AY194-'ROR-Model'!G194 -> 0
AZ195: =+AY195-'ROR-Model'!G195 -> 0
B196: CET | C196: Distribution Non-Gas Revenue | F196: 0 | H196: =H1*Revenue!$S$195 -> 3883550.45 | I196: 0 | J196: 0 | K196: 0 | L196: 0 | M196: 0 | N196: 0 | O196: 0 | P196: 0 | Q196: 0 | R196: 0 | S196: =0*'Transition Costs'!E196*$U$1 -> 0 | T196: ='EDIT Amort Adj'!F196*$U$1 -> 0 | U196: ='EDIT Amort Adj'!G196*$U$1 -> 0 | V196: ='OYF Savings'!G196*$V$1 -> 0 | W196: ='RNGT -NGV Volume'!G204*$W$1 -> 0 | X196: =Pension!G196*$X$1 -> 0 | Y196: ='Optional Adjustment 23'!G196*$Y$1 -> 0 | Z196: ='Optional Adjustment 1'!G196*$Z$1 -> 0 | AA196: ='Optional Adjustment 2'!G196*$AA$1 -> 0 | AB196: ='Optional Adjustment 3'!G196*$AB$1 -> 0 | AC196: ='Optional Adjustment 4'!G196*$AC$1 -> 0 | AD196: ='Optional Adjustment 5'!G196*$AD$1 -> 0 | AE196: ='Optional Adjustment 6'!G196*$AE$1 -> 0 | AF196: ='Optional Adjustment 7'!G196*$AF$1 -> 0 | AG196: ='Optional Adjustment 8'!G196*$AG$1 -> 0 | AH196: ='Optional Adjustment 9'!G196*$AH$1 -> 0 | AI196: ='Optional Adjustment 10'!G196*$AI$1 -> 0 | AJ196: ='Optional Adjustment 11'!G196*$AJ$1 -> 0 | AK196: ='Optional Adjustment 12'!G196*$AK$1 -> 0 | AL196: ='Optional Adjustment 13'!G196*$AL$1 -> 0 | AM196: ='Optional Adjustment 14'!G196*$AM$1 -> 0 | AN196: ='Optional Adjustment 15'!G196*$AN$1 -> 0 | AO196: ='Optional Adjustment 16'!G196*$AO$1 -> 0 | AP196: ='Optional Adjustment 17'!G196*$AP$1 -> 0 | AQ196: ='Optional Adjustment 18'!G196*$AQ$1 -> 0 | AR196: ='Optional Adjustment 19'!G196*$AR$1 -> 0 | AS196: ='Optional Adjustment 20'!G196*$AS$1 -> 0 | AT196: ='Optional Adjustment 21'!G196*$AT$1 -> 0 | AU196: ='Optional Adjustment 22'!G196*$AU$1 -> 0 | AW196: =SUM(F196:AV196) -> 3883550.45 | AY196: =SUM(AW196:AW196) -> 3883550.45 | AZ196: =+AY196-'ROR-Model'!G196 -> 0
B197: DSM | C197: Distribution Non-Gas Revenue | F197: 0 | H197: =H1*Revenue!$S$196 -> -23887961.54 | I197: 0 | J197: 0 | K197: =K1*'ENERGY EFFICIENCY SERVICES ADJ'!H12 -> 0 | L197: 0 | M197: 0 | N197: 0 | O197: 0 | P197: 0 | Q197: 0 | R197: 0 | S197: =0*'Transition Costs'!E197*$U$1 -> 0 | T197: ='EDIT Amort Adj'!F197*$U$1 -> 0 | U197: ='EDIT Amort Adj'!G197*$U$1 -> 0 | V197: ='OYF Savings'!G197*$V$1 -> 0 | W197: ='RNGT -NGV Volume'!G205*$W$1 -> 0 | X197: =Pension!G197*$X$1 -> 0 | Y197: ='Optional Adjustment 23'!G197*$Y$1 -> 0 | Z197: ='Optional Adjustment 1'!G197*$Z$1 -> 0 | AA197: ='Optional Adjustment 2'!G197*$AA$1 -> 0 | AB197: ='Optional Adjustment 3'!G197*$AB$1 -> 0 | AC197: ='Optional Adjustment 4'!G197*$AC$1 -> 0 | AD197: ='Optional Adjustment 5'!G197*$AD$1 -> 0 | AE197: ='Optional Adjustment 6'!G197*$AE$1 -> 0 | AF197: ='Optional Adjustment 7'!G197*$AF$1 -> 0 | AG197: ='Optional Adjustment 8'!G197*$AG$1 -> 0 | AH197: ='Optional Adjustment 9'!G197*$AH$1 -> 0 | AI197: ='Optional Adjustment 10'!G197*$AI$1 -> 0 | AJ197: ='Optional Adjustment 11'!G197*$AJ$1 -> 0 | AK197: ='Optional Adjustment 12'!G197*$AK$1 -> 0 | AL197: ='Optional Adjustment 13'!G197*$AL$1 -> 0 | AM197: ='Optional Adjustment 14'!G197*$AM$1 -> 0 | AN197: ='Optional Adjustment 15'!G197*$AN$1 -> 0 | AO197: ='Optional Adjustment 16'!G197*$AO$1 -> 0 | AP197: ='Optional Adjustment 17'!G197*$AP$1 -> 0 | AQ197: ='Optional Adjustment 18'!G197*$AQ$1 -> 0 | AR197: ='Optional Adjustment 19'!G197*$AR$1 -> 0 | AS197: ='Optional Adjustment 20'!G197*$AS$1 -> 0 | AT197: ='Optional Adjustment 21'!G197*$AT$1 -> 0 | AU197: ='Optional Adjustment 22'!G197*$AU$1 -> 0 | AW197: =SUM(F197:AV197) -> -23887961.54 | AY197: =SUM(AW197:AW197) -> -23887961.54 | AZ197: =+AY197-'ROR-Model'!G197 -> 0
B198: Utah Totals | AZ198: =+AY198-'ROR-Model'!G198 -> 0
AZ199: =+AY199-'ROR-Model'!G199 -> 0
C200: Distribution Non-Gas Rev | F200: =+F16+F34+F43+F52+F61+F70+F79+F88+F97+F106+F115+F124+F133+F142+F151+F160+F169+F178+F187+F25+F196+F197 -> 0 | H200: =+H16+H34+H43+H52+H61+H70+H79+H88+H97+H106+H115+H124+H133+H142+H151+H160+H169+H178+H187+H25+H196+H197 -> 4610017.025 | I200: =+I16+I34+I43+I52+I61+I70+I79+I88+I97+I106+I115+I124+I133+I142+I151+I160+I169+I178+I187+I25+I196+I197 -> 0 | J200: 0 | K200: =+K16+K34+K43+K52+K61+K70+K79+K88+K97+K106+K115+K124+K133+K142+K151+K160+K169+K178+K187+K25+K196+K197 -> 0 | L200: 0 | M200: 0 | N200: 0 | O200: 0 | P200: 0 | Q200: 0 | R200: =+R16+R34+R43+R52+R61+R70+R79+R88+R97+R106+R115+R124+R133+R142+R151+R160+R169+R178+R187+R25+R196+R197 -> 0 | S200: =0*'Transition Costs'!E200*$U$1 -> 0 | T200: ='EDIT Amort Adj'!F200*$U$1 -> 0 | U200: ='EDIT Amort Adj'!G200*$U$1 -> 0 | V200: ='OYF Savings'!G200*$V$1 -> 0 | W200: ='RNGT -NGV Volume'!G208*$W$1 -> 599041.8 | X200: =Pension!G200*$X$1 -> 0 | Y200: ='Optional Adjustment 23'!G200*$Y$1 -> 0 | Z200: ='Optional Adjustment 1'!G200*$Z$1 -> 0 | AA200: ='Optional Adjustment 2'!G200*$AA$1 -> 0 | AB200: ='Optional Adjustment 3'!G200*$AB$1 -> 0 | AC200: ='Optional Adjustment 4'!G200*$AC$1 -> 0 | AD200: ='Optional Adjustment 5'!G200*$AD$1 -> 0 | AE200: ='Optional Adjustment 6'!G200*$AE$1 -> 0 | AF200: ='Optional Adjustment 7'!G200*$AF$1 -> 0 | AG200: ='Optional Adjustment 8'!G200*$AG$1 -> 0 | AH200: ='Optional Adjustment 9'!G200*$AH$1 -> 0 | AI200: ='Optional Adjustment 10'!G200*$AI$1 -> 0 | AJ200: ='Optional Adjustment 11'!G200*$AJ$1 -> 0 | AK200: ='Optional Adjustment 12'!G200*$AK$1 -> 0 | AL200: ='Optional Adjustment 13'!G200*$AL$1 -> 0 | AM200: ='Optional Adjustment 14'!G200*$AM$1 -> 0 | AN200: ='Optional Adjustment 15'!G200*$AN$1 -> 0 | AO200: ='Optional Adjustment 16'!G200*$AO$1 -> 0 | AP200: ='Optional Adjustment 17'!G200*$AP$1 -> 0 | AQ200: ='Optional Adjustment 18'!G200*$AQ$1 -> 0 | AR200: ='Optional Adjustment 19'!G200*$AR$1 -> 0 | AS200: ='Optional Adjustment 20'!G200*$AS$1 -> 0 | AT200: ='Optional Adjustment 21'!G200*$AT$1 -> 0 | AU200: ='Optional Adjustment 22'!G200*$AU$1 -> 0 | AW200: =+AW16+AW34+AW43+AW52+AW61+AW70+AW79+AW88+AW97+AW106+AW115+AW124+AW133+AW142+AW151+AW160+AW169+AW178+AW187+AW25+AW196+AW197 -> 5209058.825 | AY200: =+AY16+AY34+AY43+AY52+AY61+AY70+AY79+AY88+AY97+AY106+AY115+AY124+AY133+AY142+AY151+AY160+AY169+AY178+AY187+AY25+AY196+AY197 -> 5209058.825 | AZ200: =+AY200-'ROR-Model'!G200 -> 0
C201: Supplier Non-Gas Revenue | F201: =F1*+F18+F36+F45+F54+F62+F63+F72+F81+F90+F99+F108+F117+F126+F135+F144+F153+F162+F171+F180+F189+F27 -> 0 | H201: =H1*+H18+H36+H45+H54+H62+H63+H72+H81+H90+H99+H108+H117+H126+H135+H144+H153+H162+H171+H180+H189+H27 -> -686436.18 | I201: =I1*+I18+I36+I45+I54+I62+I63+I72+I81+I90+I99+I108+I117+I126+I135+I144+I153+I162+I171+I180+I189+I27 -> 0 | J201: =J1*+J18+J36+J45+J54+J62+J63+J72+J81+J90+J99+J108+J117+J126+J135+J144+J153+J162+J171+J180+J189+J27 -> 0 | K201: 0 | L201: 0 | M201: 0 | N201: 0 | O201: 0 | P201: 0 | Q201: 0 | R201: =R1*+R18+R36+R45+R54+R62+R63+R72+R81+R90+R99+R108+R117+R126+R135+R144+R153+R162+R171+R180+R189+R27 -> 0 | S201: =0*'Transition Costs'!E201*$U$1 -> 0 | T201: ='EDIT Amort Adj'!F201*$U$1 -> 0 | U201: ='EDIT Amort Adj'!G201*$U$1 -> 0 | V201: ='OYF Savings'!G201*$V$1 -> 0 | W201: ='RNGT -NGV Volume'!G209*$W$1 -> 0 | X201: =Pension!G201*$X$1 -> 0 | Y201: ='Optional Adjustment 23'!G201*$Y$1 -> 0 | Z201: ='Optional Adjustment 1'!G201*$Z$1 -> 0 | AA201: ='Optional Adjustment 2'!G201*$AA$1 -> 0 | AB201: ='Optional Adjustment 3'!G201*$AB$1 -> 0 | AC201: ='Optional Adjustment 4'!G201*$AC$1 -> 0 | AD201: ='Optional Adjustment 5'!G201*$AD$1 -> 0 | AE201: ='Optional Adjustment 6'!G201*$AE$1 -> 0 | AF201: ='Optional Adjustment 7'!G201*$AF$1 -> 0 | AG201: ='Optional Adjustment 8'!G201*$AG$1 -> 0 | AH201: ='Optional Adjustment 9'!G201*$AH$1 -> 0 | AI201: ='Optional Adjustment 10'!G201*$AI$1 -> 0 | AJ201: ='Optional Adjustment 11'!G201*$AJ$1 -> 0 | AK201: ='Optional Adjustment 12'!G201*$AK$1 -> 0 | AL201: ='Optional Adjustment 13'!G201*$AL$1 -> 0 | AM201: ='Optional Adjustment 14'!G201*$AM$1 -> 0 | AN201: ='Optional Adjustment 15'!G201*$AN$1 -> 0 | AO201: ='Optional Adjustment 16'!G201*$AO$1 -> 0 | AP201: ='Optional Adjustment 17'!G201*$AP$1 -> 0 | AQ201: ='Optional Adjustment 18'!G201*$AQ$1 -> 0 | AR201: ='Optional Adjustment 19'!G201*$AR$1 -> 0 | AS201: ='Optional Adjustment 20'!G201*$AS$1 -> 0 | AT201: ='Optional Adjustment 21'!G201*$AT$1 -> 0 | AU201: ='Optional Adjustment 22'!G201*$AU$1 -> 0 | AW201: =+AW18+AW36+AW45+AW54+AW62+AW63+AW72+AW81+AW90+AW99+AW108+AW117+AW126+AW135+AW144+AW153+AW162+AW171+AW180+AW189+AW27 -> -686436.18 | AY201: =+AY18+AY36+AY45+AY54+AY62+AY63+AY72+AY81+AY90+AY99+AY108+AY117+AY126+AY135+AY144+AY153+AY162+AY171+AY180+AY189+AY27 -> -686436.18 | AZ201: =+AY201-'ROR-Model'!G201 -> 0
C202: Commodity Revenue | F202: =F1*+F20+F38+F47+F56+F64+F65+F74+F83+F92+F101+F110+F119+F128+F137+F146+F155+F164+F173+F182+F191+F29 -> 0 | H202: =H1*+H20+H38+H47+H56+H64+H65+H74+H83+H92+H101+H110+H119+H128+H137+H146+H155+H164+H173+H182+H191+H29 -> -478157.66 | I202: =I1*+I20+I38+I47+I56+I64+I65+I74+I83+I92+I101+I110+I119+I128+I137+I146+I155+I164+I173+I182+I191+I29 -> 0 | J202: =J1*+J20+J38+J47+J56+J64+J65+J74+J83+J92+J101+J110+J119+J128+J137+J146+J155+J164+J173+J182+J191+J29 -> 0 | K202: 0 | L202: 0 | M202: 0 | N202: 0 | O202: 0 | P202: 0 | Q202: 0 | R202: =R1*+R20+R38+R47+R56+R64+R65+R74+R83+R92+R101+R110+R119+R128+R137+R146+R155+R164+R173+R182+R191+R29 -> 0 | S202: =0*'Transition Costs'!E202*$U$1 -> 0 | T202: ='EDIT Amort Adj'!F202*$U$1 -> 0 | U202: ='EDIT Amort Adj'!G202*$U$1 -> 0 | V202: ='OYF Savings'!G202*$V$1 -> 0 | W202: ='RNGT -NGV Volume'!G210*$W$1 -> 0 | X202: =Pension!G202*$X$1 -> 0 | Y202: ='Optional Adjustment 23'!G202*$Y$1 -> 0 | Z202: ='Optional Adjustment 1'!G202*$Z$1 -> 0 | AA202: ='Optional Adjustment 2'!G202*$AA$1 -> 0 | AB202: ='Optional Adjustment 3'!G202*$AB$1 -> 0 | AC202: ='Optional Adjustment 4'!G202*$AC$1 -> 0 | AD202: ='Optional Adjustment 5'!G202*$AD$1 -> 0 | AE202: ='Optional Adjustment 6'!G202*$AE$1 -> 0 | AF202: ='Optional Adjustment 7'!G202*$AF$1 -> 0 | AG202: ='Optional Adjustment 8'!G202*$AG$1 -> 0 | AH202: ='Optional Adjustment 9'!G202*$AH$1 -> 0 | AI202: ='Optional Adjustment 10'!G202*$AI$1 -> 0 | AJ202: ='Optional Adjustment 11'!G202*$AJ$1 -> 0 | AK202: ='Optional Adjustment 12'!G202*$AK$1 -> 0 | AL202: ='Optional Adjustment 13'!G202*$AL$1 -> 0 | AM202: ='Optional Adjustment 14'!G202*$AM$1 -> 0 | AN202: ='Optional Adjustment 15'!G202*$AN$1 -> 0 | AO202: ='Optional Adjustment 16'!G202*$AO$1 -> 0 | AP202: ='Optional Adjustment 17'!G202*$AP$1 -> 0 | AQ202: ='Optional Adjustment 18'!G202*$AQ$1 -> 0 | AR202: ='Optional Adjustment 19'!G202*$AR$1 -> 0 | AS202: ='Optional Adjustment 20'!G202*$AS$1 -> 0 | AT202: ='Optional Adjustment 21'!G202*$AT$1 -> 0 | AU202: ='Optional Adjustment 22'!G202*$AU$1 -> 0 | AW202: =+AW20+AW38+AW47+AW56+AW64+AW65+AW74+AW83+AW92+AW101+AW110+AW119+AW128+AW137+AW146+AW155+AW164+AW173+AW182+AW191+AW29 -> -478157.66 | AY202: =+AY20+AY38+AY47+AY56+AY64+AY65+AY74+AY83+AY92+AY101+AY110+AY119+AY128+AY137+AY146+AY155+AY164+AY173+AY182+AY191+AY29 -> -478157.66 | AZ202: =+AY202-'ROR-Model'!G202 -> 0
C203: Total Utah Revenue | F203: =+F21+F39+F48+F57+F66+F75+F84+F93+F102+F111+F120+F129+F138+F147+F156+F165+F174+F183+F192+F30+F196+F197 -> 0 | H203: =+H21+H39+H48+H57+H66+H75+H84+H93+H102+H111+H120+H129+H138+H147+H156+H165+H174+H183+H192+H30+H196+H197 -> 3445423.185 | I203: =+I21+I39+I48+I57+I66+I75+I84+I93+I102+I111+I120+I129+I138+I147+I156+I165+I174+I183+I192+I30+I196+I197 -> 0 | J203: 0 | K203: =+K21+K39+K48+K57+K66+K75+K84+K93+K102+K111+K120+K129+K138+K147+K156+K165+K174+K183+K192+K30+K196+K197 -> 0 | L203: 0 | M203: 0 | N203: 0 | O203: =+O21+O39+O48+O57+O66+O75+O84+O93+O102+O111+O120+O129+O138+O147+O156+O165+O174+O183+O192+O30+O196+O197 -> 0 | P203: =+P21+P39+P48+P57+P66+P75+P84+P93+P102+P111+P120+P129+P138+P147+P156+P165+P174+P183+P192+P30+P196+P197 -> 0 | Q203: 0 | R203: =+R21+R39+R48+R57+R66+R75+R84+R93+R102+R111+R120+R129+R138+R147+R156+R165+R174+R183+R192+R30+R196+R197 -> 0 | S203: 0 | T203: =+T21+T39+T48+T57+T66+T75+T84+T93+T102+T111+T120+T129+T138+T147+T156+T165+T174+T183+T192+T30+T196+T197 -> 0 | U203: =+U21+U39+U48+U57+U66+U75+U84+U93+U102+U111+U120+U129+U138+U147+U156+U165+U174+U183+U192+U30+U196+U197 -> 0 | V203: 0 | W203: 599041.8 | X203: 0 | Y203: 0 | Z203: 0 | AA203: 0 | AB203: 0 | AC203: 0 | AD203: 0 | AE203: 0 | AF203: 0 | AG203: 0 | AH203: 0 | AI203: 0 | AJ203: =+AJ21+AJ39+AJ48+AJ57+AJ66+AJ75+AJ84+AJ93+AJ102+AJ111+AJ120+AJ129+AJ138+AJ147+AJ156+AJ165+AJ174+AJ183+AJ192+AJ30+AJ196+AJ197 -> 0 | AK203: 0 | AL203: 0 | AM203: 0 | AN203: =+AN21+AN39+AN48+AN57+AN66+AN75+AN84+AN93+AN102+AN111+AN120+AN129+AN138+AN147+AN156+AN165+AN174+AN183+AN192+AN30+AN196+AN197 -> 0 | AO203: 0 | AP203: 0 | AQ203: 0 | AR203: 0 | AS203: =+AS21+AS39+AS48+AS57+AS66+AS75+AS84+AS93+AS102+AS111+AS120+AS129+AS138+AS147+AS156+AS165+AS174+AS183+AS192+AS30+AS196+AS197 -> 0 | AT203: 0 | AU203: 0 | AW203: 4044464.985 | AY203: 4044464.985
AZ204: =+AY204-'ROR-Model'!G204 -> 0
C205: Sales Dth | F205: =F1*F23+F41+F50+F59+F68+F77+F86+F95+F104+F113+F194+F32 -> 0 | H205: =H1*H23+H41+H50+H59+H68+H77+H86+H95+H104+H113+H194+H32 -> 11890517.11 | I205: =I1*I23+I41+I50+I59+I68+I77+I86+I95+I104+I113+I194+I32 -> 0 | J205: =J1*J23+J41+J50+J59+J68+J77+J86+J95+J104+J113+J194+J32 -> 0 | K205: 0 | L205: 0 | M205: 0 | N205: 0 | O205: 0 | P205: 0 | Q205: 0 | R205: =R1*R23+R41+R50+R59+R68+R77+R86+R95+R104+R113+R194+R32 -> 0 | S205: 0 | T205: =T1*T23+T41+T50+T59+T68+T77+T86+T95+T104+T113+T194+T32 -> 0 | U205: =U1*U23+U41+U50+U59+U68+U77+U86+U95+U104+U113+U194+U32 -> 0 | V205: 0 | W205: 90000 | X205: 0 | Y205: 0 | Z205: =Z1*Z23+Z41+Z50+Z59+Z68+Z77+Z86+Z95+Z104+Z113+Z194+Z32 -> 0 | AA205: 0 | AB205: 0 | AC205: 0 | AD205: 0 | AE205: 0 | AF205: 0 | AG205: 0 | AH205: 0 | AI205: 0 | AJ205: =AJ1*AJ23+AJ41+AJ50+AJ59+AJ68+AJ77+AJ86+AJ95+AJ104+AJ113+AJ194+AJ32 -> 0 | AK205: 0 | AL205: 0 | AM205: 0 | AN205: =AN1*AN23+AN41+AN50+AN59+AN68+AN77+AN86+AN95+AN104+AN113+AN194+AN32 -> 0 | AO205: 0 | AP205: 0 | AQ205: 0 | AR205: 0 | AS205: =AS1*AS23+AS41+AS50+AS59+AS68+AS77+AS86+AS95+AS104+AS113+AS194+AS32 -> 0 | AT205: 0 | AU205: 0 | AW205: =AW23+AW32+AW41+AW50+AW59+AW68+AW77+AW86+AW95+AW104+AW113+AW194 -> 11980517.11 | AY205: =AY23+AY32+AY41+AY50+AY59+AY68+AY77+AY86+AY95+AY104+AY113+AY194 -> 11980517.11 | AZ205: =+AY205-'ROR-Model'!G205 -> 0
... 1031 more rows

Sheet ROR-Model
A1: ='Control Panel'!$B$1 -> Dominion Energy | L1: Jurisdictional Allocation Base Summary
A2: ='Control Panel'!$B$2 -> Utah - DEC 2020 Adjusted Avg Results CET | K2: #1 | L2: Gross Plant | M2: ='Utah Allocation'!D18 -> 0.9657562072 | N2: ='Utah Allocation'!E18 -> 0.03424379283
A3: ='Control Panel'!$B$3 -> 12 Months Ended : Dec-2020 | K3: #2 | L3: Rate Base | M3: ='Utah Allocation'!D35 -> 0.9651863547 | N3: ='Utah Allocation'!E35 -> 0.0348136453
K4: #3 | L4: Sales | M4: ='Utah Allocation'!D46 -> 0.9648691131 | N4: ='Utah Allocation'!E46 -> 0.03513088691
K5: #4 | L5: Utah | M5: 1 | N5: 0 | P5: PT = Pass Through Item
K6: #5 | L6: Wyoming | M6: 0 | N6: 1
F7: Historical | G7: CASE | H7: Imputed | I7: Adjusted | Q7: Utah | T7: Wyoming | W7: HOT
A8: FERC | F8: 12 Months | G8: Adjustments | H8: Tax | I8: System | P8: Utah Method & Allocations | S8: Wyoming Method & Allocations | W8: This Scenario
A9: Account | C9: Description | F9: 2018-12-01 | G9: Total | H9: Adjustment | I9: Total | L9: Alloc Base | M9: Utah | N9: Wyoming | Q9: General | R9: PT | T9: General | U9: PT | W9: =+'Control Panel'!F11 -> Utah
Q10: Utah | T10: Wyoming | Y10: 1
A11: UTILITY OPERATING REVENUE | Y11: =Y10+1 -> 2
Y12: =Y11+1 -> 3
A13: TARIFF DTH SALES AND REVENUE | Y13: 4
Y14: 5
A15: Utah | Y15: 6
B16: GSR | C16: Distribution Non-Gas Rev | F16: =Revenue!$F$15 -> 320787573.9 | G16: =+Adjustments!AY16 -> 20452110.98 | I16: =SUM($F$16:$H$16) -> 341239684.9 | L16: Utah | M16: =VLOOKUP($L16,$L$2:$N$7,2,FALSE)*I16 -> 341239684.9 | N16: =VLOOKUP($L16,$L$2:$N$7,3,FALSE)*I16 -> 0 | P16: G | Q16: =IF(P16="G",M16,IF(P16="PT",0,ERR)) -> 341239684.9 | R16: =IF(P16="PT",M16,IF(P16="G",0,ERR)) -> 0 | S16: G | T16: =IF(S16="G",N16,IF(S16="PT",0,ERR)) -> 0 | U16: =IF(S16="PT",N16,IF(S16="G",0,ERR)) -> 0 | W16: =HLOOKUP($W$9,'ROR-Model'!$Q$10:$U$1274,Y16) -> 341239684.9 | Y16: 7
Y17: 8
C18: Supplier Non-Gas Revenue | F18: =Revenue!$F$17 -> 104955704.5 | G18: =+Adjustments!AY18 -> 0 | I18: =SUM($F$18:$H$18) -> 104955704.5 | L18: Utah | M18: =VLOOKUP($L18,$L$2:$N$7,2,FALSE)*I18 -> 104955704.5 | N18: =VLOOKUP($L18,$L$2:$N$7,3,FALSE)*I18 -> 0 | P18: PT | Q18: =IF(P18="G",M18,IF(P18="PT",0,ERR)) -> 0 | R18: =IF(P18="PT",M18,IF(P18="G",0,ERR)) -> 104955704.5 | S18: PT | T18: =IF(S18="G",N18,IF(S18="PT",0,ERR)) -> 0 | U18: =IF(S18="PT",N18,IF(S18="G",0,ERR)) -> 0 | W18: =HLOOKUP($W$9,'ROR-Model'!$Q$10:$U$1274,Y18) -> 0 | Y18: 9
Y19: 10
C20: Commodity Revenue | F20: =Revenue!$F$19 -> 369426321.5 | G20: =+Adjustments!AY20 -> 0 | I20: =SUM($F$20:$H$20) -> 369426321.5 | L20: Utah | M20: =VLOOKUP($L20,$L$2:$N$7,2,FALSE)*I20 -> 369426321.5 | N20: =VLOOKUP($L20,$L$2:$N$7,3,FALSE)*I20 -> 0 | P20: PT | Q20: =IF(P20="G",M20,IF(P20="PT",0,ERR)) -> 0 | R20: =IF(P20="PT",M20,IF(P20="G",0,ERR)) -> 369426321.5 | S20: PT | T20: =IF(S20="G",N20,IF(S20="PT",0,ERR)) -> 0 | U20: =IF(S20="PT",N20,IF(S20="G",0,ERR)) -> 0 | W20: =HLOOKUP($W$9,'ROR-Model'!$Q$10:$U$1274,Y20) -> 0 | Y20: 11
C21: Total Revenue | F21: =SUM(F16:F20) -> 795169599.9 | G21: =SUM(G16:G20) -> 20452110.98 | H21: =SUM(H16:H20) -> 0 | I21: =SUM(I16:I20) -> 815621710.9 | M21: =SUM(M16:M20) -> 815621710.9 | N21: =SUM(N16:N20) -> 0 | Q21: =SUM(Q16:Q20) -> 341239684.9 | R21: =SUM(R16:R20) -> 474382026 | T21: =SUM(T16:T20) -> 0 | U21: =SUM(U16:U20) -> 0 | W21: =HLOOKUP($W$9,'ROR-Model'!$Q$10:$U$1274,Y21) -> 341239684.9 | Y21: 12
Y22: 13
C23: Total Dth | F23: =Revenue!$F$22 -> 97853908.93 | G23: =+Adjustments!AY23 -> 12668615.07 | I23: =SUM($F$23:$H$23) -> 110522524 | L23: Utah | M23: =VLOOKUP($L23,$L$2:$N$7,2,FALSE)*I23 -> 110522524 | N23: =VLOOKUP($L23,$L$2:$N$7,3,FALSE)*I23 -> 0 | P23: G | Q23: =IF(P23="G",M23,IF(P23="PT",0,ERR)) -> 110522524 | R23: =IF(P23="PT",M23,IF(P23="G",0,ERR)) -> 0 | S23: G | T23: =IF(S23="G",N23,IF(S23="PT",0,ERR)) -> 0 | U23: =IF(S23="PT",N23,IF(S23="G",0,ERR)) -> 0 | W23: =HLOOKUP($W$9,'ROR-Model'!$Q$10:$U$1274,Y23) -> 110522524 | Y23: 14
Y24: 15
B25: GSC | C25: Distribution Non-Gas Rev | F25: =Revenue!$F$24 -> 0 | G25: =+Adjustments!AY25 -> 0 | I25: =SUM($F$25:$H$25) -> 0 | L25: Utah | M25: =VLOOKUP($L25,$L$2:$N$7,2,FALSE)*I25 -> 0 | N25: =VLOOKUP($L25,$L$2:$N$7,3,FALSE)*I25 -> 0 | P25: G | Q25: =IF(P25="G",M25,IF(P25="PT",0,ERR)) -> 0 | R25: =IF(P25="PT",M25,IF(P25="G",0,ERR)) -> 0 | S25: G | T25: =IF(S25="G",N25,IF(S25="PT",0,ERR)) -> 0 | U25: =IF(S25="PT",N25,IF(S25="G",0,ERR)) -> 0 | W25: =HLOOKUP($W$9,'ROR-Model'!$Q$10:$U$1274,Y25) -> 0 | Y25: 16
Y26: 17
C27: Supplier Non-Gas Revenue | F27: =Revenue!$F$26 -> 0 | G27: =+Adjustments!AY27 -> 0 | I27: =SUM($F$27:$H$27) -> 0 | L27: Utah | M27: =VLOOKUP($L27,$L$2:$N$7,2,FALSE)*I27 -> 0 | N27: =VLOOKUP($L27,$L$2:$N$7,3,FALSE)*I27 -> 0 | P27: PT | Q27: =IF(P27="G",M27,IF(P27="PT",0,ERR)) -> 0 | R27: =IF(P27="PT",M27,IF(P27="G",0,ERR)) -> 0 | S27: PT | T27: =IF(S27="G",N27,IF(S27="PT",0,ERR)) -> 0 | U27: =IF(S27="PT",N27,IF(S27="G",0,ERR)) -> 0 | W27: =HLOOKUP($W$9,'ROR-Model'!$Q$10:$U$1274,Y27) -> 0 | Y27: 18
Y28: 19
C29: Commodity Revenue | F29: =Revenue!$F$28 -> 0 | G29: =+Adjustments!AY29 -> 0 | I29: =SUM($F$29:$H$29) -> 0 | L29: Utah | M29: =VLOOKUP($L29,$L$2:$N$7,2,FALSE)*I29 -> 0 | N29: =VLOOKUP($L29,$L$2:$N$7,3,FALSE)*I29 -> 0 | P29: PT | Q29: =IF(P29="G",M29,IF(P29="PT",0,ERR)) -> 0 | R29: =IF(P29="PT",M29,IF(P29="G",0,ERR)) -> 0 | S29: PT | T29: =IF(S29="G",N29,IF(S29="PT",0,ERR)) -> 0 | U29: =IF(S29="PT",N29,IF(S29="G",0,ERR)) -> 0 | W29: =HLOOKUP($W$9,'ROR-Model'!$Q$10:$U$1274,Y29) -> 0 | Y29: 20
C30: Total Revenue | F30: =SUM(F25:F29) -> 0 | G30: =SUM(G25:G29) -> 0 | H30: =SUM(H25:H29) -> 0 | I30: =SUM(I25:I29) -> 0 | M30: =SUM(M25:M29) -> 0 | N30: =SUM(N25:N29) -> 0 | Q30: =SUM(Q25:Q29) -> 0 | R30: =SUM(R25:R29) -> 0 | T30: =SUM(T25:T29) -> 0 | U30: =SUM(U25:U29) -> 0 | W30: =HLOOKUP($W$9,'ROR-Model'!$Q$10:$U$1274,Y30) -> 0 | Y30: 21
Y31: 22
C32: Total Dth | F32: =Revenue!$F$31 -> 0 | G32: =+Adjustments!AY32 -> 0 | I32: =SUM(F32:H32) -> 0 | L32: Utah | M32: =VLOOKUP($L32,$L$2:$N$7,2,FALSE)*I32 -> 0 | N32: =VLOOKUP($L32,$L$2:$N$7,3,FALSE)*I32 -> 0 | P32: G | Q32: =IF(P32="G",M32,IF(P32="PT",0,ERR)) -> 0 | R32: =IF(P32="PT",M32,IF(P32="G",0,ERR)) -> 0 | S32: G | T32: =IF(S32="G",N32,IF(S32="PT",0,ERR)) -> 0 | U32: =IF(S32="PT",N32,IF(S32="G",0,ERR)) -> 0 | W32: =HLOOKUP($W$9,'ROR-Model'!$Q$10:$U$1274,Y32) -> 0 | Y32: 23
Y33: 24
B34: GSS | C34: Distribution Non-Gas Rev | F34: =Revenue!$F$33 -> 0 | G34: =+Adjustments!AY34 -> 0 | I34: =SUM(F34:H34) -> 0 | L34: Utah | M34: =VLOOKUP($L34,$L$2:$N$7,2,FALSE)*I34 -> 0 | N34: =VLOOKUP($L34,$L$2:$N$7,3,FALSE)*I34 -> 0 | P34: G | Q34: =IF(P34="G",M34,IF(P34="PT",0,ERR)) -> 0 | R34: =IF(P34="PT",M34,IF(P34="G",0,ERR)) -> 0 | S34: G | T34: =IF(S34="G",N34,IF(S34="PT",0,ERR)) -> 0 | U34: =IF(S34="PT",N34,IF(S34="G",0,ERR)) -> 0 | W34: =HLOOKUP($W$9,'ROR-Model'!$Q$10:$U$1274,Y34) -> 0 | Y34: 25
Y35: 26
C36: Supplier Non-Gas Revenue | F36: =Revenue!$F$35 -> 0 | G36: =+Adjustments!AY36 -> 0 | I36: =SUM($F$36:$H$36) -> 0 | L36: Utah | M36: =VLOOKUP($L36,$L$2:$N$7,2,FALSE)*I36 -> 0 | N36: =VLOOKUP($L36,$L$2:$N$7,3,FALSE)*I36 -> 0 | P36: PT | Q36: =IF(P36="G",M36,IF(P36="PT",0,ERR)) -> 0 | R36: =IF(P36="PT",M36,IF(P36="G",0,ERR)) -> 0 | S36: PT | T36: =IF(S36="G",N36,IF(S36="PT",0,ERR)) -> 0 | U36: =IF(S36="PT",N36,IF(S36="G",0,ERR)) -> 0 | W36: =HLOOKUP($W$9,'ROR-Model'!$Q$10:$U$1274,Y36) -> 0 | Y36: 27
Y37: 28
C38: Commodity Revenue | F38: =Revenue!$F$37 -> 0 | G38: =+Adjustments!AY38 -> 0 | I38: =SUM($F$38:$H$38) -> 0 | L38: Utah | M38: =VLOOKUP($L38,$L$2:$N$7,2,FALSE)*I38 -> 0 | N38: =VLOOKUP($L38,$L$2:$N$7,3,FALSE)*I38 -> 0 | P38: PT | Q38: =IF(P38="G",M38,IF(P38="PT",0,ERR)) -> 0 | R38: =IF(P38="PT",M38,IF(P38="G",0,ERR)) -> 0 | S38: PT | T38: =IF(S38="G",N38,IF(S38="PT",0,ERR)) -> 0 | U38: =IF(S38="PT",N38,IF(S38="G",0,ERR)) -> 0 | W38: =HLOOKUP($W$9,'ROR-Model'!$Q$10:$U$1274,Y38) -> 0 | Y38: 29
C39: Total Revenue | F39: =SUM(F34:F38) -> 0 | G39: =SUM(G34:G38) -> 0 | H39: =SUM(H34:H38) -> 0 | I39: =SUM(I34:I38) -> 0 | M39: =SUM(M34:M38) -> 0 | N39: =SUM(N34:N38) -> 0 | Q39: =SUM(Q34:Q38) -> 0 | R39: =SUM(R34:R38) -> 0 | T39: =SUM(T34:T38) -> 0 | U39: =SUM(U34:U38) -> 0 | W39: =HLOOKUP($W$9,'ROR-Model'!$Q$10:$U$1274,Y39) -> 0 | Y39: 30
Y40: 31
C41: Total Dth | F41: =Revenue!$F$40 -> 0 | G41: =+Adjustments!AY41 -> 0 | I41: =SUM($F$41:$H$41) -> 0 | L41: Utah | M41: =VLOOKUP($L41,$L$2:$N$7,2,FALSE)*I41 -> 0 | N41: =VLOOKUP($L41,$L$2:$N$7,3,FALSE)*I41 -> 0 | P41: G | Q41: =IF(P41="G",M41,IF(P41="PT",0,ERR)) -> 0 | R41: =IF(P41="PT",M41,IF(P41="G",0,ERR)) -> 0 | S41: G | T41: =IF(S41="G",N41,IF(S41="PT",0,ERR)) -> 0 | U41: =IF(S41="PT",N41,IF(S41="G",0,ERR)) -> 0 | W41: =HLOOKUP($W$9,'ROR-Model'!$Q$10:$U$1274,Y41) -> 0 | Y41: 32
Y42: 33
B43: F-1 | C43: Distribution Non-Gas Rev | F43: =Revenue!$F$42 -> 2951861.35 | G43: =+Adjustments!AY43 -> -315902.5798 | I43: =SUM($F$43:$H$43) -> 2635958.77 | L43: Utah | M43: =VLOOKUP($L43,$L$2:$N$7,2,FALSE)*I43 -> 2635958.77 | N43: =VLOOKUP($L43,$L$2:$N$7,3,FALSE)*I43 -> 0 | P43: G | Q43: =IF(P43="G",M43,IF(P43="PT",0,ERR)) -> 2635958.77 | R43: =IF(P43="PT",M43,IF(P43="G",0,ERR)) -> 0 | S43: G | T43: =IF(S43="G",N43,IF(S43="PT",0,ERR)) -> 0 | U43: =IF(S43="PT",N43,IF(S43="G",0,ERR)) -> 0 | W43: =HLOOKUP($W$9,'ROR-Model'!$Q$10:$U$1274,Y43) -> 2635958.77 | Y43: 34
Y44: 35
C45: Supplier Non-Gas Revenue | F45: =Revenue!$F$44 -> 3121695.61 | G45: =+Adjustments!AY45 -> 0 | I45: =SUM($F$45:$H$45) -> 3121695.61 | L45: Utah | M45: =VLOOKUP($L45,$L$2:$N$7,2,FALSE)*I45 -> 3121695.61 | N45: =VLOOKUP($L45,$L$2:$N$7,3,FALSE)*I45 -> 0 | P45: PT | Q45: =IF(P45="G",M45,IF(P45="PT",0,ERR)) -> 0 | R45: =IF(P45="PT",M45,IF(P45="G",0,ERR)) -> 3121695.61 | S45: PT | T45: =IF(S45="G",N45,IF(S45="PT",0,ERR)) -> 0 | U45: =IF(S45="PT",N45,IF(S45="G",0,ERR)) -> 0 | W45: =HLOOKUP($W$9,'ROR-Model'!$Q$10:$U$1274,Y45) -> 0 | Y45: 36
Y46: 37
C47: Commodity Revenue | F47: =Revenue!$F$46 -> 12763808.2 | G47: =+Adjustments!AY47 -> 0 | I47: =SUM($F$47:$H$47) -> 12763808.2 | L47: Utah | M47: =VLOOKUP($L47,$L$2:$N$7,2,FALSE)*I47 -> 12763808.2 | N47: =VLOOKUP($L47,$L$2:$N$7,3,FALSE)*I47 -> 0 | P47: PT | Q47: =IF(P47="G",M47,IF(P47="PT",0,ERR)) -> 0 | R47: =IF(P47="PT",M47,IF(P47="G",0,ERR)) -> 12763808.2 | S47: PT | T47: =IF(S47="G",N47,IF(S47="PT",0,ERR)) -> 0 | U47: =IF(S47="PT",N47,IF(S47="G",0,ERR)) -> 0 | W47: =HLOOKUP($W$9,'ROR-Model'!$Q$10:$U$1274,Y47) -> 0 | Y47: 38
C48: Total Revenue | F48: =SUM(F43:F47) -> 18837365.16 | G48: =SUM(G43:G47) -> -315902.5798 | H48: =SUM(H43:H47) -> 0 | I48: =SUM(I43:I47) -> 18521462.58 | M48: =SUM(M43:M47) -> 18521462.58 | N48: =SUM(N43:N47) -> 0 | Q48: =SUM(Q43:Q47) -> 2635958.77 | R48: =SUM(R43:R47) -> 15885503.81 | T48: =SUM(T43:T47) -> 0 | U48: =SUM(U43:U47) -> 0 | W48: =HLOOKUP($W$9,'ROR-Model'!$Q$10:$U$1274,Y48) -> 2635958.77 | Y48: 39
Y49: 40
C50: Total Dth | F50: =Revenue!$F$49 -> 3393689.11 | G50: =+Adjustments!AY50 -> -662372.11 | I50: =SUM($F$50:$H$50) -> 2731317 | L50: Utah | M50: =VLOOKUP($L50,$L$2:$N$7,2,FALSE)*I50 -> 2731317 | N50: =VLOOKUP($L50,$L$2:$N$7,3,FALSE)*I50 -> 0 | P50: G | Q50: =IF(P50="G",M50,IF(P50="PT",0,ERR)) -> 2731317 | R50: =IF(P50="PT",M50,IF(P50="G",0,ERR)) -> 0 | S50: G | T50: =IF(S50="G",N50,IF(S50="PT",0,ERR)) -> 0 | U50: =IF(S50="PT",N50,IF(S50="G",0,ERR)) -> 0 | W50: =HLOOKUP($W$9,'ROR-Model'!$Q$10:$U$1274,Y50) -> 2731317 | Y50: 41
Y51: 42
B52: F-3 | C52: Distribution Non-Gas Rev | F52: =Revenue!$F$51 -> 0 | G52: =+Adjustments!AY52 -> 0 | I52: =SUM($F$52:$H$52) -> 0 | L52: Utah | M52: =VLOOKUP($L52,$L$2:$N$7,2,FALSE)*I52 -> 0 | N52: =VLOOKUP($L52,$L$2:$N$7,3,FALSE)*I52 -> 0 | P52: G | Q52: =IF(P52="G",M52,IF(P52="PT",0,ERR)) -> 0 | R52: =IF(P52="PT",M52,IF(P52="G",0,ERR)) -> 0 | S52: G | T52: =IF(S52="G",N52,IF(S52="PT",0,ERR)) -> 0 | U52: =IF(S52="PT",N52,IF(S52="G",0,ERR)) -> 0 | W52: =HLOOKUP($W$9,'ROR-Model'!$Q$10:$U$1274,Y52) -> 0 | Y52: 43
C53: Supplier Non-Gas Revenue | I53: =SUM($F$53:$H$53) -> 0 | L53: Utah | M53: =VLOOKUP($L53,$L$2:$N$7,2,FALSE)*I53 -> 0 | N53: =VLOOKUP($L53,$L$2:$N$7,3,FALSE)*I53 -> 0 | P53: PT | Q53: =IF(P53="G",M53,IF(P53="PT",0,ERR)) -> 0 | R53: =IF(P53="PT",M53,IF(P53="G",0,ERR)) -> 0 | S53: PT | T53: =IF(S53="G",N53,IF(S53="PT",0,ERR)) -> 0 | U53: =IF(S53="PT",N53,IF(S53="G",0,ERR)) -> 0 | W53: =HLOOKUP($W$9,'ROR-Model'!$Q$10:$U$1274,Y53) -> 0 | Y53: 44
C54: Supplier Non-Gas Demand Revenue | F54: =Revenue!$F$53 -> 0 | G54: =+Adjustments!AY54 -> 0 | I54: =SUM($F$54:$H$54) -> 0 | L54: Utah | M54: =VLOOKUP($L54,$L$2:$N$7,2,FALSE)*I54 -> 0 | N54: =VLOOKUP($L54,$L$2:$N$7,3,FALSE)*I54 -> 0 | P54: PT | Q54: =IF(P54="G",M54,IF(P54="PT",0,ERR)) -> 0 | R54: =IF(P54="PT",M54,IF(P54="G",0,ERR)) -> 0 | S54: PT | T54: =IF(S54="G",N54,IF(S54="PT",0,ERR)) -> 0 | U54: =IF(S54="PT",N54,IF(S54="G",0,ERR)) -> 0 | W54: =HLOOKUP($W$9,'ROR-Model'!$Q$10:$U$1274,Y54) -> 0 | Y54: 45
C55: Commodity Tariff Revenue | I55: =SUM($F$55:$H$55) -> 0 | L55: Utah | M55: =VLOOKUP($L55,$L$2:$N$7,2,FALSE)*I55 -> 0 | N55: =VLOOKUP($L55,$L$2:$N$7,3,FALSE)*I55 -> 0 | P55: PT | Q55: =IF(P55="G",M55,IF(P55="PT",0,ERR)) -> 0 | R55: =IF(P55="PT",M55,IF(P55="G",0,ERR)) -> 0 | S55: PT | T55: =IF(S55="G",N55,IF(S55="PT",0,ERR)) -> 0 | U55: =IF(S55="PT",N55,IF(S55="G",0,ERR)) -> 0 | W55: =HLOOKUP($W$9,'ROR-Model'!$Q$10:$U$1274,Y55) -> 0 | Y55: 46
C56: Commodity Demand Revenue | F56: =Revenue!$F$55 -> 0 | G56: =+Adjustments!AY56 -> 0 | I56: =SUM($F$56:$H$56) -> 0 | L56: Utah | M56: =VLOOKUP($L56,$L$2:$N$7,2,FALSE)*I56 -> 0 | N56: =VLOOKUP($L56,$L$2:$N$7,3,FALSE)*I56 -> 0 | P56: PT | Q56: =IF(P56="G",M56,IF(P56="PT",0,ERR)) -> 0 | R56: =IF(P56="PT",M56,IF(P56="G",0,ERR)) -> 0 | S56: PT | T56: =IF(S56="G",N56,IF(S56="PT",0,ERR)) -> 0 | U56: =IF(S56="PT",N56,IF(S56="G",0,ERR)) -> 0 | W56: =HLOOKUP($W$9,'ROR-Model'!$Q$10:$U$1274,Y56) -> 0 | Y56: 47
C57: Total Revenue | F57: =SUM(F52:F56) -> 0 | G57: =SUM(G52:G56) -> 0 | H57: =SUM(H52:H56) -> 0 | I57: =SUM(I52:I56) -> 0 | M57: =SUM(M52:M56) -> 0 | N57: =SUM(N52:N56) -> 0 | Q57: =SUM(Q52:Q56) -> 0 | R57: =SUM(R52:R56) -> 0 | T57: =SUM(T52:T56) -> 0 | U57: =SUM(U52:U56) -> 0 | W57: =HLOOKUP($W$9,'ROR-Model'!$Q$10:$U$1274,Y57) -> 0 | Y57: 48
Y58: 49
C59: Total Sales Dth | F59: =Revenue!$F$58 -> 0 | G59: =+Adjustments!AY59 -> 0 | I59: =SUM($F$59:$H$59) -> 0 | L59: Utah | M59: =VLOOKUP($L59,$L$2:$N$7,2,FALSE)*I59 -> 0 | N59: =VLOOKUP($L59,$L$2:$N$7,3,FALSE)*I59 -> 0 | P59: G | Q59: =IF(P59="G",M59,IF(P59="PT",0,ERR)) -> 0 | R59: =IF(P59="PT",M59,IF(P59="G",0,ERR)) -> 0 | S59: G | T59: =IF(S59="G",N59,IF(S59="PT",0,ERR)) -> 0 | U59: =IF(S59="PT",N59,IF(S59="G",0,ERR)) -> 0 | W59: =HLOOKUP($W$9,'ROR-Model'!$Q$10:$U$1274,Y59) -> 0 | Y59: 50
W60: =HLOOKUP($W$9,'ROR-Model'!$Q$10:$U$1274,Y60) -> 0 | Y60: 51
B61: NGV | C61: Distribution Non-Gas Rev | F61: =Revenue!$F$60 -> 1661079.281 | G61: =+Adjustments!AY61 -> 970573.7392 | I61: =SUM($F$61:$H$61) -> 2631653.02 | L61: Utah | M61: =VLOOKUP($L61,$L$2:$N$7,2,FALSE)*I61 -> 2631653.02 | N61: =VLOOKUP($L61,$L$2:$N$7,3,FALSE)*I61 -> 0 | P61: G | Q61: =IF(P61="G",M61,IF(P61="PT",0,ERR)) -> 2631653.02 | R61: =IF(P61="PT",M61,IF(P61="G",0,ERR)) -> 0 | S61: G | T61: =IF(S61="G",N61,IF(S61="PT",0,ERR)) -> 0 | U61: =IF(S61="PT",N61,IF(S61="G",0,ERR)) -> 0 | W61: =HLOOKUP($W$9,'ROR-Model'!$Q$10:$U$1274,Y61) -> 2631653.02 | Y61: 52
F62: =Revenue!$F$61 -> 0 | W62: =HLOOKUP($W$9,'ROR-Model'!$Q$10:$U$1274,Y62) -> 0 | Y62: 53
C63: Supplier Non-Gas Revenue | F63: =Revenue!$F$62 -> 251564.604 | G63: =+Adjustments!AY63 -> 0 | I63: =SUM($F$63:$H$63) -> 251564.604 | L63: Utah | M63: =VLOOKUP($L63,$L$2:$N$7,2,FALSE)*I63 -> 251564.604 | N63: =VLOOKUP($L63,$L$2:$N$7,3,FALSE)*I63 -> 0 | P63: PT | Q63: =IF(P63="G",M63,IF(P63="PT",0,ERR)) -> 0 | R63: =IF(P63="PT",M63,IF(P63="G",0,ERR)) -> 251564.604 | S63: PT | T63: =IF(S63="G",N63,IF(S63="PT",0,ERR)) -> 0 | U63: =IF(S63="PT",N63,IF(S63="G",0,ERR)) -> 0 | W63: =HLOOKUP($W$9,'ROR-Model'!$Q$10:$U$1274,Y63) -> 0 | Y63: 54
F64: =Revenue!$F$63 -> 0 | W64: =HLOOKUP($W$9,'ROR-Model'!$Q$10:$U$1274,Y64) -> 0 | Y64: 55
C65: Commodity Revenue | F65: =Revenue!$F$64 -> 1034189.895 | G65: =+Adjustments!AY65 -> 0 | I65: =SUM($F$65:$H$65) -> 1034189.895 | L65: Utah | M65: =VLOOKUP($L65,$L$2:$N$7,2,FALSE)*I65 -> 1034189.895 | N65: =VLOOKUP($L65,$L$2:$N$7,3,FALSE)*I65 -> 0 | P65: PT | Q65: =IF(P65="G",M65,IF(P65="PT",0,ERR)) -> 0 | R65: =IF(P65="PT",M65,IF(P65="G",0,ERR)) -> 1034189.895 | S65: PT | T65: =IF(S65="G",N65,IF(S65="PT",0,ERR)) -> 0 | U65: =IF(S65="PT",N65,IF(S65="G",0,ERR)) -> 0 | W65: =HLOOKUP($W$9,'ROR-Model'!$Q$10:$U$1274,Y65) -> 0 | Y65: 56
C66: Total Revenue | F66: =SUM(F61:F65) -> 2946833.78 | G66: =SUM(G61:G65) -> 970573.7392 | H66: =SUM(H61:H65) -> 0 | I66: =SUM(I61:I65) -> 3917407.519 | M66: =SUM(M61:M65) -> 3917407.519 | N66: =SUM(N61:N65) -> 0 | Q66: =SUM(Q61:Q65) -> 2631653.02 | R66: =SUM(R61:R65) -> 1285754.499 | T66: =SUM(T61:T65) -> 0 | U66: =SUM(U61:U65) -> 0 | W66: =HLOOKUP($W$9,'ROR-Model'!$Q$10:$U$1274,Y66) -> 2631653.02 | Y66: 57
Y67: 58
C68: Total Dth | F68: =Revenue!$F$67 -> 271663.59 | G68: =+Adjustments!AY68 -> 78839.41 | I68: =SUM($F$68:$H$68) -> 350503 | L68: Utah | M68: =VLOOKUP($L68,$L$2:$N$7,2,FALSE)*I68 -> 350503 | N68: =VLOOKUP($L68,$L$2:$N$7,3,FALSE)*I68 -> 0 | P68: G | Q68: =IF(P68="G",M68,IF(P68="PT",0,ERR)) -> 350503 | R68: =IF(P68="PT",M68,IF(P68="G",0,ERR)) -> 0 | S68: G | T68: =IF(S68="G",N68,IF(S68="PT",0,ERR)) -> 0 | U68: =IF(S68="PT",N68,IF(S68="G",0,ERR)) -> 0 | W68: =HLOOKUP($W$9,'ROR-Model'!$Q$10:$U$1274,Y68) -> 350503 | Y68: 59
Y69: 60
B70: F-4 | C70: Distribution Non-Gas Rev | F70: =Revenue!$F$69 -> 0 | G70: =+Adjustments!AY70 -> 0 | I70: =SUM($F$70:$H$70) -> 0 | L70: Utah | M70: =VLOOKUP($L70,$L$2:$N$7,2,FALSE)*I70 -> 0 | N70: =VLOOKUP($L70,$L$2:$N$7,3,FALSE)*I70 -> 0 | P70: G | Q70: =IF(P70="G",M70,IF(P70="PT",0,ERR)) -> 0 | R70: =IF(P70="PT",M70,IF(P70="G",0,ERR)) -> 0 | S70: G | T70: =IF(S70="G",N70,IF(S70="PT",0,ERR)) -> 0 | U70: =IF(S70="PT",N70,IF(S70="G",0,ERR)) -> 0 | W70: =HLOOKUP($W$9,'ROR-Model'!$Q$10:$U$1274,Y70) -> 0 | Y70: 61
Y71: 62
C72: Supplier Non-Gas Revenue | F72: =Revenue!$F$71 -> 0 | G72: =+Adjustments!AY72 -> 0 | I72: =SUM($F$72:$H$72) -> 0 | L72: Utah | M72: =VLOOKUP($L72,$L$2:$N$7,2,FALSE)*I72 -> 0 | N72: =VLOOKUP($L72,$L$2:$N$7,3,FALSE)*I72 -> 0 | P72: PT | Q72: =IF(P72="G",M72,IF(P72="PT",0,ERR)) -> 0 | R72: =IF(P72="PT",M72,IF(P72="G",0,ERR)) -> 0 | S72: PT | T72: =IF(S72="G",N72,IF(S72="PT",0,ERR)) -> 0 | U72: =IF(S72="PT",N72,IF(S72="G",0,ERR)) -> 0 | W72: =HLOOKUP($W$9,'ROR-Model'!$Q$10:$U$1274,Y72) -> 0 | Y72: 63
Y73: 64
C74: Commodity Revenue | F74: =Revenue!$F$73 -> 0 | G74: =+Adjustments!AY74 -> 0 | I74: =SUM($F$74:$H$74) -> 0 | L74: Utah | M74: =VLOOKUP($L74,$L$2:$N$7,2,FALSE)*I74 -> 0 | N74: =VLOOKUP($L74,$L$2:$N$7,3,FALSE)*I74 -> 0 | P74: PT | Q74: =IF(P74="G",M74,IF(P74="PT",0,ERR)) -> 0 | R74: =IF(P74="PT",M74,IF(P74="G",0,ERR)) -> 0 | S74: PT | T74: =IF(S74="G",N74,IF(S74="PT",0,ERR)) -> 0 | U74: =IF(S74="PT",N74,IF(S74="G",0,ERR)) -> 0 | W74: =HLOOKUP($W$9,'ROR-Model'!$Q$10:$U$1274,Y74) -> 0 | Y74: 65
C75: Total Revenue | F75: =SUM(F70:F74) -> 0 | G75: =SUM(G70:G74) -> 0 | H75: =SUM(H70:H74) -> 0 | I75: =SUM(I70:I74) -> 0 | M75: =SUM(M70:M74) -> 0 | N75: =SUM(N70:N74) -> 0 | Q75: =SUM(Q70:Q74) -> 0 | R75: =SUM(R70:R74) -> 0 | T75: =SUM(T70:T74) -> 0 | U75: =SUM(U70:U74) -> 0 | W75: =HLOOKUP($W$9,'ROR-Model'!$Q$10:$U$1274,Y75) -> 0 | Y75: 66
Y76: =Y75+1 -> 67
C77: Total Dth | F77: =Revenue!$F$76 -> 0 | G77: =+Adjustments!AY77 -> 0 | I77: =SUM($F$77:$H$77) -> 0 | L77: Utah | M77: =VLOOKUP($L77,$L$2:$N$7,2,FALSE)*I77 -> 0 | N77: =VLOOKUP($L77,$L$2:$N$7,3,FALSE)*I77 -> 0 | P77: G | Q77: =IF(P77="G",M77,IF(P77="PT",0,ERR)) -> 0 | R77: =IF(P77="PT",M77,IF(P77="G",0,ERR)) -> 0 | S77: G | T77: =IF(S77="G",N77,IF(S77="PT",0,ERR)) -> 0 | U77: =IF(S77="PT",N77,IF(S77="G",0,ERR)) -> 0 | W77: =HLOOKUP($W$9,'ROR-Model'!$Q$10:$U$1274,Y77) -> 0 | Y77: 68
Y78: 69
B79: Blank | C79: Distribution Non-Gas Rev | F79: =Revenue!$F$78 -> 0 | G79: =+Adjustments!AY79 -> 0 | I79: =SUM($F$79:$H$79) -> 0 | L79: Utah | M79: =VLOOKUP($L79,$L$2:$N$7,2,FALSE)*I79 -> 0 | N79: =VLOOKUP($L79,$L$2:$N$7,3,FALSE)*I79 -> 0 | P79: G | Q79: =IF(P79="G",M79,IF(P79="PT",0,ERR)) -> 0 | R79: =IF(P79="PT",M79,IF(P79="G",0,ERR)) -> 0 | S79: G | T79: =IF(S79="G",N79,IF(S79="PT",0,ERR)) -> 0 | U79: =IF(S79="PT",N79,IF(S79="G",0,ERR)) -> 0 | W79: =HLOOKUP($W$9,'ROR-Model'!$Q$10:$U$1274,Y79) -> 0 | Y79: 70
Y80: 71
C81: Supplier Non-Gas Revenue | F81: =Revenue!$F$80 -> 0 | G81: =+Adjustments!AY81 -> 0 | I81: =SUM($F$81:$H$81) -> 0 | L81: Utah | M81: =VLOOKUP($L81,$L$2:$N$7,2,FALSE)*I81 -> 0 | N81: =VLOOKUP($L81,$L$2:$N$7,3,FALSE)*I81 -> 0 | P81: PT | Q81: =IF(P81="G",M81,IF(P81="PT",0,ERR)) -> 0 | R81: =IF(P81="PT",M81,IF(P81="G",0,ERR)) -> 0 | S81: PT | T81: =IF(S81="G",N81,IF(S81="PT",0,ERR)) -> 0 | U81: =IF(S81="PT",N81,IF(S81="G",0,ERR)) -> 0 | W81: =HLOOKUP($W$9,'ROR-Model'!$Q$10:$U$1274,Y81) -> 0 | Y81: 72
Y82: 73
C83: Commodity Revenue | F83: =Revenue!$F$82 -> 0 | G83: =+Adjustments!AY83 -> 0 | I83: =SUM($F$83:$H$83) -> 0 | L83: Utah | M83: =VLOOKUP($L83,$L$2:$N$7,2,FALSE)*I83 -> 0 | N83: =VLOOKUP($L83,$L$2:$N$7,3,FALSE)*I83 -> 0 | P83: PT | Q83: =IF(P83="G",M83,IF(P83="PT",0,ERR)) -> 0 | R83: =IF(P83="PT",M83,IF(P83="G",0,ERR)) -> 0 | S83: PT | T83: =IF(S83="G",N83,IF(S83="PT",0,ERR)) -> 0 | U83: =IF(S83="PT",N83,IF(S83="G",0,ERR)) -> 0 | W83: =HLOOKUP($W$9,'ROR-Model'!$Q$10:$U$1274,Y83) -> 0 | Y83: 74
C84: Total Revenue | F84: =SUM(F79:F83) -> 0 | G84: =SUM(G79:G83) -> 0 | H84: =SUM(H79:H83) -> 0 | I84: =SUM(I79:I83) -> 0 | M84: =SUM(M79:M83) -> 0 | N84: =SUM(N79:N83) -> 0 | Q84: =SUM(Q79:Q83) -> 0 | R84: =SUM(R79:R83) -> 0 | T84: =SUM(T79:T83) -> 0 | U84: =SUM(U79:U83) -> 0 | W84: =HLOOKUP($W$9,'ROR-Model'!$Q$10:$U$1274,Y84) -> 0 | Y84: 75
Y85: 76
C86: Total Dth | F86: =Revenue!$F$85 -> 0 | G86: =+Adjustments!AY86 -> 0 | I86: =SUM($F$86:$H$86) -> 0 | L86: Utah | M86: =VLOOKUP($L86,$L$2:$N$7,2,FALSE)*I86 -> 0 | N86: =VLOOKUP($L86,$L$2:$N$7,3,FALSE)*I86 -> 0 | P86: G | Q86: =IF(P86="G",M86,IF(P86="PT",0,ERR)) -> 0 | R86: =IF(P86="PT",M86,IF(P86="G",0,ERR)) -> 0 | S86: G | T86: =IF(S86="G",N86,IF(S86="PT",0,ERR)) -> 0 | U86: =IF(S86="PT",N86,IF(S86="G",0,ERR)) -> 0 | W86: =HLOOKUP($W$9,'ROR-Model'!$Q$10:$U$1274,Y86) -> 0 | Y86: 77
Y87: 78
B88: I-4 | C88: Distribution Non-Gas Rev | F88: =Revenue!$F$87 -> 0 | G88: =+Adjustments!AY88 -> 0 | I88: =SUM($F$88:$H$88) -> 0 | L88: Utah | M88: =VLOOKUP($L88,$L$2:$N$7,2,FALSE)*I88 -> 0 | N88: =VLOOKUP($L88,$L$2:$N$7,3,FALSE)*I88 -> 0 | P88: G | Q88: =IF(P88="G",M88,IF(P88="PT",0,ERR)) -> 0 | R88: =IF(P88="PT",M88,IF(P88="G",0,ERR)) -> 0 | S88: G | T88: =IF(S88="G",N88,IF(S88="PT",0,ERR)) -> 0 | U88: =IF(S88="PT",N88,IF(S88="G",0,ERR)) -> 0 | W88: =HLOOKUP($W$9,'ROR-Model'!$Q$10:$U$1274,Y88) -> 0 | Y88: 79
Y89: 80
C90: Supplier Non-Gas Revenue | F90: =Revenue!$F$89 -> 0 | G90: =+Adjustments!AY90 -> 0 | I90: =SUM($F$90:$H$90) -> 0 | L90: Utah | M90: =VLOOKUP($L90,$L$2:$N$7,2,FALSE)*I90 -> 0 | N90: =VLOOKUP($L90,$L$2:$N$7,3,FALSE)*I90 -> 0 | P90: PT | Q90: =IF(P90="G",M90,IF(P90="PT",0,ERR)) -> 0 | R90: =IF(P90="PT",M90,IF(P90="G",0,ERR)) -> 0 | S90: PT | T90: =IF(S90="G",N90,IF(S90="PT",0,ERR)) -> 0 | U90: =IF(S90="PT",N90,IF(S90="G",0,ERR)) -> 0 | W90: =HLOOKUP($W$9,'ROR-Model'!$Q$10:$U$1274,Y90) -> 0 | Y90: 81
Y91: 82
C92: Commodity Revenue | F92: =Revenue!$F$91 -> 0 | G92: =+Adjustments!AY92 -> 0 | I92: =SUM($F$92:$H$92) -> 0 | L92: Utah | M92: =VLOOKUP($L92,$L$2:$N$7,2,FALSE)*I92 -> 0 | N92: =VLOOKUP($L92,$L$2:$N$7,3,FALSE)*I92 -> 0 | P92: PT | Q92: =IF(P92="G",M92,IF(P92="PT",0,ERR)) -> 0 | R92: =IF(P92="PT",M92,IF(P92="G",0,ERR)) -> 0 | S92: PT | T92: =IF(S92="G",N92,IF(S92="PT",0,ERR)) -> 0 | U92: =IF(S92="PT",N92,IF(S92="G",0,ERR)) -> 0 | W92: =HLOOKUP($W$9,'ROR-Model'!$Q$10:$U$1274,Y92) -> 0 | Y92: 83
C93: Total Revenue | F93: =SUM(F88:F92) -> 0 | G93: =SUM(G88:G92) -> 0 | H93: =SUM(H88:H92) -> 0 | I93: =SUM(I88:I92) -> 0 | M93: =SUM(M88:M92) -> 0 | N93: =SUM(N88:N92) -> 0 | Q93: =SUM(Q88:Q92) -> 0 | R93: =SUM(R88:R92) -> 0 | T93: =SUM(T88:T92) -> 0 | U93: =SUM(U88:U92) -> 0 | W93: =HLOOKUP($W$9,'ROR-Model'!$Q$10:$U$1274,Y93) -> 0 | Y93: 84
Y94: 85
C95: Total Dth | F95: =Revenue!$F$94 -> 0 | G95: =+Adjustments!AY95 -> 0 | I95: =SUM($F$95:$H$95) -> 0 | L95: Utah | M95: =VLOOKUP($L95,$L$2:$N$7,2,FALSE)*I95 -> 0 | N95: =VLOOKUP($L95,$L$2:$N$7,3,FALSE)*I95 -> 0 | P95: G | Q95: =IF(P95="G",M95,IF(P95="PT",0,ERR)) -> 0 | R95: =IF(P95="PT",M95,IF(P95="G",0,ERR)) -> 0 | S95: G | T95: =IF(S95="G",N95,IF(S95="PT",0,ERR)) -> 0 | U95: =IF(S95="PT",N95,IF(S95="G",0,ERR)) -> 0 | W95: =HLOOKUP($W$9,'ROR-Model'!$Q$10:$U$1274,Y95) -> 0 | Y95: 86
Y96: 87
B97: IS | C97: Distribution Non-Gas Rev | F97: =Revenue!$F$96 -> 202686.05 | G97: =+Adjustments!AY97 -> -17376.61238 | I97: =SUM($F$97:$H$97) -> 185309.4376 | L97: Utah | M97: =VLOOKUP($L97,$L$2:$N$7,2,FALSE)*I97 -> 185309.4376 | N97: =VLOOKUP($L97,$L$2:$N$7,3,FALSE)*I97 -> 0 | P97: G | Q97: =IF(P97="G",M97,IF(P97="PT",0,ERR)) -> 185309.4376 | R97: =IF(P97="PT",M97,IF(P97="G",0,ERR)) -> 0 | S97: G | T97: =IF(S97="G",N97,IF(S97="PT",0,ERR)) -> 0 | U97: =IF(S97="PT",N97,IF(S97="G",0,ERR)) -> 0 | W97: =HLOOKUP($W$9,'ROR-Model'!$Q$10:$U$1274,Y97) -> 185309.4376 | Y97: 88
Y98: 89
C99: Supplier Non-Gas Revenue | F99: =Revenue!$F$98 -> 41903.81 | G99: =+Adjustments!AY99 -> -18461.56 | I99: =SUM($F$99:$H$99) -> 23442.25 | L99: Utah | M99: =VLOOKUP($L99,$L$2:$N$7,2,FALSE)*I99 -> 23442.25 | N99: =VLOOKUP($L99,$L$2:$N$7,3,FALSE)*I99 -> 0 | P99: PT | Q99: =IF(P99="G",M99,IF(P99="PT",0,ERR)) -> 0 | R99: =IF(P99="PT",M99,IF(P99="G",0,ERR)) -> 23442.25 | S99: PT | T99: =IF(S99="G",N99,IF(S99="PT",0,ERR)) -> 0 | U99: =IF(S99="PT",N99,IF(S99="G",0,ERR)) -> 0 | W99: =HLOOKUP($W$9,'ROR-Model'!$Q$10:$U$1274,Y99) -> 0 | Y99: 90
Y100: 91
C101: Commodity Revenue | F101: =Revenue!$F$100 -> 898937.01 | G101: =+Adjustments!AY101 -> -489340.07 | I101: =SUM($F$101:$H$101) -> 409596.94 | L101: Utah | M101: =VLOOKUP($L101,$L$2:$N$7,2,FALSE)*I101 -> 409596.94 | N101: =VLOOKUP($L101,$L$2:$N$7,3,FALSE)*I101 -> 0 | P101: PT | Q101: =IF(P101="G",M101,IF(P101="PT",0,ERR)) -> 0 | R101: =IF(P101="PT",M101,IF(P101="G",0,ERR)) -> 409596.94 | S101: PT | T101: =IF(S101="G",N101,IF(S101="PT",0,ERR)) -> 0 | U101: =IF(S101="PT",N101,IF(S101="G",0,ERR)) -> 0 | W101: =HLOOKUP($W$9,'ROR-Model'!$Q$10:$U$1274,Y101) -> 0 | Y101: 92
C102: Total Revenue | F102: =SUM(F97:F101) -> 1143526.87 | G102: =SUM(G97:G101) -> -525178.2424 | H102: =SUM(H97:H101) -> 0 | I102: =SUM(I97:I101) -> 618348.6276 | M102: =SUM(M97:M101) -> 618348.6276 | N102: =SUM(N97:N101) -> 0 | Q102: =SUM(Q97:Q101) -> 185309.4376 | R102: =SUM(R97:R101) -> 433039.19 | T102: =SUM(T97:T101) -> 0 | U102: =SUM(U97:U101) -> 0 | W102: =HLOOKUP($W$9,'ROR-Model'!$Q$10:$U$1274,Y102) -> 185309.4376 | Y102: 93
Y103: 94
C104: Total Dth | F104: =Revenue!$F$103 -> 235476.26 | G104: =+Adjustments!AY104 -> -104565.26 | I104: =SUM($F$104:$H$104) -> 130911 | L104: Utah | M104: =VLOOKUP($L104,$L$2:$N$7,2,FALSE)*I104 -> 130911 | N104: =VLOOKUP($L104,$L$2:$N$7,3,FALSE)*I104 -> 0 | P104: G | Q104: =IF(P104="G",M104,IF(P104="PT",0,ERR)) -> 130911 | R104: =IF(P104="PT",M104,IF(P104="G",0,ERR)) -> 0 | S104: G | T104: =IF(S104="G",N104,IF(S104="PT",0,ERR)) -> 0 | U104: =IF(S104="PT",N104,IF(S104="G",0,ERR)) -> 0 | W104: =HLOOKUP($W$9,'ROR-Model'!$Q$10:$U$1274,Y104) -> 130911 | Y104: 95
Y105: 96
B106: IS-4 | C106: Distribution Non-Gas Rev | F106: =Revenue!$F$105 -> 0 | G106: =+Adjustments!AY106 -> 0 | I106: =SUM($F$106:$H$106) -> 0 | L106: Utah | M106: =VLOOKUP($L106,$L$2:$N$7,2,FALSE)*I106 -> 0 | N106: =VLOOKUP($L106,$L$2:$N$7,3,FALSE)*I106 -> 0 | P106: G | Q106: =IF(P106="G",M106,IF(P106="PT",0,ERR)) -> 0 | R106: =IF(P106="PT",M106,IF(P106="G",0,ERR)) -> 0 | S106: G | T106: =IF(S106="G",N106,IF(S106="PT",0,ERR)) -> 0 | U106: =IF(S106="PT",N106,IF(S106="G",0,ERR)) -> 0 | W106: =HLOOKUP($W$9,'ROR-Model'!$Q$10:$U$1274,Y106) -> 0 | Y106: 97
Y107: 98
C108: Supplier Non-Gas Revenue | F108: =Revenue!$F$107 -> 0 | G108: =+Adjustments!AY108 -> 0 | I108: =SUM($F$108:$H$108) -> 0 | L108: Utah | M108: =VLOOKUP($L108,$L$2:$N$7,2,FALSE)*I108 -> 0 | N108: =VLOOKUP($L108,$L$2:$N$7,3,FALSE)*I108 -> 0 | P108: PT | Q108: =IF(P108="G",M108,IF(P108="PT",0,ERR)) -> 0 | R108: =IF(P108="PT",M108,IF(P108="G",0,ERR)) -> 0 | S108: PT | T108: =IF(S108="G",N108,IF(S108="PT",0,ERR)) -> 0 | U108: =IF(S108="PT",N108,IF(S108="G",0,ERR)) -> 0 | W108: =HLOOKUP($W$9,'ROR-Model'!$Q$10:$U$1274,Y108) -> 0 | Y108: 99
Y109: 100
C110: Commodity Revenue | F110: =Revenue!$F$109 -> 0 | G110: =+Adjustments!AY110 -> 0 | I110: =SUM($F$110:$H$110) -> 0 | L110: Utah | M110: =VLOOKUP($L110,$L$2:$N$7,2,FALSE)*I110 -> 0 | N110: =VLOOKUP($L110,$L$2:$N$7,3,FALSE)*I110 -> 0 | P110: PT | Q110: =IF(P110="G",M110,IF(P110="PT",0,ERR)) -> 0 | R110: =IF(P110="PT",M110,IF(P110="G",0,ERR)) -> 0 | S110: PT | T110: =IF(S110="G",N110,IF(S110="PT",0,ERR)) -> 0 | U110: =IF(S110="PT",N110,IF(S110="G",0,ERR)) -> 0 | W110: =HLOOKUP($W$9,'ROR-Model'!$Q$10:$U$1274,Y110) -> 0 | Y110: 101
C111: Total Revenue | F111: =SUM(F106:F110) -> 0 | G111: =SUM(G106:G110) -> 0 | H111: =SUM(H106:H110) -> 0 | I111: =SUM(I106:I110) -> 0 | M111: =SUM(M106:M110) -> 0 | N111: =SUM(N106:N110) -> 0 | Q111: =SUM(Q106:Q110) -> 0 | R111: =SUM(R106:R110) -> 0 | T111: =SUM(T106:T110) -> 0 | U111: =SUM(U106:U110) -> 0 | W111: =HLOOKUP($W$9,'ROR-Model'!$Q$10:$U$1274,Y111) -> 0 | Y111: 102
Y112: 103
C113: Total Dth | F113: =Revenue!$F$112 -> 0 | G113: =+Adjustments!AY113 -> 0 | I113: =SUM($F$113:$H$113) -> 0 | L113: Utah | M113: =VLOOKUP($L113,$L$2:$N$7,2,FALSE)*I113 -> 0 | N113: =VLOOKUP($L113,$L$2:$N$7,3,FALSE)*I113 -> 0 | P113: G | Q113: =IF(P113="G",M113,IF(P113="PT",0,ERR)) -> 0 | R113: =IF(P113="PT",M113,IF(P113="G",0,ERR)) -> 0 | S113: G | T113: =IF(S113="G",N113,IF(S113="PT",0,ERR)) -> 0 | U113: =IF(S113="PT",N113,IF(S113="G",0,ERR)) -> 0 | W113: =HLOOKUP($W$9,'ROR-Model'!$Q$10:$U$1274,Y113) -> 0 | Y113: 104
Y114: 105
B115: FT1-L | C115: Distribution Non-Gas Rev | F115: =Revenue!$F$114 -> 0 | G115: =+Adjustments!AY115 -> 2624472 | I115: =SUM($F$115:$H$115) -> 2624472 | L115: Utah | M115: =VLOOKUP($L115,$L$2:$N$7,2,FALSE)*I115 -> 2624472 | N115: =VLOOKUP($L115,$L$2:$N$7,3,FALSE)*I115 -> 0 | P115: G | Q115: =IF(P115="G",M115,IF(P115="PT",0,ERR)) -> 2624472 | R115: =IF(P115="PT",M115,IF(P115="G",0,ERR)) -> 0 | S115: G | T115: =IF(S115="G",N115,IF(S115="PT",0,ERR)) -> 0 | U115: =IF(S115="PT",N115,IF(S115="G",0,ERR)) -> 0 | W115: =HLOOKUP($W$9,'ROR-Model'!$Q$10:$U$1274,Y115) -> 2624472 | Y115: 106
Y116: 107
C117: Supplier Non-Gas Revenue | F117: =Revenue!$F$116 -> 0 | G117: =+Adjustments!AY117 -> 0 | I117: =SUM($F$117:$H$117) -> 0 | L117: Utah | M117: =VLOOKUP($L117,$L$2:$N$7,2,FALSE)*I117 -> 0 | N117: =VLOOKUP($L117,$L$2:$N$7,3,FALSE)*I117 -> 0 | P117: PT | Q117: =IF(P117="G",M117,IF(P117="PT",0,ERR)) -> 0 | R117: =IF(P117="PT",M117,IF(P117="G",0,ERR)) -> 0 | S117: PT | T117: =IF(S117="G",N117,IF(S117="PT",0,ERR)) -> 0 | U117: =IF(S117="PT",N117,IF(S117="G",0,ERR)) -> 0 | W117: =HLOOKUP($W$9,'ROR-Model'!$Q$10:$U$1274,Y117) -> 0 | Y117: 108
Y118: 109
C119: Commodity Revenue | F119: =Revenue!$F$118 -> 0 | G119: =+Adjustments!AY119 -> 0 | I119: =SUM($F$119:$H$119) -> 0 | L119: Utah | M119: =VLOOKUP($L119,$L$2:$N$7,2,FALSE)*I119 -> 0 | N119: =VLOOKUP($L119,$L$2:$N$7,3,FALSE)*I119 -> 0 | P119: PT | Q119: =IF(P119="G",M119,IF(P119="PT",0,ERR)) -> 0 | R119: =IF(P119="PT",M119,IF(P119="G",0,ERR)) -> 0 | S119: PT | T119: =IF(S119="G",N119,IF(S119="PT",0,ERR)) -> 0 | U119: =IF(S119="PT",N119,IF(S119="G",0,ERR)) -> 0 | W119: =HLOOKUP($W$9,'ROR-Model'!$Q$10:$U$1274,Y119) -> 0 | Y119: 110
C120: Total Revenue | F120: =SUM(F115:F119) -> 0 | G120: =SUM(G115:G119) -> 2624472 | H120: =SUM(H115:H119) -> 0 | I120: =SUM(I115:I119) -> 2624472 | M120: =SUM(M115:M119) -> 2624472 | N120: =SUM(N115:N119) -> 0 | Q120: =SUM(Q115:Q119) -> 2624472 | R120: =SUM(R115:R119) -> 0 | T120: =SUM(T115:T119) -> 0 | U120: =SUM(U115:U119) -> 0 | W120: =HLOOKUP($W$9,'ROR-Model'!$Q$10:$U$1274,Y120) -> 2624472 | Y120: 111
Y121: 112
C122: Total Dth | F122: =Revenue!$F$121 -> 0 | G122: =+Adjustments!AY122 -> 33999912 | I122: =SUM($F$122:$H$122) -> 33999912 | L122: Utah | M122: =VLOOKUP($L122,$L$2:$N$7,2,FALSE)*I122 -> 33999912 | N122: =VLOOKUP($L122,$L$2:$N$7,3,FALSE)*I122 -> 0 | P122: G | Q122: =IF(P122="G",M122,IF(P122="PT",0,ERR)) -> 33999912 | R122: =IF(P122="PT",M122,IF(P122="G",0,ERR)) -> 0 | S122: G | T122: =IF(S122="G",N122,IF(S122="PT",0,ERR)) -> 0 | U122: =IF(S122="PT",N122,IF(S122="G",0,ERR)) -> 0 | W122: =HLOOKUP($W$9,'ROR-Model'!$Q$10:$U$1274,Y122) -> 33999912 | Y122: 113
Y123: 114
B124: TBF | C124: Distribution Non-Gas Rev | F124: =Revenue!$F$123 -> 4995387.8 | G124: =+Adjustments!AY124 -> -3564671.05 | I124: =SUM($F$124:$H$124) -> 1430716.75 | L124: Utah | M124: =VLOOKUP($L124,$L$2:$N$7,2,FALSE)*I124 -> 1430716.75 | N124: =VLOOKUP($L124,$L$2:$N$7,3,FALSE)*I124 -> 0 | P124: G | Q124: =IF(P124="G",M124,IF(P124="PT",0,ERR)) -> 1430716.75 | R124: =IF(P124="PT",M124,IF(P124="G",0,ERR)) -> 0 | S124: G | T124: =IF(S124="G",N124,IF(S124="PT",0,ERR)) -> 0 | U124: =IF(S124="PT",N124,IF(S124="G",0,ERR)) -> 0 | W124: =HLOOKUP($W$9,'ROR-Model'!$Q$10:$U$1274,Y124) -> 1430716.75 | Y124: 115
Y125: 116
C126: Supplier Non-Gas Revenue | F126: =Revenue!$F$125 -> 54948.98 | G126: =+Adjustments!AY126 -> -54948.98 | I126: =SUM($F$126:$H$126) -> 0 | L126: Utah | M126: =VLOOKUP($L126,$L$2:$N$7,2,FALSE)*I126 -> 0 | N126: =VLOOKUP($L126,$L$2:$N$7,3,FALSE)*I126 -> 0 | P126: PT | Q126: =IF(P126="G",M126,IF(P126="PT",0,ERR)) -> 0 | R126: =IF(P126="PT",M126,IF(P126="G",0,ERR)) -> 0 | S126: PT | T126: =IF(S126="G",N126,IF(S126="PT",0,ERR)) -> 0 | U126: =IF(S126="PT",N126,IF(S126="G",0,ERR)) -> 0 | W126: =HLOOKUP($W$9,'ROR-Model'!$Q$10:$U$1274,Y126) -> 0 | Y126: 117
Y127: 118
C128: Commodity Revenue | F128: =Revenue!$F$127 -> 0 | G128: =+Adjustments!AY128 -> 0 | I128: =SUM($F$128:$H$128) -> 0 | L128: Utah | M128: =VLOOKUP($L128,$L$2:$N$7,2,FALSE)*I128 -> 0 | N128: =VLOOKUP($L128,$L$2:$N$7,3,FALSE)*I128 -> 0 | P128: PT | Q128: =IF(P128="G",M128,IF(P128="PT",0,ERR)) -> 0 | R128: =IF(P128="PT",M128,IF(P128="G",0,ERR)) -> 0 | S128: PT | T128: =IF(S128="G",N128,IF(S128="PT",0,ERR)) -> 0 | U128: =IF(S128="PT",N128,IF(S128="G",0,ERR)) -> 0 | W128: =HLOOKUP($W$9,'ROR-Model'!$Q$10:$U$1274,Y128) -> 0 | Y128: 119
C129: Total Revenue | F129: =SUM(F124:F128) -> 5050336.78 | G129: =SUM(G124:G128) -> -3619620.03 | H129: =SUM(H124:H128) -> 0 | I129: =SUM(I124:I128) -> 1430716.75 | M129: =SUM(M124:M128) -> 1430716.75 | N129: =SUM(N124:N128) -> 0 | Q129: =SUM(Q124:Q128) -> 1430716.75 | R129: =SUM(R124:R128) -> 0 | T129: =SUM(T124:T128) -> 0 | U129: =SUM(U124:U128) -> 0 | W129: =HLOOKUP($W$9,'ROR-Model'!$Q$10:$U$1274,Y129) -> 1430716.75 | Y129: 120
Y130: 121
C131: Total Dth | F131: =Revenue!$F$130 -> 41548831 | G131: =+Adjustments!AY131 -> -39342976 | I131: =SUM($F$131:$H$131) -> 2205855 | L131: Utah | M131: =VLOOKUP($L131,$L$2:$N$7,2,FALSE)*I131 -> 2205855 | N131: =VLOOKUP($L131,$L$2:$N$7,3,FALSE)*I131 -> 0 | P131: G | Q131: =IF(P131="G",M131,IF(P131="PT",0,ERR)) -> 2205855 | R131: =IF(P131="PT",M131,IF(P131="G",0,ERR)) -> 0 | S131: G | T131: =IF(S131="G",N131,IF(S131="PT",0,ERR)) -> 0 | U131: =IF(S131="PT",N131,IF(S131="G",0,ERR)) -> 0 | W131: =HLOOKUP($W$9,'ROR-Model'!$Q$10:$U$1274,Y131) -> 2205855 | Y131: 122
Y132: 123
B133: FT-2 | C133: Distribution Non-Gas Rev | F133: =Revenue!$F$132 -> 0 | G133: =+Adjustments!AY133 -> 0 | I133: =SUM($F$133:$H$133) -> 0 | L133: Utah | M133: =VLOOKUP($L133,$L$2:$N$7,2,FALSE)*I133 -> 0 | N133: =VLOOKUP($L133,$L$2:$N$7,3,FALSE)*I133 -> 0 | P133: G | Q133: =IF(P133="G",M133,IF(P133="PT",0,ERR)) -> 0 | R133: =IF(P133="PT",M133,IF(P133="G",0,ERR)) -> 0 | S133: G | T133: =IF(S133="G",N133,IF(S133="PT",0,ERR)) -> 0 | U133: =IF(S133="PT",N133,IF(S133="G",0,ERR)) -> 0 | W133: =HLOOKUP($W$9,'ROR-Model'!$Q$10:$U$1274,Y133) -> 0 | Y133: 124
Y134: 125
C135: Supplier Non-Gas Revenue | F135: =Revenue!$F$134 -> 0 | G135: =+Adjustments!AY135 -> 0 | I135: =SUM($F$135:$H$135) -> 0 | L135: Utah | M135: =VLOOKUP($L135,$L$2:$N$7,2,FALSE)*I135 -> 0 | N135: =VLOOKUP($L135,$L$2:$N$7,3,FALSE)*I135 -> 0 | P135: PT | Q135: =IF(P135="G",M135,IF(P135="PT",0,ERR)) -> 0 | R135: =IF(P135="PT",M135,IF(P135="G",0,ERR)) -> 0 | S135: PT | T135: =IF(S135="G",N135,IF(S135="PT",0,ERR)) -> 0 | U135: =IF(S135="PT",N135,IF(S135="G",0,ERR)) -> 0 | W135: =HLOOKUP($W$9,'ROR-Model'!$Q$10:$U$1274,Y135) -> 0 | Y135: 126
Y136: 127
C137: Commodity Revenue | F137: =Revenue!$F$136 -> 0 | G137: =+Adjustments!AY137 -> 0 | I137: =SUM($F$137:$H$137) -> 0 | L137: Utah | M137: =VLOOKUP($L137,$L$2:$N$7,2,FALSE)*I137 -> 0 | N137: =VLOOKUP($L137,$L$2:$N$7,3,FALSE)*I137 -> 0 | P137: PT | Q137: =IF(P137="G",M137,IF(P137="PT",0,ERR)) -> 0 | R137: =IF(P137="PT",M137,IF(P137="G",0,ERR)) -> 0 | S137: PT | T137: =IF(S137="G",N137,IF(S137="PT",0,ERR)) -> 0 | U137: =IF(S137="PT",N137,IF(S137="G",0,ERR)) -> 0 | W137: =HLOOKUP($W$9,'ROR-Model'!$Q$10:$U$1274,Y137) -> 0 | Y137: 128
C138: Total Revenue | F138: =SUM(F133:F137) -> 0 | G138: =SUM(G133:G137) -> 0 | H138: =SUM(H133:H137) -> 0 | I138: =SUM(I133:I137) -> 0 | M138: =SUM(M133:M137) -> 0 | N138: =SUM(N133:N137) -> 0 | Q138: =SUM(Q133:Q137) -> 0 | R138: =SUM(R133:R137) -> 0 | T138: =SUM(T133:T137) -> 0 | U138: =SUM(U133:U137) -> 0 | W138: =HLOOKUP($W$9,'ROR-Model'!$Q$10:$U$1274,Y138) -> 0 | Y138: 129
Y139: 130
C140: Total Dth | F140: =Revenue!$F$139 -> 0 | G140: =+Adjustments!AY140 -> 0 | I140: =SUM($F$140:$H$140) -> 0 | L140: Utah | M140: =VLOOKUP($L140,$L$2:$N$7,2,FALSE)*I140 -> 0 | N140: =VLOOKUP($L140,$L$2:$N$7,3,FALSE)*I140 -> 0 | P140: G | Q140: =IF(P140="G",M140,IF(P140="PT",0,ERR)) -> 0 | R140: =IF(P140="PT",M140,IF(P140="G",0,ERR)) -> 0 | S140: G | T140: =IF(S140="G",N140,IF(S140="PT",0,ERR)) -> 0 | U140: =IF(S140="PT",N140,IF(S140="G",0,ERR)) -> 0 | W140: =HLOOKUP($W$9,'ROR-Model'!$Q$10:$U$1274,Y140) -> 0 | Y140: =Y139+1 -> 131
Y141: 132
B142: MT | C142: Distribution Non-Gas Rev | F142: =Revenue!$F$141 -> 80471.64 | G142: =+Adjustments!AY142 -> -52352.83966 | I142: =SUM($F$142:$H$142) -> 28118.80034 | L142: Utah | M142: =VLOOKUP($L142,$L$2:$N$7,2,FALSE)*I142 -> 28118.80034 | N142: =VLOOKUP($L142,$L$2:$N$7,3,FALSE)*I142 -> 0 | P142: G | Q142: =IF(P142="G",M142,IF(P142="PT",0,ERR)) -> 28118.80034 | R142: =IF(P142="PT",M142,IF(P142="G",0,ERR)) -> 0 | S142: G | T142: =IF(S142="G",N142,IF(S142="PT",0,ERR)) -> 0 | U142: =IF(S142="PT",N142,IF(S142="G",0,ERR)) -> 0 | W142: =HLOOKUP($W$9,'ROR-Model'!$Q$10:$U$1274,Y142) -> 28118.80034 | Y142: 133
Y143: 134
C144: Supplier Non-Gas Revenue | F144: =Revenue!$F$143 -> 2294.25 | G144: =+Adjustments!AY144 -> -2294.25 | I144: =SUM($F$144:$H$144) -> 0 | L144: Utah | M144: =VLOOKUP($L144,$L$2:$N$7,2,FALSE)*I144 -> 0 | N144: =VLOOKUP($L144,$L$2:$N$7,3,FALSE)*I144 -> 0 | P144: PT | Q144: =IF(P144="G",M144,IF(P144="PT",0,ERR)) -> 0 | R144: =IF(P144="PT",M144,IF(P144="G",0,ERR)) -> 0 | S144: PT | T144: =IF(S144="G",N144,IF(S144="PT",0,ERR)) -> 0 | U144: =IF(S144="PT",N144,IF(S144="G",0,ERR)) -> 0 | W144: =HLOOKUP($W$9,'ROR-Model'!$Q$10:$U$1274,Y144) -> 0 | Y144: 135
Y145: 136
C146: Commodity Revenue | F146: =Revenue!$F$145 -> 0 | G146: =+Adjustments!AY146 -> 0 | I146: =SUM($F$146:$H$146) -> 0 | L146: Utah | M146: =VLOOKUP($L146,$L$2:$N$7,2,FALSE)*I146 -> 0 | N146: =VLOOKUP($L146,$L$2:$N$7,3,FALSE)*I146 -> 0 | P146: PT | Q146: =IF(P146="G",M146,IF(P146="PT",0,ERR)) -> 0 | R146: =IF(P146="PT",M146,IF(P146="G",0,ERR)) -> 0 | S146: PT | T146: =IF(S146="G",N146,IF(S146="PT",0,ERR)) -> 0 | U146: =IF(S146="PT",N146,IF(S146="G",0,ERR)) -> 0 | W146: =HLOOKUP($W$9,'ROR-Model'!$Q$10:$U$1274,Y146) -> 0 | Y146: 137
C147: Total Revenue | F147: =SUM(F142:F146) -> 82765.89 | G147: =SUM(G142:G146) -> -54647.08966 | H147: =SUM(H142:H146) -> 0 | I147: =SUM(I142:I146) -> 28118.80034 | M147: =SUM(M142:M146) -> 28118.80034 | N147: =SUM(N142:N146) -> 0 | Q147: =SUM(Q142:Q146) -> 28118.80034 | R147: =SUM(R142:R146) -> 0 | T147: =SUM(T142:T146) -> 0 | U147: =SUM(U142:U146) -> 0 | W147: =HLOOKUP($W$9,'ROR-Model'!$Q$10:$U$1274,Y147) -> 28118.80034 | Y147: 138
Y148: 139
C149: Total Dth | F149: =Revenue!$F$148 -> 21619 | G149: =+Adjustments!AY149 -> 0 | I149: =SUM($F$149:$H$149) -> 21619 | L149: Utah | M149: =VLOOKUP($L149,$L$2:$N$7,2,FALSE)*I149 -> 21619 | N149: =VLOOKUP($L149,$L$2:$N$7,3,FALSE)*I149 -> 0 | P149: G | Q149: =IF(P149="G",M149,IF(P149="PT",0,ERR)) -> 21619 | R149: =IF(P149="PT",M149,IF(P149="G",0,ERR)) -> 0 | S149: G | T149: =IF(S149="G",N149,IF(S149="PT",0,ERR)) -> 0 | U149: =IF(S149="PT",N149,IF(S149="G",0,ERR)) -> 0 | W149: =HLOOKUP($W$9,'ROR-Model'!$Q$10:$U$1274,Y149) -> 21619 | Y149: 140
Y150: 141
B151: Blank | C151: Distribution Non-Gas Rev | F151: =Revenue!$F$150 -> 0 | G151: =+Adjustments!AY151 -> 0 | I151: =SUM($F$151:$H$151) -> 0 | L151: Utah | M151: =VLOOKUP($L151,$L$2:$N$7,2,FALSE)*I151 -> 0 | N151: =VLOOKUP($L151,$L$2:$N$7,3,FALSE)*I151 -> 0 | P151: G | Q151: =IF(P151="G",M151,IF(P151="PT",0,ERR)) -> 0 | R151: =IF(P151="PT",M151,IF(P151="G",0,ERR)) -> 0 | S151: G | T151: =IF(S151="G",N151,IF(S151="PT",0,ERR)) -> 0 | U151: =IF(S151="PT",N151,IF(S151="G",0,ERR)) -> 0 | W151: =HLOOKUP($W$9,'ROR-Model'!$Q$10:$U$1274,Y151) -> 0 | Y151: 142
Y152: 143
C153: Supplier Non-Gas Revenue | F153: =Revenue!$F$152 -> 0 | G153: =+Adjustments!AY153 -> 0 | I153: =SUM($F$153:$H$153) -> 0 | L153: Utah | M153: =VLOOKUP($L153,$L$2:$N$7,2,FALSE)*I153 -> 0 | N153: =VLOOKUP($L153,$L$2:$N$7,3,FALSE)*I153 -> 0 | P153: PT | Q153: =IF(P153="G",M153,IF(P153="PT",0,ERR)) -> 0 | R153: =IF(P153="PT",M153,IF(P153="G",0,ERR)) -> 0 | S153: PT | T153: =IF(S153="G",N153,IF(S153="PT",0,ERR)) -> 0 | U153: =IF(S153="PT",N153,IF(S153="G",0,ERR)) -> 0 | W153: =HLOOKUP($W$9,'ROR-Model'!$Q$10:$U$1274,Y153) -> 0 | Y153: 144
Y154: 145
C155: Commodity Revenue | F155: =Revenue!$F$154 -> 0 | G155: =+Adjustments!AY155 -> 0 | I155: =SUM($F$155:$H$155) -> 0 | L155: Utah | M155: =VLOOKUP($L155,$L$2:$N$7,2,FALSE)*I155 -> 0 | N155: =VLOOKUP($L155,$L$2:$N$7,3,FALSE)*I155 -> 0 | P155: PT | Q155: =IF(P155="G",M155,IF(P155="PT",0,ERR)) -> 0 | R155: =IF(P155="PT",M155,IF(P155="G",0,ERR)) -> 0 | S155: PT | T155: =IF(S155="G",N155,IF(S155="PT",0,ERR)) -> 0 | U155: =IF(S155="PT",N155,IF(S155="G",0,ERR)) -> 0 | W155: =HLOOKUP($W$9,'ROR-Model'!$Q$10:$U$1274,Y155) -> 0 | Y155: 146
C156: Total Revenue | F156: =SUM(F151:F155) -> 0 | G156: =SUM(G151:G155) -> 0 | H156: =SUM(H151:H155) -> 0 | I156: =SUM(I151:I155) -> 0 | M156: =SUM(M151:M155) -> 0 | N156: =SUM(N151:N155) -> 0 | Q156: =SUM(Q151:Q155) -> 0 | R156: =SUM(R151:R155) -> 0 | T156: =SUM(T151:T155) -> 0 | U156: =SUM(U151:U155) -> 0 | W156: =HLOOKUP($W$9,'ROR-Model'!$Q$10:$U$1274,Y156) -> 0 | Y156: 147
Y157: 148
C158: Total Dth | F158: =Revenue!$F$157 -> 0 | G158: =+Adjustments!AY158 -> 0 | I158: =SUM($F$158:$H$158) -> 0 | L158: Utah | M158: =VLOOKUP($L158,$L$2:$N$7,2,FALSE)*I158 -> 0 | N158: =VLOOKUP($L158,$L$2:$N$7,3,FALSE)*I158 -> 0 | P158: G | Q158: =IF(P158="G",M158,IF(P158="PT",0,ERR)) -> 0 | R158: =IF(P158="PT",M158,IF(P158="G",0,ERR)) -> 0 | S158: G | T158: =IF(S158="G",N158,IF(S158="PT",0,ERR)) -> 0 | U158: =IF(S158="PT",N158,IF(S158="G",0,ERR)) -> 0 | W158: =HLOOKUP($W$9,'ROR-Model'!$Q$10:$U$1274,Y158) -> 0 | Y158: 149
Y159: 150
B160: IT | C160: Distribution Non-Gas Rev | F160: =Revenue!$F$159 -> 22483627.45 | G160: =+Adjustments!AY160 -> 5116616.278 | I160: =SUM($F$160:$H$160) -> 27600243.73 | L160: Utah | M160: =VLOOKUP($L160,$L$2:$N$7,2,FALSE)*I160 -> 27600243.73 | N160: =VLOOKUP($L160,$L$2:$N$7,3,FALSE)*I160 -> 0 | P160: G | Q160: =IF(P160="G",M160,IF(P160="PT",0,ERR)) -> 27600243.73 | R160: =IF(P160="PT",M160,IF(P160="G",0,ERR)) -> 0 | S160: G | T160: =IF(S160="G",N160,IF(S160="PT",0,ERR)) -> 0 | U160: =IF(S160="PT",N160,IF(S160="G",0,ERR)) -> 0 | W160: =HLOOKUP($W$9,'ROR-Model'!$Q$10:$U$1274,Y160) -> 27600243.73 | Y160: 151
Y161: 152
C162: Supplier Non-Gas Revenue | F162: =Revenue!$F$161 -> 610731.39 | G162: =+Adjustments!AY162 -> -610731.39 | I162: =SUM($F$162:$H$162) -> 0 | L162: Utah | M162: =VLOOKUP($L162,$L$2:$N$7,2,FALSE)*I162 -> 0 | N162: =VLOOKUP($L162,$L$2:$N$7,3,FALSE)*I162 -> 0 | P162: PT | Q162: =IF(P162="G",M162,IF(P162="PT",0,ERR)) -> 0 | R162: =IF(P162="PT",M162,IF(P162="G",0,ERR)) -> 0 | S162: PT | T162: =IF(S162="G",N162,IF(S162="PT",0,ERR)) -> 0 | U162: =IF(S162="PT",N162,IF(S162="G",0,ERR)) -> 0 | W162: =HLOOKUP($W$9,'ROR-Model'!$Q$10:$U$1274,Y162) -> 0 | Y162: 153
Y163: 154
C164: Commodity Revenue | F164: =Revenue!$F$163 -> -11182.41 | G164: =+Adjustments!AY164 -> 11182.41 | I164: =SUM($F$164:$H$164) -> 0 | L164: Utah | M164: =VLOOKUP($L164,$L$2:$N$7,2,FALSE)*I164 -> 0 | N164: =VLOOKUP($L164,$L$2:$N$7,3,FALSE)*I164 -> 0 | P164: PT | Q164: =IF(P164="G",M164,IF(P164="PT",0,ERR)) -> 0 | R164: =IF(P164="PT",M164,IF(P164="G",0,ERR)) -> 0 | S164: PT | T164: =IF(S164="G",N164,IF(S164="PT",0,ERR)) -> 0 | U164: =IF(S164="PT",N164,IF(S164="G",0,ERR)) -> 0 | W164: =HLOOKUP($W$9,'ROR-Model'!$Q$10:$U$1274,Y164) -> 0 | Y164: 155
C165: Total Revenue | F165: =SUM(F160:F164) -> 23083176.43 | G165: =SUM(G160:G164) -> 4517067.298 | H165: =SUM(H160:H164) -> 0 | I165: =SUM(I160:I164) -> 27600243.73 | M165: =SUM(M160:M164) -> 27600243.73 | N165: =SUM(N160:N164) -> 0 | Q165: =SUM(Q160:Q164) -> 27600243.73 | R165: =SUM(R160:R164) -> 0 | T165: =SUM(T160:T164) -> 0 | U165: =SUM(U160:U164) -> 0 | W165: =HLOOKUP($W$9,'ROR-Model'!$Q$10:$U$1274,Y165) -> 27600243.73 | Y165: 156
Y166: 157
C167: Total Dth | F167: =Revenue!$F$166 -> 47258689.91 | G167: =+Adjustments!AY167 -> 8095006.09 | I167: =SUM($F$167:$H$167) -> 55353696 | L167: Utah | M167: =VLOOKUP($L167,$L$2:$N$7,2,FALSE)*I167 -> 55353696 | N167: =VLOOKUP($L167,$L$2:$N$7,3,FALSE)*I167 -> 0 | P167: G | Q167: =IF(P167="G",M167,IF(P167="PT",0,ERR)) -> 55353696 | R167: =IF(P167="PT",M167,IF(P167="G",0,ERR)) -> 0 | S167: G | T167: =IF(S167="G",N167,IF(S167="PT",0,ERR)) -> 0 | U167: =IF(S167="PT",N167,IF(S167="G",0,ERR)) -> 0 | W167: =HLOOKUP($W$9,'ROR-Model'!$Q$10:$U$1274,Y167) -> 55353696 | Y167: 158
Y168: 159
B169: IT-S | C169: Distribution Non-Gas Rev | F169: =Revenue!$F$168 -> 0 | G169: =+Adjustments!AY169 -> 0 | I169: =SUM($F$169:$H$169) -> 0 | L169: Utah | M169: =VLOOKUP($L169,$L$2:$N$7,2,FALSE)*I169 -> 0 | N169: =VLOOKUP($L169,$L$2:$N$7,3,FALSE)*I169 -> 0 | P169: G | Q169: =IF(P169="G",M169,IF(P169="PT",0,ERR)) -> 0 | R169: =IF(P169="PT",M169,IF(P169="G",0,ERR)) -> 0 | S169: G | T169: =IF(S169="G",N169,IF(S169="PT",0,ERR)) -> 0 | U169: =IF(S169="PT",N169,IF(S169="G",0,ERR)) -> 0 | W169: =HLOOKUP($W$9,'ROR-Model'!$Q$10:$U$1274,Y169) -> 0 | Y169: 160
Y170: 161
C171: Supplier Non-Gas Revenue | F171: =Revenue!$F$170 -> 0 | G171: =+Adjustments!AY171 -> 0 | I171: =SUM($F$171:$H$171) -> 0 | L171: Utah | M171: =VLOOKUP($L171,$L$2:$N$7,2,FALSE)*I171 -> 0 | N171: =VLOOKUP($L171,$L$2:$N$7,3,FALSE)*I171 -> 0 | P171: PT | Q171: =IF(P171="G",M171,IF(P171="PT",0,ERR)) -> 0 | R171: =IF(P171="PT",M171,IF(P171="G",0,ERR)) -> 0 | S171: PT | T171: =IF(S171="G",N171,IF(S171="PT",0,ERR)) -> 0 | U171: =IF(S171="PT",N171,IF(S171="G",0,ERR)) -> 0 | W171: =HLOOKUP($W$9,'ROR-Model'!$Q$10:$U$1274,Y171) -> 0 | Y171: 162
Y172: 163
C173: Commodity Revenue | F173: =Revenue!$F$172 -> 0 | G173: =+Adjustments!AY173 -> 0 | I173: =SUM($F$173:$H$173) -> 0 | L173: Utah | M173: =VLOOKUP($L173,$L$2:$N$7,2,FALSE)*I173 -> 0 | N173: =VLOOKUP($L173,$L$2:$N$7,3,FALSE)*I173 -> 0 | P173: PT | Q173: =IF(P173="G",M173,IF(P173="PT",0,ERR)) -> 0 | R173: =IF(P173="PT",M173,IF(P173="G",0,ERR)) -> 0 | S173: PT | T173: =IF(S173="G",N173,IF(S173="PT",0,ERR)) -> 0 | U173: =IF(S173="PT",N173,IF(S173="G",0,ERR)) -> 0 | W173: =HLOOKUP($W$9,'ROR-Model'!$Q$10:$U$1274,Y173) -> 0 | Y173: 164
C174: Total Revenue | F174: =SUM(F169:F173) -> 0 | G174: =SUM(G169:G173) -> 0 | H174: =SUM(H169:H173) -> 0 | I174: =SUM(I169:I173) -> 0 | M174: =SUM(M169:M173) -> 0 | N174: =SUM(N169:N173) -> 0 | Q174: =SUM(Q169:Q173) -> 0 | R174: =SUM(R169:R173) -> 0 | T174: =SUM(T169:T173) -> 0 | U174: =SUM(U169:U173) -> 0 | W174: =HLOOKUP($W$9,'ROR-Model'!$Q$10:$U$1274,Y174) -> 0 | Y174: 165
Y175: 166
C176: Total Dth | F176: =Revenue!$F$175 -> 0 | G176: =+Adjustments!AY176 -> 0 | I176: =SUM($F$176:$H$176) -> 0 | L176: Utah | M176: =VLOOKUP($L176,$L$2:$N$7,2,FALSE)*I176 -> 0 | N176: =VLOOKUP($L176,$L$2:$N$7,3,FALSE)*I176 -> 0 | P176: G | Q176: =IF(P176="G",M176,IF(P176="PT",0,ERR)) -> 0 | R176: =IF(P176="PT",M176,IF(P176="G",0,ERR)) -> 0 | S176: G | T176: =IF(S176="G",N176,IF(S176="PT",0,ERR)) -> 0 | U176: =IF(S176="PT",N176,IF(S176="G",0,ERR)) -> 0 | W176: =HLOOKUP($W$9,'ROR-Model'!$Q$10:$U$1274,Y176) -> 0 | Y176: 167
Y177: 168
B178: FT-2C | C178: Distribution Non-Gas Rev | F178: =Revenue!$F$177 -> 0 | G178: =+Adjustments!AY178 -> 0 | I178: =SUM($F$178:$H$178) -> 0 | L178: Utah | M178: =VLOOKUP($L178,$L$2:$N$7,2,FALSE)*I178 -> 0 | N178: =VLOOKUP($L178,$L$2:$N$7,3,FALSE)*I178 -> 0 | P178: G | Q178: =IF(P178="G",M178,IF(P178="PT",0,ERR)) -> 0 | R178: =IF(P178="PT",M178,IF(P178="G",0,ERR)) -> 0 | S178: G | T178: =IF(S178="G",N178,IF(S178="PT",0,ERR)) -> 0 | U178: =IF(S178="PT",N178,IF(S178="G",0,ERR)) -> 0 | W178: =HLOOKUP($W$9,'ROR-Model'!$Q$10:$U$1274,Y178) -> 0 | Y178: 169
Y179: 170
C180: Supplier Non-Gas Revenue | F180: =Revenue!$F$179 -> 0 | G180: =+Adjustments!AY180 -> 0 | I180: =SUM($F$180:$H$180) -> 0 | L180: Utah | M180: =VLOOKUP($L180,$L$2:$N$7,2,FALSE)*I180 -> 0 | N180: =VLOOKUP($L180,$L$2:$N$7,3,FALSE)*I180 -> 0 | P180: PT | Q180: =IF(P180="G",M180,IF(P180="PT",0,ERR)) -> 0 | R180: =IF(P180="PT",M180,IF(P180="G",0,ERR)) -> 0 | S180: PT | T180: =IF(S180="G",N180,IF(S180="PT",0,ERR)) -> 0 | U180: =IF(S180="PT",N180,IF(S180="G",0,ERR)) -> 0 | W180: =HLOOKUP($W$9,'ROR-Model'!$Q$10:$U$1274,Y180) -> 0 | Y180: 171
Y181: 172
C182: Commodity Revenue | F182: =Revenue!$F$181 -> 0 | G182: =+Adjustments!AY182 -> 0 | I182: =SUM($F$182:$H$182) -> 0 | L182: Utah | M182: =VLOOKUP($L182,$L$2:$N$7,2,FALSE)*I182 -> 0 | N182: =VLOOKUP($L182,$L$2:$N$7,3,FALSE)*I182 -> 0 | P182: PT | Q182: =IF(P182="G",M182,IF(P182="PT",0,ERR)) -> 0 | R182: =IF(P182="PT",M182,IF(P182="G",0,ERR)) -> 0 | S182: PT | T182: =IF(S182="G",N182,IF(S182="PT",0,ERR)) -> 0 | U182: =IF(S182="PT",N182,IF(S182="G",0,ERR)) -> 0 | W182: =HLOOKUP($W$9,'ROR-Model'!$Q$10:$U$1274,Y182) -> 0 | Y182: 173
C183: Total Revenue | F183: =SUM(F178:F182) -> 0 | G183: =SUM(G178:G182) -> 0 | H183: =SUM(H178:H182) -> 0 | I183: =SUM(I178:I182) -> 0 | M183: =SUM(M178:M182) -> 0 | N183: =SUM(N178:N182) -> 0 | Q183: =SUM(Q178:Q182) -> 0 | R183: =SUM(R178:R182) -> 0 | T183: =SUM(T178:T182) -> 0 | U183: =SUM(U178:U182) -> 0 | W183: =HLOOKUP($W$9,'ROR-Model'!$Q$10:$U$1274,Y183) -> 0 | Y183: 174
Y184: 175
C185: Total Dth | F185: =Revenue!$F$184 -> 0 | G185: =+Adjustments!AY185 -> 0 | I185: =SUM($F$185:$H$185) -> 0 | L185: Utah | M185: =VLOOKUP($L185,$L$2:$N$7,2,FALSE)*I185 -> 0 | N185: =VLOOKUP($L185,$L$2:$N$7,3,FALSE)*I185 -> 0 | P185: G | Q185: =IF(P185="G",M185,IF(P185="PT",0,ERR)) -> 0 | R185: =IF(P185="PT",M185,IF(P185="G",0,ERR)) -> 0 | S185: G | T185: =IF(S185="G",N185,IF(S185="PT",0,ERR)) -> 0 | U185: =IF(S185="PT",N185,IF(S185="G",0,ERR)) -> 0 | W185: =HLOOKUP($W$9,'ROR-Model'!$Q$10:$U$1274,Y185) -> 0 | Y185: 176
Y186: 177
B187: Blank | C187: Distribution Non-Gas Rev | F187: =Revenue!$F$186 -> 0 | G187: =+Adjustments!AY187 -> 0 | I187: =SUM($F$187:$H$187) -> 0 | L187: Utah | M187: =VLOOKUP($L187,$L$2:$N$7,2,FALSE)*I187 -> 0 | N187: =VLOOKUP($L187,$L$2:$N$7,3,FALSE)*I187 -> 0 | P187: G | Q187: =IF(P187="G",M187,IF(P187="PT",0,ERR)) -> 0 | R187: =IF(P187="PT",M187,IF(P187="G",0,ERR)) -> 0 | S187: G | T187: =IF(S187="G",N187,IF(S187="PT",0,ERR)) -> 0 | U187: =IF(S187="PT",N187,IF(S187="G",0,ERR)) -> 0 | W187: =HLOOKUP($W$9,'ROR-Model'!$Q$10:$U$1274,Y187) -> 0 | Y187: 178
Y188: 179
C189: Supplier Non-Gas Revenue | F189: =Revenue!$F$188 -> 0 | G189: =+Adjustments!AY189 -> 0 | I189: =SUM($F$189:$H$189) -> 0 | L189: Utah | M189: =VLOOKUP($L189,$L$2:$N$7,2,FALSE)*I189 -> 0 | N189: =VLOOKUP($L189,$L$2:$N$7,3,FALSE)*I189 -> 0 | P189: PT | Q189: =IF(P189="G",M189,IF(P189="PT",0,ERR)) -> 0 | R189: =IF(P189="PT",M189,IF(P189="G",0,ERR)) -> 0 | S189: PT | T189: =IF(S189="G",N189,IF(S189="PT",0,ERR)) -> 0 | U189: =IF(S189="PT",N189,IF(S189="G",0,ERR)) -> 0 | W189: =HLOOKUP($W$9,'ROR-Model'!$Q$10:$U$1274,Y189) -> 0 | Y189: 180
Y190: 181
C191: Commodity Revenue | F191: =Revenue!$F$190 -> 0 | G191: =+Adjustments!AY191 -> 0 | I191: =SUM($F$191:$H$191) -> 0 | L191: Utah | M191: =VLOOKUP($L191,$L$2:$N$7,2,FALSE)*I191 -> 0 | N191: =VLOOKUP($L191,$L$2:$N$7,3,FALSE)*I191 -> 0 | P191: PT | Q191: =IF(P191="G",M191,IF(P191="PT",0,ERR)) -> 0 | R191: =IF(P191="PT",M191,IF(P191="G",0,ERR)) -> 0 | S191: PT | T191: =IF(S191="G",N191,IF(S191="PT",0,ERR)) -> 0 | U191: =IF(S191="PT",N191,IF(S191="G",0,ERR)) -> 0 | W191: =HLOOKUP($W$9,'ROR-Model'!$Q$10:$U$1274,Y191) -> 0 | Y191: 182
C192: Total Revenue | F192: =SUM(F187:F191) -> 0 | G192: =SUM(G187:G191) -> 0 | H192: =SUM(H187:H191) -> 0 | I192: =SUM(I187:I191) -> 0 | M192: =SUM(M187:M191) -> 0 | N192: =SUM(N187:N191) -> 0 | Q192: =SUM(Q187:Q191) -> 0 | R192: =SUM(R187:R191) -> 0 | T192: =SUM(T187:T191) -> 0 | U192: =SUM(U187:U191) -> 0 | W192: =HLOOKUP($W$9,'ROR-Model'!$Q$10:$U$1274,Y192) -> 0 | Y192: 183
Y193: 184
C194: Total Dth | F194: =Revenue!$F$193 -> 0 | G194: =+Adjustments!AY194 -> 0 | I194: =SUM($F$194:$H$194) -> 0 | L194: Utah | M194: =VLOOKUP($L194,$L$2:$N$7,2,FALSE)*I194 -> 0 | N194: =VLOOKUP($L194,$L$2:$N$7,3,FALSE)*I194 -> 0 | P194: G | Q194: =IF(P194="G",M194,IF(P194="PT",0,ERR)) -> 0 | R194: =IF(P194="PT",M194,IF(P194="G",0,ERR)) -> 0 | S194: G | T194: =IF(S194="G",N194,IF(S194="PT",0,ERR)) -> 0 | U194: =IF(S194="PT",N194,IF(S194="G",0,ERR)) -> 0 | W194: =HLOOKUP($W$9,'ROR-Model'!$Q$10:$U$1274,Y194) -> 0 | Y194: 185
Y195: 186
B196: CET | C196: Distribution Non-Gas Revenue | F196: =Revenue!$F$195 -> -3883550.45 | G196: =+Adjustments!AY196 -> 3883550.45 | I196: =SUM($F$196:$H$196) -> 0 | L196: Utah | M196: =VLOOKUP($L196,$L$2:$N$7,2,FALSE)*I196 -> 0 | N196: =VLOOKUP($L196,$L$2:$N$7,3,FALSE)*I196 -> 0 | P196: G | Q196: =IF(P196="G",M196,IF(P196="PT",0,ERR)) -> 0 | R196: =IF(P196="PT",M196,IF(P196="G",0,ERR)) -> 0 | S196: G | T196: =IF(S196="G",N196,IF(S196="PT",0,ERR)) -> 0 | U196: =IF(S196="PT",N196,IF(S196="G",0,ERR)) -> 0 | W196: =HLOOKUP($W$9,'ROR-Model'!$Q$10:$U$1274,Y196) -> 0 | Y196: 187
B197: DSM | C197: Distribution Non-Gas Revenue | F197: =Revenue!$F$196 -> 23887961.54 | G197: =+Adjustments!AY197 -> -23887961.54 | I197: =SUM($F$197:$H$197) -> 0 | L197: Utah | M197: =VLOOKUP($L197,$L$2:$N$7,2,FALSE)*I197 -> 0 | N197: =VLOOKUP($L197,$L$2:$N$7,3,FALSE)*I197 -> 0 | P197: G | Q197: =IF(P197="G",M197,IF(P197="PT",0,ERR)) -> 0 | R197: =IF(P197="PT",M197,IF(P197="G",0,ERR)) -> 0 | S197: G | T197: =IF(S197="G",N197,IF(S197="PT",0,ERR)) -> 0 | U197: =IF(S197="PT",N197,IF(S197="G",0,ERR)) -> 0 | W197: =HLOOKUP($W$9,'ROR-Model'!$Q$10:$U$1274,Y197) -> 0 | Y197: 188
B198: Utah Totals | Y198: 189
Y199: 190
C200: Distribution Non-Gas Rev | F200: =+F16+F34+F43+F52+F61+F70+F79+F88+F97+F106+F115+F124+F133+F142+F151+F160+F169+F178+F187+F25+F196+F197 -> 373167098.5 | G200: =+G16+G34+G43+G52+G61+G70+G79+G88+G97+G106+G115+G124+G133+G142+G151+G160+G169+G178+G187+G25+G196+G197 -> 5209058.825 | H200: =+H16+H34+H43+H52+H61+H70+H79+H88+H97+H106+H115+H124+H133+H142+H151+H160+H169+H178+H187+H25+H196+H197 -> 0 | I200: =+I16+I34+I43+I52+I61+I70+I79+I88+I97+I106+I115+I124+I133+I142+I151+I160+I169+I178+I187+I25+I196+I197 -> 378376157.4 | M200: =+M16+M34+M43+M52+M61+M70+M79+M88+M97+M106+M115+M124+M133+M142+M151+M160+M169+M178+M187+M25+M196+M197 -> 378376157.4 | N200: =+N16+N34+N43+N52+N61+N70+N79+N88+N97+N106+N115+N124+N133+N142+N151+N160+N169+N178+N187+N25+N196+N197 -> 0 | Q200: =+Q16+Q34+Q43+Q52+Q61+Q70+Q79+Q88+Q97+Q106+Q115+Q124+Q133+Q142+Q151+Q160+Q169+Q178+Q187+Q25+Q196+Q197 -> 378376157.4 | R200: =+R16+R34+R43+R52+R61+R70+R79+R88+R97+R106+R115+R124+R133+R142+R151+R160+R169+R178+R187+R25+R196 -> 0 | T200: =+T16+T34+T43+T52+T61+T70+T79+T88+T97+T106+T115+T124+T133+T142+T151+T160+T169+T178+T187+T25+T196 -> 0 | U200: =+U16+U34+U43+U52+U61+U70+U79+U88+U97+U106+U115+U124+U133+U142+U151+U160+U169+U178+U187+U25+U196 -> 0 | W200: =HLOOKUP($W$9,'ROR-Model'!$Q$10:$U$1274,Y200) -> 378376157.4 | Y200: 191
... 1074 more rows

Sheet Summaries
A1: =+'Control Panel'!$B$1 -> Dominion Energy
A2: =+'Control Panel'!$B$2 -> Utah - DEC 2020 Adjusted Avg Results CET
A3: =+'Control Panel'!$B$3 -> 12 Months Ended : Dec-2020
G4: =+Adjustments!F6 -> 1 | H4: =+Adjustments!G6 -> 2 | I4: =+Adjustments!H6 -> 3 | J4: =+Adjustments!I6 -> 4 | K4: =+Adjustments!J6 -> 5 | L4: =+Adjustments!K6 -> 6 | M4: =+Adjustments!L6 -> 7 | N4: =+Adjustments!M6 -> 8 | O4: =+Adjustments!N6 -> 9 | P4: =+Adjustments!O6 -> 10 | Q4: =+Adjustments!P6 -> 11 | R4: =+Adjustments!Q6 -> 12 | S4: =+Adjustments!R6 -> 13 | T4: =+Adjustments!S6 -> 14 | U4: =+Adjustments!T6 -> 15 | V4: =+Adjustments!U6 -> 16 | W4: =+Adjustments!V6 -> 17 | X4: =+Adjustments!W6 -> 18 | Y4: =+Adjustments!X6 -> 19
G5: =+Adjustments!F8 -> Y | H5: =+Adjustments!G8 -> Y | I5: =+Adjustments!H8 -> Y | J5: =+Adjustments!I8 -> Y | K5: =+Adjustments!J8 -> Y | L5: =+Adjustments!K8 -> Y | M5: =+Adjustments!L8 -> Y | N5: =+Adjustments!M8 -> Y | O5: =+Adjustments!N8 -> Y | P5: =+Adjustments!O8 -> Y | Q5: =+Adjustments!P8 -> Y | R5: =+Adjustments!Q8 -> Y | S5: =+Adjustments!R8 -> Y | T5: =+Adjustments!S8 -> N | U5: =+Adjustments!T8 -> N | V5: =+Adjustments!U8 -> Y | W5: =+Adjustments!V8 -> Y | X5: =+Adjustments!W8 -> Y | Y5: =+Adjustments!X8 -> Y
G6: =Adjustments!F9 -> AVG RB DEC 2020 | H6: =Adjustments!G9 -> Expense Dec 2020 | I6: =Adjustments!H9 -> AVG Projected Rev 2020 with CET | J6: =Adjustments!I9 -> Underground Storage | K6: =Adjustments!J9 -> Wexpro | L6: =Adjustments!K9 -> Energy Efficiency 2020 | M6: =Adjustments!L9 -> Utah Bad Debt 2020 | N6: =Adjustments!M9 -> Incentives 2020 | O6: =Adjustments!N9 -> Sporting Events DEC 2020 | P6: =Adjustments!O9 -> Advertising DEC 2020 | Q6: =Adjustments!P9 -> Don & Membership DEC 2020 | R6: =Adjustments!Q9 -> Reserve Accrual Dec 2020 | S6: =Adjustments!R9 -> Pipeline Integrity 2020 | T6: =Adjustments!S9 -> Transition Costs | U6: =Adjustments!T9 -> Tax Surcredit 2 | V6: =Adjustments!U9 -> 2020 EDIT Adjustment | W6: =Adjustments!V9 -> Own Your Future - Savings | X6: =Adjustments!W9 -> RNGT - Incremental Volume | Y6: =Adjustments!X9 -> Pension 2020 | Z6: =Adjustments!AW9 -> TOTAL QGC ADJUSTMENTS | AA6: =Adjustments!AY9 -> RESULTING TOTAL | AB6: =Adjustments!AZ9 -> CHECKS MUST BE (0)
A8: 1 | B8: NET INCOME SUMMARY
A10: =+A8+1 -> 2 | B10: Utility Operating Revenue
A11: =+A10+1 -> 3 | D11: System Distribution Non-Gas Revenue | G11: =Adjustments!F363+Adjustments!F365 -> 0 | H11: =Adjustments!G363+Adjustments!G365 -> 0 | I11: =Adjustments!H363+Adjustments!H365 -> 4606688.457 | J11: =Adjustments!I363+Adjustments!I365 -> 0 | K11: =Adjustments!J363+Adjustments!J365 -> 0 | L11: =Adjustments!K363+Adjustments!K365 -> 0 | M11: =Adjustments!L363+Adjustments!L365 -> 0 | N11: =Adjustments!M363+Adjustments!M365 -> 0 | O11: =Adjustments!N363+Adjustments!N365 -> 0 | P11: =Adjustments!O363+Adjustments!O365 -> 0 | Q11: =Adjustments!P363+Adjustments!P365 -> 0 | R11: =Adjustments!Q363+Adjustments!Q365 -> 0 | S11: =Adjustments!R363+Adjustments!R365 -> 0 | T11: =Adjustments!S363+Adjustments!S365 -> 0 | U11: =Adjustments!T363+Adjustments!T365 -> 0 | V11: =Adjustments!U363+Adjustments!U365 -> 0 | W11: =Adjustments!V363+Adjustments!V365 -> 0 | X11: =Adjustments!W363+Adjustments!W365 -> 599041.8 | Y11: =Adjustments!X363+Adjustments!X365 -> 0 | Z11: =Adjustments!AW363+Adjustments!AW365 -> 5205730.257 | AA11: =SUM(G11:Y11) -> 5205730.257 | AB11: =+Z11-AA11 -> 0
A12: 4 | D12: System Supplier Non-Gas Revenue | G12: =Adjustments!F364 -> 0 | H12: =Adjustments!G364 -> 0 | I12: =Adjustments!H364 -> -659276.92 | J12: =Adjustments!I364 -> 0 | K12: =Adjustments!J364 -> 0 | L12: =Adjustments!K364 -> 0 | M12: =Adjustments!L364 -> 0 | N12: =Adjustments!M364 -> 0 | O12: =Adjustments!N364 -> 0 | P12: =Adjustments!O364 -> 0 | Q12: =Adjustments!P364 -> 0 | R12: =Adjustments!Q364 -> 0 | S12: =Adjustments!R364 -> 0 | T12: =Adjustments!S364 -> 0 | U12: =Adjustments!T364 -> 0 | V12: =Adjustments!U364 -> 0 | W12: =Adjustments!V364 -> 0 | X12: =Adjustments!W364 -> 0 | Y12: =Adjustments!X364 -> 0 | Z12: =Adjustments!AW364 -> -659276.92 | AA12: =SUM(G12:Y12) -> -659276.92 | AB12: =+Z12-AA12 -> 0
A13: 5 | D13: System Commodity Revenue | G13: =Adjustments!F366 -> 0 | H13: =Adjustments!G366 -> 0 | I13: =Adjustments!H366 -> -746392.4398 | J13: =Adjustments!I366 -> 0 | K13: =Adjustments!J366 -> 0 | L13: =Adjustments!K366 -> 0 | M13: =Adjustments!L366 -> 0 | N13: =Adjustments!M366 -> 0 | O13: =Adjustments!N366 -> 0 | P13: =Adjustments!O366 -> 0 | Q13: =Adjustments!P366 -> 0 | R13: =Adjustments!Q366 -> 0 | S13: =Adjustments!R366 -> 0 | T13: =Adjustments!S366 -> 0 | U13: =Adjustments!T366 -> 0 | V13: =Adjustments!U366 -> 0 | W13: =Adjustments!V366 -> 0 | X13: =Adjustments!W366 -> 0 | Y13: =Adjustments!X366 -> 0 | Z13: =Adjustments!AW366 -> -746392.4398 | AA13: -746392.4398 | AB13: 0
A14: 6 | D14: Pass-Through Related Other Revenue | G14: =Adjustments!F501+Adjustments!F505 -> 0 | H14: =Adjustments!G501+Adjustments!G505 -> 0 | I14: =Adjustments!H501+Adjustments!H505 -> 0 | J14: =Adjustments!I501+Adjustments!I505 -> 0 | K14: =Adjustments!J501+Adjustments!J505 -> 0 | L14: =Adjustments!K501+Adjustments!K505 -> 0 | M14: =Adjustments!L501+Adjustments!L505 -> 0 | N14: =Adjustments!M501+Adjustments!M505 -> 0 | O14: =Adjustments!N501+Adjustments!N505 -> 0 | P14: =Adjustments!O501+Adjustments!O505 -> 0 | Q14: =Adjustments!P501+Adjustments!P505 -> 0 | R14: =Adjustments!Q501+Adjustments!Q505 -> 0 | S14: =Adjustments!R501+Adjustments!R505 -> 0 | T14: =Adjustments!S501+Adjustments!S505 -> 0 | U14: =Adjustments!T501+Adjustments!T505 -> 0 | V14: =Adjustments!U501+Adjustments!U505 -> 0 | W14: =Adjustments!V501+Adjustments!V505 -> 0 | X14: =Adjustments!W501+Adjustments!W505 -> 0 | Y14: =Adjustments!X501+Adjustments!X505 -> 0 | Z14: =Adjustments!AW501+Adjustments!AW505 -> 0 | AA14: 0 | AB14: 0
A15: 7 | D15: General Related Other Revenue | G15: =Adjustments!F502+Adjustments!F506 -> 0 | H15: =Adjustments!G502+Adjustments!G506 -> 0 | I15: =Adjustments!H502+Adjustments!H506 -> 0 | J15: =Adjustments!I502+Adjustments!I506 -> 0 | K15: =Adjustments!J502+Adjustments!J506 -> 0 | L15: =Adjustments!K502+Adjustments!K506 -> 0 | M15: =Adjustments!L502+Adjustments!L506 -> 0 | N15: =Adjustments!M502+Adjustments!M506 -> 0 | O15: =Adjustments!N502+Adjustments!N506 -> 0 | P15: =Adjustments!O502+Adjustments!O506 -> 0 | Q15: =Adjustments!P502+Adjustments!P506 -> 0 | R15: =Adjustments!Q502+Adjustments!Q506 -> 0 | S15: =Adjustments!R502+Adjustments!R506 -> 0 | T15: =Adjustments!S502+Adjustments!S506 -> 0 | U15: =Adjustments!T502+Adjustments!T506 -> 0 | V15: =Adjustments!U502+Adjustments!U506 -> 5610271.916 | W15: =Adjustments!V502+Adjustments!V506 -> 0 | X15: =Adjustments!W502+Adjustments!W506 -> 0 | Y15: =Adjustments!X502+Adjustments!X506 -> 0 | Z15: =Adjustments!AW502+Adjustments!AW506 -> 5610271.916 | AA15: =SUM(G15:Y15) -> 5610271.916 | AB15: 0
A16: 8 | C16: Total Utility Operating Revenue | G16: =SUM(G11:G15) -> 0 | H16: =SUM(H11:H15) -> 0 | I16: 3201019.098 | J16: 0 | K16: 0 | L16: 0 | M16: 0 | N16: 0 | O16: 0 | P16: 0 | Q16: 0 | R16: =SUM(R11:R15) -> 0 | S16: =SUM(S11:S15) -> 0 | T16: 0 | U16: =SUM(U11:U15) -> 0 | V16: =SUM(V11:V15) -> 5610271.916 | W16: =SUM(W11:W15) -> 0 | X16: =SUM(X11:X15) -> 599041.8 | Y16: =SUM(Y11:Y15) -> 0 | Z16: =SUM(Z11:Z15) -> 9410332.814 | AA16: 9410332.814 | AB16: 0
A18: =+A16+1 -> 9 | B18: Utility Operating Expenses
A19: =+A18+1 -> 10 | C19: Gas Purchase Expenses
A20: =+A19+1 -> 11 | D20: Utah Gas Purchase Exp | G20: =Adjustments!F632+Adjustments!F635 -> 0 | H20: =Adjustments!G632+Adjustments!G635 -> 0 | I20: =Adjustments!H632+Adjustments!H635 -> -1164593.84 | J20: =Adjustments!I632+Adjustments!I635 -> 0 | K20: =Adjustments!J632+Adjustments!J635 -> 0 | L20: =Adjustments!K632+Adjustments!K635 -> 0 | M20: =Adjustments!L632+Adjustments!L635 -> 0 | N20: =Adjustments!M632+Adjustments!M635 -> 0 | O20: =Adjustments!N632+Adjustments!N635 -> 0 | P20: =Adjustments!O632+Adjustments!O635 -> 0 | Q20: =Adjustments!P632+Adjustments!P635 -> 0 | R20: =Adjustments!Q632+Adjustments!Q635 -> 0 | S20: =Adjustments!R632+Adjustments!R635 -> 0 | T20: =Adjustments!S632+Adjustments!S635 -> 0 | U20: =Adjustments!T632+Adjustments!T635 -> 0 | V20: =Adjustments!U632+Adjustments!U635 -> 0 | W20: =Adjustments!V632+Adjustments!V635 -> 0 | X20: =Adjustments!W632+Adjustments!W635 -> 0 | Y20: =Adjustments!X632+Adjustments!X635 -> 0 | Z20: =Adjustments!AW632+Adjustments!AW635 -> -1164593.84 | AA20: =SUM(G20:Y20) -> -1164593.84 | AB20: =+Z20-AA20 -> 0
A21: =+A20+1 -> 12 | D21: Wyoming Gas Purchase Exp | G21: =Adjustments!F634+Adjustments!F636 -> 0 | H21: =Adjustments!G634+Adjustments!G636 -> 0 | I21: =Adjustments!H634+Adjustments!H636 -> -241075.5198 | J21: =Adjustments!I634+Adjustments!I636 -> 0 | K21: =Adjustments!J634+Adjustments!J636 -> 0 | L21: =Adjustments!K634+Adjustments!K636 -> 0 | M21: =Adjustments!L634+Adjustments!L636 -> 0 | N21: =Adjustments!M634+Adjustments!M636 -> 0 | O21: =Adjustments!N634+Adjustments!N636 -> 0 | P21: =Adjustments!O634+Adjustments!O636 -> 0 | Q21: =Adjustments!P634+Adjustments!P636 -> 0 | R21: =Adjustments!Q634+Adjustments!Q636 -> 0 | S21: =Adjustments!R634+Adjustments!R636 -> 0 | T21: =Adjustments!S634+Adjustments!S636 -> 0 | U21: =Adjustments!T634+Adjustments!T636 -> 0 | V21: =Adjustments!U634+Adjustments!U636 -> 0 | W21: =Adjustments!V634+Adjustments!V636 -> 0 | X21: =Adjustments!W634+Adjustments!W636 -> 0 | Y21: =Adjustments!X634+Adjustments!X636 -> 0 | Z21: =Adjustments!AW634+Adjustments!AW636 -> -241075.5198 | AA21: -241075.5198 | AB21: =+Z21-AA21 -> 0
A22: =+A21+1 -> 13 | D22: Total Gas Purchase Expenses | G22: =SUM(G20:G21) -> 0 | H22: =SUM(H20:H21) -> 0 | I22: -1405669.36 | J22: 0 | K22: 0 | L22: 0 | M22: 0 | N22: 0 | O22: 0 | P22: 0 | Q22: 0 | R22: =SUM(R20:R21) -> 0 | S22: =SUM(S20:S21) -> 0 | T22: 0 | U22: =SUM(U20:U21) -> 0 | V22: =SUM(V20:V21) -> 0 | W22: =SUM(W20:W21) -> 0 | X22: =SUM(X20:X21) -> 0 | Y22: =SUM(Y20:Y21) -> 0 | Z22: =SUM(Z20:Z21) -> -1405669.36 | AA22: -1405669.36 | AB22: 0
A24: =+A22+1 -> 14 | D24: Utah Gathering & CO2 | G24: =Adjustments!F631 -> 0 | H24: =Adjustments!G631 -> 0 | I24: =Adjustments!H631 -> 0 | J24: =Adjustments!I631 -> 0 | K24: =Adjustments!J631 -> 0 | L24: =Adjustments!K631 -> 0 | M24: =Adjustments!L631 -> 0 | N24: =Adjustments!M631 -> 0 | O24: =Adjustments!N631 -> 0 | P24: =Adjustments!O631 -> 0 | Q24: =Adjustments!P631 -> 0 | R24: =Adjustments!Q631 -> 0 | S24: =Adjustments!R631 -> 0 | T24: =Adjustments!S631 -> 0 | U24: =Adjustments!T631 -> 0 | V24: =Adjustments!U631 -> 0 | W24: =Adjustments!V631 -> 0 | X24: =Adjustments!W631 -> 0 | Y24: =Adjustments!X631 -> 0 | Z24: =Adjustments!AW631 -> 0 | AA24: =SUM(G24:Y24) -> 0 | AB24: =+Z24-AA24 -> 0
A25: =+A24+1 -> 15 | D25: Wyoming Gathering & CO2 | G25: =Adjustments!F633 -> 0 | H25: =Adjustments!G633 -> 0 | I25: =Adjustments!H633 -> 0 | J25: =Adjustments!I633 -> 0 | K25: =Adjustments!J633 -> 0 | L25: =Adjustments!K633 -> 0 | M25: =Adjustments!L633 -> 0 | N25: =Adjustments!M633 -> 0 | O25: =Adjustments!N633 -> 0 | P25: =Adjustments!O633 -> 0 | Q25: =Adjustments!P633 -> 0 | R25: =Adjustments!Q633 -> 0 | S25: =Adjustments!R633 -> 0 | T25: =Adjustments!S633 -> 0 | U25: =Adjustments!T633 -> 0 | V25: =Adjustments!U633 -> 0 | W25: =Adjustments!V633 -> 0 | X25: =Adjustments!W633 -> 0 | Y25: =Adjustments!X633 -> 0 | Z25: =Adjustments!AW633 -> 0 | AA25: 0 | AB25: 0
A26: =+A25+1 -> 16 | D26: Total Gathering & CO2 | G26: =SUM(G24:G25) -> 0 | H26: =SUM(H24:H25) -> 0 | I26: 0 | J26: 0 | K26: 0 | L26: 0 | M26: 0 | N26: 0 | O26: 0 | P26: 0 | Q26: 0 | R26: =SUM(R24:R25) -> 0 | S26: =SUM(S24:S25) -> 0 | T26: 0 | U26: =SUM(U24:U25) -> 0 | V26: =SUM(V24:V25) -> 0 | W26: =SUM(W24:W25) -> 0 | X26: =SUM(X24:X25) -> 0 | Y26: =SUM(Y24:Y25) -> 0 | Z26: =SUM(Z24:Z25) -> 0 | AA26: 0 | AB26: 0
A28: =+A26+1 -> 17 | C28: O&M Expenses
A29: =+A28+1 -> 18 | D29: Production | G29: =Adjustments!F649 -> 0 | H29: =Adjustments!G649 -> 17649.04951 | I29: =Adjustments!H649 -> 0 | J29: =Adjustments!I649 -> 0 | K29: =Adjustments!J649 -> 0 | L29: =Adjustments!K649 -> 0 | M29: =Adjustments!L649 -> 0 | N29: =Adjustments!M649 -> 0 | O29: =Adjustments!N649 -> 0 | P29: =Adjustments!O649 -> 0 | Q29: =Adjustments!P649 -> 0 | R29: =Adjustments!Q649 -> 0 | S29: =Adjustments!R649 -> 0 | T29: =Adjustments!S649 -> 0 | U29: =Adjustments!T649 -> 0 | V29: =Adjustments!U649 -> 0 | W29: =Adjustments!V649 -> 0 | X29: =Adjustments!W649 -> 0 | Y29: =Adjustments!X649 -> 0 | Z29: =Adjustments!AW649 -> 17649.04951 | AA29: =SUM(G29:Y29) -> 17649.04951 | AB29: =+Z29-AA29 -> 0
A30: 19 | D30: Distribution | G30: =Adjustments!F752 -> 0 | H30: =Adjustments!G752 -> 185988.8352 | I30: =Adjustments!H752 -> 0 | J30: =Adjustments!I752 -> 0 | K30: =Adjustments!J752 -> 0 | L30: =Adjustments!K752 -> 0 | M30: =Adjustments!L752 -> 0 | N30: =Adjustments!M752 -> 0 | O30: =Adjustments!N752 -> 0 | P30: =Adjustments!O752 -> 0 | Q30: =Adjustments!P752 -> 0 | R30: =Adjustments!Q752 -> 0 | S30: =Adjustments!R752 -> 1092325.965 | T30: =Adjustments!S752 -> 0 | U30: =Adjustments!T752 -> 0 | V30: =Adjustments!U752 -> 0 | W30: =Adjustments!V752 -> 0 | X30: =Adjustments!W752 -> 0 | Y30: =Adjustments!X752 -> 0 | Z30: =Adjustments!AW752 -> 1278314.8 | AA30: 1278314.8 | AB30: 0
A31: 20 | D31: Customer Accounts | G31: =Adjustments!F805 -> 0 | H31: =Adjustments!G805 -> -220019.9643 | I31: =Adjustments!H805 -> 0 | J31: =Adjustments!I805 -> 0 | K31: =Adjustments!J805 -> 0 | L31: =Adjustments!K805 -> 0 | M31: =Adjustments!L805 -> -663256.6527 | N31: =Adjustments!M805 -> 0 | O31: =Adjustments!N805 -> 0 | P31: =Adjustments!O805 -> 0 | Q31: =Adjustments!P805 -> 0 | R31: =Adjustments!Q805 -> 0 | S31: =Adjustments!R805 -> 0 | T31: =Adjustments!S805 -> 0 | U31: =Adjustments!T805 -> 0 | V31: =Adjustments!U805 -> 0 | W31: =Adjustments!V805 -> 0 | X31: =Adjustments!W805 -> 1639.949506 | Y31: =Adjustments!X805 -> 0 | Z31: =Adjustments!AW805 -> -881636.6675 | AA31: -881636.6675 | AB31: 0
A32: 21 | D32: Customer Service & Information | G32: =Adjustments!F833 -> 0 | H32: =Adjustments!G833 -> 709464.1471 | I32: =Adjustments!H833 -> 0 | J32: =Adjustments!I833 -> 0 | K32: =Adjustments!J833 -> 0 | L32: =Adjustments!K833 -> -24829836.38 | M32: =Adjustments!L833 -> 0 | N32: =Adjustments!M833 -> 0 | O32: =Adjustments!N833 -> 0 | P32: =Adjustments!O833 -> -6175.08 | Q32: =Adjustments!P833 -> 0 | R32: =Adjustments!Q833 -> 0 | S32: =Adjustments!R833 -> 0 | T32: =Adjustments!S833 -> 0 | U32: =Adjustments!T833 -> 0 | V32: =Adjustments!U833 -> 0 | W32: =Adjustments!V833 -> 0 | X32: =Adjustments!W833 -> 0 | Y32: =Adjustments!X833 -> 0 | Z32: =Adjustments!AW833 -> -24126547.31 | AA32: -24126547.31 | AB32: 0
A33: 22 | D33: Administrative & General | G33: =Adjustments!F889 -> 0 | H33: =Adjustments!G889 -> -871706.7476 | I33: =Adjustments!H889 -> 0 | J33: =Adjustments!I889 -> 0 | K33: =Adjustments!J889 -> 0 | L33: =Adjustments!K889 -> 0 | M33: =Adjustments!L889 -> 0 | N33: =Adjustments!M889 -> -1301370.288 | O33: =Adjustments!N889 -> 0 | P33: =Adjustments!O889 -> 0 | Q33: =Adjustments!P889 -> -151520.9883 | R33: =Adjustments!Q889 -> -370548.1867 | S33: =Adjustments!R889 -> 0 | T33: =Adjustments!S889 -> 0 | U33: =Adjustments!T889 -> 0 | V33: =Adjustments!U889 -> 0 | W33: =Adjustments!V889 -> -500000 | X33: =Adjustments!W889 -> 0 | Y33: =Adjustments!X889 -> 5448127 | Z33: =Adjustments!AW889 -> 2252980.789 | AA33: 2252980.789 | AB33: 0
A34: 23 | D34: Total O&M Expense | G34: =SUM(G29:G33) -> 0 | H34: =SUM(H29:H33) -> -178624.6802 | I34: 0 | J34: 0 | K34: 0 | L34: -24829836.38 | M34: -663256.6527 | N34: -1301370.288 | O34: 0 | P34: -6175.08 | Q34: -151520.9883 | R34: =SUM(R29:R33) -> -370548.1867 | S34: =SUM(S29:S33) -> 1092325.965 | T34: 0 | U34: =SUM(U29:U33) -> 0 | V34: =SUM(V29:V33) -> 0 | W34: =SUM(W29:W33) -> -500000 | X34: =SUM(X29:X33) -> 1639.949506 | Y34: =SUM(Y29:Y33) -> 5448127 | Z34: =SUM(Z29:Z33) -> -21459239.34 | AA34: -21459239.34 | AB34: 0
A36: =+A34+1 -> 24 | C36: Other Operating Expenses
A37: =+A36+1 -> 25 | D37: Depreciation, Deplection, Amortization | G37: =Adjustments!F913 -> 0 | H37: =Adjustments!G913 -> 14987965.4 | I37: =Adjustments!H913 -> 0 | J37: =Adjustments!I913 -> 0 | K37: =Adjustments!J913 -> 0 | L37: =Adjustments!K913 -> 0 | M37: =Adjustments!L913 -> 0 | N37: =Adjustments!M913 -> 0 | O37: =Adjustments!N913 -> 0 | P37: =Adjustments!O913 -> 0 | Q37: =Adjustments!P913 -> 0 | R37: =Adjustments!Q913 -> 0 | S37: =Adjustments!R913 -> 0 | T37: =Adjustments!S913 -> 0 | U37: =Adjustments!T913 -> 0 | V37: =Adjustments!U913 -> 0 | W37: =Adjustments!V913 -> 0 | X37: =Adjustments!W913 -> 0 | Y37: =Adjustments!X913 -> 0 | Z37: =Adjustments!AW913 -> 14987965.4 | AA37: =SUM(G37:Y37) -> 14987965.4 | AB37: =+Z37-AA37 -> 0
A38: =+A37+1 -> 26 | D38: Taxes Other Than Income Taxes | G38: =Adjustments!F921 -> 0 | H38: =Adjustments!G921 -> 5436865.356 | I38: =Adjustments!H921 -> 0 | J38: =Adjustments!I921 -> 0 | K38: =Adjustments!J921 -> 0 | L38: =Adjustments!K921 -> 0 | M38: =Adjustments!L921 -> 0 | N38: =Adjustments!M921 -> 0 | O38: =Adjustments!N921 -> 0 | P38: =Adjustments!O921 -> 0 | Q38: =Adjustments!P921 -> 0 | R38: =Adjustments!Q921 -> 0 | S38: =Adjustments!R921 -> 0 | T38: =Adjustments!S921 -> 0 | U38: =Adjustments!T921 -> 0 | V38: =Adjustments!U921 -> 0 | W38: =Adjustments!V921 -> 0 | X38: =Adjustments!W921 -> 0 | Y38: =Adjustments!X921 -> 0 | Z38: =Adjustments!AW921 -> 5436865.356 | AA38: 5436865.356 | AB38: 0
A39: =+A38+1 -> 27 | D39: Income Taxes | G39: =Adjustments!F923+Adjustments!F925+Adjustments!F927+Adjustments!F929 -> 0 | H39: =Adjustments!G923+Adjustments!G925+Adjustments!G927+Adjustments!G929 -> -5498752.358 | I39: =Adjustments!H923+Adjustments!H925+Adjustments!H927+Adjustments!H929 -> 1140158.807 | J39: =Adjustments!I923+Adjustments!I925+Adjustments!I927+Adjustments!I929 -> 0 | K39: =Adjustments!J923+Adjustments!J925+Adjustments!J927+Adjustments!J929 -> 0 | L39: =Adjustments!K923+Adjustments!K925+Adjustments!K927+Adjustments!K929 -> 6145402.904 | M39: =Adjustments!L923+Adjustments!L925+Adjustments!L927+Adjustments!L929 -> 164156.513 | N39: =Adjustments!M923+Adjustments!M925+Adjustments!M927+Adjustments!M929 -> 322090.1107 | O39: =Adjustments!N923+Adjustments!N925+Adjustments!N927+Adjustments!N929 -> 0 | P39: =Adjustments!O923+Adjustments!O925+Adjustments!O927+Adjustments!O929 -> 1528.336876 | Q39: =Adjustments!P923+Adjustments!P925+Adjustments!P927+Adjustments!P929 -> 37501.55688 | R39: =Adjustments!Q923+Adjustments!Q925+Adjustments!Q927+Adjustments!Q929 -> 91710.9508 | S39: =Adjustments!R923+Adjustments!R925+Adjustments!R927+Adjustments!R929 -> -270351.4857 | T39: =Adjustments!S923+Adjustments!S925+Adjustments!S927+Adjustments!S929 -> 0 | U39: =Adjustments!T923+Adjustments!T925+Adjustments!T927+Adjustments!T929 -> 0 | V39: =Adjustments!U923+Adjustments!U925+Adjustments!U927+Adjustments!U929 -> 1388546.457 | W39: =Adjustments!V923+Adjustments!V925+Adjustments!V927+Adjustments!V929 -> 123750.3705 | X39: =Adjustments!W923+Adjustments!W925+Adjustments!W927+Adjustments!W929 -> 147857.4007 | Y39: =Adjustments!X923+Adjustments!X925+Adjustments!X927+Adjustments!X929 -> -1348415.47 | Z39: =Adjustments!AW923+Adjustments!AW925+Adjustments!AW927+Adjustments!AW929 -> 2445184.094 | AA39: 2445184.094 | AB39: 0
A40: =+A39+1 -> 28 | D40: Total Other Operating Expenses | G40: =SUM(G37:G39) -> 0 | H40: =SUM(H37:H39) -> 14926078.4 | I40: 1140158.807 | J40: 0 | K40: 0 | L40: 6145402.904 | M40: 164156.513 | N40: 322090.1107 | O40: 0 | P40: 1528.336876 | Q40: 37501.55688 | R40: =SUM(R37:R39) -> 91710.9508 | S40: =SUM(S37:S39) -> -270351.4857 | T40: 0 | U40: =SUM(U37:U39) -> 0 | V40: =SUM(V37:V39) -> 1388546.457 | W40: =SUM(W37:W39) -> 123750.3705 | X40: =SUM(X37:X39) -> 147857.4007 | Y40: =SUM(Y37:Y39) -> -1348415.47 | Z40: =SUM(Z37:Z39) -> 22870014.85 | AA40: 22870014.85 | AB40: 0
A43: =+A40+1 -> 29 | C43: Total Utility Operating Expenses | G43: =+G22+G26+G34+G40 -> 0 | H43: =+H22+H26+H34+H40 -> 14747453.72 | I43: -265510.5529 | J43: 0 | K43: 0 | L43: -18684433.48 | M43: -499100.1397 | N43: -979280.1775 | O43: 0 | P43: -4646.743124 | Q43: -114019.4314 | R43: =+R22+R26+R34+R40 -> -278837.2359 | S43: =+S22+S26+S34+S40 -> 821974.4789 | T43: =+T22+T26+T34+T40 -> 0 | U43: 0 | V43: 1388546.457 | W43: -376249.6295 | X43: 149497.3502 | Y43: =+Y22+Y26+Y34+Y40 -> 4099711.53 | Z43: =+Z22+Z26+Z34+Z40 -> 5106.151537 | AA43: 5106.151537 | AB43: 0
A46: =+A43+1 -> 30 | B46: NET OPERATING INCOME | G46: =+G16-G43 -> 0 | H46: =+H16-H43 -> -14747453.72 | I46: 3466529.65 | J46: 0 | K46: 0 | L46: 18684433.48 | M46: 499100.1397 | N46: 979280.1775 | O46: 0 | P46: 4646.743124 | Q46: 114019.4314 | R46: =+R16-R43 -> 278837.2359 | S46: =+S16-S43 -> -821974.4789 | T46: =+T16-T43 -> 0 | U46: 0 | V46: 4221725.46 | W46: 376249.6295 | X46: 449544.4498 | Y46: =+Y16-Y43 -> -4099711.53 | Z46: =+Z16-Z43 -> 9405226.663 | AA46: 9405226.663 | AB46: 0
A49: =+A46+1 -> 31 | B49: RATE BASE SUMMARY
A51: =+A49+1 -> 32 | B51: Net Utility Plant
A52: =+A51+1 -> 33 | C52: 101 | D52: Gas Plant In Service | G52: =Adjustments!F1095 -> 370106481.2 | H52: =Adjustments!G1095 -> 0 | I52: =Adjustments!H1095 -> 0 | J52: =Adjustments!I1095 -> 0 | K52: =Adjustments!J1095 -> -5037992.568 | L52: =Adjustments!K1095 -> 0 | M52: =Adjustments!L1095 -> 0 | N52: =Adjustments!M1095 -> 0 | O52: =Adjustments!N1095 -> 0 | P52: =Adjustments!O1095 -> 0 | Q52: =Adjustments!P1095 -> 0 | R52: =Adjustments!Q1095 -> 0 | S52: =Adjustments!R1095 -> 0 | T52: =Adjustments!S1095 -> 0 | U52: =Adjustments!T1095 -> 0 | V52: =Adjustments!U1095 -> 0 | W52: =Adjustments!V1095 -> 0 | X52: =Adjustments!W1095 -> 0 | Y52: =Adjustments!X1095 -> 0 | Z52: =Adjustments!AW1095 -> 365068488.7 | AA52: =SUM(G52:Y52) -> 365068488.7 | AB52: =+Z52-AA52 -> 0
A53: 34 | C53: 105 | D53: Gas Plant Held For Future Use | G53: =Adjustments!F1099 -> 5036.83 | H53: =Adjustments!G1099 -> 0 | I53: =Adjustments!H1099 -> 0 | J53: =Adjustments!I1099 -> 0 | K53: =Adjustments!J1099 -> 0 | L53: =Adjustments!K1099 -> 0 | M53: =Adjustments!L1099 -> 0 | N53: =Adjustments!M1099 -> 0 | O53: =Adjustments!N1099 -> 0 | P53: =Adjustments!O1099 -> 0 | Q53: =Adjustments!P1099 -> 0 | R53: =Adjustments!Q1099 -> 0 | S53: =Adjustments!R1099 -> 0 | T53: =Adjustments!S1099 -> 0 | U53: =Adjustments!T1099 -> 0 | V53: =Adjustments!U1099 -> 0 | W53: =Adjustments!V1099 -> 0 | X53: =Adjustments!W1099 -> 0 | Y53: =Adjustments!X1099 -> 0 | Z53: =Adjustments!AW1099 -> 5036.83 | AA53: 5036.83 | AB53: 0
A54: 35 | C54: 106 | D54: Completed Construction Not Classified | G54: =Adjustments!F1106 -> -90575015.07 | H54: =Adjustments!G1106 -> 0 | I54: =Adjustments!H1106 -> 0 | J54: =Adjustments!I1106 -> 0 | K54: =Adjustments!J1106 -> 0 | L54: =Adjustments!K1106 -> 0 | M54: =Adjustments!L1106 -> 0 | N54: =Adjustments!M1106 -> 0 | O54: =Adjustments!N1106 -> 0 | P54: =Adjustments!O1106 -> 0 | Q54: =Adjustments!P1106 -> 0 | R54: =Adjustments!Q1106 -> 0 | S54: =Adjustments!R1106 -> 0 | T54: =Adjustments!S1106 -> 0 | U54: =Adjustments!T1106 -> 0 | V54: =Adjustments!U1106 -> 0 | W54: =Adjustments!V1106 -> 0 | X54: =Adjustments!W1106 -> 0 | Y54: =Adjustments!X1106 -> 0 | Z54: =Adjustments!AW1106 -> -90575015.07 | AA54: -90575015.07 | AB54: 0
A55: 36 | C55: 108 | D55: Accumulated Depreciation | G55: =Adjustments!F1113 -> -48223387.93 | H55: =Adjustments!G1113 -> 0 | I55: =Adjustments!H1113 -> 0 | J55: =Adjustments!I1113 -> 0 | K55: =Adjustments!J1113 -> 4462711.969 | L55: =Adjustments!K1113 -> 0 | M55: =Adjustments!L1113 -> 0 | N55: =Adjustments!M1113 -> 0 | O55: =Adjustments!N1113 -> 0 | P55: =Adjustments!O1113 -> 0 | Q55: =Adjustments!P1113 -> 0 | R55: =Adjustments!Q1113 -> 0 | S55: =Adjustments!R1113 -> 0 | T55: =Adjustments!S1113 -> 0 | U55: =Adjustments!T1113 -> 0 | V55: =Adjustments!U1113 -> 0 | W55: =Adjustments!V1113 -> 0 | X55: =Adjustments!W1113 -> 0 | Y55: =Adjustments!X1113 -> 0 | Z55: =Adjustments!AW1113 -> -43760675.96 | AA55: -43760675.96 | AB55: 0
A56: 37 | C56: 111 | D56: Accumulated Amort & Depletion | G56: =Adjustments!F1120 -> 0 | H56: =Adjustments!G1120 -> 0 | I56: =Adjustments!H1120 -> 0 | J56: =Adjustments!I1120 -> 0 | K56: =Adjustments!J1120 -> 387467.4296 | L56: =Adjustments!K1120 -> 0 | M56: =Adjustments!L1120 -> 0 | N56: =Adjustments!M1120 -> 0 | O56: =Adjustments!N1120 -> 0 | P56: =Adjustments!O1120 -> 0 | Q56: =Adjustments!P1120 -> 0 | R56: =Adjustments!Q1120 -> 0 | S56: =Adjustments!R1120 -> 0 | T56: =Adjustments!S1120 -> 0 | U56: =Adjustments!T1120 -> 0 | V56: =Adjustments!U1120 -> 0 | W56: =Adjustments!V1120 -> 0 | X56: =Adjustments!W1120 -> 0 | Y56: =Adjustments!X1120 -> 0 | Z56: =Adjustments!AW1120 -> 387467.4296 | AA56: 387467.4296 | AB56: 0
A57: 38 | C57: 254 | D57: Other Regulatory Liabilities ARC | G57: =Adjustments!F1127 -> -5134406.725 | H57: =Adjustments!G1127 -> 0 | I57: =Adjustments!H1127 -> 0 | J57: =Adjustments!I1127 -> 0 | K57: =Adjustments!J1127 -> 0 | L57: =Adjustments!K1127 -> 0 | M57: =Adjustments!L1127 -> 0 | N57: =Adjustments!M1127 -> 0 | O57: =Adjustments!N1127 -> 0 | P57: =Adjustments!O1127 -> 0 | Q57: =Adjustments!P1127 -> 0 | R57: =Adjustments!Q1127 -> 0 | S57: =Adjustments!R1127 -> 0 | T57: =Adjustments!S1127 -> 0 | U57: =Adjustments!T1127 -> 0 | V57: =Adjustments!U1127 -> 4665535.421 | W57: =Adjustments!V1127 -> 0 | X57: =Adjustments!W1127 -> 0 | Y57: =Adjustments!X1127 -> 0 | Z57: =Adjustments!AW1127 -> -468871.3035 | AA57: =Adjustments!Z1127 -> 0 | AB57: =Adjustments!AA1127 -> 0
A58: 39 | C58: Total Net Utility Plant | G58: =SUM(G52:G57) -> 226178708.3 | H58: 0 | I58: 0 | J58: 0 | K58: -187813.1698 | L58: 0 | M58: 0 | N58: 0 | O58: 0 | P58: 0 | Q58: 0 | R58: 0 | S58: 0 | T58: =SUM(T52:T57) -> 0 | U58: 0 | V58: 4665535.421 | W58: 0 | X58: 0 | Y58: 0 | Z58: =SUM(Z52:Z57) -> 230656430.6 | AA58: =SUM(AA52:AA56) -> 231125301.9 | AB58: 0
A60: =+A58+1 -> 40 | B60: Other Rate Base Accounts
A61: =+A60+1 -> 41 | C61: 154 | D61: Materials & Supplies | G61: =Adjustments!F1145 -> 2915282.742 | H61: =Adjustments!G1145 -> 0 | I61: =Adjustments!H1145 -> 0 | J61: =Adjustments!I1145 -> 0 | K61: =Adjustments!J1145 -> 0 | L61: =Adjustments!K1145 -> 0 | M61: =Adjustments!L1145 -> 0 | N61: =Adjustments!M1145 -> 0 | O61: =Adjustments!N1145 -> 0 | P61: =Adjustments!O1145 -> 0 | Q61: =Adjustments!P1145 -> 0 | R61: =Adjustments!Q1145 -> 0 | S61: =Adjustments!R1145 -> 0 | T61: =Adjustments!S1145 -> 0 | U61: =Adjustments!T1145 -> 0 | V61: =Adjustments!U1145 -> 0 | W61: =Adjustments!V1145 -> 0 | X61: =Adjustments!W1145 -> 0 | Y61: =Adjustments!X1145 -> 0 | Z61: =Adjustments!AW1145 -> 2915282.742 | AA61: =SUM(G61:Y61) -> 2915282.742 | AB61: =+Z61-AA61 -> 0
A62: 42 | C62: 164-1 | D62: Gas Stored Underground | G62: =Adjustments!F1149 -> 0 | H62: =Adjustments!G1149 -> 0 | I62: =Adjustments!H1149 -> 0 | J62: =Adjustments!I1149 -> -44167774.48 | K62: =Adjustments!J1149 -> 0 | L62: =Adjustments!K1149 -> 0 | M62: =Adjustments!L1149 -> 0 | N62: =Adjustments!M1149 -> 0 | O62: =Adjustments!N1149 -> 0 | P62: =Adjustments!O1149 -> 0 | Q62: =Adjustments!P1149 -> 0 | R62: =Adjustments!Q1149 -> 0 | S62: =Adjustments!R1149 -> 0 | T62: =Adjustments!S1149 -> 0 | U62: =Adjustments!T1149 -> 0 | V62: =Adjustments!U1149 -> 0 | W62: =Adjustments!V1149 -> 0 | X62: =Adjustments!W1149 -> 0 | Y62: =Adjustments!X1149 -> 0 | Z62: =Adjustments!AW1149 -> -44167774.48 | AA62: -44167774.48 | AB62: 0
A63: 43 | C63: 165 | D63: Prepayments | G63: =Adjustments!F1153 -> -219830.7108 | H63: =Adjustments!G1153 -> 0 | I63: =Adjustments!H1153 -> 0 | J63: =Adjustments!I1153 -> 0 | K63: =Adjustments!J1153 -> 0 | L63: =Adjustments!K1153 -> 0 | M63: =Adjustments!L1153 -> 0 | N63: =Adjustments!M1153 -> 0 | O63: =Adjustments!N1153 -> 0 | P63: =Adjustments!O1153 -> 0 | Q63: =Adjustments!P1153 -> 0 | R63: =Adjustments!Q1153 -> 0 | S63: =Adjustments!R1153 -> 0 | T63: =Adjustments!S1153 -> 0 | U63: =Adjustments!T1153 -> 0 | V63: =Adjustments!U1153 -> 0 | W63: =Adjustments!V1153 -> 0 | X63: =Adjustments!W1153 -> 0 | Y63: =Adjustments!X1153 -> 0 | Z63: =Adjustments!AW1153 -> -219830.7108 | AA63: -219830.7108 | AB63: 0
A64: 44 | C64: 190 | D64: Accum Deferred Income Taxes | G64: =Adjustments!F1160+Adjustments!F1167 -> 0 | H64: =Adjustments!G1160+Adjustments!G1167 -> 0 | I64: =Adjustments!H1160+Adjustments!H1167 -> 0 | J64: =Adjustments!I1160+Adjustments!I1167 -> 0 | K64: =Adjustments!J1160+Adjustments!J1167 -> 0 | L64: =Adjustments!K1160+Adjustments!K1167 -> 0 | M64: =Adjustments!L1160+Adjustments!L1167 -> 0 | N64: =Adjustments!M1160+Adjustments!M1167 -> 0 | O64: =Adjustments!N1160+Adjustments!N1167 -> 0 | P64: =Adjustments!O1160+Adjustments!O1167 -> 0 | Q64: =Adjustments!P1160+Adjustments!P1167 -> 0 | R64: =Adjustments!Q1160+Adjustments!Q1167 -> 0 | S64: =Adjustments!R1160+Adjustments!R1167 -> 0 | T64: =Adjustments!S1160+Adjustments!S1167 -> 0 | U64: =Adjustments!T1160+Adjustments!T1167 -> 0 | V64: =Adjustments!U1160+Adjustments!U1167 -> 0 | W64: =Adjustments!V1160+Adjustments!V1167 -> 0 | X64: =Adjustments!W1160+Adjustments!W1167 -> 0 | Y64: =Adjustments!X1160+Adjustments!X1167 -> 0 | Z64: =Adjustments!AW1160+Adjustments!AW1167 -> 0 | AA64: 0 | AB64: 0
A65: 45 | C65: 235-1 | D65: Customer Deposits | G65: =Adjustments!F1172 -> 155355.9483 | H65: =Adjustments!G1172 -> 0 | I65: =Adjustments!H1172 -> 0 | J65: =Adjustments!I1172 -> 0 | K65: =Adjustments!J1172 -> 0 | L65: =Adjustments!K1172 -> 0 | M65: =Adjustments!L1172 -> 0 | N65: =Adjustments!M1172 -> 0 | O65: =Adjustments!N1172 -> 0 | P65: =Adjustments!O1172 -> 0 | Q65: =Adjustments!P1172 -> 0 | R65: =Adjustments!Q1172 -> 0 | S65: =Adjustments!R1172 -> 0 | T65: =Adjustments!S1172 -> 0 | U65: =Adjustments!T1172 -> 0 | V65: =Adjustments!U1172 -> 0 | W65: =Adjustments!V1172 -> 0 | X65: =Adjustments!W1172 -> 0 | Y65: =Adjustments!X1172 -> 0 | Z65: =Adjustments!AW1172 -> 155355.9483 | AA65: 155355.9483 | AB65: 0
A66: 46 | C66: 252 | D66: Misc Customer Credits | G66: =Adjustments!F1177 -> 2640376.59 | H66: =Adjustments!G1177 -> 0 | I66: =Adjustments!H1177 -> 0 | J66: =Adjustments!I1177 -> 0 | K66: =Adjustments!J1177 -> 0 | L66: =Adjustments!K1177 -> 0 | M66: =Adjustments!L1177 -> 0 | N66: =Adjustments!M1177 -> 0 | O66: =Adjustments!N1177 -> 0 | P66: =Adjustments!O1177 -> 0 | Q66: =Adjustments!P1177 -> 0 | R66: =Adjustments!Q1177 -> 0 | S66: =Adjustments!R1177 -> 0 | T66: =Adjustments!S1177 -> 0 | U66: =Adjustments!T1177 -> 0 | V66: =Adjustments!U1177 -> 0 | W66: =Adjustments!V1177 -> 0 | X66: =Adjustments!W1177 -> 0 | Y66: =Adjustments!X1177 -> 0 | Z66: =Adjustments!AW1177 -> 2640376.59 | AA66: 2640376.59 | AB66: 0
A67: 47 | C67: 253-1 | D67: Unclaimed Customer Deposits | G67: =Adjustments!F1181 -> 5102.6325 | H67: =Adjustments!G1181 -> 0 | I67: =Adjustments!H1181 -> 0 | J67: =Adjustments!I1181 -> 0 | K67: =Adjustments!J1181 -> 0 | L67: =Adjustments!K1181 -> 0 | M67: =Adjustments!L1181 -> 0 | N67: =Adjustments!M1181 -> 0 | O67: =Adjustments!N1181 -> 0 | P67: =Adjustments!O1181 -> 0 | Q67: =Adjustments!P1181 -> 0 | R67: =Adjustments!Q1181 -> 0 | S67: =Adjustments!R1181 -> 0 | T67: =Adjustments!S1181 -> 0 | U67: =Adjustments!T1181 -> 0 | V67: =Adjustments!U1181 -> 0 | W67: =Adjustments!V1181 -> 0 | X67: =Adjustments!W1181 -> 0 | Y67: =Adjustments!X1181 -> 0 | Z67: =Adjustments!AW1181 -> 5102.6325 | AA67: 5102.6325 | AB67: 0
A68: 48 | C68: 255 | D68: Deferred Investment Tax Credits | G68: =Adjustments!F1188 -> 0 | H68: =Adjustments!G1188 -> 0 | I68: =Adjustments!H1188 -> 0 | J68: =Adjustments!I1188 -> 0 | K68: =Adjustments!J1188 -> 0 | L68: =Adjustments!K1188 -> 0 | M68: =Adjustments!L1188 -> 0 | N68: =Adjustments!M1188 -> 0 | O68: =Adjustments!N1188 -> 0 | P68: =Adjustments!O1188 -> 0 | Q68: =Adjustments!P1188 -> 0 | R68: =Adjustments!Q1188 -> 0 | S68: =Adjustments!R1188 -> 0 | T68: =Adjustments!S1188 -> 0 | U68: =Adjustments!T1188 -> 0 | V68: =Adjustments!U1188 -> 0 | W68: =Adjustments!V1188 -> 0 | X68: =Adjustments!W1188 -> 0 | Y68: =Adjustments!X1188 -> 0 | Z68: =Adjustments!AW1188 -> 0 | AA68: 0 | AB68: 0
A69: 49 | C69: 282 | D69: Accum Deferred Income Taxes | G69: =(Adjustments!F1195+Adjustments!F1202+Adjustments!F1206) -> -9998590.3 | H69: =(Adjustments!G1195+Adjustments!G1202+Adjustments!G1206) -> 0 | I69: =(Adjustments!H1195+Adjustments!H1202+Adjustments!H1206) -> 0 | J69: =(Adjustments!I1195+Adjustments!I1202+Adjustments!I1206) -> 0 | K69: =(Adjustments!J1195+Adjustments!J1202+Adjustments!J1206) -> 0 | L69: =(Adjustments!K1195+Adjustments!K1202+Adjustments!K1206) -> 0 | M69: =(Adjustments!L1195+Adjustments!L1202+Adjustments!L1206) -> 0 | N69: =(Adjustments!M1195+Adjustments!M1202+Adjustments!M1206) -> 0 | O69: =(Adjustments!N1195+Adjustments!N1202+Adjustments!N1206) -> 0 | P69: =(Adjustments!O1195+Adjustments!O1202+Adjustments!O1206) -> 0 | Q69: =(Adjustments!P1195+Adjustments!P1202+Adjustments!P1206) -> 0 | R69: =(Adjustments!Q1195+Adjustments!Q1202+Adjustments!Q1206) -> 0 | S69: =(Adjustments!R1195+Adjustments!R1202+Adjustments!R1206) -> 0 | T69: =(Adjustments!S1195+Adjustments!S1202+Adjustments!S1206) -> 0 | U69: =(Adjustments!T1195+Adjustments!T1202+Adjustments!T1206) -> 0 | V69: =(Adjustments!U1195+Adjustments!U1202+Adjustments!U1206) -> 0 | W69: =(Adjustments!V1195+Adjustments!V1202+Adjustments!V1206) -> 0 | X69: =(Adjustments!W1195+Adjustments!W1202+Adjustments!W1206) -> 0 | Y69: =(Adjustments!X1195+Adjustments!X1202+Adjustments!X1206) -> -84655166.21 | Z69: =(Adjustments!AW1195+Adjustments!AW1202+Adjustments!AW1206) -> -94653756.51 | AA69: -94653756.51 | AB69: 0
A70: 50 | D70: Working Capital - Cash | G70: =Adjustments!F1244 -> 0 | H70: =Adjustments!G1244 -> 4985.088702 | I70: =Adjustments!H1244 -> -5352.401776 | J70: =Adjustments!I1244 -> 0 | K70: =Adjustments!J1244 -> 0 | L70: =Adjustments!K1244 -> -376657.7028 | M70: =Adjustments!L1244 -> -10061.31186 | N70: =Adjustments!M1244 -> -19741.21519 | O70: =Adjustments!N1244 -> 0 | P70: =Adjustments!O1244 -> -93.67324906 | Q70: =Adjustments!P1244 -> -2298.506784 | R70: =Adjustments!Q1244 -> -5621.053101 | S70: =Adjustments!R1244 -> 16570.1047 | T70: =Adjustments!S1244 -> 0 | U70: =Adjustments!T1244 -> 0 | V70: =Adjustments!U1244 -> 27991.57487 | W70: =Adjustments!V1244 -> -7584.780202 | X70: =Adjustments!W1244 -> 3013.702747 | Y70: =Adjustments!X1244 -> 82645.69162 | Z70: =Adjustments!AW1244 -> -292204.4823 | AA70: -292204.4823 | AB70: 0
A71: 51 | C71: Total Other Rate Base Accounts | G71: =SUM(G61:G70) -> -4502303.099 | H71: =SUM(H61:H70) -> 4985.088702 | I71: -5352.401776 | J71: -44167774.48 | K71: 0 | L71: -376657.7028 | M71: -10061.31186 | N71: -19741.21519 | O71: 0 | P71: -93.67324906 | Q71: -2298.506784 | R71: =SUM(R61:R70) -> -5621.053101 | S71: =SUM(S61:S70) -> 16570.1047 | T71: 0 | U71: =SUM(U61:U70) -> 0 | V71: =SUM(V61:V70) -> 27991.57487 | W71: =SUM(W61:W70) -> -7584.780202 | X71: =SUM(X61:X70) -> 3013.702747 | Y71: =SUM(Y61:Y70) -> -84572520.52 | Z71: =SUM(Z61:Z70) -> -133617448.3 | AA71: -133617448.3 | AB71: 0
A74: =+A71+1 -> 52 | B74: TOTAL RATE BASE | G74: =+G58+G71 -> 221676405.2 | H74: =+H58+H71 -> 4985.088702 | I74: -5352.401776 | J74: -44167774.48 | K74: -187813.1698 | L74: -376657.7028 | M74: -10061.31186 | N74: -19741.21519 | O74: 0 | P74: -93.67324906 | Q74: -2298.506784 | R74: =+R58+R71 -> -5621.053101 | S74: =+S58+S71 -> 16570.1047 | T74: =+T58+T71 -> 0 | U74: 0 | V74: 4693526.996 | W74: -7584.780202 | X74: 3013.702747 | Y74: =+Y58+Y71 -> -84572520.52 | Z74: =+Z58+Z71 -> 97038982.31 | AA74: =+AA58+AA71 -> 97507853.61 | AB74: 0

Sheet PROJECTED EXPENSES
G1: BOOKED | H1: BOOKED | I1: BOOKED | J1: BOOKED | K1: BOOKED | L1: BOOKED | M1: BOOKED | N1: BOOKED | O1: BOOKED | P1: BOOKED | Q1: BOOKED | R1: BOOKED | AT1: 12 Months Ended | AU1: 12 Months Ended | AV1: 12 Months Ended | AW1: 2019 | AX1: 2020
G2: 2018-01-01 | H2: 2018-02-01 | I2: 2018-03-01 | J2: 2018-04-01 | K2: 2018-05-01 | L2: 2018-06-01 | M2: 2018-07-01 | N2: 2018-08-01 | O2: 2018-09-01 | P2: 2018-10-01 | Q2: 2018-11-01 | R2: 2018-12-01 | T2: 2019-01-01 | U2: 2019-02-01 | V2: 2019-03-01 | W2: 2019-04-01 | X2: 2019-05-01 | Y2: 2019-06-01 | Z2: 2019-07-01 | AA2: 2019-08-01 | AB2: 2019-09-01 | AC2: 2019-10-01 | AD2: 2019-11-01 | AE2: 2019-12-01 | AF2: 2020-01-01 | AG2: 2020-02-01 | AH2: 2020-03-01 | AI2: 2020-04-01 | AJ2: 2020-05-01 | AK2: 2020-06-01 | AL2: 2020-07-01 | AM2: 2020-08-01 | AN2: 2020-09-01 | AO2: 2020-10-01 | AP2: 2020-11-01 | AQ2: 2020-12-01 | AT2: =R2 -> 2018-12-01 | AU2: =AE2 -> 2019-12-01 | AV2: =AQ2 -> 2020-12-01 | AW2: Inflation Rates | AX2: Inflation Rates
C3: FERC Acct | E3: Description | AT3: USED | AU3: USED | AV3: USED
C5: UTILITY OPERATING EXPENSES
B6: 615 | C6: OPERATION AND MAINTENANCE EXPENSES
B7: 616
B8: 617 | C8: Production Expenses
B9: 618
B10: 619 | C10: 810 | D10: Gas Used for Compressor Station Fuel | G10: 0 | H10: 0 | I10: -5605 | J10: 0 | K10: 0 | L10: -3511 | M10: 0 | N10: 0 | O10: -3204 | P10: 0 | Q10: 0 | R10: -3003 | T10: =T264+T518 -> 0 | U10: =U264+U518 -> 0 | V10: =V264+V518 -> -5548.95 | W10: =W264+W518 -> 0 | X10: 0 | Y10: -3475.89 | Z10: 0 | AA10: 0 | AB10: -3171.96 | AC10: 0 | AD10: 0 | AE10: =AE264+AE518 -> -2972.97 | AF10: =AF264+AF518 -> 0 | AG10: 0 | AH10: -5493.4605 | AI10: 0 | AJ10: 0 | AK10: -3441.1311 | AL10: 0 | AM10: 0 | AN10: -3140.2404 | AO10: 0 | AP10: 0 | AQ10: =AQ264+AQ518 -> -2943.2403 | AT10: =SUM(G10:R10) -> -15323 | AU10: =SUM(T10:AE10) -> -15169.77 | AV10: =SUM(AF10:AQ10) -> -15018.0723
B11: 620 | C11: 812 | D11: Gas Used for Other Utility Operations | G11: -112933.02 | H11: -91176.19 | I11: -97866.47 | J11: -80511.78 | K11: -66064.27 | L11: -56602.09 | M11: -55580.71 | N11: -43121.94 | O11: -66327.93 | P11: -57680.47 | Q11: -75117.48 | R11: -68581.56 | T11: =T265+T519 -> -111803.6898 | U11: =U265+U519 -> -90264.4281 | V11: =V265+V519 -> -96887.8053 | W11: -79706.6622 | X11: -65403.6273 | Y11: -56036.0691 | Z11: -55024.9029 | AA11: -42690.7206 | AB11: -65664.6507 | AC11: -57103.6653 | AD11: -74366.3052 | AE11: -67895.7444 | AF11: =AF265+AF519 -> -110685.6529 | AG11: -89361.78382 | AH11: -95918.92725 | AI11: -78909.59558 | AJ11: -64749.59103 | AK11: -55475.70841 | AL11: -54474.65387 | AM11: -42263.81339 | AN11: -65008.00419 | AO11: -56532.62865 | AP11: -73622.64215 | AQ11: -67216.78696 | AT11: =SUM(G11:R11) -> -871563.91 | AU11: =SUM(T11:AE11) -> -862848.2709 | AV11: =SUM(AF11:AQ11) -> -854219.7882
B12: 621
B13: 622 | D13: Total Production Expenses | G13: =SUM(G10:G12) -> -112933.02 | H13: -91176.19 | I13: -103471.47 | J13: -80511.78 | K13: -66064.27 | L13: -60113.09 | M13: -55580.71 | N13: -43121.94 | O13: -69531.93 | P13: -57680.47 | Q13: -75117.48 | R13: -71584.56 | T13: =SUM(T10:T12) -> -111803.6898 | U13: =SUM(U10:U12) -> -90264.4281 | V13: =SUM(V10:V12) -> -102436.7553 | W13: -79706.6622 | X13: -65403.6273 | Y13: -59511.9591 | Z13: -55024.9029 | AA13: -42690.7206 | AB13: -68836.6107 | AC13: -57103.6653 | AD13: -74366.3052 | AE13: -70868.7144 | AF13: =SUM(AF10:AF12) -> -110685.6529 | AG13: -89361.78382 | AH13: -101412.3877 | AI13: -78909.59558 | AJ13: -64749.59103 | AK13: -58916.83951 | AL13: -54474.65387 | AM13: -42263.81339 | AN13: -68148.24459 | AO13: -56532.62865 | AP13: -73622.64215 | AQ13: -70160.02726 | AT13: =SUM(G13:R13) -> -886886.91 | AU13: =SUM(T13:AE13) -> -878018.0409 | AV13: =SUM(AF13:AQ13) -> -869237.8605
B14: 623
B15: 624 | C15: Distribution Operations & Maintenance Expenses
B16: 625
B17: 626 | C17: 870 | D17: Operation Supervision & Engineering
B18: 627 | E18: Utah | G18: 500615.73 | H18: 318307.47 | I18: 358344.06 | J18: 660171.83 | K18: 612600.38 | L18: 689665.61 | M18: 486768.92 | N18: 546012.19 | O18: 570174.3 | P18: 853796.51 | Q18: 390964.13 | R18: 318301.56 | T18: =T272+T526 -> 505924.1836 | U18: =U272+U526 -> 321682.7543 | V18: =V272+V526 -> 362143.8863 | W18: =W272+W526 -> 667172.1923 | X18: 619096.3019 | Y18: 696978.7199 | Z18: 491930.5441 | AA18: 551802.0208 | AB18: 576220.3421 | AC18: 862850.0392 | AD18: 395109.8546 | AE18: 321676.7816 | AF18: =AF272+AF526 -> 508481.5761 | AG18: 323308.8262 | AH18: 363974.4848 | AI18: 670544.6763 | AJ18: 622225.7674 | AK18: 700501.8727 | AL18: 494417.2003 | AM18: 554591.3209 | AN18: 579133.0743 | AO18: 867211.6537 | AP18: 397107.0926 | AQ18: 323302.8233 | AT18: =SUM(G18:R18) -> 6305722.69 | AU18: =SUM(T18:AE18) -> 6372587.621 | AV18: =SUM(AF18:AQ18) -> 6404800.369
B19: 628 | E19: Wyoming | G19: 33338.69 | H19: 32084.95 | I19: 42344.22 | J19: 40755.29 | K19: 44378.87 | L19: 52566 | M19: 39843.79 | N19: 38589.42 | O19: 38775.17 | P19: 35934.07 | Q19: 38290.92 | R19: 32925.9 | T19: =T273+T527 -> 33692.20843 | U19: =U273+U527 -> 32425.17396 | V19: =V273+V527 -> 42793.23171 | W19: 41187.45294 | X19: 44849.45683 | Y19: 53123.40192 | Z19: 40266.28753 | AA19: 38998.61638 | AB19: 39186.33604 | AC19: 36315.10945 | AD19: 38696.95113 | AE19: 33275.04127 | AF19: =AF273+AF527 -> 33862.51894 | AG19: 32589.07974 | AH19: 43009.54691 | AI19: 41395.6511 | AJ19: 45076.16603 | AK19: 53391.93503 | AL19: 40469.8293 | AM19: 39195.75021 | AN19: 39384.41878 | AO19: 36498.67844 | AP19: 38892.56007 | AQ19: 33443.24304 | AT19: =SUM(G19:R19) -> 469827.29 | AU19: =SUM(T19:AE19) -> 474809.2676 | AV19: =SUM(AF19:AQ19) -> 477209.3776
B20: 629 | E20: Total | G20: =SUM(G18:G19) -> 533954.42 | H20: =SUM(H18:H19) -> 350392.42 | I20: 400688.28 | J20: 700927.12 | K20: 656979.25 | L20: 742231.61 | M20: 526612.71 | N20: 584601.61 | O20: 608949.47 | P20: 889730.58 | Q20: 429255.05 | R20: 351227.46 | T20: =SUM(T18:T19) -> 539616.392 | U20: =SUM(U18:U19) -> 354107.9283 | V20: =SUM(V18:V19) -> 404937.118 | W20: 708359.6453 | X20: 663945.7587 | Y20: 750102.1218 | Z20: 532196.8316 | AA20: 590800.6371 | AB20: 615406.6782 | AC20: 899165.1486 | AD20: 433806.8057 | AE20: 354951.8229 | AF20: =SUM(AF18:AF19) -> 542344.0951 | AG20: 355897.9059 | AH20: 406984.0317 | AI20: 711940.3274 | AJ20: 667301.9334 | AK20: 753893.8077 | AL20: 534887.0296 | AM20: 593787.0711 | AN20: 618517.493 | AO20: 903710.3322 | AP20: 435999.6526 | AQ20: 356746.0664 | AT20: =SUM(G20:R20) -> 6775549.98 | AU20: =SUM(T20:AE20) -> 6847396.888 | AV20: =SUM(AF20:AQ20) -> 6882009.746
B21: 630
B22: 631 | C22: 871 | D22: Distribution Load Dispatching
B23: 632 | E23: Utah | G23: 86426.37 | H23: 131295.96 | I23: 151136.52 | J23: 111784.04 | K23: 131568.64 | L23: 151182.37 | M23: 134050.23 | N23: 119348.04 | O23: 146317.7 | P23: 111600 | Q23: 132583.32 | R23: 128400.73 | T23: =T277+T531 -> 86991.21336 | U23: =U277+U531 -> 132154.0506 | V23: =V277+V531 -> 152124.2794 | W23: =W277+W531 -> 112514.6095 | X23: 132428.5127 | Y23: 152170.4291 | Z23: 134926.3212 | AA23: 120128.0444 | AB23: 147273.9658 | AC23: 112329.3667 | AD23: 133449.8242 | AE23: 129239.8986 | AF23: =AF277+AF531 -> 86557.59556 | AG23: 131495.3133 | AH23: 151365.9983 | AI23: 111953.7674 | AJ23: 131768.4074 | AK23: 151411.9179 | AL23: 134253.7653 | AM23: 119529.2522 | AN23: 146539.8616 | AO23: 111769.448 | AP23: 132784.628 | AQ23: 128595.6874 | AT23: =SUM(G23:R23) -> 1535693.92 | AU23: =SUM(T23:AE23) -> 1545730.516 | AV23: =SUM(AF23:AQ23) -> 1538025.642
B24: 633 | E24: Wyoming | G24: 2647.13 | H24: 3902 | I24: 4530.21 | J24: 3393.21 | K24: 3953.38 | L24: 4560.11 | M24: 3983.1 | N24: 3565.4 | O24: 4324.07 | P24: 3281.1 | Q24: 3950.92 | R24: 3846.2 | T24: =T278+T532 -> 2664.430435 | U24: =U278+U532 -> 3927.501694 | V24: =V278+V532 -> 4559.817388 | W24: 3415.386474 | X24: 3979.21749 | Y24: 4589.912801 | Z24: 4009.131726 | AA24: 3588.701829 | AB24: 4352.330151 | AC24: 3302.543774 | AD24: 3976.741412 | AE24: 3871.33701 | AF24: =AF278+AF532 -> 2651.149272 | AG24: 3907.924606 | AH24: 4537.088449 | AI24: 3398.362084 | AJ24: 3959.382618 | AK24: 4567.033847 | AL24: 3989.147744 | AM24: 3570.813529 | AN24: 4330.635456 | AO24: 3286.081861 | AP24: 3956.918883 | AQ24: 3852.039882 | AT24: =SUM(G24:R24) -> 45936.83 | AU24: =SUM(T24:AE24) -> 46237.05218 | AV24: =SUM(AF24:AQ24) -> 46006.57823
B25: 634 | E25: Total | G25: =SUM(G23:G24) -> 89073.5 | H25: 135197.96 | I25: 155666.73 | J25: 115177.25 | K25: 135522.02 | L25: 155742.48 | M25: 138033.33 | N25: 122913.44 | O25: 150641.77 | P25: 114881.1 | Q25: 136534.24 | R25: 132246.93 | T25: =SUM(T23:T24) -> 89655.6438 | U25: =SUM(U23:U24) -> 136081.5522 | V25: =SUM(V23:V24) -> 156684.0968 | W25: 115929.996 | X25: 136407.7302 | Y25: 156760.3419 | Z25: 138935.4529 | AA25: 123716.7462 | AB25: 151626.296 | AC25: 115631.9105 | AD25: 137426.5656 | AE25: 133111.2357 | AF25: =SUM(AF23:AF24) -> 89208.74484 | AG25: 135403.238 | AH25: 155903.0867 | AI25: 115352.1295 | AJ25: 135727.79 | AK25: 155978.9517 | AL25: 138242.913 | AM25: 123100.0657 | AN25: 150870.4971 | AO25: 115055.5298 | AP25: 136741.5469 | AQ25: 132447.7273 | AT25: =SUM(G25:R25) -> 1581630.75 | AU25: =SUM(T25:AE25) -> 1591967.568 | AV25: =SUM(AF25:AQ25) -> 1584032.221
B26: 635
B27: 636 | C27: 872 | D27: Compressor Station Labor & Expenses
B28: 637 | E28: Utah | G28: 0 | H28: 0 | I28: 0 | J28: 0 | K28: 0 | L28: 0 | M28: 0 | N28: 0 | O28: 0 | P28: 0 | Q28: 0 | R28: 0 | T28: =T282+T536 -> 0 | U28: =U282+U536 -> 0 | V28: =V282+V536 -> 0 | W28: =W282+W536 -> 0 | X28: 0 | Y28: 0 | Z28: 0 | AA28: 0 | AB28: 0 | AC28: 0 | AD28: 0 | AE28: 0 | AF28: =AF282+AF536 -> 0 | AG28: 0 | AH28: 0 | AI28: 0 | AJ28: 0 | AK28: 0 | AL28: 0 | AM28: 0 | AN28: 0 | AO28: 0 | AP28: 0 | AQ28: 0 | AT28: =SUM(G28:R28) -> 0 | AU28: =SUM(T28:AE28) -> 0 | AV28: =SUM(AF28:AQ28) -> 0
B29: 638 | E29: Wyoming | G29: 0 | H29: 0 | I29: 0 | J29: 0 | K29: 0 | L29: 0 | M29: 0 | N29: 0 | O29: 0 | P29: 0 | Q29: 0 | R29: 0 | T29: 0 | U29: 0 | V29: 0 | W29: 0 | X29: 0 | Y29: 0 | Z29: 0 | AA29: 0 | AB29: 0 | AC29: 0 | AD29: 0 | AE29: 0 | AF29: =AF283+AF537 -> -3.063 | AG29: -2.042 | AH29: -1.021 | AI29: 0 | AJ29: 0 | AK29: 0 | AL29: 0 | AM29: 0 | AN29: 0 | AO29: 0 | AP29: 0 | AQ29: 0 | AT29: =SUM(G29:R29) -> 0 | AU29: =SUM(T29:AE29) -> 0 | AV29: =SUM(AF29:AQ29) -> -6.126
B30: 639 | E30: Total | G30: =SUM(G28:G29) -> 0 | H30: 0 | I30: 0 | J30: 0 | K30: 0 | L30: 0 | M30: 0 | N30: 0 | O30: 0 | P30: 0 | Q30: 0 | R30: 0 | T30: =SUM(T28:T29) -> 0 | U30: =SUM(U28:U29) -> 0 | V30: =SUM(V28:V29) -> 0 | W30: =SUM(W28:W29) -> 0 | X30: 0 | Y30: 0 | Z30: 0 | AA30: 0 | AB30: 0 | AC30: 0 | AD30: 0 | AE30: 0 | AF30: =SUM(AF28:AF29) -> -3.063 | AG30: -2.042 | AH30: -1.021 | AI30: 0 | AJ30: 0 | AK30: 0 | AL30: 0 | AM30: 0 | AN30: 0 | AO30: 0 | AP30: 0 | AQ30: 0 | AT30: =SUM(G30:R30) -> 0 | AU30: =SUM(T30:AE30) -> 0 | AV30: =SUM(AF30:AQ30) -> -6.126
B31: 640
B32: 641 | C32: 873 | D32: Compressor Station Fuel & Power
B33: 642 | E33: Utah | G33: 0 | H33: 0 | I33: 0 | J33: 0 | K33: 0 | L33: 0 | M33: 0 | N33: 0 | O33: 0 | P33: 0 | Q33: 0 | R33: 0 | T33: =T287+T541 -> 0 | U33: =U287+U541 -> 0 | V33: =V287+V541 -> 0 | W33: =W287+W541 -> 0 | X33: 0 | Y33: 0 | Z33: 0 | AA33: 0 | AB33: 0 | AC33: 0 | AD33: 0 | AE33: 0 | AF33: =AF287+AF541 -> 0 | AG33: 0 | AH33: 0 | AI33: 0 | AJ33: 0 | AK33: 0 | AL33: 0 | AM33: 0 | AN33: 0 | AO33: 0 | AP33: 0 | AQ33: 0 | AT33: =SUM(G33:R33) -> 0 | AU33: =SUM(T33:AE33) -> 0 | AV33: =SUM(AF33:AQ33) -> 0
B34: 643 | E34: Wyoming | G34: 0 | H34: 0 | I34: 0 | J34: 0 | K34: 0 | L34: 0 | M34: 0 | N34: 0 | O34: 0 | P34: 0 | Q34: 0 | R34: 0 | T34: =T288+T542 -> 0 | U34: =U288+U542 -> 0 | V34: =V288+V542 -> 0 | W34: 0 | X34: 0 | Y34: 0 | Z34: 0 | AA34: 0 | AB34: 0 | AC34: 0 | AD34: 0 | AE34: 0 | AF34: =AF288+AF542 -> 0 | AG34: 0 | AH34: 0 | AI34: 0 | AJ34: 0 | AK34: 0 | AL34: 0 | AM34: 0 | AN34: 0 | AO34: 0 | AP34: 0 | AQ34: 0 | AT34: =SUM(G34:R34) -> 0 | AU34: =SUM(T34:AE34) -> 0 | AV34: =SUM(AF34:AQ34) -> 0
B35: 644 | E35: Total | G35: =SUM(G33:G34) -> 0 | H35: 0 | I35: 0 | J35: 0 | K35: 0 | L35: 0 | M35: 0 | N35: 0 | O35: 0 | P35: 0 | Q35: 0 | R35: 0 | T35: =SUM(T33:T34) -> 0 | U35: =SUM(U33:U34) -> 0 | V35: =SUM(V33:V34) -> 0 | W35: =SUM(W33:W34) -> 0 | X35: 0 | Y35: 0 | Z35: 0 | AA35: 0 | AB35: 0 | AC35: 0 | AD35: 0 | AE35: 0 | AF35: =SUM(AF33:AF34) -> 0 | AG35: 0 | AH35: 0 | AI35: 0 | AJ35: 0 | AK35: 0 | AL35: 0 | AM35: 0 | AN35: 0 | AO35: 0 | AP35: 0 | AQ35: 0 | AT35: =SUM(G35:R35) -> 0 | AU35: =SUM(T35:AE35) -> 0 | AV35: =SUM(AF35:AQ35) -> 0
B36: 645
B37: 646 | C37: 874 | D37: Mains & Service Expenses
B38: 647 | E38: Utah | G38: 868982.73 | H38: 1013046.29 | I38: 890224.61 | J38: 769449.02 | K38: 1371768.86 | L38: 1341852.79 | M38: 1237611.57 | N38: 1386597.47 | O38: 1072008.6 | P38: 1145326.66 | Q38: 1227702.88 | R38: 885019.64 | T38: =T292+T546 -> 876209.6821 | U38: =U292+U546 -> 1021471.356 | V38: =V292+V546 -> 897628.2215 | W38: =W292+W546 -> 775848.1934 | X38: 1383177.266 | Y38: 1353012.397 | Z38: 1247904.248 | AA38: 1398129.199 | AB38: 1080924.03 | AC38: 1154851.845 | AD38: 1237913.152 | AE38: 892379.9641 | AF38: =AF292+AF546 -> 870832.6244 | AG38: 1015202.868 | AH38: 892119.7242 | AI38: 771087.0266 | AJ38: 1374689.088 | AK38: 1344709.332 | AL38: 1240246.203 | AM38: 1389549.265 | AN38: 1074290.697 | AO38: 1147764.837 | AP38: 1230316.419 | AQ38: 886903.6738 | AT38: =SUM(G38:R38) -> 13209591.12 | AU38: =SUM(T38:AE38) -> 13319449.55 | AV38: =SUM(AF38:AQ38) -> 13237711.76
B39: 648 | E39: Wyoming | G39: -5263.79 | H39: 49790.6 | I39: 49070.57 | J39: 38376.77 | K39: 66752.45 | L39: 69874.44 | M39: 58067.87 | N39: 66209.76 | O39: 59523.76 | P39: 77300.48 | Q39: 53593.52 | R39: 35425.98 | T39: =T293+T547 -> -5307.566656 | U39: =U293+U547 -> 50204.6868 | V39: =V293+V547 -> 49478.66862 | W39: 38695.93293 | X39: 67307.60114 | Y39: 70455.55538 | Z39: 58550.79526 | AA39: 66760.39783 | AB39: 60018.79327 | AC39: 77943.35453 | AD39: 54039.23404 | AE39: 35720.60249 | AF39: =AF293+AF547 -> -5274.99558 | AG39: 49896.59445 | AH39: 49175.03165 | AI39: 38458.46664 | AJ39: 66894.55292 | AK39: 70023.18902 | AL39: 58191.48514 | AM39: 66350.70764 | AN39: 59650.47445 | AO39: 77465.03761 | AP39: 53707.61013 | AQ39: 35501.39499 | AT39: =SUM(G39:R39) -> 618722.41 | AU39: =SUM(T39:AE39) -> 623868.0556 | AV39: =SUM(AF39:AQ39) -> 620039.5491
B40: 649 | E40: Total | G40: =SUM(G38:G39) -> 863718.94 | H40: 1062836.89 | I40: 939295.18 | J40: 807825.79 | K40: 1438521.31 | L40: 1411727.23 | M40: 1295679.44 | N40: 1452807.23 | O40: 1131532.36 | P40: 1222627.14 | Q40: 1281296.4 | R40: 920445.62 | T40: =SUM(T38:T39) -> 870902.1154 | U40: =SUM(U38:U39) -> 1071676.043 | V40: =SUM(V38:V39) -> 947106.8902 | W40: 814544.1263 | X40: 1450484.867 | Y40: 1423467.952 | Z40: 1306455.043 | AA40: 1464889.597 | AB40: 1140942.823 | AC40: 1232795.199 | AD40: 1291952.386 | AE40: 928100.5666 | AF40: =SUM(AF38:AF39) -> 865557.6288 | AG40: 1065099.462 | AH40: 941294.7558 | AI40: 809545.4932 | AJ40: 1441583.641 | AK40: 1414732.521 | AL40: 1298437.688 | AM40: 1455899.973 | AN40: 1133941.171 | AO40: 1225229.874 | AP40: 1284024.03 | AQ40: 922405.0688 | AT40: =SUM(G40:R40) -> 13828313.53 | AU40: =SUM(T40:AE40) -> 13943317.61 | AV40: =SUM(AF40:AQ40) -> 13857751.31
B41: 650
B42: 651 | C42: 875 | D42: Measuring & Regulating Station Expenses
B43: 652 | E43: Utah | G43: 198248.83 | H43: 164751.72 | I43: 279188.4 | J43: 187497.64 | K43: 182300.28 | L43: 217367.78 | M43: 230660.85 | N43: 223729.73 | O43: 214181.88 | P43: 346007.86 | Q43: 247167.29 | R43: 244670.42 | T43: =T297+T551 -> 199616.7971 | U43: =U297+U551 -> 165888.5486 | V43: =V297+V551 -> 281114.8706 | W43: =W297+W551 -> 188791.4212 | X43: 183558.1981 | Y43: 218867.6727 | Z43: 232252.4682 | AA43: 225273.5217 | AB43: 215659.7892 | AC43: 348395.4018 | AD43: 248872.8068 | AE43: 246358.7078 | AF43: =AF297+AF551 -> 196645.7631 | AG43: 163419.5153 | AH43: 276930.8448 | AI43: 185981.5087 | AJ43: 180826.1753 | AK43: 215610.1147 | AL43: 228795.6952 | AM43: 221920.6211 | AN43: 212449.9764 | AO43: 343209.9936 | AP43: 245168.6619 | AQ43: 242691.9819 | AT43: =SUM(G43:R43) -> 2735772.68 | AU43: =SUM(T43:AE43) -> 2754650.204 | AV43: =SUM(AF43:AQ43) -> 2713650.852
B44: 653 | E44: Wyoming | G44: 6315.44 | H44: 5147.72 | I44: 8819.75 | J44: 5887.55 | K44: 5665.63 | L44: 6711.07 | M44: 7181.96 | N44: 6908.28 | O44: 6551.46 | P44: 10356.34 | Q44: 7661.86 | R44: 7647.09 | T44: =T298+T552 -> 6359.018134 | U44: =U298+U552 -> 5183.24057 | V44: =V298+V552 -> 8880.608507 | W44: 5928.175585 | X44: 5704.72428 | Y44: 6757.378081 | Z44: 7231.517341 | AA44: 6955.94888 | AB44: 6596.666732 | AC44: 10427.80137 | AD44: 7714.728773 | AE44: 7699.856856 | AF44: =AF298+AF552 -> 6264.372498 | AG44: 5106.09484 | AH44: 8748.432309 | AI44: 5839.942474 | AJ44: 5619.81695 | AK44: 6656.80338 | AL44: 7123.8857 | AM44: 6852.418714 | AN44: 6498.484008 | AO44: 10272.59723 | AP44: 7599.905164 | AQ44: 7585.254596 | AT44: =SUM(G44:R44) -> 84854.15 | AU44: =SUM(T44:AE44) -> 85439.6651 | AV44: =SUM(AF44:AQ44) -> 84168.00787
B45: 654 | E45: Total | G45: =SUM(G43:G44) -> 204564.27 | H45: 169899.44 | I45: 288008.15 | J45: 193385.19 | K45: 187965.91 | L45: 224078.85 | M45: 237842.81 | N45: 230638.01 | O45: 220733.34 | P45: 356364.2 | Q45: 254829.15 | R45: 252317.51 | T45: =SUM(T43:T44) -> 205975.8152 | U45: =SUM(U43:U44) -> 171071.7891 | V45: =SUM(V43:V44) -> 289995.4791 | W45: 194719.5967 | X45: 189262.9223 | Y45: 225625.0508 | Z45: 239483.9856 | AA45: 232229.4706 | AB45: 222256.4559 | AC45: 358823.2031 | AD45: 256587.5356 | AE45: 254058.5647 | AF45: =SUM(AF43:AF44) -> 202910.1356 | AG45: 168525.6102 | AH45: 285679.2771 | AI45: 191821.4512 | AJ45: 186445.9922 | AK45: 222266.9181 | AL45: 235919.5809 | AM45: 228773.0399 | AN45: 218948.4604 | AO45: 353482.5909 | AP45: 252768.567 | AQ45: 250277.2365 | AT45: =SUM(G45:R45) -> 2820626.83 | AU45: =SUM(T45:AE45) -> 2840089.869 | AV45: =SUM(AF45:AQ45) -> 2797818.86
B46: 655
B47: 656 | C47: 878 | D47: Meter & House Regulator Expenses
B48: 657 | E48: Utah | G48: 197085.79 | H48: 178716.3 | I48: 218782.32 | J48: 222894.55 | K48: 247586.16 | L48: 262108.94 | M48: 274597.7 | N48: 297291.23 | O48: 266950.52 | P48: 242616.68 | Q48: 213853.64 | R48: 240092.82 | T48: =T302+T556 -> 197911.5797 | U48: =U302+U556 -> 179465.1215 | V48: =V302+V556 -> 219699.0182 | W48: =W302+W556 -> 223828.4784 | X48: 248623.5463 | Y48: 263207.1767 | Z48: 275748.2647 | AA48: 298536.8806 | AB48: 268069.043 | AC48: 243633.2442 | AD48: 214749.687 | AE48: 241098.8092 | AF48: =AF302+AF556 -> 193559.9382 | AG48: 175519.0772 | AH48: 214868.3187 | AI48: 218906.9812 | AJ48: 243156.8599 | AK48: 257419.8283 | AL48: 269685.1652 | AM48: 291972.7095 | AN48: 262174.7928 | AO48: 238276.2836 | AP48: 210027.8125 | AQ48: 235797.5753 | AT48: =SUM(G48:R48) -> 2862576.65 | AU48: =SUM(T48:AE48) -> 2874570.849 | AV48: =SUM(AF48:AQ48) -> 2811365.342
B49: 658 | E49: Wyoming | G49: 29010.58 | H49: 19895.55 | I49: 24331.39 | J49: 26906.96 | K49: 16190.72 | L49: 19294.55 | M49: 16551.51 | N49: 33425.85 | O49: 31220.66 | P49: 25704.72 | Q49: 18297.69 | R49: 74504.6 | T49: =T303+T557 -> 29132.13436 | U49: =U303+U557 -> 19978.91238 | V49: =V303+V557 -> 24433.33855 | W49: 27019.70019 | X49: 16258.55913 | Y49: 19375.39419 | Z49: 16620.86084 | AA49: 33565.90435 | AB49: 31351.4746 | AC49: 25812.4228 | AD49: 18374.35734 | AE49: 74816.77435 | AF49: =AF303+AF557 -> 28491.58263 | AG49: 19539.61992 | AH49: 23896.10303 | AI49: 26425.59626 | AJ49: 15901.06908 | AK49: 18949.37177 | AL49: 16255.40458 | AM49: 32827.86374 | AN49: 30662.12445 | AO49: 25244.86425 | AP49: 17970.34553 | AQ49: 73171.71761 | AT49: =SUM(G49:R49) -> 335334.78 | AU49: =SUM(T49:AE49) -> 336739.8331 | AV49: =SUM(AF49:AQ49) -> 329335.6629
B50: 659 | E50: Total | G50: =SUM(G48:G49) -> 226096.37 | H50: 198611.85 | I50: 243113.71 | J50: 249801.51 | K50: 263776.88 | L50: 281403.49 | M50: 291149.21 | N50: 330717.08 | O50: 298171.18 | P50: 268321.4 | Q50: 232151.33 | R50: 314597.42 | T50: =SUM(T48:T49) -> 227043.714 | U50: =SUM(U48:U49) -> 199444.0339 | V50: =SUM(V48:V49) -> 244132.3567 | W50: 250848.1786 | X50: 264882.1054 | Y50: 282582.5709 | Z50: 292369.1255 | AA50: 332102.7849 | AB50: 299420.5176 | AC50: 269445.667 | AD50: 233124.0443 | AE50: 315915.5835 | AF50: =SUM(AF48:AF49) -> 222051.5208 | AG50: 195058.6971 | AH50: 238764.4217 | AI50: 245332.5774 | AJ50: 259057.929 | AK50: 276369.2001 | AL50: 285940.5698 | AM50: 324800.5732 | AN50: 292836.9172 | AO50: 263521.1478 | AP50: 227998.158 | AQ50: 308969.2929 | AT50: =SUM(G50:R50) -> 3197911.43 | AU50: =SUM(T50:AE50) -> 3211310.682 | AV50: =SUM(AF50:AQ50) -> 3140701.005
B51: 660
B52: 661 | C52: 879 | D52: Customer Installations Expenses
B53: 662 | E53: Utah | G53: 178257.63 | H53: 170894.68 | I53: 250526 | J53: 178930.61 | K53: 180691.08 | L53: 195309.8 | M53: 171671.51 | N53: 237428.02 | O53: 200642.29 | P53: 183501.79 | Q53: 206625.25 | R53: 236404.92 | T53: =T307+T561 -> 178927.4913 | U53: =U307+U561 -> 171536.8726 | V53: =V307+V561 -> 251467.4334 | W53: =W307+W561 -> 179603.0003 | X53: 181370.0858 | Y53: 196043.7404 | Z53: 172316.6218 | AA53: 238320.2334 | AB53: 201396.269 | AC53: 184191.358 | AD53: 207401.7119 | AE53: 237293.2888 | AF53: =AF307+AF561 -> 174878.1265 | AG53: 167654.7672 | AH53: 245776.394 | AI53: 175538.3477 | AJ53: 177265.4418 | AK53: 191607.0123 | AL53: 168416.8697 | AM53: 232926.7325 | AN53: 196838.4061 | AO53: 180022.8649 | AP53: 202707.9379 | AQ53: 231923.029 | AT53: =SUM(G53:R53) -> 2390883.58 | AU53: =SUM(T53:AE53) -> 2399868.107 | AV53: =SUM(AF53:AQ53) -> 2345555.93
B54: 663 | E54: Wyoming | G54: 11282.71 | H54: 20559.32 | I54: 10891.74 | J54: 5203.58 | K54: 7270 | L54: 8809.17 | M54: 8174.23 | N54: 6690.66 | O54: 10117.75 | P54: 4650.68 | Q54: 3005.78 | R54: 10627.81 | T54: =T308+T562 -> 11325.10847 | U54: =U308+U562 -> 20636.57837 | V54: =V308+V562 -> 10932.66927 | W54: 5223.134154 | X54: 7297.319402 | Y54: 8842.273337 | Z54: 8204.947342 | AA54: 6715.802343 | AB54: 10155.77075 | AC54: 4668.156451 | AD54: 3017.075201 | AE54: 10667.74747 | AF54: =AF308+AF562 -> 11068.80635 | AG54: 20169.54541 | AH54: 10685.24856 | AI54: 5104.927746 | AJ54: 7132.17145 | AK54: 8642.161041 | AL54: 8019.258574 | AM54: 6563.814887 | AN54: 9925.932281 | AO54: 4562.50992 | AP54: 2948.794814 | AQ54: 10426.32229 | AT54: =SUM(G54:R54) -> 107283.43 | AU54: =SUM(T54:AE54) -> 107686.5826 | AV54: =SUM(AF54:AQ54) -> 105249.4933
B55: 664 | E55: Total | G55: =SUM(G53:G54) -> 189540.34 | H55: 191454 | I55: 261417.74 | J55: 184134.19 | K55: 187961.08 | L55: 204118.97 | M55: 179845.74 | N55: 244118.68 | O55: 210760.04 | P55: 188152.47 | Q55: 209631.03 | R55: 247032.73 | T55: =SUM(T53:T54) -> 190252.5998 | U55: =SUM(U53:U54) -> 192173.451 | V55: =SUM(V53:V54) -> 262400.1026 | W55: 184826.1344 | X55: 188667.4052 | Y55: 204886.0138 | Z55: 180521.5692 | AA55: 245036.0358 | AB55: 211552.0398 | AC55: 188859.5144 | AD55: 210418.7871 | AE55: 247961.0363 | AF55: =SUM(AF53:AF54) -> 185946.9328 | AG55: 187824.3126 | AH55: 256461.6426 | AI55: 180643.2755 | AJ55: 184397.6133 | AK55: 200249.1733 | AL55: 176436.1282 | AM55: 239490.5474 | AN55: 206764.3384 | AO55: 184585.3748 | AP55: 205656.7328 | AQ55: 242349.3513 | AT55: =SUM(G55:R55) -> 2498167.01 | AU55: =SUM(T55:AE55) -> 2507554.689 | AV55: =SUM(AF55:AQ55) -> 2450805.423
B56: 665
B57: 666 | C57: 880 | D57: Other Expenses
B58: 667 | E58: Utah | G58: 1329781 | H58: 1206345.21 | I58: 1477886.1 | J58: 1057921.23 | K58: 1051759.86 | L58: 1430409.52 | M58: 819368.66 | N58: 1154548.18 | O58: 1200900.83 | P58: 703850.45 | Q58: 1172166.53 | R58: 1194568.49 | T58: =T312+T566 -> 1349652.555 | U58: =U312+U566 -> 1224372.205 | V58: =V312+V566 -> 1499970.861 | W58: =W312+W566 -> 1073730.254 | X58: 1067476.812 | Y58: 1451784.815 | Z58: 831612.8787 | AA58: 1171801.147 | AB58: 1218846.467 | AC58: 714368.4247 | AD58: 1189682.776 | AE58: 1212419.5 | AF58: =AF312+AF566 -> 1335968.703 | AG58: 1211958.545 | AH58: 1484762.962 | AI58: 1062843.922 | AJ58: 1056653.882 | AK58: 1437065.465 | AL58: 823181.3252 | AM58: 1159920.494 | AN58: 1206488.831 | AO58: 707125.5889 | AP58: 1177620.825 | AQ58: 1200127.025 | AT58: =SUM(G58:R58) -> 13799506.06 | AU58: =SUM(T58:AE58) -> 14005718.7 | AV58: =SUM(AF58:AQ58) -> 13863717.57
B59: 668 | E59: Wyoming | G59: 115882.92 | H59: 88487.79 | I59: 96464.14 | J59: 84573.7 | K59: 90802.22 | L59: 80800.16 | M59: 45630.89 | N59: 65139.91 | O59: 70406.81 | P59: 25473.42 | Q59: 80042.33 | R59: 130252.57 | T59: =T313+T567 -> 117614.614 | U59: =U313+U567 -> 89810.10547 | V59: =V313+V567 -> 97905.64989 | W59: 85837.52535 | X59: 92159.12111 | Y59: 82007.59553 | Z59: 46312.77427 | AA59: 66113.32691 | AB59: 71458.93272 | AC59: 25854.08153 | AD59: 81238.44091 | AE59: 132198.9966 | AF59: =AF313+AF567 -> 116422.1434 | AG59: 88899.53911 | AH59: 96913.00446 | AI59: 84967.23617 | AJ59: 91224.73856 | AK59: 81176.13723 | AL59: 45843.21849 | AM59: 65443.01736 | AN59: 70734.42516 | AO59: 25591.95226 | AP59: 80414.78092 | AQ59: 130858.6579 | AT59: =SUM(G59:R59) -> 973956.86 | AU59: =SUM(T59:AE59) -> 988511.1643 | AV59: =SUM(AF59:AQ59) -> 978488.8511
B60: 669 | E60: Total | G60: =SUM(G58:G59) -> 1445663.92 | H60: 1294833 | I60: 1574350.24 | J60: 1142494.93 | K60: 1142562.08 | L60: 1511209.68 | M60: 864999.55 | N60: 1219688.09 | O60: 1271307.64 | P60: 729323.87 | Q60: 1252208.86 | R60: 1324821.06 | T60: =SUM(T58:T59) -> 1467267.169 | U60: =SUM(U58:U59) -> 1314182.31 | V60: =SUM(V58:V59) -> 1597876.51 | W60: 1159567.779 | X60: 1159635.933 | Y60: 1533792.411 | Z60: 877925.653 | AA60: 1237914.474 | AB60: 1290305.4 | AC60: 740222.5063 | AD60: 1270921.217 | AE60: 1344618.496 | AF60: =SUM(AF58:AF59) -> 1452390.846 | AG60: 1300858.084 | AH60: 1581675.966 | AI60: 1147811.158 | AJ60: 1147878.621 | AK60: 1518241.602 | AL60: 869024.5437 | AM60: 1225363.511 | AN60: 1277223.256 | AO60: 732717.5411 | AP60: 1258035.606 | AQ60: 1330985.683 | AT60: =SUM(G60:R60) -> 14773462.92 | AU60: =SUM(T60:AE60) -> 14994229.86 | AV60: =SUM(AF60:AQ60) -> 14842206.42
B61: 670
B62: 671 | C62: 881 | D62: Rents
B63: 672 | E63: Utah | G63: 1240.43 | H63: 1321.43 | I63: 1519.59 | J63: 1760.4 | K63: 1750.69 | L63: 1816.17 | M63: 1262.21 | N63: 2134.53 | O63: 1148.48 | P63: 1173.25 | Q63: 1299.75 | R63: 1697.24 | T63: =T317+T571 -> 1243.236956 | U63: =U317+U571 -> 1324.420251 | V63: =V317+V571 -> 1523.028665 | W63: =W317+W571 -> 1764.383591 | X63: 1754.651619 | Y63: 1820.279793 | Z63: 1265.066242 | AA63: 2139.360206 | AB63: 1151.078884 | AC63: 1175.904936 | AD63: 1302.691191 | AE63: 1701.080667 | AF63: =AF317+AF571 -> 1211.70215 | AG63: 1290.826223 | AH63: 1484.396918 | AI63: 1719.629858 | AJ63: 1710.144737 | AK63: 1774.108247 | AL63: 1232.977734 | AM63: 2085.09516 | AN63: 1121.881674 | AO63: 1146.078011 | AP63: 1269.648323 | AQ63: 1657.932617 | AT63: =SUM(G63:R63) -> 18124.17 | AU63: =SUM(T63:AE63) -> 18165.183 | AV63: =SUM(AF63:AQ63) -> 17704.42165
B64: 673 | E64: Wyoming | G64: 40.23 | H64: 42.09 | I64: 50.24 | J64: 58.21 | K64: 57.87 | L64: 60.07 | M64: 41.7 | N64: 70.6 | O64: 38 | P64: 38.72 | Q64: 43 | R64: 56.13 | T64: =T318+T572 -> 40.32103606 | U64: =U318+U572 -> 42.18524503 | V64: =V318+V572 -> 50.35368759 | W64: 58.34172282 | X64: 58.00095344 | Y64: 60.20593179 | Z64: 41.79436251 | AA64: 70.75976002 | AB64: 38.08598981 | AC64: 38.80761909 | AD64: 43.09730426 | AE64: 56.25701601 | AF64: =AF318+AF572 -> 39.29828969 | AG64: 41.11521285 | AH64: 49.07646219 | AI64: 56.86188026 | AJ64: 56.52975452 | AK64: 58.67880342 | AL64: 40.73424509 | AM64: 68.96493294 | AN64: 37.11993558 | AO64: 37.82326067 | AP64: 42.00413762 | AQ64: 54.83005221 | AT64: =SUM(G64:R64) -> 596.86 | AU64: =SUM(T64:AE64) -> 598.2106284 | AV64: =SUM(AF64:AQ64) -> 583.036967
B65: 674 | E65: Total | G65: =SUM(G63:G64) -> 1280.66 | H65: 1363.52 | I65: 1569.83 | J65: 1818.61 | K65: 1808.56 | L65: 1876.24 | M65: 1303.91 | N65: 2205.13 | O65: 1186.48 | P65: 1211.97 | Q65: 1342.75 | R65: 1753.37 | T65: =SUM(T63:T64) -> 1283.557993 | U65: =SUM(U63:U64) -> 1366.605496 | V65: =SUM(V63:V64) -> 1573.382352 | W65: 1822.725314 | X65: 1812.652572 | Y65: 1880.485724 | Z65: 1306.860605 | AA65: 2210.119966 | AB65: 1189.164874 | AC65: 1214.712555 | AD65: 1345.788495 | AE65: 1757.337683 | AF65: =SUM(AF63:AF64) -> 1251.000439 | AG65: 1331.941436 | AH65: 1533.473381 | AI65: 1776.491738 | AJ65: 1766.674492 | AK65: 1832.787051 | AL65: 1273.711979 | AM65: 2154.060093 | AN65: 1159.00161 | AO65: 1183.901272 | AP65: 1311.65246 | AQ65: 1712.762669 | AT65: =SUM(G65:R65) -> 18721.03 | AU65: =SUM(T65:AE65) -> 18763.39363 | AV65: =SUM(AF65:AQ65) -> 18287.45862
B66: 675
B67: 676 | C67: 885 | D67: Maintenance Supervision & Engineering
B68: 677 | E68: Utah | G68: 0 | H68: 0 | I68: 0 | J68: 0 | K68: 0 | L68: 0 | M68: 0 | N68: 0 | O68: 0 | P68: 0 | Q68: 0 | R68: 0 | T68: =T322+T576 -> 0 | U68: =U322+U576 -> 0 | V68: =V322+V576 -> 0 | W68: =W322+W576 -> 0 | X68: 0 | Y68: 0 | Z68: 0 | AA68: 0 | AB68: 0 | AC68: 0 | AD68: 0 | AE68: 0 | AF68: =AF322+AF576 -> 0 | AG68: 0 | AH68: 0 | AI68: 0 | AJ68: 0 | AK68: 0 | AL68: 0 | AM68: 0 | AN68: 0 | AO68: 0 | AP68: 0 | AQ68: 0 | AT68: =SUM(G68:R68) -> 0 | AU68: =SUM(T68:AE68) -> 0 | AV68: =SUM(AF68:AQ68) -> 0
B69: 678 | E69: Wyoming | G69: 0 | H69: 0 | I69: 0 | J69: 0 | K69: 0 | L69: 0 | M69: 0 | N69: 0 | O69: 0 | P69: 0 | Q69: 0 | R69: 0 | T69: =T323+T577 -> 0 | U69: =U323+U577 -> 0 | V69: =V323+V577 -> 0 | W69: 0 | X69: 0 | Y69: 0 | Z69: 0 | AA69: 0 | AB69: 0 | AC69: 0 | AD69: 0 | AE69: 0 | AF69: =AF323+AF577 -> 0 | AG69: 0 | AH69: 0 | AI69: 0 | AJ69: 0 | AK69: 0 | AL69: 0 | AM69: 0 | AN69: 0 | AO69: 0 | AP69: 0 | AQ69: 0 | AT69: =SUM(G69:R69) -> 0 | AU69: =SUM(T69:AE69) -> 0 | AV69: =SUM(AF69:AQ69) -> 0
B70: 679 | E70: Total | G70: =SUM(G68:G69) -> 0 | H70: 0 | I70: 0 | J70: 0 | K70: 0 | L70: 0 | M70: 0 | N70: 0 | O70: 0 | P70: 0 | Q70: 0 | R70: 0 | T70: =SUM(T68:T69) -> 0 | U70: =SUM(U68:U69) -> 0 | V70: =SUM(V68:V69) -> 0 | W70: 0 | X70: 0 | Y70: 0 | Z70: 0 | AA70: 0 | AB70: 0 | AC70: 0 | AD70: 0 | AE70: 0 | AF70: =SUM(AF68:AF69) -> 0 | AG70: 0 | AH70: 0 | AI70: 0 | AJ70: 0 | AK70: 0 | AL70: 0 | AM70: 0 | AN70: 0 | AO70: 0 | AP70: 0 | AQ70: 0 | AT70: =SUM(G70:R70) -> 0 | AU70: =SUM(T70:AE70) -> 0 | AV70: =SUM(AF70:AQ70) -> 0
B71: 680
B72: 681 | C72: 886 | D72: Maintenance of Structures & Improvements
B73: 682 | E73: Utah | G73: 0 | H73: 0 | I73: 0 | J73: 0 | K73: 0 | L73: 0 | M73: 0 | N73: 0 | O73: 0 | P73: 0 | Q73: 0 | R73: 0 | T73: =T327+T581 -> 0 | U73: =U327+U581 -> 0 | V73: =V327+V581 -> 0 | W73: =W327+W581 -> 0 | X73: 0 | Y73: 0 | Z73: 0 | AA73: 0 | AB73: 0 | AC73: 0 | AD73: 0 | AE73: 0 | AF73: =AF327+AF581 -> 0 | AG73: 0 | AH73: 0 | AI73: 0 | AJ73: 0 | AK73: 0 | AL73: 0 | AM73: 0 | AN73: 0 | AO73: 0 | AP73: 0 | AQ73: 0 | AT73: =SUM(G73:R73) -> 0 | AU73: =SUM(T73:AE73) -> 0 | AV73: =SUM(AF73:AQ73) -> 0
B74: 683 | E74: Wyoming | G74: 0 | H74: 0 | I74: 0 | J74: 0 | K74: 0 | L74: 0 | M74: 0 | N74: 0 | O74: 0 | P74: 0 | Q74: 0 | R74: 0 | T74: =T328+T582 -> 0 | U74: =U328+U582 -> 0 | V74: =V328+V582 -> 0 | W74: 0 | X74: 0 | Y74: 0 | Z74: 0 | AA74: 0 | AB74: 0 | AC74: 0 | AD74: 0 | AE74: 0 | AF74: =AF328+AF582 -> 0 | AG74: 0 | AH74: 0 | AI74: 0 | AJ74: 0 | AK74: 0 | AL74: 0 | AM74: 0 | AN74: 0 | AO74: 0 | AP74: 0 | AQ74: 0 | AT74: =SUM(G74:R74) -> 0 | AU74: =SUM(T74:AE74) -> 0 | AV74: =SUM(AF74:AQ74) -> 0
B75: 684 | E75: Total | G75: =SUM(G73:G74) -> 0 | H75: 0 | I75: 0 | J75: 0 | K75: 0 | L75: 0 | M75: 0 | N75: 0 | O75: 0 | P75: 0 | Q75: 0 | R75: 0 | T75: =SUM(T73:T74) -> 0 | U75: =SUM(U73:U74) -> 0 | V75: =SUM(V73:V74) -> 0 | W75: 0 | X75: 0 | Y75: 0 | Z75: 0 | AA75: 0 | AB75: 0 | AC75: 0 | AD75: 0 | AE75: 0 | AF75: =SUM(AF73:AF74) -> 0 | AG75: 0 | AH75: 0 | AI75: 0 | AJ75: 0 | AK75: 0 | AL75: 0 | AM75: 0 | AN75: 0 | AO75: 0 | AP75: 0 | AQ75: 0 | AT75: =SUM(G75:R75) -> 0 | AU75: =SUM(T75:AE75) -> 0 | AV75: =SUM(AF75:AQ75) -> 0
B76: 685
B77: 686 | C77: 887 | D77: Maintenance of Mains
B78: 687 | E78: Utah | G78: 125996.84 | H78: 1275860.89 | I78: 710234.14 | J78: 670620.28 | K78: 686416.54 | L78: 670243.98 | M78: 703570.81 | N78: 707481.82 | O78: 736699.77 | P78: 657156.76 | Q78: 652654.96 | R78: 687512.19 | T78: =T332+T586 -> 128667.5918 | U78: =U332+U586 -> 1302905.28 | V78: =V332+V586 -> 725288.9547 | W78: =W332+W586 -> 684835.4008 | X78: 700966.4937 | Y78: 684451.1243 | Z78: 718484.3823 | AA78: 722478.2939 | AB78: 752315.576 | AC78: 671086.4949 | AD78: 666489.2703 | AE78: 702085.3682 | AF78: =AF332+AF586 -> 128542.6273 | AG78: 1301639.874 | AH78: 724584.5401 | AI78: 684170.2754 | AJ78: 700285.7015 | AK78: 683786.3722 | AL78: 717786.5764 | AM78: 721776.609 | AN78: 751584.9126 | AO78: 670434.7228 | AP78: 665841.9631 | AQ78: 701403.4893 | AT78: =SUM(G78:R78) -> 8284448.98 | AU78: =SUM(T78:AE78) -> 8460054.231 | AV78: =SUM(AF78:AQ78) -> 8451837.664
B79: 688 | E79: Wyoming | G79: 4790.48 | H79: 3678.23 | I79: 1963.75 | J79: 3223.92 | K79: 3019.05 | L79: 4778.05 | M79: 1149.8 | N79: 2834.28 | O79: 1886.85 | P79: 1309.44 | Q79: 2513.14 | R79: 1408.66 | T79: =T333+T587 -> 4892.023681 | U79: =U333+U587 -> 3756.197346 | V79: =V333+V587 -> 2005.375558 | W79: 3292.257349 | X79: 3083.044725 | Y79: 4879.330203 | Z79: 1174.172281 | AA79: 2894.35816 | AB79: 1926.845511 | AC79: 1337.196166 | AD79: 2566.410964 | AE79: 1438.51933 | AF79: =AF333+AF587 -> 4887.272453 | AG79: 3752.549255 | AH79: 2003.427899 | AI79: 3289.059845 | AJ79: 3080.050413 | AK79: 4874.591303 | AL79: 1173.031902 | AM79: 2891.547104 | AN79: 1924.974121 | AO79: 1335.897455 | AP79: 2563.918416 | AQ79: 1437.122212 | AT79: =SUM(G79:R79) -> 32555.65 | AU79: =SUM(T79:AE79) -> 33245.73127 | AV79: =SUM(AF79:AQ79) -> 33213.44238
B80: 689 | E80: Total | G80: =SUM(G78:G79) -> 130787.32 | H80: 1279539.12 | I80: 712197.89 | J80: 673844.2 | K80: 689435.59 | L80: 675022.03 | M80: 704720.61 | N80: 710316.1 | O80: 738586.62 | P80: 658466.2 | Q80: 655168.1 | R80: 688920.85 | T80: =SUM(T78:T79) -> 133559.6154 | U80: =SUM(U78:U79) -> 1306661.478 | V80: =SUM(V78:V79) -> 727294.3303 | W80: 688127.6581 | X80: 704049.5384 | Y80: 689330.4546 | Z80: 719658.5546 | AA80: 725372.652 | AB80: 754242.4215 | AC80: 672423.691 | AD80: 669055.6813 | AE80: 703523.8875 | AF80: =SUM(AF78:AF79) -> 133429.8998 | AG80: 1305392.423 | AH80: 726587.968 | AI80: 687459.3353 | AJ80: 703365.7519 | AK80: 688660.9635 | AL80: 718959.6083 | AM80: 724668.1562 | AN80: 753509.8868 | AO80: 671770.6202 | AP80: 668405.8815 | AQ80: 702840.6115 | AT80: =SUM(G80:R80) -> 8317004.63 | AU80: =SUM(T80:AE80) -> 8493299.963 | AV80: =SUM(AF80:AQ80) -> 8485051.106
B81: 690
B82: 691 | C82: 888 | D82: Maint of Compressor Station Equipment
B83: 692 | E83: Utah | G83: 95656.48 | H83: 104899.97 | I83: 112753.96 | J83: 101817.09 | K83: 82963.72 | L83: 93341.62 | M83: 71623.68 | N83: 90924.62 | O83: 91900.05 | P83: 85381.26 | Q83: 84989.92 | R83: 94927.73 | T83: =T337+T591 -> 96017.36361 | U83: =U337+U591 -> 105295.7266 | V83: =V337+V591 -> 113179.3473 | W83: =W337+W591 -> 102201.2158 | X83: 83276.71758 | Y83: 93693.77032 | Z83: 71893.89496 | AA83: 91267.6517 | AB83: 92246.76171 | AC83: 85703.37824 | AD83: 85310.56183 | AE83: 95285.86425 | AF83: =AF337+AF591 -> 93654.34762 | AG83: 102704.3673 | AH83: 110393.9698 | AI83: 99686.01333 | AJ83: 81227.25269 | AK83: 91387.93866 | AL83: 70124.56474 | AM83: 89021.52754 | AN83: 89976.54136 | AO83: 83594.19251 | AP83: 83211.04343 | AQ83: 92940.85068 | AT83: =SUM(G83:R83) -> 1111180.1 | AU83: =SUM(T83:AE83) -> 1115372.254 | AV83: =SUM(AF83:AQ83) -> 1087922.61
B84: 693 | E84: Wyoming | G84: 0 | H84: 0 | I84: 0 | J84: 0 | K84: 0 | L84: 0 | M84: 21848.47 | N84: 2996.07 | O84: 3028.21 | P84: 2813.41 | Q84: 2800.51 | R84: 3127.98 | T84: =T338+T592 -> 0 | U84: =U338+U592 -> 0 | V84: =V338+V592 -> 0 | W84: 0 | X84: 0 | Y84: 0 | Z84: 21930.89781 | AA84: 3007.373286 | AB84: 3039.634541 | AC84: 2824.024164 | AD84: 2811.075496 | AE84: 3139.780943 | AF84: =AF338+AF592 -> 0 | AG84: 0 | AH84: 0 | AI84: 0 | AJ84: 0 | AK84: 0 | AL84: 21391.17187 | AM84: 2933.360931 | AN84: 2964.828227 | AO84: 2754.524086 | AP84: 2741.894089 | AQ84: 3062.509997 | AT84: =SUM(G84:R84) -> 36614.65 | AU84: =SUM(T84:AE84) -> 36752.78624 | AV84: =SUM(AF84:AQ84) -> 35848.2892
B85: 694 | E85: Total | G85: =SUM(G83:G84) -> 95656.48 | H85: 104899.97 | I85: 112753.96 | J85: 101817.09 | K85: 82963.72 | L85: 93341.62 | M85: 93472.15 | N85: 93920.69 | O85: 94928.26 | P85: 88194.67 | Q85: 87790.43 | R85: 98055.71 | T85: =SUM(T83:T84) -> 96017.36361 | U85: =SUM(U83:U84) -> 105295.7266 | V85: =SUM(V83:V84) -> 113179.3473 | W85: 102201.2158 | X85: 83276.71758 | Y85: 93693.77032 | Z85: 93824.79277 | AA85: 94275.02498 | AB85: 95286.39625 | AC85: 88527.4024 | AD85: 88121.63733 | AE85: 98425.64519 | AF85: =SUM(AF83:AF84) -> 93654.34762 | AG85: 102704.3673 | AH85: 110393.9698 | AI85: 99686.01333 | AJ85: 81227.25269 | AK85: 91387.93866 | AL85: 91515.73661 | AM85: 91954.88847 | AN85: 92941.36958 | AO85: 86348.7166 | AP85: 85952.93752 | AQ85: 96003.36067 | AT85: =SUM(G85:R85) -> 1147794.75 | AU85: =SUM(T85:AE85) -> 1152125.04 | AV85: =SUM(AF85:AQ85) -> 1123770.899
B86: 695
B87: 696 | C87: 889 | D87: Maint of Meas. & Reg. Station Equipment
B88: 697 | E88: Utah | G88: 1175.21 | H88: 2228.34 | I88: 2620.58 | J88: 1873.93 | K88: 1750.32 | L88: 1587.68 | M88: 1780.29 | N88: 1618.96 | O88: 1598.74 | P88: 1715.26 | Q88: 1950.66 | R88: 2101.47 | T88: =T342+T596 -> 1179.131367 | U88: =U342+U596 -> 2235.775385 | V88: =V342+V596 -> 2629.324187 | W88: =W342+W596 -> 1880.182812 | X88: 1756.160358 | Y88: 1592.977671 | Z88: 1786.23036 | AA88: 1624.362044 | AB88: 1604.074576 | AC88: 1720.983372 | AD88: 1957.16884 | AE88: 2108.482053 | AF88: =AF342+AF596 -> 1149.940381 | AG88: 2180.425752 | AH88: 2564.231723 | AI88: 1833.636353 | AJ88: 1712.684242 | AK88: 1553.541362 | AL88: 1742.00982 | AM88: 1584.148773 | AN88: 1564.363547 | AO88: 1678.378109 | AP88: 1908.716488 | AQ88: 2056.283738 | AT88: =SUM(G88:R88) -> 22001.44 | AU88: =SUM(T88:AE88) -> 22074.85303 | AV88: =SUM(AF88:AQ88) -> 21528.36029
B89: 698 | E89: Wyoming | G89: 57.77 | H89: 45.48 | I89: 78.47 | J89: 51.57 | K89: 47.27 | L89: 47.57 | M89: 56.03 | N89: 50.48 | O89: 49.37 | P89: 53.42 | Q89: 60.38 | R89: 65.03 | T89: =T343+T597 -> 57.96276332 | U89: =U343+U597 -> 45.63175482 | V89: =V343+V597 -> 78.73183378 | W89: 51.74207555 | X89: 47.42772758 | Y89: 47.7287286 | Z89: 56.2169574 | AA89: 50.6484385 | AB89: 49.53473472 | AC89: 53.59824851 | AD89: 60.5814722 | AE89: 65.24698803 | AF89: =AF343+AF597 -> 56.52781699 | AG89: 44.50207922 | AH89: 76.78272112 | AI89: 50.46113073 | AJ89: 46.25359026 | AK89: 46.54713959 | AL89: 54.82523085 | AM89: 49.39456814 | AN89: 48.3084356 | AO89: 52.27135163 | AP89: 59.08169621 | AQ89: 63.6317109 | AT89: =SUM(G89:R89) -> 662.84 | AU89: =SUM(T89:AE89) -> 665.051723 | AV89: =SUM(AF89:AQ89) -> 648.5874712
B90: 699 | E90: Total | G90: =SUM(G88:G89) -> 1232.98 | H90: 2273.82 | I90: 2699.05 | J90: 1925.5 | K90: 1797.59 | L90: 1635.25 | M90: 1836.32 | N90: 1669.44 | O90: 1648.11 | P90: 1768.68 | Q90: 2011.04 | R90: 2166.5 | T90: =SUM(T88:T89) -> 1237.09413 | U90: =SUM(U88:U89) -> 2281.40714 | V90: =SUM(V88:V89) -> 2708.056021 | W90: 1931.924888 | X90: 1803.588086 | Y90: 1640.7064 | Z90: 1842.447318 | AA90: 1675.010483 | AB90: 1653.60931 | AC90: 1774.581621 | AD90: 2017.750312 | AE90: 2173.729042 | AF90: =SUM(AF88:AF89) -> 1206.468198 | AG90: 2224.927832 | AH90: 2641.014444 | AI90: 1884.097483 | AJ90: 1758.937832 | AK90: 1600.088502 | AL90: 1796.835051 | AM90: 1633.543341 | AN90: 1612.671983 | AO90: 1730.649461 | AP90: 1967.798184 | AQ90: 2119.915449 | AT90: =SUM(G90:R90) -> 22664.28 | AU90: =SUM(T90:AE90) -> 22739.90475 | AV90: =SUM(AF90:AQ90) -> 22176.94776
B91: 700
B92: 701 | C92: 892 | D92: Maintenance of Services
B93: 702 | E93: Utah | G93: 80679.95 | H93: 87710.83 | I93: 113921.94 | J93: 102620.79 | K93: 94831.85 | L93: 136731.44 | M93: 108164.7 | N93: 77577.5 | O93: 135666.78 | P93: 73740.09 | Q93: 84998.95 | R93: 115573.18 | T93: =T347+T601 -> 81182.42249 | U93: =U347+U601 -> 88257.09062 | V93: =V347+V601 -> 114631.4427 | W93: =W347+W601 -> 103259.9094 | X93: 95422.46014 | Y93: 137582.9996 | Z93: 108838.3468 | AA93: 78060.65052 | AB93: 136511.7089 | AC93: 74199.34124 | AD93: 85528.32111 | AE93: 116292.9666 | AF93: =AF347+AF601 -> 79366.10058 | AG93: 86282.48476 | AH93: 112066.7545 | AI93: 100949.6404 | AJ93: 93287.54103 | AK93: 134504.8084 | AL93: 106403.2695 | AM93: 76314.17307 | AN93: 133457.4861 | AO93: 72539.25418 | AP93: 83614.76693 | AQ93: 113691.1045 | AT93: =SUM(G93:R93) -> 1212218 | AU93: =SUM(T93:AE93) -> 1219767.66 | AV93: =SUM(AF93:AQ93) -> 1192477.384
B94: 703 | E94: Wyoming | G94: 6874.47 | H94: 8771.08 | I94: 8744.64 | J94: 2382.38 | K94: 6274.31 | L94: 7884.67 | M94: 2306.74 | N94: 3084.08 | O94: 1395.43 | P94: 3730.2 | Q94: 1601.51 | R94: 1587.25 | T94: =T348+T602 -> 6917.284009 | U94: =U348+U602 -> 8825.706043 | V94: =V348+V602 -> 8799.101376 | W94: 2397.217397 | X94: 6313.386229 | Y94: 7933.775506 | Z94: 2321.106313 | AA94: 3103.287565 | AB94: 1404.120699 | AC94: 3753.431582 | AD94: 1611.48416 | AE94: 1597.135349 | AF94: =AF348+AF602 -> 6762.521264 | AG94: 8628.245524 | AH94: 8602.236092 | AI94: 2343.583638 | AJ94: 6172.134695 | AK94: 7756.270452 | AL94: 2269.175413 | AM94: 3033.856658 | AN94: 1372.70583 | AO94: 3669.454783 | AP94: 1575.429877 | AQ94: 1561.402097 | AT94: =SUM(G94:R94) -> 54636.76 | AU94: =SUM(T94:AE94) -> 54977.03623 | AV94: =SUM(AF94:AQ94) -> 53747.01632
